Workbook

Sheet Total Plants
A1: Months | B1: Pos Gen | C1: Code | D1: Name | E1: Mover | F1: State | I1: 1970-01-01 | J1: 1970-02-01 | K1: 1970-03-01 | L1: 1970-04-01 | M1: 1970-05-01 | N1: 1970-06-01 | O1: 1970-07-01 | P1: 1970-08-01 | Q1: 1970-09-01 | R1: 1970-10-01 | S1: 1970-11-01 | T1: 1970-12-01 | U1: 1971-01-01 | V1: 1971-02-01 | W1: 1971-03-01 | X1: 1971-04-01 | Y1: 1971-05-01 | Z1: 1971-06-01 | AA1: 1971-07-01 | AB1: 1971-08-01 | AC1: 1971-09-01 | AD1: 1971-10-01 | AE1: 1971-11-01 | AF1: 1971-12-01 | AG1: 1972-01-01 | AH1: 1972-02-01 | AI1: 1972-03-01 | AJ1: 1972-04-01 | AK1: 1972-05-01 | AL1: 1972-06-01 | AM1: 1972-07-01 | AN1: 1972-08-01 | AO1: 1972-09-01 | AP1: 1972-10-01 | AQ1: 1972-11-01 | AR1: 1972-12-01 | AS1: 1973-01-01 | AT1: 1973-02-01 | AU1: 1973-03-01 | AV1: 1973-04-01 | AW1: 1973-05-01 | AX1: 1973-06-01 | AY1: 1973-07-01 | AZ1: 1973-08-01 | BA1: 1973-09-01 | BB1: 1973-10-01 | BC1: 1973-11-01 | BD1: 1973-12-01 | BE1: 1974-01-01 | BF1: 1974-02-01 | BG1: 1974-03-01 | BH1: 1974-04-01 | BI1: 1974-05-01 | BJ1: 1974-06-01 | BK1: 1974-07-01 | BL1: 1974-08-01 | BM1: 1974-09-01 | BN1: 1974-10-01 | BO1: 1974-11-01 | BP1: 1974-12-01 | BQ1: 1975-01-01 | BR1: 1975-02-01 | BS1: 1975-03-01 | BT1: 1975-04-01 | BU1: 1975-05-01 | BV1: 1975-06-01 | BW1: 1975-07-01 | BX1: 1975-08-01 | BY1: 1975-09-01 | BZ1: 1975-10-01 | CA1: 1975-11-01 | CB1: 1975-12-01 | CC1: 1976-01-01 | CD1: 1976-02-01 | CE1: 1976-03-01 | CF1: 1976-04-01 | CG1: 1976-05-01 | CH1: 1976-06-01 | CI1: 1976-07-01 | CJ1: 1976-08-01 | CK1: 1976-09-01 | CL1: 1976-10-01 | CM1: 1976-11-01 | CN1: 1976-12-01 | CO1: 1977-01-01 | CP1: 1977-02-01 | CQ1: 1977-03-01 | CR1: 1977-04-01 | CS1: 1977-05-01 | CT1: 1977-06-01 | CU1: 1977-07-01 | CV1: 1977-08-01 | CW1: 1977-09-01 | CX1: 1977-10-01 | CY1: 1977-11-01 | CZ1: 1977-12-01 | DA1: 1978-01-01 | DB1: 1978-02-01 | DC1: 1978-03-01 | DD1: 1978-04-01 | DE1: 1978-05-01 | DF1: 1978-06-01 | DG1: 1978-07-01 | DH1: 1978-08-01 | DI1: 1978-09-01 | DJ1: 1978-10-01 | DK1: 1978-11-01 | DL1: 1978-12-01 | DM1: 1979-01-01 | DN1: 1979-02-01 | DO1: 1979-03-01 | DP1: 1979-04-01 | DQ1: 1979-05-01 | DR1: 1979-06-01 | DS1: 1979-07-01 | DT1: 1979-08-01 | DU1: 1979-09-01 | DV1: 1979-10-01 | DW1: 1979-11-01 | DX1: 1979-12-01 | DY1: 1980-01-01 | DZ1: 1980-02-01 | EA1: 1980-03-01 | EB1: 1980-04-01 | EC1: 1980-05-01 | ED1: 1980-06-01 | EE1: 1980-07-01 | EF1: 1980-08-01 | EG1: 1980-09-01 | EH1: 1980-10-01 | EI1: 1980-11-01 | EJ1: 1980-12-01 | EK1: 1981-01-01 | EL1: 1981-02-01 | EM1: 1981-03-01 | EN1: 1981-04-01 | EO1: 1981-05-01 | EP1: 1981-06-01 | EQ1: 1981-07-01 | ER1: 1981-08-01 | ES1: 1981-09-01 | ET1: 1981-10-01 | EU1: 1981-11-01 | EV1: 1981-12-01 | EW1: 1982-01-01 | EX1: 1982-02-01 | EY1: 1982-03-01 | EZ1: 1982-04-01 | FA1: 1982-05-01 | FB1: 1982-06-01 | FC1: 1982-07-01 | FD1: 1982-08-01 | FE1: 1982-09-01 | FF1: 1982-10-01 | FG1: 1982-11-01 | FH1: 1982-12-01 | FI1: 1983-01-01 | FJ1: 1983-02-01 | FK1: 1983-03-01 | FL1: 1983-04-01 | FM1: 1983-05-01 | FN1: 1983-06-01 | FO1: 1983-07-01 | FP1: 1983-08-01 | FQ1: 1983-09-01 | FR1: 1983-10-01 | FS1: 1983-11-01 | FT1: 1983-12-01 | FU1: 1984-01-01 | FV1: 1984-02-01 | FW1: 1984-03-01 | FX1: 1984-04-01 | FY1: 1984-05-01 | FZ1: 1984-06-01 | GA1: 1984-07-01 | GB1: 1984-08-01 | GC1: 1984-09-01 | GD1: 1984-10-01 | GE1: 1984-11-01 | GF1: 1984-12-01 | GG1: 1985-01-01 | GH1: 1985-02-01 | GI1: 1985-03-01 | GJ1: 1985-04-01 | GK1: 1985-05-01 | GL1: 1985-06-01 | GM1: 1985-07-01 | GN1: 1985-08-01 | GO1: 1985-09-01 | GP1: 1985-10-01 | GQ1: 1985-11-01 | GR1: 1985-12-01 | GS1: 1986-01-01 | GT1: 1986-02-01 | GU1: 1986-03-01 | GV1: 1986-04-01 | GW1: 1986-05-01 | GX1: 1986-06-01 | GY1: 1986-07-01 | GZ1: 1986-08-01 | HA1: 1986-09-01 | HB1: 1986-10-01 | HC1: 1986-11-01 | HD1: 1986-12-01 | HE1: 1987-01-01 | HF1: 1987-02-01 | HG1: 1987-03-01 | HH1: 1987-04-01 | HI1: 1987-05-01 | HJ1: 1987-06-01 | HK1: 1987-07-01 | HL1: 1987-08-01 | HM1: 1987-09-01 | HN1: 1987-10-01 | HO1: 1987-11-01 | HP1: 1987-12-01 | HQ1: 1988-01-01 | HR1: 1988-02-01 | HS1: 1988-03-01 | HT1: 1988-04-01 | HU1: 1988-05-01 | HV1: 1988-06-01 | HW1: 1988-07-01 | HX1: 1988-08-01 | HY1: 1988-09-01 | HZ1: 1988-10-01 | IA1: 1988-11-01 | IB1: 1988-12-01 | IC1: 1989-01-01 | ID1: 1989-02-01 | IE1: 1989-03-01 | IF1: 1989-04-01 | IG1: 1989-05-01 | IH1: 1989-06-01 | II1: 1989-07-01 | IJ1: 1989-08-01 | IK1: 1989-09-01 | IL1: 1989-10-01 | IM1: 1989-11-01 | IN1: 1989-12-01 | IO1: 1990-01-01 | IP1: 1990-02-01 | IQ1: 1990-03-01 | IR1: 1990-04-01 | IS1: 1990-05-01 | IT1: 1990-06-01 | IU1: 1990-07-01 | IV1: 1990-08-01 | IW1: 1990-09-01 | IX1: 1990-10-01 | IY1: 1990-11-01 | IZ1: 1990-12-01 | JA1: 1991-01-01 | JB1: 1991-02-01 | JC1: 1991-03-01 | JD1: 1991-04-01 | JE1: 1991-05-01 | JF1: 1991-06-01 | JG1: 1991-07-01 | JH1: 1991-08-01 | JI1: 1991-09-01 | JJ1: 1991-10-01 | JK1: 1991-11-01 | JL1: 1991-12-01 | JM1: 1992-01-01 | JN1: 1992-02-01 | JO1: 1992-03-01 | JP1: 1992-04-01 | JQ1: 1992-05-01 | JR1: 1992-06-01 | JS1: 1992-07-01 | JT1: 1992-08-01 | JU1: 1992-09-01 | JV1: 1992-10-01 | JW1: 1992-11-01 | JX1: 1992-12-01 | JY1: 1993-01-01 | JZ1: 1993-02-01 | KA1: 1993-03-01 | KB1: 1993-04-01 | KC1: 1993-05-01 | KD1: 1993-06-01 | KE1: 1993-07-01 | KF1: 1993-08-01 | KG1: 1993-09-01 | KH1: 1993-10-01 | KI1: 1993-11-01 | KJ1: 1993-12-01 | KK1: 1994-01-01 | KL1: 1994-02-01 | KM1: 1994-03-01 | KN1: 1994-04-01 | KO1: 1994-05-01 | KP1: 1994-06-01 | KQ1: 1994-07-01 | KR1: 1994-08-01 | KS1: 1994-09-01 | KT1: 1994-10-01 | KU1: 1994-11-01 | KV1: 1994-12-01 | KW1: 1995-01-01 | KX1: 1995-02-01 | KY1: 1995-03-01 | KZ1: 1995-04-01 | LA1: 1995-05-01 | LB1: 1995-06-01 | LC1: 1995-07-01 | LD1: 1995-08-01 | LE1: 1995-09-01 | LF1: 1995-10-01 | LG1: 1995-11-01 | LH1: 1995-12-01 | LI1: 1996-01-01 | LJ1: 1996-02-01 | LK1: 1996-03-01 | LL1: 1996-04-01 | LM1: 1996-05-01 | LN1: 1996-06-01 | LO1: 1996-07-01 | LP1: 1996-08-01 | LQ1: 1996-09-01 | LR1: 1996-10-01 | LS1: 1996-11-01 | LT1: 1996-12-01 | LU1: 1997-01-01 | LV1: 1997-02-01 | LW1: 1997-03-01 | LX1: 1997-04-01 | LY1: 1997-05-01 | LZ1: 1997-06-01 | MA1: 1997-07-01 | MB1: 1997-08-01 | MC1: 1997-09-01 | MD1: 1997-10-01 | ME1: 1997-11-01 | MF1: 1997-12-01 | MG1: 1998-01-01 | MH1: 1998-02-01 | MI1: 1998-03-01 | MJ1: 1998-04-01 | MK1: 1998-05-01 | ML1: 1998-06-01 | MM1: 1998-07-01 | MN1: 1998-08-01 | MO1: 1998-09-01 | MP1: 1998-10-01 | MQ1: 1998-11-01 | MR1: 1998-12-01 | MS1: 1999-01-01 | MT1: 1999-02-01 | MU1: 1999-03-01 | MV1: 1999-04-01 | MW1: 1999-05-01 | MX1: 1999-06-01 | MY1: 1999-07-01 | MZ1: 1999-08-01 | NA1: 1999-09-01 | NB1: 1999-10-01 | NC1: 1999-11-01 | ND1: 1999-12-01 | NE1: 2000-01-01 | NF1: 2000-02-01 | NG1: 2000-03-01 | NH1: 2000-04-01 | NI1: 2000-05-01 | NJ1: 2000-06-01 | NK1: 2000-07-01 | NL1: 2000-08-01 | NM1: 2000-09-01 | NN1: 2000-10-01 | NO1: 2000-11-01 | NP1: 2000-12-01 | NQ1: 2001-01-01 | NR1: 2001-02-01 | NS1: 2001-03-01 | NT1: 2001-04-01 | NU1: 2001-05-01 | NV1: 2001-06-01 | NW1: 2001-07-01 | NX1: 2001-08-01 | NY1: 2001-09-01 | NZ1: 2001-10-01 | OA1: 2001-11-01 | OB1: 2001-12-01 | OC1: 2002-01-01 | OD1: 2002-02-01 | OE1: 2002-03-01 | OF1: 2002-04-01 | OG1: 2002-05-01 | OH1: 2002-06-01 | OI1: 2002-07-01 | OJ1: 2002-08-01 | OK1: 2002-09-01 | OL1: 2002-10-01 | OM1: 2002-11-01 | ON1: 2002-12-01 | OO1: 2003-01-01 | OP1: 2003-02-01 | OQ1: 2003-03-01 | OR1: 2003-04-01 | OS1: 2003-05-01 | OT1: 2003-06-01 | OU1: 2003-07-01 | OV1: 2003-08-01 | OW1: 2003-09-01 | OX1: 2003-10-01 | OY1: 2003-11-01 | OZ1: 2003-12-01 | PA1: 2004-01-01 | PB1: 2004-02-01 | PC1: 2004-03-01 | PD1: 2004-04-01 | PE1: 2004-05-01 | PF1: 2004-06-01 | PG1: 2004-07-01 | PH1: 2004-08-01 | PI1: 2004-09-01 | PJ1: 2004-10-01 | PK1: 2004-11-01 | PL1: 2004-12-01 | PM1: 2005-01-01 | PN1: 2005-02-01 | PO1: 2005-03-01 | PP1: 2005-04-01 | PQ1: 2005-05-01 | PR1: 2005-06-01 | PS1: 2005-07-01 | PT1: 2005-08-01 | PU1: 2005-09-01 | PV1: 2005-10-01 | PW1: 2005-11-01 | PX1: 2005-12-01 | PY1: 2006-01-01 | PZ1: 2006-02-01 | QA1: 2006-03-01 | QB1: 2006-04-01 | QC1: 2006-05-01 | QD1: 2006-06-01 | QE1: 2006-07-01 | QF1: 2006-08-01 | QG1: 2006-09-01 | QH1: 2006-10-01 | QI1: 2006-11-01 | QJ1: 2006-12-01 | QK1: 2007-01-01 | QL1: 2007-02-01 | QM1: 2007-03-01 | QN1: 2007-04-01 | QO1: 2007-05-01 | QP1: 2007-06-01 | QQ1: 2007-07-01 | QR1: 2007-08-01 | QS1: 2007-09-01 | QT1: 2007-10-01 | QU1: 2007-11-01 | QV1: 2007-12-01 | QW1: 2008-01-01 | QX1: 2008-02-01 | QY1: 2008-03-01 | QZ1: 2008-04-01 | RA1: 2008-05-01 | RB1: 2008-06-01 | RC1: 2008-07-01 | RD1: 2008-08-01 | RE1: 2008-09-01 | RF1: 2008-10-01 | RG1: 2008-11-01 | RH1: 2008-12-01 | RI1: 2009-01-01 | RJ1: 2009-02-01 | RK1: 2009-03-01 | RL1: 2009-04-01 | RM1: 2009-05-01 | RN1: 2009-06-01 | RO1: 2009-07-01 | RP1: 2009-08-01 | RQ1: 2009-09-01 | RR1: 2009-10-01 | RS1: 2009-11-01 | RT1: 2009-12-01 | RU1: 2010-01-01 | RV1: 2010-02-01 | RW1: 2010-03-01 | RX1: 2010-04-01 | RY1: 2010-05-01 | RZ1: 2010-06-01 | SA1: 2010-07-01 | SB1: 2010-08-01 | SC1: 2010-09-01 | SD1: 2010-10-01 | SE1: 2010-11-01 | SF1: 2010-12-01 | SG1: 2011-01-01 | SH1: 2011-02-01 | SI1: 2011-03-01 | SJ1: 2011-04-01 | SK1: 2011-05-01 | SL1: 2011-06-01 | SM1: 2011-07-01 | SN1: 2011-08-01 | SO1: 2011-09-01 | SP1: 2011-10-01 | SQ1: 2011-11-01 | SR1: 2011-12-01 | SS1: 2012-01-01 | ST1: 2012-02-01 | SU1: 2012-03-01 | SV1: 2012-04-01 | SW1: 2012-05-01 | SX1: 2012-06-01 | SY1: 2012-07-01 | SZ1: 2012-08-01 | TA1: 2012-09-01 | TB1: 2012-10-01 | TC1: 2012-11-01 | TD1: 2012-12-01 | TE1: 2013-01-01 | TF1: 2013-02-01 | TG1: 2013-03-01 | TH1: 2013-04-01 | TI1: 2013-05-01 | TJ1: 2013-06-01 | TK1: 2013-07-01 | TL1: 2013-08-01 | TM1: 2013-09-01 | TN1: 2013-10-01 | TO1: 2013-11-01 | TP1: 2013-12-01 | TQ1: 2014-01-01 | TR1: 2014-02-01 | TS1: 2014-03-01 | TT1: 2014-04-01 | TU1: 2014-05-01 | TV1: 2014-06-01 | TW1: 2014-07-01 | TX1: 2014-08-01 | TY1: 2014-09-01 | TZ1: 2014-10-01 | UA1: 2014-11-01 | UB1: 2014-12-01 | UC1: 2015-01-01 | UD1: 2015-02-01 | UE1: 2015-03-01 | UF1: 2015-04-01 | UG1: 2015-05-01 | UH1: 2015-06-01 | UI1: 2015-07-01 | UJ1: 2015-08-01 | UK1: 2015-09-01 | UL1: 2015-10-01 | UM1: 2015-11-01 | UN1: 2015-12-01 | UO1: 2016-01-01 | UP1: 2016-02-01 | UQ1: 2016-03-01 | UR1: 2016-04-01 | US1: 2016-05-01 | UT1: 2016-06-01 | UU1: 2016-07-01 | UV1: 2016-08-01 | UW1: 2016-09-01 | UX1: 2016-10-01 | UY1: 2016-11-01 | UZ1: 2016-12-01 | VA1: =EDATE(UZ1,1) -> 2017-01-01 | VB1: =EDATE(VA1,1) -> 2017-02-01 | VC1: 2017-03-01 | VD1: 2017-04-01 | VE1: 2017-05-01 | VF1: 2017-06-01 | VG1: 2017-07-01 | VH1: 2017-08-01 | VI1: 2017-09-01 | VJ1: 2017-10-01 | VK1: 2017-11-01 | VL1: 2017-12-01
A2: =count_non_zero(I2:VK2) -> 259 | B2: =SUM(I2:UZ2) -> 4068057.001 | C2: 7526 | D2: Solano Wind | E2: WT | F2: CA | I2: 0 | J2: 0 | K2: 0 | L2: 0 | M2: 0 | N2: 0 | O2: 0 | P2: 0 | Q2: 0 | R2: 0 | S2: 0 | T2: 0 | U2: 0 | V2: 0 | W2: 0 | X2: 0 | Y2: 0 | Z2: 0 | AA2: 0 | AB2: 0 | AC2: 0 | AD2: 0 | AE2: 0 | AF2: 0 | AG2: 0 | AH2: 0 | AI2: 0 | AJ2: 0 | AK2: 0 | AL2: 0 | AM2: 0 | AN2: 0 | AO2: 0 | AP2: 0 | AQ2: 0 | AR2: 0 | AS2: 0 | AT2: 0 | AU2: 0 | AV2: 0 | AW2: 0 | AX2: 0 | AY2: 0 | AZ2: 0 | BA2: 0 | BB2: 0 | BC2: 0 | BD2: 0 | BE2: 0 | BF2: 0 | BG2: 0 | BH2: 0 | BI2: 0 | BJ2: 0 | BK2: 0 | BL2: 0 | BM2: 0 | BN2: 0 | BO2: 0 | BP2: 0 | BQ2: 0 | BR2: 0 | BS2: 0 | BT2: 0 | BU2: 0 | BV2: 0 | BW2: 0 | BX2: 0 | BY2: 0 | BZ2: 0 | CA2: 0 | CB2: 0 | CC2: 0 | CD2: 0 | CE2: 0 | CF2: 0 | CG2: 0 | CH2: 0 | CI2: 0 | CJ2: 0 | CK2: 0 | CL2: 0 | CM2: 0 | CN2: 0 | CO2: 0 | CP2: 0 | CQ2: 0 | CR2: 0 | CS2: 0 | CT2: 0 | CU2: 0 | CV2: 0 | CW2: 0 | CX2: 0 | CY2: 0 | CZ2: 0 | DA2: 0 | DB2: 0 | DC2: 0 | DD2: 0 | DE2: 0 | DF2: 0 | DG2: 0 | DH2: 0 | DI2: 0 | DJ2: 0 | DK2: 0 | DL2: 0 | DM2: 0 | DN2: 0 | DO2: 0 | DP2: 0 | DQ2: 0 | DR2: 0 | DS2: 0 | DT2: 0 | DU2: 0 | DV2: 0 | DW2: 0 | DX2: 0 | DY2: 0 | DZ2: 0 | EA2: 0 | EB2: 0 | EC2: 0 | ED2: 0 | EE2: 0 | EF2: 0 | EG2: 0 | EH2: 0 | EI2: 0 | EJ2: 0 | EK2: 0 | EL2: 0 | EM2: 0 | EN2: 0 | EO2: 0 | EP2: 0 | EQ2: 0 | ER2: 0 | ES2: 0 | ET2: 0 | EU2: 0 | EV2: 0 | EW2: 0 | EX2: 0 | EY2: 0 | EZ2: 0 | FA2: 0 | FB2: 0 | FC2: 0 | FD2: 0 | FE2: 0 | FF2: 0 | FG2: 0 | FH2: 0 | FI2: 0 | FJ2: 0 | FK2: 0 | FL2: 0 | FM2: 0 | FN2: 0 | FO2: 0 | FP2: 0 | FQ2: 0 | FR2: 0 | FS2: 0 | FT2: 0 | FU2: 0 | FV2: 0 | FW2: 0 | FX2: 0 | FY2: 0 | FZ2: 0 | GA2: 0 | GB2: 0 | GC2: 0 | GD2: 0 | GE2: 0 | GF2: 0 | GG2: 0 | GH2: 0 | GI2: 0 | GJ2: 0 | GK2: 0 | GL2: 0 | GM2: 0 | GN2: 0 | GO2: 0 | GP2: 0 | GQ2: 0 | GR2: 0 | GS2: 0 | GT2: 0 | GU2: 0 | GV2: 0 | GW2: 0 | GX2: 0 | GY2: 0 | GZ2: 0 | HA2: 0 | HB2: 0 | HC2: 0 | HD2: 0 | HE2: 0 | HF2: 0 | HG2: 0 | HH2: 0 | HI2: 0 | HJ2: 0 | HK2: 0 | HL2: 0 | HM2: 0 | HN2: 0 | HO2: 0 | HP2: 0 | HQ2: 0 | HR2: 0 | HS2: 0 | HT2: 0 | HU2: 0 | HV2: 0 | HW2: 0 | HX2: 0 | HY2: 0 | HZ2: 0 | IA2: 0 | IB2: 0 | IC2: 0 | ID2: 0 | IE2: 0 | IF2: 0 | IG2: 0 | IH2: 0 | II2: 0 | IJ2: 0 | IK2: 0 | IL2: 0 | IM2: 0 | IN2: 0 | IO2: 0 | IP2: 0 | IQ2: 0 | IR2: 0 | IS2: 0 | IT2: 0 | IU2: 0 | IV2: 0 | IW2: 0 | IX2: 0 | IY2: 0 | IZ2: 0 | JA2: 0 | JB2: 0 | JC2: 0 | JD2: 0 | JE2: 0 | JF2: 0 | JG2: 0 | JH2: 0 | JI2: 0 | JJ2: 0 | JK2: 0 | JL2: 0 | JM2: 0 | JN2: 0 | JO2: 0 | JP2: 0 | JQ2: 0 | JR2: 0 | JS2: 0 | JT2: 0 | JU2: 0 | JV2: 0 | JW2: 0 | JX2: 0 | JY2: 0 | JZ2: 0 | KA2: 0 | KB2: 0 | KC2: 0 | KD2: 0 | KE2: 0 | KF2: 0 | KG2: 0 | KH2: 0 | KI2: 0 | KJ2: 0 | KK2: 0 | KL2: 0 | KM2: 0 | KN2: 0 | KO2: 0 | KP2: 0 | KQ2: 0 | KR2: 0 | KS2: 0 | KT2: 0 | KU2: 0 | KV2: 0 | KW2: 0 | KX2: 60 | KY2: 0 | KZ2: 0 | LA2: 1415 | LB2: 1742 | LC2: 2169 | LD2: 1910 | LE2: 2002 | LF2: 880 | LG2: 415 | LH2: 324 | LI2: 445 | LJ2: 345 | LK2: 574 | LL2: 753 | LM2: 1213 | LN2: 1171 | LO2: 1670 | LP2: 1292 | LQ2: 1091 | LR2: 761 | LS2: 302 | LT2: 375 | LU2: 204 | LV2: 187 | LW2: 258 | LX2: 578 | LY2: 624 | LZ2: 934 | MA2: 919 | MB2: 961 | MC2: 467 | MD2: 485 | ME2: 124 | MF2: 118 | MG2: 10 | MH2: 0 | MI2: -9 | MJ2: 77 | MK2: 134 | ML2: 382 | MM2: 531 | MN2: 410 | MO2: 463 | MP2: 283 | MQ2: 165 | MR2: 110 | MS2: 26 | MT2: -5 | MU2: 160 | MV2: 368 | MW2: 344 | MX2: 306 | MY2: 869 | MZ2: 827 | NA2: 714 | NB2: 224 | NC2: 0 | ND2: 106 | NE2: 160 | NF2: 162 | NG2: 479 | NH2: 655 | NI2: 756 | NJ2: 1077 | NK2: 1070 | NL2: 1148 | NM2: 594 | NN2: 470 | NO2: 127 | NP2: 76 | NQ2: 160 | NR2: 295 | NS2: 518 | NT2: 632 | NU2: 711 | NV2: 881 | NW2: 1144 | NX2: 1155 | NY2: 760 | NZ2: 515 | OA2: 159 | OB2: 206 | OC2: 78 | OD2: 124 | OE2: 278 | OF2: 476 | OG2: 757 | OH2: 774 | OI2: 515 | OJ2: 503 | OK2: 400 | OL2: 238 | OM2: 167 | ON2: 0 | OO2: 7 | OP2: 62 | OQ2: 1151 | OR2: 1548 | OS2: 3088 | OT2: 5169 | OU2: 4663 | OV2: 4368 | OW2: 3605 | OX2: 2182 | OY2: 430 | OZ2: 646 | PA2: 1261.745 | PB2: 1960.623 | PC2: 2790.669 | PD2: 3872.69 | PE2: 6146.577 | PF2: 6620.401 | PG2: 5703.84 | PH2: 4768.223 | PI2: 3477.397 | PJ2: 2512.795 | PK2: 1505.433 | PL2: 1138.607 | PM2: 1445.083 | PN2: 1903.538 | PO2: 2829.42 | PP2: 2863.409 | PQ2: 3042.048 | PR2: 2581.261 | PS2: 1764.816 | PT2: 1588.073 | PU2: 3349.845 | PV2: 4440.771 | PW2: 6104.727 | PX2: 4970.01 | PY2: 5784.386 | PZ2: 4597.312 | QA2: 6428.253 | QB2: 6906.221 | QC2: 7056.818 | QD2: 6543.111 | QE2: 6056.963 | QF2: 5079.97 | QG2: 5569.013 | QH2: 6899.182 | QI2: 6802.858 | QJ2: 6146.913 | QK2: 4878.962 | QL2: 6443.859 | QM2: 9298.152 | QN2: 12832.966 | QO2: 15354.683 | QP2: 15336.828 | QQ2: 14146.244 | QR2: 12578.461 | QS2: 10180.57 | QT2: 7317.013 | QU2: 3943.8 | QV2: 4885.462 | QW2: 13149.223 | QX2: 12734.275 | QY2: 21838.533 | QZ2: 26120.412 | RA2: 33497.721 | RB2: 32006.474 | RC2: 33954.546 | RD2: 31423.553 | RE2: 19686.518 | RF2: 14443.21 | RG2: 10803.83 | RH2: 11679.705 | RI2: 4479.32 | RJ2: 7304.66 | RK2: 13221.266 | RL2: 17951.984 | RM2: 20867.489 | RN2: 25283.358 | RO2: 26111.653 | RP2: 20143.2 | RQ2: 14243.558 | RR2: 12079.094 | RS2: 7009.155 | RT2: 5080.263 | RU2: 5848.777 | RV2: 8591.879 | RW2: 15509.714 | RX2: 21236.176 | RY2: 26767.766 | RZ2: 33724.066 | SA2: 35949.243 | SB2: 28427.973 | SC2: 21416.161 | SD2: 14453.661 | SE2: 11849.919 | SF2: 12576.665 | SG2: 6704.995 | SH2: 12274.802 | SI2: 17464.044 | SJ2: 27414.703 | SK2: 29296.412 | SL2: 29128.398 | SM2: 24813.376 | SN2: 25927.905 | SO2: 14914.911 | SP2: 11870.14 | SQ2: 12232.546 | SR2: 9024.768 | SS2: 20156.284 | ST2: 30906.812 | SU2: 39485.898 | SV2: 40893.68 | SW2: 69918.274 | SX2: 72316.375 | SY2: 53145.861 | SZ2: 53096.033 | TA2: 36974.954 | TB2: 41182.967 | TC2: 20684.383 | TD2: 35983.479 | TE2: 13699 | TF2: 25515 | TG2: 32236 | TH2: 61420 | TI2: 76800 | TJ2: 79752 | TK2: 100334 | TL2: 92945 | TM2: 65945 | TN2: 31772 | TO2: 21816 | TP2: 15424 | TQ2: 11987 | TR2: 21035 | TS2: 32891 | TT2: 43370 | TU2: 69167 | TV2: 80377 | TW2: 93572 | TX2: 85639 | TY2: 63751 | TZ2: 27758 | UA2: 9367 | UB2: 23436 | UC2: 4319 | UD2: 21969 | UE2: 26865 | UF2: 55265 | UG2: 81925 | UH2: 82092 | UI2: 94687 | UJ2: 85264 | UK2: 41242 | UL2: 31443 | UM2: 20228 | UN2: 25009 | UO2: 20394 | UP2: 12501 | UQ2: 34496 | UR2: 49972 | US2: 64970 | UT2: 77831 | UU2: 85033 | UV2: 100462 | UW2: 57248 | UX2: 26578 | UY2: 10660 | UZ2: 22207 | VA2: 23969 | VB2: 22051 | VC2: 29879 | VD2: 0 | VE2: 0 | VF2: 0 | VG2: 0 | VH2: 0 | VI2: 0 | VJ2: 0 | VK2: 0
A3: 216 | B3: 6248981.33 | C3: 50485 | D3: Altech III | E3: WT | F3: CA | I3: 0 | J3: 0 | K3: 0 | L3: 0 | M3: 0 | N3: 0 | O3: 0 | P3: 0 | Q3: 0 | R3: 0 | S3: 0 | T3: 0 | U3: 0 | V3: 0 | W3: 0 | X3: 0 | Y3: 0 | Z3: 0 | AA3: 0 | AB3: 0 | AC3: 0 | AD3: 0 | AE3: 0 | AF3: 0 | AG3: 0 | AH3: 0 | AI3: 0 | AJ3: 0 | AK3: 0 | AL3: 0 | AM3: 0 | AN3: 0 | AO3: 0 | AP3: 0 | AQ3: 0 | AR3: 0 | AS3: 0 | AT3: 0 | AU3: 0 | AV3: 0 | AW3: 0 | AX3: 0 | AY3: 0 | AZ3: 0 | BA3: 0 | BB3: 0 | BC3: 0 | BD3: 0 | BE3: 0 | BF3: 0 | BG3: 0 | BH3: 0 | BI3: 0 | BJ3: 0 | BK3: 0 | BL3: 0 | BM3: 0 | BN3: 0 | BO3: 0 | BP3: 0 | BQ3: 0 | BR3: 0 | BS3: 0 | BT3: 0 | BU3: 0 | BV3: 0 | BW3: 0 | BX3: 0 | BY3: 0 | BZ3: 0 | CA3: 0 | CB3: 0 | CC3: 0 | CD3: 0 | CE3: 0 | CF3: 0 | CG3: 0 | CH3: 0 | CI3: 0 | CJ3: 0 | CK3: 0 | CL3: 0 | CM3: 0 | CN3: 0 | CO3: 0 | CP3: 0 | CQ3: 0 | CR3: 0 | CS3: 0 | CT3: 0 | CU3: 0 | CV3: 0 | CW3: 0 | CX3: 0 | CY3: 0 | CZ3: 0 | DA3: 0 | DB3: 0 | DC3: 0 | DD3: 0 | DE3: 0 | DF3: 0 | DG3: 0 | DH3: 0 | DI3: 0 | DJ3: 0 | DK3: 0 | DL3: 0 | DM3: 0 | DN3: 0 | DO3: 0 | DP3: 0 | DQ3: 0 | DR3: 0 | DS3: 0 | DT3: 0 | DU3: 0 | DV3: 0 | DW3: 0 | DX3: 0 | DY3: 0 | DZ3: 0 | EA3: 0 | EB3: 0 | EC3: 0 | ED3: 0 | EE3: 0 | EF3: 0 | EG3: 0 | EH3: 0 | EI3: 0 | EJ3: 0 | EK3: 0 | EL3: 0 | EM3: 0 | EN3: 0 | EO3: 0 | EP3: 0 | EQ3: 0 | ER3: 0 | ES3: 0 | ET3: 0 | EU3: 0 | EV3: 0 | EW3: 0 | EX3: 0 | EY3: 0 | EZ3: 0 | FA3: 0 | FB3: 0 | FC3: 0 | FD3: 0 | FE3: 0 | FF3: 0 | FG3: 0 | FH3: 0 | FI3: 0 | FJ3: 0 | FK3: 0 | FL3: 0 | FM3: 0 | FN3: 0 | FO3: 0 | FP3: 0 | FQ3: 0 | FR3: 0 | FS3: 0 | FT3: 0 | FU3: 0 | FV3: 0 | FW3: 0 | FX3: 0 | FY3: 0 | FZ3: 0 | GA3: 0 | GB3: 0 | GC3: 0 | GD3: 0 | GE3: 0 | GF3: 0 | GG3: 0 | GH3: 0 | GI3: 0 | GJ3: 0 | GK3: 0 | GL3: 0 | GM3: 0 | GN3: 0 | GO3: 0 | GP3: 0 | GQ3: 0 | GR3: 0 | GS3: 0 | GT3: 0 | GU3: 0 | GV3: 0 | GW3: 0 | GX3: 0 | GY3: 0 | GZ3: 0 | HA3: 0 | HB3: 0 | HC3: 0 | HD3: 0 | HE3: 0 | HF3: 0 | HG3: 0 | HH3: 0 | HI3: 0 | HJ3: 0 | HK3: 0 | HL3: 0 | HM3: 0 | HN3: 0 | HO3: 0 | HP3: 0 | HQ3: 0 | HR3: 0 | HS3: 0 | HT3: 0 | HU3: 0 | HV3: 0 | HW3: 0 | HX3: 0 | HY3: 0 | HZ3: 0 | IA3: 0 | IB3: 0 | IC3: 0 | ID3: 0 | IE3: 0 | IF3: 0 | IG3: 0 | IH3: 0 | II3: 0 | IJ3: 0 | IK3: 0 | IL3: 0 | IM3: 0 | IN3: 0 | IO3: 0 | IP3: 0 | IQ3: 0 | IR3: 0 | IS3: 0 | IT3: 0 | IU3: 0 | IV3: 0 | IW3: 0 | IX3: 0 | IY3: 0 | IZ3: 0 | JA3: 533502 | JB3: 479098 | JC3: 391820 | JD3: 404751 | JE3: 497403 | JF3: 505678 | JG3: 511035 | JH3: 491850 | JI3: 459612 | JJ3: 391162 | JK3: 411964 | JL3: 448222 | JM3: 2921 | JN3: 1738 | JO3: 635 | JP3: 1460 | JQ3: 1121 | JR3: 1021 | JS3: 610 | JT3: 741 | JU3: 1019 | JV3: 1358 | JW3: 2333 | JX3: 2058 | JY3: 0 | JZ3: 0 | KA3: 0 | KB3: 0 | KC3: 0 | KD3: 0 | KE3: 0 | KF3: 0 | KG3: 0 | KH3: 0 | KI3: 0 | KJ3: 0 | KK3: 0 | KL3: 0 | KM3: 0 | KN3: 0 | KO3: 0 | KP3: 0 | KQ3: 0 | KR3: 0 | KS3: 0 | KT3: 0 | KU3: 0 | KV3: 0 | KW3: 0 | KX3: 0 | KY3: 0 | KZ3: 0 | LA3: 0 | LB3: 0 | LC3: 0 | LD3: 0 | LE3: 0 | LF3: 0 | LG3: 0 | LH3: 0 | LI3: 0 | LJ3: 0 | LK3: 0 | LL3: 0 | LM3: 0 | LN3: 0 | LO3: 0 | LP3: 0 | LQ3: 0 | LR3: 0 | LS3: 0 | LT3: 0 | LU3: 0 | LV3: 0 | LW3: 0 | LX3: 0 | LY3: 0 | LZ3: 0 | MA3: 0 | MB3: 0 | MC3: 0 | MD3: 0 | ME3: 0 | MF3: 0 | MG3: 0 | MH3: 0 | MI3: 0 | MJ3: 0 | MK3: 0 | ML3: 0 | MM3: 0 | MN3: 0 | MO3: 0 | MP3: 0 | MQ3: 0 | MR3: 0 | MS3: 0 | MT3: 0 | MU3: 0 | MV3: 0 | MW3: 0 | MX3: 0 | MY3: 0 | MZ3: 0 | NA3: 0 | NB3: 0 | NC3: 0 | ND3: 0 | NE3: 0 | NF3: 0 | NG3: 0 | NH3: 0 | NI3: 0 | NJ3: 0 | NK3: 0 | NL3: 0 | NM3: 0 | NN3: 0 | NO3: 0 | NP3: 0 | NQ3: 1254 | NR3: 1263 | NS3: 4755 | NT3: 8162 | NU3: 6606 | NV3: 7207 | NW3: 929 | NX3: 13882 | NY3: 10308 | NZ3: 8801 | OA3: 58 | OB3: 1288 | OC3: 1094 | OD3: 1723 | OE3: 4260 | OF3: 8221 | OG3: 8859 | OH3: 9410 | OI3: 6451 | OJ3: 5336 | OK3: 4310 | OL3: 5620 | OM3: 1158 | ON3: 1552 | OO3: 150 | OP3: 1339 | OQ3: 3356 | OR3: 9609 | OS3: 6877 | OT3: 8190 | OU3: 4769 | OV3: 3312 | OW3: 2527 | OX3: 2139 | OY3: 1419 | OZ3: 1437 | PA3: 922 | PB3: 1701 | PC3: 2637 | PD3: 5157 | PE3: 9532 | PF3: 7398 | PG3: 6301 | PH3: 4681 | PI3: 4133 | PJ3: 2258 | PK3: 1015 | PL3: 321 | PM3: 647 | PN3: 584 | PO3: 4285 | PP3: 5689 | PQ3: 7484 | PR3: 8730 | PS3: 5212 | PT3: 3020 | PU3: 4770 | PV3: 3019 | PW3: 1740 | PX3: 990 | PY3: 1631 | PZ3: 1179 | QA3: 4754 | QB3: 6525 | QC3: 6467 | QD3: 4694 | QE3: 3617 | QF3: 4903 | QG3: 3095 | QH3: 4905 | QI3: 1901 | QJ3: 922 | QK3: 890 | QL3: 3165 | QM3: 3464 | QN3: 7022 | QO3: 7071 | QP3: 7477 | QQ3: 4495 | QR3: 4135 | QS3: 5953 | QT3: 3939 | QU3: 1189 | QV3: 580 | QW3: 2218.288 | QX3: 2148.286 | QY3: 3684.184 | QZ3: 4406.541 | RA3: 5651.101 | RB3: 5399.526 | RC3: 5728.168 | RD3: 5301.187 | RE3: 3321.137 | RF3: 2436.585 | RG3: 1822.618 | RH3: 1970.379 | RI3: 1149.764 | RJ3: 1874.978 | RK3: 3393.667 | RL3: 4607.96 | RM3: 5356.319 | RN3: 6489.795 | RO3: 6702.404 | RP3: 5170.407 | RQ3: 3656.072 | RR3: 3100.492 | RS3: 1799.127 | RT3: 1304.015 | RU3: 1117.604 | RV3: 1641.768 | RW3: 2963.653 | RX3: 4057.886 | RY3: 5114.882 | RZ3: 6444.117 | SA3: 6869.312 | SB3: 5432.121 | SC3: 4092.278 | SD3: 2761.858 | SE3: 2264.326 | SF3: 2403.195 | SG3: 1382.296 | SH3: 2530.564 | SI3: 3600.374 | SJ3: 5651.794 | SK3: 6039.725 | SL3: 6005.088 | SM3: 5115.506 | SN3: 5345.277 | SO3: 3074.846 | SP3: 2447.139 | SQ3: 2521.852 | SR3: 1860.539 | SS3: 1541.487 | ST3: 2363.651 | SU3: 3019.751 | SV3: 3127.414 | SW3: 5347.119 | SX3: 5530.518 | SY3: 4064.42 | SZ3: 4060.609 | TA3: 2827.723 | TB3: 3149.537 | TC3: 1581.873 | TD3: 2751.898 | TE3: 571 | TF3: 846 | TG3: 3707 | TH3: 4641 | TI3: 6777 | TJ3: 7060 | TK3: 4687 | TL3: 3740 | TM3: 1999 | TN3: 1521 | TO3: 1404 | TP3: 704 | TQ3: 680 | TR3: 2144 | TS3: 3756 | TT3: 4353 | TU3: 5338 | TV3: 6544 | TW3: 4321 | TX3: 2514 | TY3: 2226 | TZ3: 2204 | UA3: 1821 | UB3: 8 | UC3: 263 | UD3: 1202 | UE3: 1278 | UF3: 2717 | UG3: 4992 | UH3: 4568 | UI3: 4674 | UJ3: 3521 | UK3: 2190 | UL3: 1363 | UM3: 645 | UN3: 1339 | UO3: 1254.33 | UP3: 659 | UQ3: 2606 | UR3: 3993 | US3: 4709 | UT3: 3591 | UU3: 4321 | UV3: 2785 | UW3: 2085 | UX3: 2684 | UY3: 587 | UZ3: 1650 | VA3: 0 | VB3: 0 | VC3: 0 | VD3: 0 | VE3: 0 | VF3: 0 | VG3: 0 | VH3: 0 | VI3: 0 | VJ3: 0 | VK3: 0
A4: 216 | B4: 3212915 | C4: 50552 | D4: Cabazon Wind Farm | E4: WT | F4: CA | I4: 0 | J4: 0 | K4: 0 | L4: 0 | M4: 0 | N4: 0 | O4: 0 | P4: 0 | Q4: 0 | R4: 0 | S4: 0 | T4: 0 | U4: 0 | V4: 0 | W4: 0 | X4: 0 | Y4: 0 | Z4: 0 | AA4: 0 | AB4: 0 | AC4: 0 | AD4: 0 | AE4: 0 | AF4: 0 | AG4: 0 | AH4: 0 | AI4: 0 | AJ4: 0 | AK4: 0 | AL4: 0 | AM4: 0 | AN4: 0 | AO4: 0 | AP4: 0 | AQ4: 0 | AR4: 0 | AS4: 0 | AT4: 0 | AU4: 0 | AV4: 0 | AW4: 0 | AX4: 0 | AY4: 0 | AZ4: 0 | BA4: 0 | BB4: 0 | BC4: 0 | BD4: 0 | BE4: 0 | BF4: 0 | BG4: 0 | BH4: 0 | BI4: 0 | BJ4: 0 | BK4: 0 | BL4: 0 | BM4: 0 | BN4: 0 | BO4: 0 | BP4: 0 | BQ4: 0 | BR4: 0 | BS4: 0 | BT4: 0 | BU4: 0 | BV4: 0 | BW4: 0 | BX4: 0 | BY4: 0 | BZ4: 0 | CA4: 0 | CB4: 0 | CC4: 0 | CD4: 0 | CE4: 0 | CF4: 0 | CG4: 0 | CH4: 0 | CI4: 0 | CJ4: 0 | CK4: 0 | CL4: 0 | CM4: 0 | CN4: 0 | CO4: 0 | CP4: 0 | CQ4: 0 | CR4: 0 | CS4: 0 | CT4: 0 | CU4: 0 | CV4: 0 | CW4: 0 | CX4: 0 | CY4: 0 | CZ4: 0 | DA4: 0 | DB4: 0 | DC4: 0 | DD4: 0 | DE4: 0 | DF4: 0 | DG4: 0 | DH4: 0 | DI4: 0 | DJ4: 0 | DK4: 0 | DL4: 0 | DM4: 0 | DN4: 0 | DO4: 0 | DP4: 0 | DQ4: 0 | DR4: 0 | DS4: 0 | DT4: 0 | DU4: 0 | DV4: 0 | DW4: 0 | DX4: 0 | DY4: 0 | DZ4: 0 | EA4: 0 | EB4: 0 | EC4: 0 | ED4: 0 | EE4: 0 | EF4: 0 | EG4: 0 | EH4: 0 | EI4: 0 | EJ4: 0 | EK4: 0 | EL4: 0 | EM4: 0 | EN4: 0 | EO4: 0 | EP4: 0 | EQ4: 0 | ER4: 0 | ES4: 0 | ET4: 0 | EU4: 0 | EV4: 0 | EW4: 0 | EX4: 0 | EY4: 0 | EZ4: 0 | FA4: 0 | FB4: 0 | FC4: 0 | FD4: 0 | FE4: 0 | FF4: 0 | FG4: 0 | FH4: 0 | FI4: 0 | FJ4: 0 | FK4: 0 | FL4: 0 | FM4: 0 | FN4: 0 | FO4: 0 | FP4: 0 | FQ4: 0 | FR4: 0 | FS4: 0 | FT4: 0 | FU4: 0 | FV4: 0 | FW4: 0 | FX4: 0 | FY4: 0 | FZ4: 0 | GA4: 0 | GB4: 0 | GC4: 0 | GD4: 0 | GE4: 0 | GF4: 0 | GG4: 0 | GH4: 0 | GI4: 0 | GJ4: 0 | GK4: 0 | GL4: 0 | GM4: 0 | GN4: 0 | GO4: 0 | GP4: 0 | GQ4: 0 | GR4: 0 | GS4: 0 | GT4: 0 | GU4: 0 | GV4: 0 | GW4: 0 | GX4: 0 | GY4: 0 | GZ4: 0 | HA4: 0 | HB4: 0 | HC4: 0 | HD4: 0 | HE4: 0 | HF4: 0 | HG4: 0 | HH4: 0 | HI4: 0 | HJ4: 0 | HK4: 0 | HL4: 0 | HM4: 0 | HN4: 0 | HO4: 0 | HP4: 0 | HQ4: 0 | HR4: 0 | HS4: 0 | HT4: 0 | HU4: 0 | HV4: 0 | HW4: 0 | HX4: 0 | HY4: 0 | HZ4: 0 | IA4: 0 | IB4: 0 | IC4: 0 | ID4: 0 | IE4: 0 | IF4: 0 | IG4: 0 | IH4: 0 | II4: 0 | IJ4: 0 | IK4: 0 | IL4: 0 | IM4: 0 | IN4: 0 | IO4: 0 | IP4: 0 | IQ4: 0 | IR4: 0 | IS4: 0 | IT4: 0 | IU4: 0 | IV4: 0 | IW4: 0 | IX4: 0 | IY4: 0 | IZ4: 0 | JA4: 218613 | JB4: 179740 | JC4: 214584 | JD4: 169664 | JE4: 161721 | JF4: 144243 | JG4: 151552 | JH4: 160138 | JI4: 137129 | JJ4: 160318 | JK4: 171553 | JL4: 130724 | JM4: 2711 | JN4: 14 | JO4: 54 | JP4: 14 | JQ4: 12 | JR4: 12 | JS4: 42 | JT4: 71 | JU4: 46 | JV4: 38 | JW4: 32 | JX4: 14 | JY4: 0 | JZ4: 0 | KA4: 0 | KB4: 0 | KC4: 0 | KD4: 0 | KE4: 0 | KF4: 0 | KG4: 0 | KH4: 0 | KI4: 0 | KJ4: 0 | KK4: 0 | KL4: 0 | KM4: 0 | KN4: 0 | KO4: 0 | KP4: 0 | KQ4: 0 | KR4: 0 | KS4: 0 | KT4: 0 | KU4: 0 | KV4: 0 | KW4: 0 | KX4: 0 | KY4: 0 | KZ4: 0 | LA4: 0 | LB4: 0 | LC4: 0 | LD4: 0 | LE4: 0 | LF4: 0 | LG4: 0 | LH4: 0 | LI4: 0 | LJ4: 0 | LK4: 0 | LL4: 0 | LM4: 0 | LN4: 0 | LO4: 0 | LP4: 0 | LQ4: 0 | LR4: 0 | LS4: 0 | LT4: 0 | LU4: 0 | LV4: 0 | LW4: 0 | LX4: 0 | LY4: 0 | LZ4: 0 | MA4: 0 | MB4: 0 | MC4: 0 | MD4: 0 | ME4: 0 | MF4: 0 | MG4: 0 | MH4: 0 | MI4: 0 | MJ4: 0 | MK4: 0 | ML4: 0 | MM4: 0 | MN4: 0 | MO4: 0 | MP4: 0 | MQ4: 0 | MR4: 0 | MS4: 0 | MT4: 0 | MU4: 0 | MV4: 0 | MW4: 0 | MX4: 0 | MY4: 0 | MZ4: 0 | NA4: 0 | NB4: 0 | NC4: 0 | ND4: 0 | NE4: 0 | NF4: 0 | NG4: 0 | NH4: 0 | NI4: 0 | NJ4: 0 | NK4: 0 | NL4: 0 | NM4: 0 | NN4: 0 | NO4: 0 | NP4: 0 | NQ4: 5038 | NR4: 7229 | NS4: 8349 | NT4: 13126 | NU4: 12329 | NV4: 13019 | NW4: 13018 | NX4: 9345 | NY4: 8401 | NZ4: 7653 | OA4: 5357 | OB4: 5759 | OC4: 4097 | OD4: 5701 | OE4: 8674 | OF4: 13693 | OG4: 14641 | OH4: 16371 | OI4: 10919 | OJ4: 11000 | OK4: 6637 | OL4: 8841 | OM4: 6164 | ON4: 5869 | OO4: 2939 | OP4: 5119 | OQ4: 7266 | OR4: 13053 | OS4: 10706 | OT4: 13610 | OU4: 7923 | OV4: 5841 | OW4: 5525 | OX4: 5482 | OY4: 6049 | OZ4: 6082 | PA4: 4388 | PB4: 5822 | PC4: 6071 | PD4: 8230 | PE4: 13432 | PF4: 12207 | PG4: 10890 | PH4: 8229 | PI4: 8171 | PJ4: 6767 | PK4: 4726 | PL4: 6219 | PM4: 3671 | PN4: 3832 | PO4: 5980 | PP4: 6950 | PQ4: 10231 | PR4: 12639 | PS4: 7975 | PT4: 5059 | PU4: 5304 | PV4: 5676 | PW4: 4121 | PX4: 4270 | PY4: 4564 | PZ4: 4280 | QA4: 7807 | QB4: 8366 | QC4: 7560 | QD4: 5238 | QE4: 4250 | QF4: 5240 | QG4: 3123 | QH4: 5293 | QI4: 3235 | QJ4: 2858 | QK4: 3478 | QL4: 3812 | QM4: 4407 | QN4: 5630 | QO4: 6056 | QP4: 6013 | QQ4: 3693 | QR4: 5460 | QS4: 5655 | QT4: 4343 | QU4: 2615 | QV4: 2972 | QW4: 3126 | QX4: 3170 | QY4: 4573 | QZ4: 1742 | RA4: 9556 | RB4: 5721 | RC4: 6025 | RD4: 6396 | RE4: 4524 | RF4: 3873 | RG4: 4080 | RH4: 4296 | RI4: 4698 | RJ4: 5980 | RK4: 7341 | RL4: 8545 | RM4: 9010 | RN4: 11365 | RO4: 9986 | RP4: 7871 | RQ4: 5620 | RR4: 6572 | RS4: 3644 | RT4: 4387 | RU4: 2564 | RV4: 4853 | RW4: 7350 | RX4: 9325 | RY4: 10434 | RZ4: 11703 | SA4: 11296 | SB4: 8176 | SC4: 6563 | SD4: 6539 | SE4: 4923 | SF4: 4195 | SG4: 3940 | SH4: 5033 | SI4: 7404 | SJ4: 6445 | SK4: 3991 | SL4: 9239 | SM4: 8079 | SN4: 8142 | SO4: 4533 | SP4: 3978 | SQ4: 4477 | SR4: 3062 | SS4: 4078 | ST4: 5324 | SU4: 6571 | SV4: 5967 | SW4: 8515 | SX4: 9076 | SY4: 7005 | SZ4: 4580 | TA4: 4390 | TB4: 6894 | TC4: 4758 | TD4: 4771 | TE4: 3976 | TF4: 4794 | TG4: 6211 | TH4: 6061 | TI4: 7286 | TJ4: 9084 | TK4: 7893 | TL4: 6055 | TM4: 4354 | TN4: 4376 | TO4: 3312 | TP4: 3209 | TQ4: 2732 | TR4: 4491 | TS4: 6244 | TT4: 5126 | TU4: 6837 | TV4: 6057 | TW4: 6932 | TX4: 5776 | TY4: 4225 | TZ4: 3605 | UA4: 3818 | UB4: 4610 | UC4: 1411 | UD4: 3757 | UE4: 3890 | UF4: 5979 | UG4: 7878 | UH4: 6832 | UI4: 7222 | UJ4: 6819 | UK4: 4608 | UL4: 2835 | UM4: 3062 | UN4: 2743 | UO4: 3185 | UP4: 2816 | UQ4: 4722 | UR4: 5634 | US4: 7059 | UT4: 6204 | UU4: 7605 | UV4: 6838 | UW4: 4201 | UX4: 5042 | UY4: 2026 | UZ4: 2537 | VA4: 0 | VB4: 0 | VC4: 0 | VD4: 0 | VE4: 0 | VF4: 0 | VG4: 0 | VH4: 0 | VI4: 0 | VJ4: 0 | VK4: 0
A5: 215 | B5: 209891 | C5: 7381 | D5: Searsburg Wind Turbine | E5: WT | F5: VT | I5: 0 | J5: 0 | K5: 0 | L5: 0 | M5: 0 | N5: 0 | O5: 0 | P5: 0 | Q5: 0 | R5: 0 | S5: 0 | T5: 0 | U5: 0 | V5: 0 | W5: 0 | X5: 0 | Y5: 0 | Z5: 0 | AA5: 0 | AB5: 0 | AC5: 0 | AD5: 0 | AE5: 0 | AF5: 0 | AG5: 0 | AH5: 0 | AI5: 0 | AJ5: 0 | AK5: 0 | AL5: 0 | AM5: 0 | AN5: 0 | AO5: 0 | AP5: 0 | AQ5: 0 | AR5: 0 | AS5: 0 | AT5: 0 | AU5: 0 | AV5: 0 | AW5: 0 | AX5: 0 | AY5: 0 | AZ5: 0 | BA5: 0 | BB5: 0 | BC5: 0 | BD5: 0 | BE5: 0 | BF5: 0 | BG5: 0 | BH5: 0 | BI5: 0 | BJ5: 0 | BK5: 0 | BL5: 0 | BM5: 0 | BN5: 0 | BO5: 0 | BP5: 0 | BQ5: 0 | BR5: 0 | BS5: 0 | BT5: 0 | BU5: 0 | BV5: 0 | BW5: 0 | BX5: 0 | BY5: 0 | BZ5: 0 | CA5: 0 | CB5: 0 | CC5: 0 | CD5: 0 | CE5: 0 | CF5: 0 | CG5: 0 | CH5: 0 | CI5: 0 | CJ5: 0 | CK5: 0 | CL5: 0 | CM5: 0 | CN5: 0 | CO5: 0 | CP5: 0 | CQ5: 0 | CR5: 0 | CS5: 0 | CT5: 0 | CU5: 0 | CV5: 0 | CW5: 0 | CX5: 0 | CY5: 0 | CZ5: 0 | DA5: 0 | DB5: 0 | DC5: 0 | DD5: 0 | DE5: 0 | DF5: 0 | DG5: 0 | DH5: 0 | DI5: 0 | DJ5: 0 | DK5: 0 | DL5: 0 | DM5: 0 | DN5: 0 | DO5: 0 | DP5: 0 | DQ5: 0 | DR5: 0 | DS5: 0 | DT5: 0 | DU5: 0 | DV5: 0 | DW5: 0 | DX5: 0 | DY5: 0 | DZ5: 0 | EA5: 0 | EB5: 0 | EC5: 0 | ED5: 0 | EE5: 0 | EF5: 0 | EG5: 0 | EH5: 0 | EI5: 0 | EJ5: 0 | EK5: 0 | EL5: 0 | EM5: 0 | EN5: 0 | EO5: 0 | EP5: 0 | EQ5: 0 | ER5: 0 | ES5: 0 | ET5: 0 | EU5: 0 | EV5: 0 | EW5: 0 | EX5: 0 | EY5: 0 | EZ5: 0 | FA5: 0 | FB5: 0 | FC5: 0 | FD5: 0 | FE5: 0 | FF5: 0 | FG5: 0 | FH5: 0 | FI5: 0 | FJ5: 0 | FK5: 0 | FL5: 0 | FM5: 0 | FN5: 0 | FO5: 0 | FP5: 0 | FQ5: 0 | FR5: 0 | FS5: 0 | FT5: 0 | FU5: 0 | FV5: 0 | FW5: 0 | FX5: 0 | FY5: 0 | FZ5: 0 | GA5: 0 | GB5: 0 | GC5: 0 | GD5: 0 | GE5: 0 | GF5: 0 | GG5: 0 | GH5: 0 | GI5: 0 | GJ5: 0 | GK5: 0 | GL5: 0 | GM5: 0 | GN5: 0 | GO5: 0 | GP5: 0 | GQ5: 0 | GR5: 0 | GS5: 0 | GT5: 0 | GU5: 0 | GV5: 0 | GW5: 0 | GX5: 0 | GY5: 0 | GZ5: 0 | HA5: 0 | HB5: 0 | HC5: 0 | HD5: 0 | HE5: 0 | HF5: 0 | HG5: 0 | HH5: 0 | HI5: 0 | HJ5: 0 | HK5: 0 | HL5: 0 | HM5: 0 | HN5: 0 | HO5: 0 | HP5: 0 | HQ5: 0 | HR5: 0 | HS5: 0 | HT5: 0 | HU5: 0 | HV5: 0 | HW5: 0 | HX5: 0 | HY5: 0 | HZ5: 0 | IA5: 0 | IB5: 0 | IC5: 0 | ID5: 0 | IE5: 0 | IF5: 0 | IG5: 0 | IH5: 0 | II5: 0 | IJ5: 0 | IK5: 0 | IL5: 0 | IM5: 0 | IN5: 0 | IO5: 0 | IP5: 0 | IQ5: 0 | IR5: 0 | IS5: 0 | IT5: 0 | IU5: 0 | IV5: 0 | IW5: 0 | IX5: 0 | IY5: 0 | IZ5: 0 | JA5: 0 | JB5: 0 | JC5: 0 | JD5: 0 | JE5: 0 | JF5: 0 | JG5: 0 | JH5: 0 | JI5: 0 | JJ5: 0 | JK5: 0 | JL5: 0 | JM5: 0 | JN5: 0 | JO5: 0 | JP5: 0 | JQ5: 0 | JR5: 0 | JS5: 0 | JT5: 0 | JU5: 0 | JV5: 0 | JW5: 0 | JX5: 0 | JY5: 0 | JZ5: 0 | KA5: 0 | KB5: 0 | KC5: 0 | KD5: 0 | KE5: 0 | KF5: 0 | KG5: 0 | KH5: 0 | KI5: 0 | KJ5: 0 | KK5: 0 | KL5: 0 | KM5: 0 | KN5: 0 | KO5: 0 | KP5: 0 | KQ5: 0 | KR5: 0 | KS5: 0 | KT5: 0 | KU5: 0 | KV5: 0 | KW5: 0 | KX5: 0 | KY5: 0 | KZ5: 0 | LA5: 0 | LB5: 0 | LC5: 0 | LD5: 0 | LE5: 0 | LF5: 0 | LG5: 0 | LH5: 0 | LI5: 0 | LJ5: 0 | LK5: 0 | LL5: 0 | LM5: 0 | LN5: 0 | LO5: 0 | LP5: 0 | LQ5: 0 | LR5: 0 | LS5: 0 | LT5: 0 | LU5: 0 | LV5: 0 | LW5: 0 | LX5: 0 | LY5: 0 | LZ5: 0 | MA5: 0 | MB5: 0 | MC5: 0 | MD5: 0 | ME5: 0 | MF5: 0 | MG5: 0 | MH5: 0 | MI5: 0 | MJ5: 0 | MK5: 0 | ML5: 0 | MM5: 0 | MN5: 0 | MO5: 0 | MP5: 0 | MQ5: 0 | MR5: 0 | MS5: 1375 | MT5: 1261 | MU5: 1800 | MV5: 1214 | MW5: 741 | MX5: 665 | MY5: 928 | MZ5: 590 | NA5: 628 | NB5: 1184 | NC5: 1499 | ND5: 1719 | NE5: 1065 | NF5: 1175 | NG5: 1043 | NH5: 778 | NI5: 1067 | NJ5: 949 | NK5: 639 | NL5: 552 | NM5: 855 | NN5: 1379 | NO5: 1335 | NP5: 1412 | NQ5: 1377 | NR5: 1472 | NS5: 1407 | NT5: 903 | NU5: 976 | NV5: 771 | NW5: 696 | NX5: 467 | NY5: 582 | NZ5: 1126 | OA5: 1107 | OB5: 1249 | OC5: 1504 | OD5: 0 | OE5: 1131 | OF5: 992 | OG5: 1123 | OH5: 488 | OI5: 825 | OJ5: 335 | OK5: 632 | OL5: 988 | OM5: 856 | ON5: 1498 | OO5: 913 | OP5: 994 | OQ5: 1265 | OR5: 751 | OS5: 508 | OT5: 620 | OU5: 703 | OV5: 691 | OW5: 744 | OX5: 992 | OY5: 1178 | OZ5: 1470 | PA5: 1088 | PB5: 1285 | PC5: 728 | PD5: 1224 | PE5: 855 | PF5: 777 | PG5: 325 | PH5: 503 | PI5: 842 | PJ5: 947 | PK5: 1375 | PL5: 1415 | PM5: 1324 | PN5: 965 | PO5: 1334 | PP5: 934 | PQ5: 694 | PR5: 604 | PS5: 663 | PT5: 519 | PU5: 880 | PV5: 1160 | PW5: 1166 | PX5: 1243 | PY5: 917 | PZ5: 947 | QA5: 1080 | QB5: 908 | QC5: 838 | QD5: 388 | QE5: 590 | QF5: 780 | QG5: 881 | QH5: 1360 | QI5: 748 | QJ5: 1251 | QK5: 1213 | QL5: 1089 | QM5: 1243 | QN5: 738 | QO5: 706 | QP5: 681 | QQ5: 635 | QR5: 474 | QS5: 508 | QT5: 983 | QU5: 1136 | QV5: 1105 | QW5: 1386 | QX5: 997 | QY5: 997 | QZ5: 628 | RA5: 949 | RB5: 680 | RC5: 490 | RD5: 625 | RE5: 491 | RF5: 993 | RG5: 1026 | RH5: 973 | RI5: 1504 | RJ5: 1468 | RK5: 1070 | RL5: 1224 | RM5: 864 | RN5: 344 | RO5: 535 | RP5: 416 | RQ5: 513 | RR5: 1152 | RS5: 989 | RT5: 1510 | RU5: 1359 | RV5: 1609 | RW5: 1287 | RX5: 1205 | RY5: 843 | RZ5: 823 | SA5: 746 | SB5: 768 | SC5: 962 | SD5: 1511 | SE5: 1025 | SF5: 1754 | SG5: 912 | SH5: 961 | SI5: 1333 | SJ5: 1129 | SK5: 476 | SL5: 667 | SM5: 698 | SN5: 637 | SO5: 454 | SP5: 1210 | SQ5: 1151 | SR5: 1201 | SS5: 1487 | ST5: 1454 | SU5: 1164 | SV5: 1334 | SW5: 548 | SX5: 809 | SY5: 623 | SZ5: 502 | TA5: 712 | TB5: 1147 | TC5: 1023 | TD5: 1369 | TE5: 1543 | TF5: 1164 | TG5: 1234 | TH5: 981 | TI5: 893 | TJ5: 737 | TK5: 524 | TL5: 728 | TM5: 862 | TN5: 947 | TO5: 1371 | TP5: 1212 | TQ5: 1069 | TR5: 1120 | TS5: 1024 | TT5: 1086 | TU5: 904 | TV5: 442 | TW5: 507 | TX5: 563 | TY5: 612 | TZ5: 1076 | UA5: 1551 | UB5: 982 | UC5: 1441 | UD5: 1258 | UE5: 1412 | UF5: 1278 | UG5: 747 | UH5: 692 | UI5: 527 | UJ5: 495 | UK5: 506 | UL5: 1267 | UM5: 1265 | UN5: 1332 | UO5: 1698 | UP5: 1520 | UQ5: 1170 | UR5: 729 | US5: 826 | UT5: 861 | UU5: 740 | UV5: 641 | UW5: 539 | UX5: 963 | UY5: 1374 | UZ5: 1525 | VA5: 0 | VB5: 0 | VC5: 0 | VD5: 0 | VE5: 0 | VF5: 0 | VG5: 0 | VH5: 0 | VI5: 0 | VJ5: 0 | VK5: 0
A6: 200 | B6: 262163.5 | C6: 692 | D6: Medicine Bow | E6: WT | F6: WY | I6: 0 | J6: 0 | K6: 0 | L6: 0 | M6: 0 | N6: 0 | O6: 0 | P6: 0 | Q6: 0 | R6: 0 | S6: 0 | T6: 0 | U6: 0 | V6: 0 | W6: 0 | X6: 0 | Y6: 0 | Z6: 0 | AA6: 0 | AB6: 0 | AC6: 0 | AD6: 0 | AE6: 0 | AF6: 0 | AG6: 0 | AH6: 0 | AI6: 0 | AJ6: 0 | AK6: 0 | AL6: 0 | AM6: 0 | AN6: 0 | AO6: 0 | AP6: 0 | AQ6: 0 | AR6: 0 | AS6: 0 | AT6: 0 | AU6: 0 | AV6: 0 | AW6: 0 | AX6: 0 | AY6: 0 | AZ6: 0 | BA6: 0 | BB6: 0 | BC6: 0 | BD6: 0 | BE6: 0 | BF6: 0 | BG6: 0 | BH6: 0 | BI6: 0 | BJ6: 0 | BK6: 0 | BL6: 0 | BM6: 0 | BN6: 0 | BO6: 0 | BP6: 0 | BQ6: 0 | BR6: 0 | BS6: 0 | BT6: 0 | BU6: 0 | BV6: 0 | BW6: 0 | BX6: 0 | BY6: 0 | BZ6: 0 | CA6: 0 | CB6: 0 | CC6: 0 | CD6: 0 | CE6: 0 | CF6: 0 | CG6: 0 | CH6: 0 | CI6: 0 | CJ6: 0 | CK6: 0 | CL6: 0 | CM6: 0 | CN6: 0 | CO6: 0 | CP6: 0 | CQ6: 0 | CR6: 0 | CS6: 0 | CT6: 0 | CU6: 0 | CV6: 0 | CW6: 0 | CX6: 0 | CY6: 0 | CZ6: 0 | DA6: 0 | DB6: 0 | DC6: 0 | DD6: 0 | DE6: 0 | DF6: 0 | DG6: 0 | DH6: 0 | DI6: 0 | DJ6: 0 | DK6: 0 | DL6: 0 | DM6: 0 | DN6: 0 | DO6: 0 | DP6: 0 | DQ6: 0 | DR6: 0 | DS6: 0 | DT6: 0 | DU6: 0 | DV6: 0 | DW6: 0 | DX6: 0 | DY6: 0 | DZ6: 0 | EA6: 0 | EB6: 0 | EC6: 0 | ED6: 0 | EE6: 0 | EF6: 0 | EG6: 0 | EH6: 0 | EI6: 0 | EJ6: 0 | EK6: 0 | EL6: 0 | EM6: 0 | EN6: 0 | EO6: 0 | EP6: 0 | EQ6: 0 | ER6: 0 | ES6: 0 | ET6: 0 | EU6: 0 | EV6: 0 | EW6: 0 | EX6: 0 | EY6: 0 | EZ6: 0 | FA6: 0 | FB6: 0 | FC6: 0 | FD6: 0 | FE6: 0 | FF6: 0 | FG6: 0 | FH6: 0 | FI6: 137.966 | FJ6: -5.109 | FK6: 185.401 | FL6: 42.709 | FM6: 2.208 | FN6: 64.385 | FO6: 9.261 | FP6: -10.15 | FQ6: 0.774 | FR6: 230.587 | FS6: 380.783 | FT6: 118.54 | FU6: -8.148 | FV6: 0 | FW6: -11.21 | FX6: -16.898 | FY6: -5.217 | FZ6: 62.057 | GA6: 25.318 | GB6: 75.737 | GC6: 316.06 | GD6: 600.847 | GE6: 690.348 | GF6: 1023.356 | GG6: 554.372 | GH6: 842.041 | GI6: 226.508 | GJ6: 28.44 | GK6: 253.333 | GL6: 240.395 | GM6: -13.152 | GN6: 24.804 | GO6: 470.62 | GP6: 270.508 | GQ6: -16.81 | GR6: -20.227 | GS6: -21.871 | GT6: -18.372 | GU6: 514.326 | GV6: 463.427 | GW6: 163.111 | GX6: 58.12 | GY6: 181.644 | GZ6: 37.736 | HA6: -10.267 | HB6: -13.776 | HC6: -14.791 | HD6: -16.105 | HE6: -22.26 | HF6: -11.755 | HG6: -19.516 | HH6: -15.908 | HI6: -10.18 | HJ6: -10.71 | HK6: -11.13 | HL6: -10.5 | HM6: -7.98 | HN6: -10.92 | HO6: -12.6 | HP6: -16.38 | HQ6: -15.96 | HR6: -14.7 | HS6: -13.86 | HT6: -11.55 | HU6: -9.66 | HV6: -7.77 | HW6: -8.61 | HX6: -8.61 | HY6: -9.24 | HZ6: -10.29 | IA6: -13.23 | IB6: -14.28 | IC6: -15.96 | ID6: -16.38 | IE6: -12.18 | IF6: 0 | IG6: 0 | IH6: 0 | II6: 0 | IJ6: 0 | IK6: 0 | IL6: 0 | IM6: 0 | IN6: 0 | IO6: 0 | IP6: 0 | IQ6: 0 | IR6: 0 | IS6: 0 | IT6: 0 | IU6: 0 | IV6: 0 | IW6: 0 | IX6: 0 | IY6: 0 | IZ6: 0 | JA6: 0 | JB6: 0 | JC6: 0 | JD6: 0 | JE6: 0 | JF6: 0 | JG6: 0 | JH6: 0 | JI6: 0 | JJ6: 0 | JK6: 0 | JL6: 0 | JM6: 0 | JN6: 0 | JO6: 0 | JP6: 0 | JQ6: 0 | JR6: 0 | JS6: 0 | JT6: 0 | JU6: 0 | JV6: 0 | JW6: 0 | JX6: 0 | JY6: 0 | JZ6: 0 | KA6: 0 | KB6: 0 | KC6: 0 | KD6: 0 | KE6: 0 | KF6: 0 | KG6: 0 | KH6: 0 | KI6: 0 | KJ6: 0 | KK6: 0 | KL6: 0 | KM6: 0 | KN6: 0 | KO6: 0 | KP6: 0 | KQ6: 0 | KR6: 0 | KS6: 0 | KT6: 0 | KU6: 0 | KV6: 0 | KW6: 0 | KX6: 0 | KY6: 0 | KZ6: 0 | LA6: 0 | LB6: 0 | LC6: 0 | LD6: 0 | LE6: 0 | LF6: 0 | LG6: 0 | LH6: 0 | LI6: 0 | LJ6: 0 | LK6: 0 | LL6: 0 | LM6: 0 | LN6: 0 | LO6: 0 | LP6: 0 | LQ6: 0 | LR6: 0 | LS6: 0 | LT6: 0 | LU6: 0 | LV6: 0 | LW6: 0 | LX6: 0 | LY6: 0 | LZ6: 0 | MA6: 0 | MB6: 0 | MC6: 0 | MD6: 0 | ME6: 0 | MF6: 0 | MG6: 0 | MH6: 0 | MI6: 0 | MJ6: 0 | MK6: 0 | ML6: 0 | MM6: 0 | MN6: 0 | MO6: 0 | MP6: 0 | MQ6: 0 | MR6: 0 | MS6: 0 | MT6: 0 | MU6: 0 | MV6: 0 | MW6: 0 | MX6: 0 | MY6: 0 | MZ6: 0 | NA6: 0 | NB6: 0 | NC6: 0 | ND6: 0 | NE6: 0 | NF6: 0 | NG6: 0 | NH6: 0 | NI6: 0 | NJ6: 0 | NK6: 0 | NL6: 0 | NM6: 0 | NN6: 0 | NO6: 0 | NP6: 0 | NQ6: 1670 | NR6: 1722 | NS6: 1335 | NT6: 1415 | NU6: 1409 | NV6: 1190 | NW6: 821 | NX6: 534 | NY6: 756 | NZ6: 2097 | OA6: 1113 | OB6: 2137 | OC6: 2240 | OD6: 1890 | OE6: 2112 | OF6: 1903 | OG6: 1221 | OH6: 857 | OI6: 771 | OJ6: 1134 | OK6: 1178 | OL6: 1464 | OM6: 2165 | ON6: 2115 | OO6: 2623 | OP6: 1476 | OQ6: 2313 | OR6: 1044 | OS6: 1100 | OT6: 763 | OU6: 482 | OV6: 622 | OW6: 758 | OX6: 1293 | OY6: 1634 | OZ6: 1621 | PA6: 1712 | PB6: 1156 | PC6: 1657 | PD6: 1024 | PE6: 1511 | PF6: 973 | PG6: 701 | PH6: 701 | PI6: 885 | PJ6: 1283 | PK6: 1195 | PL6: 2160 | PM6: 1625 | PN6: 1113 | PO6: 1490 | PP6: 850 | PQ6: 960 | PR6: 910 | PS6: 583 | PT6: 708 | PU6: 964 | PV6: 1290 | PW6: 2200 | PX6: 2323 | PY6: 2768 | PZ6: 2540 | QA6: 1409 | QB6: 1490 | QC6: 1425 | QD6: 742 | QE6: 741 | QF6: 725 | QG6: 1048 | QH6: 2578 | QI6: 2763 | QJ6: 2206 | QK6: 2258 | QL6: 2436 | QM6: 1800 | QN6: 930 | QO6: 985 | QP6: 715 | QQ6: 368 | QR6: 833 | QS6: 1207 | QT6: 1384 | QU6: 1843 | QV6: 2121 | QW6: 1781.266 | QX6: 2166.101 | QY6: 2189.449 | QZ6: 1689.922 | RA6: 985.946 | RB6: 1346.613 | RC6: 1080.926 | RD6: 1356.802 | RE6: 1402.577 | RF6: 2422.469 | RG6: 3560.434 | RH6: 5686.495 | RI6: 2053.27 | RJ6: 1875.075 | RK6: 2482.794 | RL6: 1358.094 | RM6: 1468.363 | RN6: 1466.218 | RO6: 1094.663 | RP6: 1012.312 | RQ6: 1367.681 | RR6: 2672.81 | RS6: 2780.667 | RT6: 3880.053 | RU6: 1840.17 | RV6: 1412.385 | RW6: 1529.068 | RX6: 1957.729 | RY6: 1689.538 | RZ6: 1355.159 | SA6: 1276.957 | SB6: 1213.179 | SC6: 1323.093 | SD6: 2052.177 | SE6: 2787.58 | SF6: 2666.965 | SG6: 1878.034 | SH6: 1576.817 | SI6: 1689.337 | SJ6: 1513.633 | SK6: 1276.226 | SL6: 990.165 | SM6: 737.14 | SN6: 761.502 | SO6: 694.796 | SP6: 1281.638 | SQ6: 1744.639 | SR6: 1627.073 | SS6: 2526.002 | ST6: 1441.271 | SU6: 2011.487 | SV6: 1385.955 | SW6: 1223.787 | SX6: 1174.425 | SY6: 698.125 | SZ6: 803.83 | TA6: 735.294 | TB6: 1595.016 | TC6: 1921.5 | TD6: 1976.308 | TE6: 2240.375 | TF6: 1782.67 | TG6: 1651.853 | TH6: 1624.378 | TI6: 1244.12 | TJ6: 1057.149 | TK6: 667.878 | TL6: 686.236 | TM6: 1145.676 | TN6: 1477.589 | TO6: 1859.058 | TP6: 2456.018 | TQ6: 0 | TR6: 0 | TS6: 0 | TT6: 0 | TU6: 0 | TV6: 0 | TW6: 0 | TX6: 0 | TY6: 0 | TZ6: 0 | UA6: 0 | UB6: 0 | UC6: 1733.562 | UD6: 1557.945 | UE6: 1396.663 | UF6: 1032.758 | UG6: 941.56 | UH6: 623.423 | UI6: 802.952 | UJ6: 801.425 | UK6: 1008.471 | UL6: 1114.039 | UM6: 1737.295 | UN6: 1952.907 | UO6: 0 | UP6: 0 | UQ6: 0 | UR6: 0 | US6: 0 | UT6: 0 | UU6: 0 | UV6: 0 | UW6: 0 | UX6: 0 | UY6: 0 | UZ6: 0 | VA6: 0 | VB6: 0 | VC6: 0 | VD6: 0 | VE6: 0 | VF6: 0 | VG6: 0 | VH6: 0 | VI6: 0 | VJ6: 0 | VK6: 0
A7: 193 | B7: 320650 | C7: 7886 | D7: Wind Turbine | E7: WT | F7: WI | I7: 0 | J7: 0 | K7: 0 | L7: 0 | M7: 0 | N7: 0 | O7: 0 | P7: 0 | Q7: 0 | R7: 0 | S7: 0 | T7: 0 | U7: 0 | V7: 0 | W7: 0 | X7: 0 | Y7: 0 | Z7: 0 | AA7: 0 | AB7: 0 | AC7: 0 | AD7: 0 | AE7: 0 | AF7: 0 | AG7: 0 | AH7: 0 | AI7: 0 | AJ7: 0 | AK7: 0 | AL7: 0 | AM7: 0 | AN7: 0 | AO7: 0 | AP7: 0 | AQ7: 0 | AR7: 0 | AS7: 0 | AT7: 0 | AU7: 0 | AV7: 0 | AW7: 0 | AX7: 0 | AY7: 0 | AZ7: 0 | BA7: 0 | BB7: 0 | BC7: 0 | BD7: 0 | BE7: 0 | BF7: 0 | BG7: 0 | BH7: 0 | BI7: 0 | BJ7: 0 | BK7: 0 | BL7: 0 | BM7: 0 | BN7: 0 | BO7: 0 | BP7: 0 | BQ7: 0 | BR7: 0 | BS7: 0 | BT7: 0 | BU7: 0 | BV7: 0 | BW7: 0 | BX7: 0 | BY7: 0 | BZ7: 0 | CA7: 0 | CB7: 0 | CC7: 0 | CD7: 0 | CE7: 0 | CF7: 0 | CG7: 0 | CH7: 0 | CI7: 0 | CJ7: 0 | CK7: 0 | CL7: 0 | CM7: 0 | CN7: 0 | CO7: 0 | CP7: 0 | CQ7: 0 | CR7: 0 | CS7: 0 | CT7: 0 | CU7: 0 | CV7: 0 | CW7: 0 | CX7: 0 | CY7: 0 | CZ7: 0 | DA7: 0 | DB7: 0 | DC7: 0 | DD7: 0 | DE7: 0 | DF7: 0 | DG7: 0 | DH7: 0 | DI7: 0 | DJ7: 0 | DK7: 0 | DL7: 0 | DM7: 0 | DN7: 0 | DO7: 0 | DP7: 0 | DQ7: 0 | DR7: 0 | DS7: 0 | DT7: 0 | DU7: 0 | DV7: 0 | DW7: 0 | DX7: 0 | DY7: 0 | DZ7: 0 | EA7: 0 | EB7: 0 | EC7: 0 | ED7: 0 | EE7: 0 | EF7: 0 | EG7: 0 | EH7: 0 | EI7: 0 | EJ7: 0 | EK7: 0 | EL7: 0 | EM7: 0 | EN7: 0 | EO7: 0 | EP7: 0 | EQ7: 0 | ER7: 0 | ES7: 0 | ET7: 0 | EU7: 0 | EV7: 0 | EW7: 0 | EX7: 0 | EY7: 0 | EZ7: 0 | FA7: 0 | FB7: 0 | FC7: 0 | FD7: 0 | FE7: 0 | FF7: 0 | FG7: 0 | FH7: 0 | FI7: 0 | FJ7: 0 | FK7: 0 | FL7: 0 | FM7: 0 | FN7: 0 | FO7: 0 | FP7: 0 | FQ7: 0 | FR7: 0 | FS7: 0 | FT7: 0 | FU7: 0 | FV7: 0 | FW7: 0 | FX7: 0 | FY7: 0 | FZ7: 0 | GA7: 0 | GB7: 0 | GC7: 0 | GD7: 0 | GE7: 0 | GF7: 0 | GG7: 0 | GH7: 0 | GI7: 0 | GJ7: 0 | GK7: 0 | GL7: 0 | GM7: 0 | GN7: 0 | GO7: 0 | GP7: 0 | GQ7: 0 | GR7: 0 | GS7: 0 | GT7: 0 | GU7: 0 | GV7: 0 | GW7: 0 | GX7: 0 | GY7: 0 | GZ7: 0 | HA7: 0 | HB7: 0 | HC7: 0 | HD7: 0 | HE7: 0 | HF7: 0 | HG7: 0 | HH7: 0 | HI7: 0 | HJ7: 0 | HK7: 0 | HL7: 0 | HM7: 0 | HN7: 0 | HO7: 0 | HP7: 0 | HQ7: 0 | HR7: 0 | HS7: 0 | HT7: 0 | HU7: 0 | HV7: 0 | HW7: 0 | HX7: 0 | HY7: 0 | HZ7: 0 | IA7: 0 | IB7: 0 | IC7: 0 | ID7: 0 | IE7: 0 | IF7: 0 | IG7: 0 | IH7: 0 | II7: 0 | IJ7: 0 | IK7: 0 | IL7: 0 | IM7: 0 | IN7: 0 | IO7: 0 | IP7: 0 | IQ7: 0 | IR7: 0 | IS7: 0 | IT7: 0 | IU7: 0 | IV7: 0 | IW7: 0 | IX7: 0 | IY7: 0 | IZ7: 0 | JA7: 0 | JB7: 0 | JC7: 0 | JD7: 0 | JE7: 0 | JF7: 0 | JG7: 0 | JH7: 0 | JI7: 0 | JJ7: 0 | JK7: 0 | JL7: 0 | JM7: 0 | JN7: 0 | JO7: 0 | JP7: 0 | JQ7: 0 | JR7: 0 | JS7: 0 | JT7: 0 | JU7: 0 | JV7: 0 | JW7: 0 | JX7: 0 | JY7: 0 | JZ7: 0 | KA7: 0 | KB7: 0 | KC7: 0 | KD7: 0 | KE7: 0 | KF7: 0 | KG7: 0 | KH7: 0 | KI7: 0 | KJ7: 0 | KK7: 0 | KL7: 0 | KM7: 0 | KN7: 0 | KO7: 0 | KP7: 0 | KQ7: 0 | KR7: 0 | KS7: 0 | KT7: 0 | KU7: 0 | KV7: 0 | KW7: 0 | KX7: 0 | KY7: 0 | KZ7: 0 | LA7: 0 | LB7: 0 | LC7: 0 | LD7: 0 | LE7: 0 | LF7: 0 | LG7: 0 | LH7: 0 | LI7: 0 | LJ7: 0 | LK7: 0 | LL7: 0 | LM7: 0 | LN7: 0 | LO7: 0 | LP7: 0 | LQ7: 0 | LR7: 0 | LS7: 0 | LT7: 0 | LU7: 0 | LV7: 0 | LW7: 0 | LX7: 0 | LY7: 0 | LZ7: 0 | MA7: 0 | MB7: 0 | MC7: 0 | MD7: 0 | ME7: 0 | MF7: 0 | MG7: 0 | MH7: 0 | MI7: 0 | MJ7: 0 | MK7: 0 | ML7: 0 | MM7: 0 | MN7: 0 | MO7: 0 | MP7: 0 | MQ7: 0 | MR7: 0 | MS7: 0 | MT7: 0 | MU7: 0 | MV7: 0 | MW7: 0 | MX7: 0 | MY7: 0 | MZ7: 0 | NA7: 0 | NB7: 0 | NC7: 0 | ND7: 0 | NE7: 0 | NF7: 0 | NG7: 0 | NH7: 0 | NI7: 0 | NJ7: 0 | NK7: 0 | NL7: 0 | NM7: 0 | NN7: 0 | NO7: 2213 | NP7: 0 | NQ7: 2108 | NR7: 1847 | NS7: 1631 | NT7: 2730 | NU7: 1596 | NV7: 1200 | NW7: 778 | NX7: 883 | NY7: 1551 | NZ7: 2659 | OA7: 2542 | OB7: 2343 | OC7: 2457 | OD7: 3052 | OE7: 2462 | OF7: 2354 | OG7: 2071 | OH7: 1125 | OI7: 970 | OJ7: 1079 | OK7: 1536 | OL7: 1751 | OM7: 1653 | ON7: 2427 | OO7: 2511 | OP7: 1612 | OQ7: 1989 | OR7: 2029 | OS7: 1598 | OT7: 993 | OU7: 1280 | OV7: 827 | OW7: 1828 | OX7: 1675 | OY7: 2436 | OZ7: 2450 | PA7: 2388 | PB7: 1793 | PC7: 2597 | PD7: 1725 | PE7: 1609 | PF7: 1310 | PG7: 718 | PH7: 1215 | PI7: 1706 | PJ7: 2380 | PK7: 1610 | PL7: 2758 | PM7: 1656 | PN7: 1534 | PO7: 1818 | PP7: 1749 | PQ7: 1510 | PR7: 1288 | PS7: 980 | PT7: 877 | PU7: 1515 | PV7: 1488 | PW7: 2707 | PX7: 1662 | PY7: 1905 | PZ7: 1910 | QA7: 1751 | QB7: 2147 | QC7: 1687 | QD7: 858 | QE7: 1000 | QF7: 743 | QG7: 1333 | QH7: 2258 | QI7: 1159 | QJ7: 2513 | QK7: 2142 | QL7: 2365 | QM7: 2396 | QN7: 2313 | QO7: 2282 | QP7: 1252 | QQ7: 989 | QR7: 889 | QS7: 2065 | QT7: 2437 | QU7: 2494 | QV7: 1698 | QW7: 2252 | QX7: 1439 | QY7: 1697 | QZ7: 2693 | RA7: 1704 | RB7: 1337 | RC7: 1138 | RD7: 749 | RE7: 1225 | RF7: 2062 | RG7: 2028 | RH7: 2605 | RI7: 1774 | RJ7: 2452 | RK7: 2492 | RL7: 2031 | RM7: 2206 | RN7: 1007 | RO7: 841 | RP7: 1184 | RQ7: 727 | RR7: 1822 | RS7: 1589 | RT7: 2024 | RU7: 2228 | RV7: 1216 | RW7: 1397 | RX7: 2432 | RY7: 1589 | RZ7: 842 | SA7: 857 | SB7: 1033 | SC7: 1623 | SD7: 1143 | SE7: 2212 | SF7: 2194 | SG7: 1147 | SH7: 2393 | SI7: 1715 | SJ7: 1987 | SK7: 2075 | SL7: 1447 | SM7: 828 | SN7: 730 | SO7: 1187 | SP7: 1951 | SQ7: 2252 | SR7: 1801 | SS7: 2511 | ST7: 1928 | SU7: 2530 | SV7: 1589 | SW7: 1977 | SX7: 1338 | SY7: 694 | SZ7: 1046 | TA7: 1011 | TB7: 2311 | TC7: 1587 | TD7: 1755 | TE7: 2694 | TF7: 1670 | TG7: 1790 | TH7: 2069 | TI7: 1710 | TJ7: 812 | TK7: 848 | TL7: 739 | TM7: 1056 | TN7: 1496 | TO7: 2308 | TP7: 1825 | TQ7: 2475 | TR7: 2174 | TS7: 1718 | TT7: 2094 | TU7: 1210 | TV7: 1227 | TW7: 1028 | TX7: 345 | TY7: 765 | TZ7: 1689 | UA7: 1700 | UB7: 1292 | UC7: 1026 | UD7: 1433 | UE7: 1590 | UF7: 1541 | UG7: 1841 | UH7: 729 | UI7: 955 | UJ7: 968 | UK7: 908 | UL7: 1676 | UM7: 2221 | UN7: 1870 | UO7: 1244 | UP7: 1700 | UQ7: 1395 | UR7: 1359 | US7: 1221 | UT7: 971 | UU7: 890 | UV7: 506 | UW7: 1126 | UX7: 1273 | UY7: 1679 | UZ7: 2735 | VA7: 0 | VB7: 0 | VC7: 0 | VD7: 0 | VE7: 0 | VF7: 0 | VG7: 0 | VH7: 0 | VI7: 0 | VJ7: 0 | VK7: 0
A8: 192 | B8: 2748546.85 | C8: 10586 | D8: Cameron Ridge LLC | E8: WT | F8: CA | I8: 0 | J8: 0 | K8: 0 | L8: 0 | M8: 0 | N8: 0 | O8: 0 | P8: 0 | Q8: 0 | R8: 0 | S8: 0 | T8: 0 | U8: 0 | V8: 0 | W8: 0 | X8: 0 | Y8: 0 | Z8: 0 | AA8: 0 | AB8: 0 | AC8: 0 | AD8: 0 | AE8: 0 | AF8: 0 | AG8: 0 | AH8: 0 | AI8: 0 | AJ8: 0 | AK8: 0 | AL8: 0 | AM8: 0 | AN8: 0 | AO8: 0 | AP8: 0 | AQ8: 0 | AR8: 0 | AS8: 0 | AT8: 0 | AU8: 0 | AV8: 0 | AW8: 0 | AX8: 0 | AY8: 0 | AZ8: 0 | BA8: 0 | BB8: 0 | BC8: 0 | BD8: 0 | BE8: 0 | BF8: 0 | BG8: 0 | BH8: 0 | BI8: 0 | BJ8: 0 | BK8: 0 | BL8: 0 | BM8: 0 | BN8: 0 | BO8: 0 | BP8: 0 | BQ8: 0 | BR8: 0 | BS8: 0 | BT8: 0 | BU8: 0 | BV8: 0 | BW8: 0 | BX8: 0 | BY8: 0 | BZ8: 0 | CA8: 0 | CB8: 0 | CC8: 0 | CD8: 0 | CE8: 0 | CF8: 0 | CG8: 0 | CH8: 0 | CI8: 0 | CJ8: 0 | CK8: 0 | CL8: 0 | CM8: 0 | CN8: 0 | CO8: 0 | CP8: 0 | CQ8: 0 | CR8: 0 | CS8: 0 | CT8: 0 | CU8: 0 | CV8: 0 | CW8: 0 | CX8: 0 | CY8: 0 | CZ8: 0 | DA8: 0 | DB8: 0 | DC8: 0 | DD8: 0 | DE8: 0 | DF8: 0 | DG8: 0 | DH8: 0 | DI8: 0 | DJ8: 0 | DK8: 0 | DL8: 0 | DM8: 0 | DN8: 0 | DO8: 0 | DP8: 0 | DQ8: 0 | DR8: 0 | DS8: 0 | DT8: 0 | DU8: 0 | DV8: 0 | DW8: 0 | DX8: 0 | DY8: 0 | DZ8: 0 | EA8: 0 | EB8: 0 | EC8: 0 | ED8: 0 | EE8: 0 | EF8: 0 | EG8: 0 | EH8: 0 | EI8: 0 | EJ8: 0 | EK8: 0 | EL8: 0 | EM8: 0 | EN8: 0 | EO8: 0 | EP8: 0 | EQ8: 0 | ER8: 0 | ES8: 0 | ET8: 0 | EU8: 0 | EV8: 0 | EW8: 0 | EX8: 0 | EY8: 0 | EZ8: 0 | FA8: 0 | FB8: 0 | FC8: 0 | FD8: 0 | FE8: 0 | FF8: 0 | FG8: 0 | FH8: 0 | FI8: 0 | FJ8: 0 | FK8: 0 | FL8: 0 | FM8: 0 | FN8: 0 | FO8: 0 | FP8: 0 | FQ8: 0 | FR8: 0 | FS8: 0 | FT8: 0 | FU8: 0 | FV8: 0 | FW8: 0 | FX8: 0 | FY8: 0 | FZ8: 0 | GA8: 0 | GB8: 0 | GC8: 0 | GD8: 0 | GE8: 0 | GF8: 0 | GG8: 0 | GH8: 0 | GI8: 0 | GJ8: 0 | GK8: 0 | GL8: 0 | GM8: 0 | GN8: 0 | GO8: 0 | GP8: 0 | GQ8: 0 | GR8: 0 | GS8: 0 | GT8: 0 | GU8: 0 | GV8: 0 | GW8: 0 | GX8: 0 | GY8: 0 | GZ8: 0 | HA8: 0 | HB8: 0 | HC8: 0 | HD8: 0 | HE8: 0 | HF8: 0 | HG8: 0 | HH8: 0 | HI8: 0 | HJ8: 0 | HK8: 0 | HL8: 0 | HM8: 0 | HN8: 0 | HO8: 0 | HP8: 0 | HQ8: 0 | HR8: 0 | HS8: 0 | HT8: 0 | HU8: 0 | HV8: 0 | HW8: 0 | HX8: 0 | HY8: 0 | HZ8: 0 | IA8: 0 | IB8: 0 | IC8: 0 | ID8: 0 | IE8: 0 | IF8: 0 | IG8: 0 | IH8: 0 | II8: 0 | IJ8: 0 | IK8: 0 | IL8: 0 | IM8: 0 | IN8: 0 | IO8: 0 | IP8: 0 | IQ8: 0 | IR8: 0 | IS8: 0 | IT8: 0 | IU8: 0 | IV8: 0 | IW8: 0 | IX8: 0 | IY8: 0 | IZ8: 0 | JA8: 0 | JB8: 0 | JC8: 0 | JD8: 0 | JE8: 0 | JF8: 0 | JG8: 0 | JH8: 0 | JI8: 0 | JJ8: 0 | JK8: 0 | JL8: 0 | JM8: 0 | JN8: 0 | JO8: 0 | JP8: 0 | JQ8: 0 | JR8: 0 | JS8: 0 | JT8: 0 | JU8: 0 | JV8: 0 | JW8: 0 | JX8: 0 | JY8: 0 | JZ8: 0 | KA8: 0 | KB8: 0 | KC8: 0 | KD8: 0 | KE8: 0 | KF8: 0 | KG8: 0 | KH8: 0 | KI8: 0 | KJ8: 0 | KK8: 0 | KL8: 0 | KM8: 0 | KN8: 0 | KO8: 0 | KP8: 0 | KQ8: 0 | KR8: 0 | KS8: 0 | KT8: 0 | KU8: 0 | KV8: 0 | KW8: 0 | KX8: 0 | KY8: 0 | KZ8: 0 | LA8: 0 | LB8: 0 | LC8: 0 | LD8: 0 | LE8: 0 | LF8: 0 | LG8: 0 | LH8: 0 | LI8: 0 | LJ8: 0 | LK8: 0 | LL8: 0 | LM8: 0 | LN8: 0 | LO8: 0 | LP8: 0 | LQ8: 0 | LR8: 0 | LS8: 0 | LT8: 0 | LU8: 0 | LV8: 0 | LW8: 0 | LX8: 0 | LY8: 0 | LZ8: 0 | MA8: 0 | MB8: 0 | MC8: 0 | MD8: 0 | ME8: 0 | MF8: 0 | MG8: 0 | MH8: 0 | MI8: 0 | MJ8: 0 | MK8: 0 | ML8: 0 | MM8: 0 | MN8: 0 | MO8: 0 | MP8: 0 | MQ8: 0 | MR8: 0 | MS8: 0 | MT8: 0 | MU8: 0 | MV8: 0 | MW8: 0 | MX8: 0 | MY8: 0 | MZ8: 0 | NA8: 0 | NB8: 0 | NC8: 0 | ND8: 0 | NE8: 0 | NF8: 0 | NG8: 0 | NH8: 0 | NI8: 0 | NJ8: 0 | NK8: 0 | NL8: 0 | NM8: 0 | NN8: 0 | NO8: 0 | NP8: 0 | NQ8: 8613.99 | NR8: 7752.69 | NS8: 17863.56 | NT8: 20903.85 | NU8: 19633.68 | NV8: 20319.75 | NW8: 18537.75 | NX8: 16000.38 | NY8: 9408.96 | NZ8: 12792.78 | OA8: 5875.65 | OB8: 9296.1 | OC8: 8217 | OD8: 9583.2 | OE8: 13716.45 | OF8: 19963.35 | OG8: 23351.13 | OH8: 23329.35 | OI8: 16300.35 | OJ8: 21700.8 | OK8: 14164.92 | OL8: 12240.36 | OM8: 9402.03 | ON8: 9240.66 | OO8: 8506.08 | OP8: 13764 | OQ8: 16200.36 | OR8: 21582 | OS8: 20849.4 | OT8: 20415.78 | OU8: 17308.17 | OV8: 11950.29 | OW8: 9846.54 | OX8: 10405.89 | OY8: 10466.28 | OZ8: 11056.32 | PA8: 9058 | PB8: 11712 | PC8: 11482 | PD8: 19080 | PE8: 25320 | PF8: 21360 | PG8: 16080 | PH8: 13296 | PI8: 14304 | PJ8: 7776 | PK8: 8677 | PL8: 5928 | PM8: 7224 | PN8: 6048 | PO8: 14544 | PP8: 16536 | PQ8: 24972 | PR8: 17976 | PS8: 16536 | PT8: 13392 | PU8: 13584 | PV8: 13560 | PW8: 10440 | PX8: 11472 | PY8: 16536 | PZ8: 8520 | QA8: 15528 | QB8: 14400 | QC8: 20136 | QD8: 18432 | QE8: 17232 | QF8: 11160 | QG8: 9768 | QH8: 13032 | QI8: 11592 | QJ8: 12384 | QK8: 8688 | QL8: 14568 | QM8: 17880 | QN8: 23208 | QO8: 19440 | QP8: 21216 | QQ8: 18792 | QR8: 15624 | QS8: 12288 | QT8: 13392 | QU8: 8064 | QV8: 13344 | QW8: 13488 | QX8: 11424 | QY8: 21816 | QZ8: 18888 | RA8: 19704 | RB8: 21030 | RC8: 20074 | RD8: 18171 | RE8: 9158 | RF8: 10086 | RG8: 9330 | RH8: 12264 | RI8: 7295 | RJ8: 9724 | RK8: 14626 | RL8: 21080 | RM8: 21206 | RN8: 22157 | RO8: 17862 | RP8: 13207 | RQ8: 12525 | RR8: 13967 | RS8: 11368 | RT8: 8983 | RU8: 5395 | RV8: 9104 | RW8: 16320 | RX8: 17924 | RY8: 21577 | RZ8: 23551 | SA8: 17863 | SB8: 15327 | SC8: 10662 | SD8: 9986 | SE8: 11191 | SF8: 12808 | SG8: 8643 | SH8: 9903 | SI8: 19585 | SJ8: 23881 | SK8: 21815 | SL8: 23381 | SM8: 15642 | SN8: 17231 | SO8: 7831 | SP8: 9540 | SQ8: 13232 | SR8: 6720 | SS8: 13528 | ST8: 17533 | SU8: 16396 | SV8: 14914 | SW8: 22278 | SX8: 18435 | SY8: 9910 | SZ8: 10895 | TA8: 7473 | TB8: 15322 | TC8: 7665 | TD8: 14296 | TE8: 7869 | TF8: 10790 | TG8: 15206 | TH8: 20271 | TI8: 20742 | TJ8: 20227 | TK8: 16145 | TL8: 13469 | TM8: 15213 | TN8: 10328 | TO8: 6132 | TP8: 6267 | TQ8: 8307 | TR8: 16609 | TS8: 15521 | TT8: 19290 | TU8: 23742 | TV8: 22631 | TW8: 14404 | TX8: 13801 | TY8: 10612 | TZ8: 10418 | UA8: 11672 | UB8: 9319 | UC8: 3165 | UD8: 9317 | UE8: 10239 | UF8: 14454 | UG8: 19430 | UH8: 20278 | UI8: 15154 | UJ8: 17864 | UK8: 9049 | UL8: 8841 | UM8: 9343 | UN8: 15229 | UO8: 11672 | UP8: 8607 | UQ8: 19860 | UR8: 14578 | US8: 19311 | UT8: 19797 | UU8: 19822 | UV8: 15522 | UW8: 10474 | UX8: 12155 | UY8: 8796 | UZ8: 13274 | VA8: 0 | VB8: 0 | VC8: 0 | VD8: 0 | VE8: 0 | VF8: 0 | VG8: 0 | VH8: 0 | VI8: 0 | VJ8: 0 | VK8: 0
A9: 192 | B9: 1336747.99 | C9: 10597 | D9: Ridgetop Energy LLC | E9: WT | F9: CA | I9: 0 | J9: 0 | K9: 0 | L9: 0 | M9: 0 | N9: 0 | O9: 0 | P9: 0 | Q9: 0 | R9: 0 | S9: 0 | T9: 0 | U9: 0 | V9: 0 | W9: 0 | X9: 0 | Y9: 0 | Z9: 0 | AA9: 0 | AB9: 0 | AC9: 0 | AD9: 0 | AE9: 0 | AF9: 0 | AG9: 0 | AH9: 0 | AI9: 0 | AJ9: 0 | AK9: 0 | AL9: 0 | AM9: 0 | AN9: 0 | AO9: 0 | AP9: 0 | AQ9: 0 | AR9: 0 | AS9: 0 | AT9: 0 | AU9: 0 | AV9: 0 | AW9: 0 | AX9: 0 | AY9: 0 | AZ9: 0 | BA9: 0 | BB9: 0 | BC9: 0 | BD9: 0 | BE9: 0 | BF9: 0 | BG9: 0 | BH9: 0 | BI9: 0 | BJ9: 0 | BK9: 0 | BL9: 0 | BM9: 0 | BN9: 0 | BO9: 0 | BP9: 0 | BQ9: 0 | BR9: 0 | BS9: 0 | BT9: 0 | BU9: 0 | BV9: 0 | BW9: 0 | BX9: 0 | BY9: 0 | BZ9: 0 | CA9: 0 | CB9: 0 | CC9: 0 | CD9: 0 | CE9: 0 | CF9: 0 | CG9: 0 | CH9: 0 | CI9: 0 | CJ9: 0 | CK9: 0 | CL9: 0 | CM9: 0 | CN9: 0 | CO9: 0 | CP9: 0 | CQ9: 0 | CR9: 0 | CS9: 0 | CT9: 0 | CU9: 0 | CV9: 0 | CW9: 0 | CX9: 0 | CY9: 0 | CZ9: 0 | DA9: 0 | DB9: 0 | DC9: 0 | DD9: 0 | DE9: 0 | DF9: 0 | DG9: 0 | DH9: 0 | DI9: 0 | DJ9: 0 | DK9: 0 | DL9: 0 | DM9: 0 | DN9: 0 | DO9: 0 | DP9: 0 | DQ9: 0 | DR9: 0 | DS9: 0 | DT9: 0 | DU9: 0 | DV9: 0 | DW9: 0 | DX9: 0 | DY9: 0 | DZ9: 0 | EA9: 0 | EB9: 0 | EC9: 0 | ED9: 0 | EE9: 0 | EF9: 0 | EG9: 0 | EH9: 0 | EI9: 0 | EJ9: 0 | EK9: 0 | EL9: 0 | EM9: 0 | EN9: 0 | EO9: 0 | EP9: 0 | EQ9: 0 | ER9: 0 | ES9: 0 | ET9: 0 | EU9: 0 | EV9: 0 | EW9: 0 | EX9: 0 | EY9: 0 | EZ9: 0 | FA9: 0 | FB9: 0 | FC9: 0 | FD9: 0 | FE9: 0 | FF9: 0 | FG9: 0 | FH9: 0 | FI9: 0 | FJ9: 0 | FK9: 0 | FL9: 0 | FM9: 0 | FN9: 0 | FO9: 0 | FP9: 0 | FQ9: 0 | FR9: 0 | FS9: 0 | FT9: 0 | FU9: 0 | FV9: 0 | FW9: 0 | FX9: 0 | FY9: 0 | FZ9: 0 | GA9: 0 | GB9: 0 | GC9: 0 | GD9: 0 | GE9: 0 | GF9: 0 | GG9: 0 | GH9: 0 | GI9: 0 | GJ9: 0 | GK9: 0 | GL9: 0 | GM9: 0 | GN9: 0 | GO9: 0 | GP9: 0 | GQ9: 0 | GR9: 0 | GS9: 0 | GT9: 0 | GU9: 0 | GV9: 0 | GW9: 0 | GX9: 0 | GY9: 0 | GZ9: 0 | HA9: 0 | HB9: 0 | HC9: 0 | HD9: 0 | HE9: 0 | HF9: 0 | HG9: 0 | HH9: 0 | HI9: 0 | HJ9: 0 | HK9: 0 | HL9: 0 | HM9: 0 | HN9: 0 | HO9: 0 | HP9: 0 | HQ9: 0 | HR9: 0 | HS9: 0 | HT9: 0 | HU9: 0 | HV9: 0 | HW9: 0 | HX9: 0 | HY9: 0 | HZ9: 0 | IA9: 0 | IB9: 0 | IC9: 0 | ID9: 0 | IE9: 0 | IF9: 0 | IG9: 0 | IH9: 0 | II9: 0 | IJ9: 0 | IK9: 0 | IL9: 0 | IM9: 0 | IN9: 0 | IO9: 0 | IP9: 0 | IQ9: 0 | IR9: 0 | IS9: 0 | IT9: 0 | IU9: 0 | IV9: 0 | IW9: 0 | IX9: 0 | IY9: 0 | IZ9: 0 | JA9: 0 | JB9: 0 | JC9: 0 | JD9: 0 | JE9: 0 | JF9: 0 | JG9: 0 | JH9: 0 | JI9: 0 | JJ9: 0 | JK9: 0 | JL9: 0 | JM9: 0 | JN9: 0 | JO9: 0 | JP9: 0 | JQ9: 0 | JR9: 0 | JS9: 0 | JT9: 0 | JU9: 0 | JV9: 0 | JW9: 0 | JX9: 0 | JY9: 0 | JZ9: 0 | KA9: 0 | KB9: 0 | KC9: 0 | KD9: 0 | KE9: 0 | KF9: 0 | KG9: 0 | KH9: 0 | KI9: 0 | KJ9: 0 | KK9: 0 | KL9: 0 | KM9: 0 | KN9: 0 | KO9: 0 | KP9: 0 | KQ9: 0 | KR9: 0 | KS9: 0 | KT9: 0 | KU9: 0 | KV9: 0 | KW9: 0 | KX9: 0 | KY9: 0 | KZ9: 0 | LA9: 0 | LB9: 0 | LC9: 0 | LD9: 0 | LE9: 0 | LF9: 0 | LG9: 0 | LH9: 0 | LI9: 0 | LJ9: 0 | LK9: 0 | LL9: 0 | LM9: 0 | LN9: 0 | LO9: 0 | LP9: 0 | LQ9: 0 | LR9: 0 | LS9: 0 | LT9: 0 | LU9: 0 | LV9: 0 | LW9: 0 | LX9: 0 | LY9: 0 | LZ9: 0 | MA9: 0 | MB9: 0 | MC9: 0 | MD9: 0 | ME9: 0 | MF9: 0 | MG9: 0 | MH9: 0 | MI9: 0 | MJ9: 0 | MK9: 0 | ML9: 0 | MM9: 0 | MN9: 0 | MO9: 0 | MP9: 0 | MQ9: 0 | MR9: 0 | MS9: 0 | MT9: 0 | MU9: 0 | MV9: 0 | MW9: 0 | MX9: 0 | MY9: 0 | MZ9: 0 | NA9: 0 | NB9: 0 | NC9: 0 | ND9: 0 | NE9: 0 | NF9: 0 | NG9: 0 | NH9: 0 | NI9: 0 | NJ9: 0 | NK9: 0 | NL9: 0 | NM9: 0 | NN9: 0 | NO9: 0 | NP9: 0 | NQ9: 7648.74 | NR9: 7030.98 | NS9: 16592.4 | NT9: 18098.19 | NU9: 17627.94 | NV9: 20114.82 | NW9: 16868.61 | NX9: 13753.08 | NY9: 8248.68 | NZ9: 11239.47 | OA9: 6365.7 | OB9: 9093.15 | OC9: 7144.83 | OD9: 8631.81 | OE9: 12327.48 | OF9: 19228.77 | OG9: 22722.48 | OH9: 22850.19 | OI9: 14381.73 | OJ9: 19209.96 | OK9: 11574.09 | OL9: 9883.17 | OM9: 8431.83 | ON9: 7357.68 | OO9: 7988.31 | OP9: 12298.77 | OQ9: 19224.81 | OR9: 19695.06 | OS9: 19417.86 | OT9: 21098.88 | OU9: 17239.86 | OV9: 9974.25 | OW9: 8743.68 | OX9: 9344.61 | OY9: 10348.47 | OZ9: 10726.65 | PA9: 8640 | PB9: 11736 | PC9: 11448 | PD9: 3837 | PE9: 18941 | PF9: 10158 | PG9: 6016 | PH9: 7043 | PI9: 5568 | PJ9: 428 | PK9: 2732 | PL9: 1499 | PM9: 3139 | PN9: 2458 | PO9: 6404 | PP9: 5939 | PQ9: 10532 | PR9: 8739 | PS9: 6583 | PT9: 4563 | PU9: 2712 | PV9: 3903 | PW9: 3677 | PX9: 4099 | PY9: 6901 | PZ9: 3497 | QA9: 6024 | QB9: 5504 | QC9: 8637 | QD9: 7157 | QE9: 6431 | QF9: 4037 | QG9: 3841 | QH9: 4990 | QI9: 5007 | QJ9: 5448 | QK9: 3301 | QL9: 5778 | QM9: 7209 | QN9: 8364 | QO9: 6835 | QP9: 9446 | QQ9: 6733 | QR9: 5594 | QS9: 4666 | QT9: 5493 | QU9: 2908 | QV9: 4865 | QW9: 5045 | QX9: 4176 | QY9: 8661 | QZ9: 8458 | RA9: 6858 | RB9: 7629 | RC9: 6576 | RD9: 6130 | RE9: 3059 | RF9: 4111 | RG9: 3368 | RH9: 4480 | RI9: 2341 | RJ9: 3748 | RK9: 5397 | RL9: 8246 | RM9: 8688 | RN9: 6756 | RO9: 6228 | RP9: 5018 | RQ9: 4402 | RR9: 5126 | RS9: 3990 | RT9: 3056 | RU9: 1882 | RV9: 2849 | RW9: 6024 | RX9: 6927 | RY9: 9453 | RZ9: 9168 | SA9: 6626 | SB9: 5351 | SC9: 4000 | SD9: 3889 | SE9: 4038 | SF9: 4983 | SG9: 2989 | SH9: 3889 | SI9: 7512 | SJ9: 9217 | SK9: 8132 | SL9: 8114 | SM9: 5458 | SN9: 6174 | SO9: 2817 | SP9: 3847 | SQ9: 5544 | SR9: 2318 | SS9: 5109 | ST9: 6433 | SU9: 5806 | SV9: 5578 | SW9: 8485 | SX9: 6957 | SY9: 3884 | SZ9: 3803 | TA9: 2624 | TB9: 5778 | TC9: 2880 | TD9: 5501 | TE9: 2255 | TF9: 4218 | TG9: 6290 | TH9: 9082 | TI9: 8478 | TJ9: 8537 | TK9: 5511 | TL9: 4815 | TM9: 5396 | TN9: 4104 | TO9: 1928 | TP9: 2405 | TQ9: 3206 | TR9: 6427 | TS9: 6096 | TT9: 7119 | TU9: 9343 | TV9: 8888 | TW9: 4994 | TX9: 4570 | TY9: 3790 | TZ9: 4173 | UA9: 4509 | UB9: 3660 | UC9: 959 | UD9: 3424 | UE9: 3912 | UF9: 5338 | UG9: 6756 | UH9: 7280 | UI9: 5175 | UJ9: 6297 | UK9: 3204 | UL9: 3316 | UM9: 3052 | UN9: 4994 | UO9: 3921 | UP9: 2580 | UQ9: 6461 | UR9: 4942 | US9: 6341 | UT9: 6092 | UU9: 6587 | UV9: 4652 | UW9: 3540 | UX9: 4632 | UY9: 2537 | UZ9: 3389 | VA9: 0 | VB9: 0 | VC9: 0 | VD9: 0 | VE9: 0 | VF9: 0 | VG9: 0 | VH9: 0 | VI9: 0 | VJ9: 0 | VK9: 0
A10: 192 | B10: 1214276 | C10: 50281 | D10: San Gorgonio Farms Wind Farm | E10: WT | F10: CA | I10: 0 | J10: 0 | K10: 0 | L10: 0 | M10: 0 | N10: 0 | O10: 0 | P10: 0 | Q10: 0 | R10: 0 | S10: 0 | T10: 0 | U10: 0 | V10: 0 | W10: 0 | X10: 0 | Y10: 0 | Z10: 0 | AA10: 0 | AB10: 0 | AC10: 0 | AD10: 0 | AE10: 0 | AF10: 0 | AG10: 0 | AH10: 0 | AI10: 0 | AJ10: 0 | AK10: 0 | AL10: 0 | AM10: 0 | AN10: 0 | AO10: 0 | AP10: 0 | AQ10: 0 | AR10: 0 | AS10: 0 | AT10: 0 | AU10: 0 | AV10: 0 | AW10: 0 | AX10: 0 | AY10: 0 | AZ10: 0 | BA10: 0 | BB10: 0 | BC10: 0 | BD10: 0 | BE10: 0 | BF10: 0 | BG10: 0 | BH10: 0 | BI10: 0 | BJ10: 0 | BK10: 0 | BL10: 0 | BM10: 0 | BN10: 0 | BO10: 0 | BP10: 0 | BQ10: 0 | BR10: 0 | BS10: 0 | BT10: 0 | BU10: 0 | BV10: 0 | BW10: 0 | BX10: 0 | BY10: 0 | BZ10: 0 | CA10: 0 | CB10: 0 | CC10: 0 | CD10: 0 | CE10: 0 | CF10: 0 | CG10: 0 | CH10: 0 | CI10: 0 | CJ10: 0 | CK10: 0 | CL10: 0 | CM10: 0 | CN10: 0 | CO10: 0 | CP10: 0 | CQ10: 0 | CR10: 0 | CS10: 0 | CT10: 0 | CU10: 0 | CV10: 0 | CW10: 0 | CX10: 0 | CY10: 0 | CZ10: 0 | DA10: 0 | DB10: 0 | DC10: 0 | DD10: 0 | DE10: 0 | DF10: 0 | DG10: 0 | DH10: 0 | DI10: 0 | DJ10: 0 | DK10: 0 | DL10: 0 | DM10: 0 | DN10: 0 | DO10: 0 | DP10: 0 | DQ10: 0 | DR10: 0 | DS10: 0 | DT10: 0 | DU10: 0 | DV10: 0 | DW10: 0 | DX10: 0 | DY10: 0 | DZ10: 0 | EA10: 0 | EB10: 0 | EC10: 0 | ED10: 0 | EE10: 0 | EF10: 0 | EG10: 0 | EH10: 0 | EI10: 0 | EJ10: 0 | EK10: 0 | EL10: 0 | EM10: 0 | EN10: 0 | EO10: 0 | EP10: 0 | EQ10: 0 | ER10: 0 | ES10: 0 | ET10: 0 | EU10: 0 | EV10: 0 | EW10: 0 | EX10: 0 | EY10: 0 | EZ10: 0 | FA10: 0 | FB10: 0 | FC10: 0 | FD10: 0 | FE10: 0 | FF10: 0 | FG10: 0 | FH10: 0 | FI10: 0 | FJ10: 0 | FK10: 0 | FL10: 0 | FM10: 0 | FN10: 0 | FO10: 0 | FP10: 0 | FQ10: 0 | FR10: 0 | FS10: 0 | FT10: 0 | FU10: 0 | FV10: 0 | FW10: 0 | FX10: 0 | FY10: 0 | FZ10: 0 | GA10: 0 | GB10: 0 | GC10: 0 | GD10: 0 | GE10: 0 | GF10: 0 | GG10: 0 | GH10: 0 | GI10: 0 | GJ10: 0 | GK10: 0 | GL10: 0 | GM10: 0 | GN10: 0 | GO10: 0 | GP10: 0 | GQ10: 0 | GR10: 0 | GS10: 0 | GT10: 0 | GU10: 0 | GV10: 0 | GW10: 0 | GX10: 0 | GY10: 0 | GZ10: 0 | HA10: 0 | HB10: 0 | HC10: 0 | HD10: 0 | HE10: 0 | HF10: 0 | HG10: 0 | HH10: 0 | HI10: 0 | HJ10: 0 | HK10: 0 | HL10: 0 | HM10: 0 | HN10: 0 | HO10: 0 | HP10: 0 | HQ10: 0 | HR10: 0 | HS10: 0 | HT10: 0 | HU10: 0 | HV10: 0 | HW10: 0 | HX10: 0 | HY10: 0 | HZ10: 0 | IA10: 0 | IB10: 0 | IC10: 0 | ID10: 0 | IE10: 0 | IF10: 0 | IG10: 0 | IH10: 0 | II10: 0 | IJ10: 0 | IK10: 0 | IL10: 0 | IM10: 0 | IN10: 0 | IO10: 0 | IP10: 0 | IQ10: 0 | IR10: 0 | IS10: 0 | IT10: 0 | IU10: 0 | IV10: 0 | IW10: 0 | IX10: 0 | IY10: 0 | IZ10: 0 | JA10: 0 | JB10: 0 | JC10: 0 | JD10: 0 | JE10: 0 | JF10: 0 | JG10: 0 | JH10: 0 | JI10: 0 | JJ10: 0 | JK10: 0 | JL10: 0 | JM10: 0 | JN10: 0 | JO10: 0 | JP10: 0 | JQ10: 0 | JR10: 0 | JS10: 0 | JT10: 0 | JU10: 0 | JV10: 0 | JW10: 0 | JX10: 0 | JY10: 0 | JZ10: 0 | KA10: 0 | KB10: 0 | KC10: 0 | KD10: 0 | KE10: 0 | KF10: 0 | KG10: 0 | KH10: 0 | KI10: 0 | KJ10: 0 | KK10: 0 | KL10: 0 | KM10: 0 | KN10: 0 | KO10: 0 | KP10: 0 | KQ10: 0 | KR10: 0 | KS10: 0 | KT10: 0 | KU10: 0 | KV10: 0 | KW10: 0 | KX10: 0 | KY10: 0 | KZ10: 0 | LA10: 0 | LB10: 0 | LC10: 0 | LD10: 0 | LE10: 0 | LF10: 0 | LG10: 0 | LH10: 0 | LI10: 0 | LJ10: 0 | LK10: 0 | LL10: 0 | LM10: 0 | LN10: 0 | LO10: 0 | LP10: 0 | LQ10: 0 | LR10: 0 | LS10: 0 | LT10: 0 | LU10: 0 | LV10: 0 | LW10: 0 | LX10: 0 | LY10: 0 | LZ10: 0 | MA10: 0 | MB10: 0 | MC10: 0 | MD10: 0 | ME10: 0 | MF10: 0 | MG10: 0 | MH10: 0 | MI10: 0 | MJ10: 0 | MK10: 0 | ML10: 0 | MM10: 0 | MN10: 0 | MO10: 0 | MP10: 0 | MQ10: 0 | MR10: 0 | MS10: 0 | MT10: 0 | MU10: 0 | MV10: 0 | MW10: 0 | MX10: 0 | MY10: 0 | MZ10: 0 | NA10: 0 | NB10: 0 | NC10: 0 | ND10: 0 | NE10: 0 | NF10: 0 | NG10: 0 | NH10: 0 | NI10: 0 | NJ10: 0 | NK10: 0 | NL10: 0 | NM10: 0 | NN10: 0 | NO10: 0 | NP10: 0 | NQ10: 4031 | NR10: 5909 | NS10: 9093 | NT10: 13891 | NU10: 11497 | NV10: 14228 | NW10: 13122 | NX10: 8885 | NY10: 8453 | NZ10: 7027 | OA10: 4517 | OB10: 3976 | OC10: 3363 | OD10: 3971 | OE10: 9560 | OF10: 14487 | OG10: 7751 | OH10: 15712 | OI10: 10897 | OJ10: 8541 | OK10: 7229 | OL10: 8361 | OM10: 3208 | ON10: 3461 | OO10: 1310 | OP10: 4313 | OQ10: 6476 | OR10: 14094 | OS10: 11359 | OT10: 12131 | OU10: 7631 | OV10: 6408 | OW10: 4842 | OX10: 4761 | OY10: 4499 | OZ10: 4360 | PA10: 2662 | PB10: 3754 | PC10: 3869 | PD10: 5389 | PE10: 9766 | PF10: 10122 | PG10: 9462 | PH10: 6749 | PI10: 5411 | PJ10: 4750 | PK10: 2544 | PL10: 1930 | PM10: 1858 | PN10: 1814 | PO10: 7235 | PP10: 8564 | PQ10: 10445 | PR10: 11824 | PS10: 7767 | PT10: 4746 | PU10: 6912 | PV10: 4590 | PW10: 2682 | PX10: 2445 | PY10: 3280 | PZ10: 2769 | QA10: 8490 | QB10: 9372 | QC10: 8753 | QD10: 7671 | QE10: 6129 | QF10: 6684 | QG10: 4106 | QH10: 5902 | QI10: 3423 | QJ10: 2500 | QK10: 2926 | QL10: 5558 | QM10: 5226 | QN10: 9175 | QO10: 9049 | QP10: 9240 | QQ10: 6036 | QR10: 5947 | QS10: 7185 | QT10: 5484 | QU10: 1942 | QV10: 2224 | QW10: 2673.184 | QX10: 2588.829 | QY10: 4439.689 | QZ10: 5310.178 | RA10: 6809.957 | RB10: 6506.792 | RC10: 6902.827 | RD10: 6388.286 | RE10: 4002.193 | RF10: 2936.249 | RG10: 2196.377 | RH10: 2374.439 | RI10: 1633.151 | RJ10: 2663.264 | RK10: 4820.446 | RL10: 6545.256 | RM10: 7608.243 | RN10: 9218.259 | RO10: 9520.254 | RP10: 7344.168 | RQ10: 5193.171 | RR10: 4404.012 | RS10: 2555.523 | RT10: 1852.253 | RU10: 1746.105 | RV10: 2565.037 | RW10: 4630.301 | RX10: 6339.891 | RY10: 7991.302 | RZ10: 10068.05 | SA10: 10732.359 | SB10: 8486.944 | SC10: 6393.624 | SD10: 4315.025 | SE10: 3537.699 | SF10: 3754.663 | SG10: 2268.726 | SH10: 4153.345 | SI10: 5909.195 | SJ10: 9276.134 | SK10: 9912.836 | SL10: 9855.986 | SM10: 8395.94 | SN10: 8773.056 | SO10: 5046.661 | SP10: 4016.422 | SQ10: 4139.047 | SR10: 3053.652 | SS10: 2918.784 | ST10: 4475.542 | SU10: 5717.859 | SV10: 5921.717 | SW10: 10124.699 | SX10: 10471.962 | SY10: 7695.926 | SZ10: 7688.71 | TA10: 5354.255 | TB10: 5963.608 | TC10: 2995.256 | TD10: 5210.682 | TE10: 2469 | TF10: 4778 | TG10: 8272 | TH10: 9153 | TI10: 11225 | TJ10: 11874 | TK10: 8430 | TL10: 6899 | TM10: 4998 | TN10: 4738 | TO10: 3320 | TP10: 2699 | TQ10: 1591 | TR10: 5098 | TS10: 6733 | TT10: 7646 | TU10: 10334 | TV10: 11497 | TW10: 6824 | TX10: 6225 | TY10: 4929 | TZ10: 3480 | UA10: 4375 | UB10: 974 | UC10: 211 | UD10: 3837 | UE10: 4510 | UF10: 9169 | UG10: 13555 | UH10: 11448 | UI10: 9863 | UJ10: 9799 | UK10: 5836 | UL10: 3678 | UM10: 3667 | UN10: 5072 | UO10: 4126 | UP10: 2580 | UQ10: 9579 | UR10: 9695 | US10: 12746 | UT10: 9836 | UU10: 11087 | UV10: 7629 | UW10: 6719 | UX10: 7722 | UY10: 3318 | UZ10: 3930 | VA10: 0 | VB10: 0 | VC10: 0 | VD10: 0 | VE10: 0 | VF10: 0 | VG10: 0 | VH10: 0 | VI10: 0 | VJ10: 0 | VK10: 0
A11: 192 | B11: 1984655.442 | C11: 50690 | D11: San Gorgonio Westwinds II LLC | E11: WT | F11: CA | I11: 0 | J11: 0 | K11: 0 | L11: 0 | M11: 0 | N11: 0 | O11: 0 | P11: 0 | Q11: 0 | R11: 0 | S11: 0 | T11: 0 | U11: 0 | V11: 0 | W11: 0 | X11: 0 | Y11: 0 | Z11: 0 | AA11: 0 | AB11: 0 | AC11: 0 | AD11: 0 | AE11: 0 | AF11: 0 | AG11: 0 | AH11: 0 | AI11: 0 | AJ11: 0 | AK11: 0 | AL11: 0 | AM11: 0 | AN11: 0 | AO11: 0 | AP11: 0 | AQ11: 0 | AR11: 0 | AS11: 0 | AT11: 0 | AU11: 0 | AV11: 0 | AW11: 0 | AX11: 0 | AY11: 0 | AZ11: 0 | BA11: 0 | BB11: 0 | BC11: 0 | BD11: 0 | BE11: 0 | BF11: 0 | BG11: 0 | BH11: 0 | BI11: 0 | BJ11: 0 | BK11: 0 | BL11: 0 | BM11: 0 | BN11: 0 | BO11: 0 | BP11: 0 | BQ11: 0 | BR11: 0 | BS11: 0 | BT11: 0 | BU11: 0 | BV11: 0 | BW11: 0 | BX11: 0 | BY11: 0 | BZ11: 0 | CA11: 0 | CB11: 0 | CC11: 0 | CD11: 0 | CE11: 0 | CF11: 0 | CG11: 0 | CH11: 0 | CI11: 0 | CJ11: 0 | CK11: 0 | CL11: 0 | CM11: 0 | CN11: 0 | CO11: 0 | CP11: 0 | CQ11: 0 | CR11: 0 | CS11: 0 | CT11: 0 | CU11: 0 | CV11: 0 | CW11: 0 | CX11: 0 | CY11: 0 | CZ11: 0 | DA11: 0 | DB11: 0 | DC11: 0 | DD11: 0 | DE11: 0 | DF11: 0 | DG11: 0 | DH11: 0 | DI11: 0 | DJ11: 0 | DK11: 0 | DL11: 0 | DM11: 0 | DN11: 0 | DO11: 0 | DP11: 0 | DQ11: 0 | DR11: 0 | DS11: 0 | DT11: 0 | DU11: 0 | DV11: 0 | DW11: 0 | DX11: 0 | DY11: 0 | DZ11: 0 | EA11: 0 | EB11: 0 | EC11: 0 | ED11: 0 | EE11: 0 | EF11: 0 | EG11: 0 | EH11: 0 | EI11: 0 | EJ11: 0 | EK11: 0 | EL11: 0 | EM11: 0 | EN11: 0 | EO11: 0 | EP11: 0 | EQ11: 0 | ER11: 0 | ES11: 0 | ET11: 0 | EU11: 0 | EV11: 0 | EW11: 0 | EX11: 0 | EY11: 0 | EZ11: 0 | FA11: 0 | FB11: 0 | FC11: 0 | FD11: 0 | FE11: 0 | FF11: 0 | FG11: 0 | FH11: 0 | FI11: 0 | FJ11: 0 | FK11: 0 | FL11: 0 | FM11: 0 | FN11: 0 | FO11: 0 | FP11: 0 | FQ11: 0 | FR11: 0 | FS11: 0 | FT11: 0 | FU11: 0 | FV11: 0 | FW11: 0 | FX11: 0 | FY11: 0 | FZ11: 0 | GA11: 0 | GB11: 0 | GC11: 0 | GD11: 0 | GE11: 0 | GF11: 0 | GG11: 0 | GH11: 0 | GI11: 0 | GJ11: 0 | GK11: 0 | GL11: 0 | GM11: 0 | GN11: 0 | GO11: 0 | GP11: 0 | GQ11: 0 | GR11: 0 | GS11: 0 | GT11: 0 | GU11: 0 | GV11: 0 | GW11: 0 | GX11: 0 | GY11: 0 | GZ11: 0 | HA11: 0 | HB11: 0 | HC11: 0 | HD11: 0 | HE11: 0 | HF11: 0 | HG11: 0 | HH11: 0 | HI11: 0 | HJ11: 0 | HK11: 0 | HL11: 0 | HM11: 0 | HN11: 0 | HO11: 0 | HP11: 0 | HQ11: 0 | HR11: 0 | HS11: 0 | HT11: 0 | HU11: 0 | HV11: 0 | HW11: 0 | HX11: 0 | HY11: 0 | HZ11: 0 | IA11: 0 | IB11: 0 | IC11: 0 | ID11: 0 | IE11: 0 | IF11: 0 | IG11: 0 | IH11: 0 | II11: 0 | IJ11: 0 | IK11: 0 | IL11: 0 | IM11: 0 | IN11: 0 | IO11: 0 | IP11: 0 | IQ11: 0 | IR11: 0 | IS11: 0 | IT11: 0 | IU11: 0 | IV11: 0 | IW11: 0 | IX11: 0 | IY11: 0 | IZ11: 0 | JA11: 0 | JB11: 0 | JC11: 0 | JD11: 0 | JE11: 0 | JF11: 0 | JG11: 0 | JH11: 0 | JI11: 0 | JJ11: 0 | JK11: 0 | JL11: 0 | JM11: 0 | JN11: 0 | JO11: 0 | JP11: 0 | JQ11: 0 | JR11: 0 | JS11: 0 | JT11: 0 | JU11: 0 | JV11: 0 | JW11: 0 | JX11: 0 | JY11: 0 | JZ11: 0 | KA11: 0 | KB11: 0 | KC11: 0 | KD11: 0 | KE11: 0 | KF11: 0 | KG11: 0 | KH11: 0 | KI11: 0 | KJ11: 0 | KK11: 0 | KL11: 0 | KM11: 0 | KN11: 0 | KO11: 0 | KP11: 0 | KQ11: 0 | KR11: 0 | KS11: 0 | KT11: 0 | KU11: 0 | KV11: 0 | KW11: 0 | KX11: 0 | KY11: 0 | KZ11: 0 | LA11: 0 | LB11: 0 | LC11: 0 | LD11: 0 | LE11: 0 | LF11: 0 | LG11: 0 | LH11: 0 | LI11: 0 | LJ11: 0 | LK11: 0 | LL11: 0 | LM11: 0 | LN11: 0 | LO11: 0 | LP11: 0 | LQ11: 0 | LR11: 0 | LS11: 0 | LT11: 0 | LU11: 0 | LV11: 0 | LW11: 0 | LX11: 0 | LY11: 0 | LZ11: 0 | MA11: 0 | MB11: 0 | MC11: 0 | MD11: 0 | ME11: 0 | MF11: 0 | MG11: 0 | MH11: 0 | MI11: 0 | MJ11: 0 | MK11: 0 | ML11: 0 | MM11: 0 | MN11: 0 | MO11: 0 | MP11: 0 | MQ11: 0 | MR11: 0 | MS11: 0 | MT11: 0 | MU11: 0 | MV11: 0 | MW11: 0 | MX11: 0 | MY11: 0 | MZ11: 0 | NA11: 0 | NB11: 0 | NC11: 0 | ND11: 0 | NE11: 0 | NF11: 0 | NG11: 0 | NH11: 0 | NI11: 0 | NJ11: 0 | NK11: 0 | NL11: 0 | NM11: 0 | NN11: 0 | NO11: 0 | NP11: 0 | NQ11: 10750.552 | NR11: 9361.253 | NS11: 10079.29 | NT11: 9915.284 | NU11: 10393.51 | NV11: 10233.358 | NW11: 11742.143 | NX11: 12148.915 | NY11: 10110.662 | NZ11: 9553.015 | OA11: 7863.897 | OB11: 8476.122 | OC11: 11155.096 | OD11: 9730.767 | OE11: 12362.579 | OF11: 9970.44 | OG11: 10337.966 | OH11: 13419.984 | OI11: 16203.327 | OJ11: 15426.319 | OK11: 13907.193 | OL11: 11788.426 | OM11: 10858.684 | ON11: 11908.22 | OO11: 1781 | OP11: 5345 | OQ11: 9228 | OR11: 21372 | OS11: 18033 | OT11: 17830 | OU11: 13367 | OV11: 10344 | OW11: 8082 | OX11: 6604 | OY11: 5101 | OZ11: 4839 | PA11: 3034 | PB11: 5502 | PC11: 7050 | PD11: 14270 | PE11: 20654 | PF11: 18945 | PG11: 17057 | PH11: 13745 | PI11: 11120 | PJ11: 7306 | PK11: 3869 | PL11: 2331 | PM11: 2946 | PN11: 2949 | PO11: 9639 | PP11: 15228 | PQ11: 18454 | PR11: 20466 | PS11: 13987 | PT11: 10169 | PU11: 13110 | PV11: 9637 | PW11: 6139 | PX11: 3556 | PY11: 5202 | PZ11: 4613 | QA11: 13884 | QB11: 16634 | QC11: 16728 | QD11: 13975 | QE11: 11813 | QF11: 13979 | QG11: 9049 | QH11: 13542 | QI11: 5995 | QJ11: 3755 | QK11: 3882 | QL11: 9822 | QM11: 9854 | QN11: 16962 | QO11: 17840 | QP11: 17930 | QQ11: 12754 | QR11: 12216 | QS11: 15345 | QT11: 9802 | QU11: 4104 | QV11: 2742 | QW11: 3903 | QX11: 6773 | QY11: 11002 | QZ11: 11353 | RA11: 17071 | RB11: 13441 | RC11: 13627 | RD11: 11773 | RE11: 8927 | RF11: 6645 | RG11: 5677 | RH11: 3898 | RI11: 3269 | RJ11: 5662 | RK11: 11094 | RL11: 16192.44 | RM11: 17844 | RN11: 19721 | RO11: 16141 | RP11: 13702 | RQ11: 8427 | RR11: 9474 | RS11: 3456 | RT11: 3543 | RU11: 2550 | RV11: 5600 | RW11: 8311 | RX11: 11744 | RY11: 16603 | RZ11: 18360 | SA11: 17190 | SB11: 13477 | SC11: 10697 | SD11: 9880 | SE11: 6408 | SF11: 3707 | SG11: 4308 | SH11: 7099 | SI11: 14522 | SJ11: 16243 | SK11: 17560 | SL11: 18567 | SM11: 15041 | SN11: 14326 | SO11: 9320 | SP11: 8297 | SQ11: 4425 | SR11: 1256 | SS11: 2769 | ST11: 8341 | SU11: 12321 | SV11: 13101 | SW11: 17950 | SX11: 19414 | SY11: 12280 | SZ11: 7920 | TA11: 7644 | TB11: 12399 | TC11: 5550 | TD11: 6303 | TE11: 2931 | TF11: 6205 | TG11: 14243 | TH11: 14500 | TI11: 16721 | TJ11: 18438 | TK11: 15082 | TL11: 11333 | TM11: 9753 | TN11: 5579 | TO11: 4279 | TP11: 2507 | TQ11: 1688 | TR11: 6264 | TS11: 7834 | TT11: 9533 | TU11: 14972 | TV11: 19809 | TW11: 15518 | TX11: 13511 | TY11: 7769 | TZ11: 6238 | UA11: 6843 | UB11: 1139 | UC11: 489 | UD11: 5587 | UE11: 6346 | UF11: 13368 | UG11: 20176 | UH11: 14451 | UI11: 16652 | UJ11: 14872 | UK11: 8966 | UL11: 5933 | UM11: 3773 | UN11: 3906 | UO11: 3545 | UP11: 2122 | UQ11: 10042 | UR11: 10709 | US11: 14501 | UT11: 11765 | UU11: 15666 | UV11: 11990 | UW11: 8917 | UX11: 10607 | UY11: 3352 | UZ11: 6925 | VA11: 0 | VB11: 0 | VC11: 0 | VD11: 0 | VE11: 0 | VF11: 0 | VG11: 0 | VH11: 0 | VI11: 0 | VJ11: 0 | VK11: 0
A12: 192 | B12: 1348130 | C12: 50754 | D12: Oak Creek Energy Systems I | E12: WT | F12: CA | I12: 0 | J12: 0 | K12: 0 | L12: 0 | M12: 0 | N12: 0 | O12: 0 | P12: 0 | Q12: 0 | R12: 0 | S12: 0 | T12: 0 | U12: 0 | V12: 0 | W12: 0 | X12: 0 | Y12: 0 | Z12: 0 | AA12: 0 | AB12: 0 | AC12: 0 | AD12: 0 | AE12: 0 | AF12: 0 | AG12: 0 | AH12: 0 | AI12: 0 | AJ12: 0 | AK12: 0 | AL12: 0 | AM12: 0 | AN12: 0 | AO12: 0 | AP12: 0 | AQ12: 0 | AR12: 0 | AS12: 0 | AT12: 0 | AU12: 0 | AV12: 0 | AW12: 0 | AX12: 0 | AY12: 0 | AZ12: 0 | BA12: 0 | BB12: 0 | BC12: 0 | BD12: 0 | BE12: 0 | BF12: 0 | BG12: 0 | BH12: 0 | BI12: 0 | BJ12: 0 | BK12: 0 | BL12: 0 | BM12: 0 | BN12: 0 | BO12: 0 | BP12: 0 | BQ12: 0 | BR12: 0 | BS12: 0 | BT12: 0 | BU12: 0 | BV12: 0 | BW12: 0 | BX12: 0 | BY12: 0 | BZ12: 0 | CA12: 0 | CB12: 0 | CC12: 0 | CD12: 0 | CE12: 0 | CF12: 0 | CG12: 0 | CH12: 0 | CI12: 0 | CJ12: 0 | CK12: 0 | CL12: 0 | CM12: 0 | CN12: 0 | CO12: 0 | CP12: 0 | CQ12: 0 | CR12: 0 | CS12: 0 | CT12: 0 | CU12: 0 | CV12: 0 | CW12: 0 | CX12: 0 | CY12: 0 | CZ12: 0 | DA12: 0 | DB12: 0 | DC12: 0 | DD12: 0 | DE12: 0 | DF12: 0 | DG12: 0 | DH12: 0 | DI12: 0 | DJ12: 0 | DK12: 0 | DL12: 0 | DM12: 0 | DN12: 0 | DO12: 0 | DP12: 0 | DQ12: 0 | DR12: 0 | DS12: 0 | DT12: 0 | DU12: 0 | DV12: 0 | DW12: 0 | DX12: 0 | DY12: 0 | DZ12: 0 | EA12: 0 | EB12: 0 | EC12: 0 | ED12: 0 | EE12: 0 | EF12: 0 | EG12: 0 | EH12: 0 | EI12: 0 | EJ12: 0 | EK12: 0 | EL12: 0 | EM12: 0 | EN12: 0 | EO12: 0 | EP12: 0 | EQ12: 0 | ER12: 0 | ES12: 0 | ET12: 0 | EU12: 0 | EV12: 0 | EW12: 0 | EX12: 0 | EY12: 0 | EZ12: 0 | FA12: 0 | FB12: 0 | FC12: 0 | FD12: 0 | FE12: 0 | FF12: 0 | FG12: 0 | FH12: 0 | FI12: 0 | FJ12: 0 | FK12: 0 | FL12: 0 | FM12: 0 | FN12: 0 | FO12: 0 | FP12: 0 | FQ12: 0 | FR12: 0 | FS12: 0 | FT12: 0 | FU12: 0 | FV12: 0 | FW12: 0 | FX12: 0 | FY12: 0 | FZ12: 0 | GA12: 0 | GB12: 0 | GC12: 0 | GD12: 0 | GE12: 0 | GF12: 0 | GG12: 0 | GH12: 0 | GI12: 0 | GJ12: 0 | GK12: 0 | GL12: 0 | GM12: 0 | GN12: 0 | GO12: 0 | GP12: 0 | GQ12: 0 | GR12: 0 | GS12: 0 | GT12: 0 | GU12: 0 | GV12: 0 | GW12: 0 | GX12: 0 | GY12: 0 | GZ12: 0 | HA12: 0 | HB12: 0 | HC12: 0 | HD12: 0 | HE12: 0 | HF12: 0 | HG12: 0 | HH12: 0 | HI12: 0 | HJ12: 0 | HK12: 0 | HL12: 0 | HM12: 0 | HN12: 0 | HO12: 0 | HP12: 0 | HQ12: 0 | HR12: 0 | HS12: 0 | HT12: 0 | HU12: 0 | HV12: 0 | HW12: 0 | HX12: 0 | HY12: 0 | HZ12: 0 | IA12: 0 | IB12: 0 | IC12: 0 | ID12: 0 | IE12: 0 | IF12: 0 | IG12: 0 | IH12: 0 | II12: 0 | IJ12: 0 | IK12: 0 | IL12: 0 | IM12: 0 | IN12: 0 | IO12: 0 | IP12: 0 | IQ12: 0 | IR12: 0 | IS12: 0 | IT12: 0 | IU12: 0 | IV12: 0 | IW12: 0 | IX12: 0 | IY12: 0 | IZ12: 0 | JA12: 0 | JB12: 0 | JC12: 0 | JD12: 0 | JE12: 0 | JF12: 0 | JG12: 0 | JH12: 0 | JI12: 0 | JJ12: 0 | JK12: 0 | JL12: 0 | JM12: 0 | JN12: 0 | JO12: 0 | JP12: 0 | JQ12: 0 | JR12: 0 | JS12: 0 | JT12: 0 | JU12: 0 | JV12: 0 | JW12: 0 | JX12: 0 | JY12: 0 | JZ12: 0 | KA12: 0 | KB12: 0 | KC12: 0 | KD12: 0 | KE12: 0 | KF12: 0 | KG12: 0 | KH12: 0 | KI12: 0 | KJ12: 0 | KK12: 0 | KL12: 0 | KM12: 0 | KN12: 0 | KO12: 0 | KP12: 0 | KQ12: 0 | KR12: 0 | KS12: 0 | KT12: 0 | KU12: 0 | KV12: 0 | KW12: 0 | KX12: 0 | KY12: 0 | KZ12: 0 | LA12: 0 | LB12: 0 | LC12: 0 | LD12: 0 | LE12: 0 | LF12: 0 | LG12: 0 | LH12: 0 | LI12: 0 | LJ12: 0 | LK12: 0 | LL12: 0 | LM12: 0 | LN12: 0 | LO12: 0 | LP12: 0 | LQ12: 0 | LR12: 0 | LS12: 0 | LT12: 0 | LU12: 0 | LV12: 0 | LW12: 0 | LX12: 0 | LY12: 0 | LZ12: 0 | MA12: 0 | MB12: 0 | MC12: 0 | MD12: 0 | ME12: 0 | MF12: 0 | MG12: 0 | MH12: 0 | MI12: 0 | MJ12: 0 | MK12: 0 | ML12: 0 | MM12: 0 | MN12: 0 | MO12: 0 | MP12: 0 | MQ12: 0 | MR12: 0 | MS12: 0 | MT12: 0 | MU12: 0 | MV12: 0 | MW12: 0 | MX12: 0 | MY12: 0 | MZ12: 0 | NA12: 0 | NB12: 0 | NC12: 0 | ND12: 0 | NE12: 0 | NF12: 0 | NG12: 0 | NH12: 0 | NI12: 0 | NJ12: 0 | NK12: 0 | NL12: 0 | NM12: 0 | NN12: 0 | NO12: 0 | NP12: 0 | NQ12: 4167 | NR12: 3078 | NS12: 10639 | NT12: 10639 | NU12: 12367 | NV12: 12593 | NW12: 10912 | NX12: 9475 | NY12: 6242 | NZ12: 6792 | OA12: 3874 | OB12: 5817 | OC12: 4080 | OD12: 3899 | OE12: 6909 | OF12: 10691 | OG12: 14964 | OH12: 14212 | OI12: 10013 | OJ12: 14253 | OK12: 8194 | OL12: 7769 | OM12: 4361 | ON12: 4396 | OO12: 4293 | OP12: 6213 | OQ12: 12959 | OR12: 9986 | OS12: 12959 | OT12: 14534 | OU12: 11889 | OV12: 7520 | OW12: 5820 | OX12: 5776 | OY12: 5562 | OZ12: 5063 | PA12: 5068 | PB12: 7100 | PC12: 7811 | PD12: 11200 | PE12: 14637 | PF12: 13580 | PG12: 10023 | PH12: 7771 | PI12: 8427 | PJ12: 5168 | PK12: 4658 | PL12: 2133 | PM12: 3748 | PN12: 2992 | PO12: 7816 | PP12: 9412 | PQ12: 15130 | PR12: 12500 | PS12: 11235 | PT12: 7902 | PU12: 7162 | PV12: 7489 | PW12: 5544 | PX12: 5174 | PY12: 7983 | PZ12: 4491 | QA12: 7642 | QB12: 7853 | QC12: 12998 | QD12: 12243 | QE12: 10418 | QF12: 6268 | QG12: 6059 | QH12: 7051 | QI12: 7862 | QJ12: 6265 | QK12: 3760 | QL12: 6739 | QM12: 10800 | QN12: 13235 | QO12: 11260 | QP12: 14612 | QQ12: 11580 | QR12: 9310 | QS12: 7002 | QT12: 7531 | QU12: 3793 | QV12: 5602 | QW12: 5868 | QX12: 5063 | QY12: 11395 | QZ12: 11239 | RA12: 11104 | RB12: 12860 | RC12: 11975 | RD12: 10301 | RE12: 5639 | RF12: 5406 | RG12: 4646 | RH12: 5102 | RI12: 2910 | RJ12: 4891 | RK12: 8667 | RL12: 10836 | RM12: 11496 | RN12: 11294 | RO12: 9835 | RP12: 7523 | RQ12: 6305 | RR12: 6703 | RS12: 5655 | RT12: 2690 | RU12: 2551 | RV12: 4288 | RW12: 7631 | RX12: 9056 | RY12: 13326 | RZ12: 14023 | SA12: 9995 | SB12: 7968 | SC12: 5524 | SD12: 5354 | SE12: 3933 | SF12: 3899 | SG12: 2508 | SH12: 2780 | SI12: 7005 | SJ12: 10584 | SK12: 8965 | SL12: 10223 | SM12: 5880 | SN12: 6494 | SO12: 3347 | SP12: 3980 | SQ12: 4562 | SR12: 2033 | SS12: 4080 | ST12: 6485 | SU12: 6311 | SV12: 7276 | SW12: 10996 | SX12: 8813 | SY12: 3611 | SZ12: 3803 | TA12: 2292 | TB12: 5384 | TC12: 2442 | TD12: 3957 | TE12: 2995 | TF12: 4160 | TG12: 7026 | TH12: 9301 | TI12: 9672 | TJ12: 8961 | TK12: 5642 | TL12: 4466 | TM12: 5477 | TN12: 1501 | TO12: 2150 | TP12: 1358 | TQ12: 2040 | TR12: 4318 | TS12: 5011 | TT12: 5825 | TU12: 6273 | TV12: 9689 | TW12: 3821 | TX12: 3734 | TY12: 2599 | TZ12: 4374 | UA12: 4507 | UB12: 3326 | UC12: 672 | UD12: 2826 | UE12: 4570 | UF12: 6064 | UG12: 7656 | UH12: 7434 | UI12: 4863 | UJ12: 6650 | UK12: 2912 | UL12: 2926 | UM12: 2203 | UN12: 5761 | UO12: 4746 | UP12: 3353 | UQ12: 8012 | UR12: 7370 | US12: 8344 | UT12: 8430 | UU12: 7075 | UV12: 5651 | UW12: 2546 | UX12: 3421 | UY12: 2952 | UZ12: 3758 | VA12: 0 | VB12: 0 | VC12: 0 | VD12: 0 | VE12: 0 | VF12: 0 | VG12: 0 | VH12: 0 | VI12: 0 | VJ12: 0 | VK12: 0
A13: 192 | B13: 649972.53 | C13: 50822 | D13: Mojave 17 | E13: WT | F13: CA | I13: 0 | J13: 0 | K13: 0 | L13: 0 | M13: 0 | N13: 0 | O13: 0 | P13: 0 | Q13: 0 | R13: 0 | S13: 0 | T13: 0 | U13: 0 | V13: 0 | W13: 0 | X13: 0 | Y13: 0 | Z13: 0 | AA13: 0 | AB13: 0 | AC13: 0 | AD13: 0 | AE13: 0 | AF13: 0 | AG13: 0 | AH13: 0 | AI13: 0 | AJ13: 0 | AK13: 0 | AL13: 0 | AM13: 0 | AN13: 0 | AO13: 0 | AP13: 0 | AQ13: 0 | AR13: 0 | AS13: 0 | AT13: 0 | AU13: 0 | AV13: 0 | AW13: 0 | AX13: 0 | AY13: 0 | AZ13: 0 | BA13: 0 | BB13: 0 | BC13: 0 | BD13: 0 | BE13: 0 | BF13: 0 | BG13: 0 | BH13: 0 | BI13: 0 | BJ13: 0 | BK13: 0 | BL13: 0 | BM13: 0 | BN13: 0 | BO13: 0 | BP13: 0 | BQ13: 0 | BR13: 0 | BS13: 0 | BT13: 0 | BU13: 0 | BV13: 0 | BW13: 0 | BX13: 0 | BY13: 0 | BZ13: 0 | CA13: 0 | CB13: 0 | CC13: 0 | CD13: 0 | CE13: 0 | CF13: 0 | CG13: 0 | CH13: 0 | CI13: 0 | CJ13: 0 | CK13: 0 | CL13: 0 | CM13: 0 | CN13: 0 | CO13: 0 | CP13: 0 | CQ13: 0 | CR13: 0 | CS13: 0 | CT13: 0 | CU13: 0 | CV13: 0 | CW13: 0 | CX13: 0 | CY13: 0 | CZ13: 0 | DA13: 0 | DB13: 0 | DC13: 0 | DD13: 0 | DE13: 0 | DF13: 0 | DG13: 0 | DH13: 0 | DI13: 0 | DJ13: 0 | DK13: 0 | DL13: 0 | DM13: 0 | DN13: 0 | DO13: 0 | DP13: 0 | DQ13: 0 | DR13: 0 | DS13: 0 | DT13: 0 | DU13: 0 | DV13: 0 | DW13: 0 | DX13: 0 | DY13: 0 | DZ13: 0 | EA13: 0 | EB13: 0 | EC13: 0 | ED13: 0 | EE13: 0 | EF13: 0 | EG13: 0 | EH13: 0 | EI13: 0 | EJ13: 0 | EK13: 0 | EL13: 0 | EM13: 0 | EN13: 0 | EO13: 0 | EP13: 0 | EQ13: 0 | ER13: 0 | ES13: 0 | ET13: 0 | EU13: 0 | EV13: 0 | EW13: 0 | EX13: 0 | EY13: 0 | EZ13: 0 | FA13: 0 | FB13: 0 | FC13: 0 | FD13: 0 | FE13: 0 | FF13: 0 | FG13: 0 | FH13: 0 | FI13: 0 | FJ13: 0 | FK13: 0 | FL13: 0 | FM13: 0 | FN13: 0 | FO13: 0 | FP13: 0 | FQ13: 0 | FR13: 0 | FS13: 0 | FT13: 0 | FU13: 0 | FV13: 0 | FW13: 0 | FX13: 0 | FY13: 0 | FZ13: 0 | GA13: 0 | GB13: 0 | GC13: 0 | GD13: 0 | GE13: 0 | GF13: 0 | GG13: 0 | GH13: 0 | GI13: 0 | GJ13: 0 | GK13: 0 | GL13: 0 | GM13: 0 | GN13: 0 | GO13: 0 | GP13: 0 | GQ13: 0 | GR13: 0 | GS13: 0 | GT13: 0 | GU13: 0 | GV13: 0 | GW13: 0 | GX13: 0 | GY13: 0 | GZ13: 0 | HA13: 0 | HB13: 0 | HC13: 0 | HD13: 0 | HE13: 0 | HF13: 0 | HG13: 0 | HH13: 0 | HI13: 0 | HJ13: 0 | HK13: 0 | HL13: 0 | HM13: 0 | HN13: 0 | HO13: 0 | HP13: 0 | HQ13: 0 | HR13: 0 | HS13: 0 | HT13: 0 | HU13: 0 | HV13: 0 | HW13: 0 | HX13: 0 | HY13: 0 | HZ13: 0 | IA13: 0 | IB13: 0 | IC13: 0 | ID13: 0 | IE13: 0 | IF13: 0 | IG13: 0 | IH13: 0 | II13: 0 | IJ13: 0 | IK13: 0 | IL13: 0 | IM13: 0 | IN13: 0 | IO13: 0 | IP13: 0 | IQ13: 0 | IR13: 0 | IS13: 0 | IT13: 0 | IU13: 0 | IV13: 0 | IW13: 0 | IX13: 0 | IY13: 0 | IZ13: 0 | JA13: 0 | JB13: 0 | JC13: 0 | JD13: 0 | JE13: 0 | JF13: 0 | JG13: 0 | JH13: 0 | JI13: 0 | JJ13: 0 | JK13: 0 | JL13: 0 | JM13: 0 | JN13: 0 | JO13: 0 | JP13: 0 | JQ13: 0 | JR13: 0 | JS13: 0 | JT13: 0 | JU13: 0 | JV13: 0 | JW13: 0 | JX13: 0 | JY13: 0 | JZ13: 0 | KA13: 0 | KB13: 0 | KC13: 0 | KD13: 0 | KE13: 0 | KF13: 0 | KG13: 0 | KH13: 0 | KI13: 0 | KJ13: 0 | KK13: 0 | KL13: 0 | KM13: 0 | KN13: 0 | KO13: 0 | KP13: 0 | KQ13: 0 | KR13: 0 | KS13: 0 | KT13: 0 | KU13: 0 | KV13: 0 | KW13: 0 | KX13: 0 | KY13: 0 | KZ13: 0 | LA13: 0 | LB13: 0 | LC13: 0 | LD13: 0 | LE13: 0 | LF13: 0 | LG13: 0 | LH13: 0 | LI13: 0 | LJ13: 0 | LK13: 0 | LL13: 0 | LM13: 0 | LN13: 0 | LO13: 0 | LP13: 0 | LQ13: 0 | LR13: 0 | LS13: 0 | LT13: 0 | LU13: 0 | LV13: 0 | LW13: 0 | LX13: 0 | LY13: 0 | LZ13: 0 | MA13: 0 | MB13: 0 | MC13: 0 | MD13: 0 | ME13: 0 | MF13: 0 | MG13: 0 | MH13: 0 | MI13: 0 | MJ13: 0 | MK13: 0 | ML13: 0 | MM13: 0 | MN13: 0 | MO13: 0 | MP13: 0 | MQ13: 0 | MR13: 0 | MS13: 0 | MT13: 0 | MU13: 0 | MV13: 0 | MW13: 0 | MX13: 0 | MY13: 0 | MZ13: 0 | NA13: 0 | NB13: 0 | NC13: 0 | ND13: 0 | NE13: 0 | NF13: 0 | NG13: 0 | NH13: 0 | NI13: 0 | NJ13: 0 | NK13: 0 | NL13: 0 | NM13: 0 | NN13: 0 | NO13: 0 | NP13: 0 | NQ13: 1273 | NR13: 1551 | NS13: 5566 | NT13: 5785 | NU13: 6399 | NV13: 6757 | NW13: 4826 | NX13: 5230 | NY13: 2987 | NZ13: 3725 | OA13: 1827 | OB13: 3695 | OC13: 2382.93 | OD13: 1865.16 | OE13: 3907.53 | OF13: 6299.37 | OG13: 8168 | OH13: 7488.36 | OI13: 4858.92 | OJ13: 7091.37 | OK13: 2664.09 | OL13: 4093.65 | OM13: 1415.7 | ON13: 1793.88 | OO13: 1413 | OP13: 2654.19 | OQ13: 4614.39 | OR13: 4004.55 | OS13: 5666 | OT13: 6668.64 | OU13: 6197.4 | OV13: 3683.79 | OW13: 2843.28 | OX13: 3715.47 | OY13: 1981.98 | OZ13: 2288.88 | PA13: 2386 | PB13: 3310 | PC13: 3585 | PD13: 5576 | PE13: 8112 | PF13: 8305 | PG13: 4581 | PH13: 3665 | PI13: 4187 | PJ13: 3011 | PK13: 1855 | PL13: 531 | PM13: 1224 | PN13: 810 | PO13: 3000 | PP13: 4670 | PQ13: 7395 | PR13: 5684 | PS13: 5230 | PT13: 2789 | PU13: 2824 | PV13: 3122 | PW13: 2380 | PX13: 1484 | PY13: 2998 | PZ13: 2037 | QA13: 3240 | QB13: 3347 | QC13: 6571 | QD13: 5777 | QE13: 4697 | QF13: 1815 | QG13: 2112 | QH13: 3055 | QI13: 3729 | QJ13: 2627 | QK13: 1627 | QL13: 3077 | QM13: 5199 | QN13: 6926 | QO13: 5692 | QP13: 6023 | QQ13: 4906 | QR13: 3223 | QS13: 2789 | QT13: 3240 | QU13: 1691 | QV13: 2795 | QW13: 2103.62 | QX13: 2037.236 | QY13: 3493.741 | QZ13: 4178.758 | RA13: 5358.984 | RB13: 5120.414 | RC13: 5432.067 | RD13: 5027.158 | RE13: 3149.46 | RF13: 2310.633 | RG13: 1728.403 | RH13: 1868.526 | RI13: 1114.166 | RJ13: 1816.928 | RK13: 3288.597 | RL13: 4465.295 | RM13: 5190.484 | RN13: 6288.867 | RO13: 6494.893 | RP13: 5010.328 | RQ13: 3542.877 | RR13: 3004.499 | RS13: 1743.425 | RT13: 1263.641 | RU13: 1038.69 | RV13: 1525.841 | RW13: 2754.386 | RX13: 3771.355 | RY13: 4753.716 | RZ13: 5989.092 | SA13: 6384.264 | SB13: 5048.554 | SC13: 3803.318 | SD13: 2566.841 | SE13: 2104.44 | SF13: 2233.503 | SG13: 1098.59 | SH13: 2011.18 | SI13: 2861.418 | SJ13: 4491.796 | SK13: 4800.107 | SL13: 4772.579 | SM13: 4065.579 | SN13: 4248.19 | SO13: 2443.752 | SP13: 1944.878 | SQ13: 2004.257 | SR13: 1478.674 | SS13: 1062.627 | ST13: 1629.386 | SU13: 2081.669 | SV13: 2155.886 | SW13: 3686.043 | SX13: 3812.469 | SY13: 2801.813 | SZ13: 2799.186 | TA13: 1949.294 | TB13: 2171.137 | TC13: 1090.466 | TD13: 1897.024 | TE13: 1814 | TF13: 2607 | TG13: 4114 | TH13: 6407 | TI13: 6486 | TJ13: 6277 | TK13: 3372 | TL13: 2570 | TM13: 3562 | TN13: 2154 | TO13: 1826 | TP13: 123 | TQ13: 1653 | TR13: 2136 | TS13: 1765 | TT13: 4015 | TU13: 5390 | TV13: 5806 | TW13: 2046 | TX13: 2225 | TY13: 1306 | TZ13: 2340 | UA13: 2124 | UB13: 1121 | UC13: 195 | UD13: 1137 | UE13: 2617 | UF13: 2792 | UG13: 3608 | UH13: 4262 | UI13: 2005 | UJ13: 3946 | UK13: 1512 | UL13: 1659 | UM13: 1788 | UN13: 1659 | UO13: 1463 | UP13: 1706 | UQ13: 3873 | UR13: 3698 | US13: 4102 | UT13: 5127 | UU13: 3869 | UV13: 2751 | UW13: 1533 | UX13: 1889 | UY13: 1303 | UZ13: 1584 | VA13: 0 | VB13: 0 | VC13: 0 | VD13: 0 | VE13: 0 | VF13: 0 | VG13: 0 | VH13: 0 | VI13: 0 | VJ13: 0 | VK13: 0
A14: 191 | B14: 240944 | C14: 7366 | D14: Lincoln Turbines | E14: WT | F14: WI | I14: 0 | J14: 0 | K14: 0 | L14: 0 | M14: 0 | N14: 0 | O14: 0 | P14: 0 | Q14: 0 | R14: 0 | S14: 0 | T14: 0 | U14: 0 | V14: 0 | W14: 0 | X14: 0 | Y14: 0 | Z14: 0 | AA14: 0 | AB14: 0 | AC14: 0 | AD14: 0 | AE14: 0 | AF14: 0 | AG14: 0 | AH14: 0 | AI14: 0 | AJ14: 0 | AK14: 0 | AL14: 0 | AM14: 0 | AN14: 0 | AO14: 0 | AP14: 0 | AQ14: 0 | AR14: 0 | AS14: 0 | AT14: 0 | AU14: 0 | AV14: 0 | AW14: 0 | AX14: 0 | AY14: 0 | AZ14: 0 | BA14: 0 | BB14: 0 | BC14: 0 | BD14: 0 | BE14: 0 | BF14: 0 | BG14: 0 | BH14: 0 | BI14: 0 | BJ14: 0 | BK14: 0 | BL14: 0 | BM14: 0 | BN14: 0 | BO14: 0 | BP14: 0 | BQ14: 0 | BR14: 0 | BS14: 0 | BT14: 0 | BU14: 0 | BV14: 0 | BW14: 0 | BX14: 0 | BY14: 0 | BZ14: 0 | CA14: 0 | CB14: 0 | CC14: 0 | CD14: 0 | CE14: 0 | CF14: 0 | CG14: 0 | CH14: 0 | CI14: 0 | CJ14: 0 | CK14: 0 | CL14: 0 | CM14: 0 | CN14: 0 | CO14: 0 | CP14: 0 | CQ14: 0 | CR14: 0 | CS14: 0 | CT14: 0 | CU14: 0 | CV14: 0 | CW14: 0 | CX14: 0 | CY14: 0 | CZ14: 0 | DA14: 0 | DB14: 0 | DC14: 0 | DD14: 0 | DE14: 0 | DF14: 0 | DG14: 0 | DH14: 0 | DI14: 0 | DJ14: 0 | DK14: 0 | DL14: 0 | DM14: 0 | DN14: 0 | DO14: 0 | DP14: 0 | DQ14: 0 | DR14: 0 | DS14: 0 | DT14: 0 | DU14: 0 | DV14: 0 | DW14: 0 | DX14: 0 | DY14: 0 | DZ14: 0 | EA14: 0 | EB14: 0 | EC14: 0 | ED14: 0 | EE14: 0 | EF14: 0 | EG14: 0 | EH14: 0 | EI14: 0 | EJ14: 0 | EK14: 0 | EL14: 0 | EM14: 0 | EN14: 0 | EO14: 0 | EP14: 0 | EQ14: 0 | ER14: 0 | ES14: 0 | ET14: 0 | EU14: 0 | EV14: 0 | EW14: 0 | EX14: 0 | EY14: 0 | EZ14: 0 | FA14: 0 | FB14: 0 | FC14: 0 | FD14: 0 | FE14: 0 | FF14: 0 | FG14: 0 | FH14: 0 | FI14: 0 | FJ14: 0 | FK14: 0 | FL14: 0 | FM14: 0 | FN14: 0 | FO14: 0 | FP14: 0 | FQ14: 0 | FR14: 0 | FS14: 0 | FT14: 0 | FU14: 0 | FV14: 0 | FW14: 0 | FX14: 0 | FY14: 0 | FZ14: 0 | GA14: 0 | GB14: 0 | GC14: 0 | GD14: 0 | GE14: 0 | GF14: 0 | GG14: 0 | GH14: 0 | GI14: 0 | GJ14: 0 | GK14: 0 | GL14: 0 | GM14: 0 | GN14: 0 | GO14: 0 | GP14: 0 | GQ14: 0 | GR14: 0 | GS14: 0 | GT14: 0 | GU14: 0 | GV14: 0 | GW14: 0 | GX14: 0 | GY14: 0 | GZ14: 0 | HA14: 0 | HB14: 0 | HC14: 0 | HD14: 0 | HE14: 0 | HF14: 0 | HG14: 0 | HH14: 0 | HI14: 0 | HJ14: 0 | HK14: 0 | HL14: 0 | HM14: 0 | HN14: 0 | HO14: 0 | HP14: 0 | HQ14: 0 | HR14: 0 | HS14: 0 | HT14: 0 | HU14: 0 | HV14: 0 | HW14: 0 | HX14: 0 | HY14: 0 | HZ14: 0 | IA14: 0 | IB14: 0 | IC14: 0 | ID14: 0 | IE14: 0 | IF14: 0 | IG14: 0 | IH14: 0 | II14: 0 | IJ14: 0 | IK14: 0 | IL14: 0 | IM14: 0 | IN14: 0 | IO14: 0 | IP14: 0 | IQ14: 0 | IR14: 0 | IS14: 0 | IT14: 0 | IU14: 0 | IV14: 0 | IW14: 0 | IX14: 0 | IY14: 0 | IZ14: 0 | JA14: 0 | JB14: 0 | JC14: 0 | JD14: 0 | JE14: 0 | JF14: 0 | JG14: 0 | JH14: 0 | JI14: 0 | JJ14: 0 | JK14: 0 | JL14: 0 | JM14: 0 | JN14: 0 | JO14: 0 | JP14: 0 | JQ14: 0 | JR14: 0 | JS14: 0 | JT14: 0 | JU14: 0 | JV14: 0 | JW14: 0 | JX14: 0 | JY14: 0 | JZ14: 0 | KA14: 0 | KB14: 0 | KC14: 0 | KD14: 0 | KE14: 0 | KF14: 0 | KG14: 0 | KH14: 0 | KI14: 0 | KJ14: 0 | KK14: 0 | KL14: 0 | KM14: 0 | KN14: 0 | KO14: 0 | KP14: 0 | KQ14: 0 | KR14: 0 | KS14: 0 | KT14: 0 | KU14: 0 | KV14: 0 | KW14: 0 | KX14: 0 | KY14: 0 | KZ14: 0 | LA14: 0 | LB14: 0 | LC14: 0 | LD14: 0 | LE14: 0 | LF14: 0 | LG14: 0 | LH14: 0 | LI14: 0 | LJ14: 0 | LK14: 0 | LL14: 0 | LM14: 0 | LN14: 0 | LO14: 0 | LP14: 0 | LQ14: 0 | LR14: 0 | LS14: 0 | LT14: 0 | LU14: 0 | LV14: 0 | LW14: 0 | LX14: 0 | LY14: 0 | LZ14: 0 | MA14: 0 | MB14: 0 | MC14: 0 | MD14: 0 | ME14: 0 | MF14: 0 | MG14: 0 | MH14: 0 | MI14: 0 | MJ14: 0 | MK14: 0 | ML14: 0 | MM14: 0 | MN14: 0 | MO14: 0 | MP14: 0 | MQ14: 0 | MR14: 0 | MS14: 0 | MT14: 0 | MU14: 0 | MV14: 0 | MW14: 0 | MX14: 0 | MY14: 0 | MZ14: 0 | NA14: 0 | NB14: 0 | NC14: 0 | ND14: 0 | NE14: 0 | NF14: 0 | NG14: 0 | NH14: 0 | NI14: 0 | NJ14: 0 | NK14: 0 | NL14: 0 | NM14: 0 | NN14: 0 | NO14: 0 | NP14: 0 | NQ14: 1816 | NR14: 1653 | NS14: 1350 | NT14: 1855 | NU14: 1854 | NV14: 32 | NW14: 551 | NX14: 755 | NY14: 1138 | NZ14: 2058 | OA14: 1883 | OB14: 1847 | OC14: 1976 | OD14: 2355 | OE14: 1950 | OF14: 1687 | OG14: 1085 | OH14: 788 | OI14: 756 | OJ14: 803 | OK14: 1139 | OL14: 1225 | OM14: 1481 | ON14: 2301 | OO14: 2131 | OP14: 1574 | OQ14: 1484 | OR14: 1586 | OS14: 1150 | OT14: 683 | OU14: 922 | OV14: 603 | OW14: 1263 | OX14: 1251 | OY14: 1926 | OZ14: 1851 | PA14: 1932 | PB14: 1429 | PC14: 1914 | PD14: 1270 | PE14: 1008 | PF14: 928 | PG14: 531 | PH14: 902 | PI14: 1119 | PJ14: 1835 | PK14: 1257 | PL14: 2307 | PM14: 1313 | PN14: 1141 | PO14: 1468 | PP14: 1236 | PQ14: 1126 | PR14: 918 | PS14: 705 | PT14: 171 | PU14: 1548 | PV14: 1002 | PW14: 1878 | PX14: 1522 | PY14: 1558 | PZ14: 1692 | QA14: 1276 | QB14: 1514 | QC14: 1230 | QD14: 639 | QE14: 795 | QF14: 590 | QG14: 1041 | QH14: 1771 | QI14: 1058 | QJ14: 2054 | QK14: 1746 | QL14: 1958 | QM14: 1849 | QN14: 1782 | QO14: 1479 | QP14: 963 | QQ14: 758 | QR14: 636 | QS14: 1435 | QT14: 1881 | QU14: 2088 | QV14: 1441 | QW14: 1897 | QX14: 1201 | QY14: 1336 | QZ14: 1897 | RA14: 1285 | RB14: 1035 | RC14: 888 | RD14: 583 | RE14: 820 | RF14: 1513 | RG14: 1547 | RH14: 1922 | RI14: 1597 | RJ14: 1967 | RK14: 1885 | RL14: 1567 | RM14: 1666 | RN14: 743 | RO14: 180 | RP14: 0 | RQ14: 545 | RR14: 1342 | RS14: 1021 | RT14: 1457 | RU14: 1976 | RV14: 275 | RW14: 1044 | RX14: 1754 | RY14: 1119 | RZ14: 313 | SA14: 703 | SB14: 836 | SC14: 1199 | SD14: 1045 | SE14: 1913 | SF14: 1671 | SG14: 1032 | SH14: 1716 | SI14: 1137 | SJ14: 1319 | SK14: 1351 | SL14: 1000 | SM14: 622 | SN14: 625 | SO14: 904 | SP14: 1474 | SQ14: 1627 | SR14: 1370 | SS14: 1955 | ST14: 1522 | SU14: 1675 | SV14: 1050 | SW14: 1052 | SX14: 932 | SY14: 486 | SZ14: 719 | TA14: 870 | TB14: 1719 | TC14: 1164 | TD14: 1310 | TE14: 2186 | TF14: 1315 | TG14: 1419 | TH14: 1536 | TI14: 1116 | TJ14: 485 | TK14: 688 | TL14: 580 | TM14: 739 | TN14: 1129 | TO14: 2008 | TP14: 1423 | TQ14: 1920 | TR14: 1600 | TS14: 1174 | TT14: 1337 | TU14: 794 | TV14: 780 | TW14: 822 | TX14: 272 | TY14: 739 | TZ14: 1424 | UA14: 1555 | UB14: 1193 | UC14: 979 | UD14: 1290 | UE14: 1326 | UF14: 1342 | UG14: 1314 | UH14: 482 | UI14: 743 | UJ14: 702 | UK14: 539 | UL14: 1583 | UM14: 1565 | UN14: 1305 | UO14: 1017 | UP14: 1526 | UQ14: 1047 | UR14: 1023 | US14: 891 | UT14: 742 | UU14: 743 | UV14: 460 | UW14: 968 | UX14: 870 | UY14: 1477 | UZ14: 1947 | VA14: 0 | VB14: 0 | VC14: 0 | VD14: 0 | VE14: 0 | VF14: 0 | VG14: 0 | VH14: 0 | VI14: 0 | VJ14: 0 | VK14: 0
A15: 191 | B15: 590363.001 | C15: 50535 | D15: Mesa Wind Power Corp | E15: WT | F15: CA | I15: 0 | J15: 0 | K15: 0 | L15: 0 | M15: 0 | N15: 0 | O15: 0 | P15: 0 | Q15: 0 | R15: 0 | S15: 0 | T15: 0 | U15: 0 | V15: 0 | W15: 0 | X15: 0 | Y15: 0 | Z15: 0 | AA15: 0 | AB15: 0 | AC15: 0 | AD15: 0 | AE15: 0 | AF15: 0 | AG15: 0 | AH15: 0 | AI15: 0 | AJ15: 0 | AK15: 0 | AL15: 0 | AM15: 0 | AN15: 0 | AO15: 0 | AP15: 0 | AQ15: 0 | AR15: 0 | AS15: 0 | AT15: 0 | AU15: 0 | AV15: 0 | AW15: 0 | AX15: 0 | AY15: 0 | AZ15: 0 | BA15: 0 | BB15: 0 | BC15: 0 | BD15: 0 | BE15: 0 | BF15: 0 | BG15: 0 | BH15: 0 | BI15: 0 | BJ15: 0 | BK15: 0 | BL15: 0 | BM15: 0 | BN15: 0 | BO15: 0 | BP15: 0 | BQ15: 0 | BR15: 0 | BS15: 0 | BT15: 0 | BU15: 0 | BV15: 0 | BW15: 0 | BX15: 0 | BY15: 0 | BZ15: 0 | CA15: 0 | CB15: 0 | CC15: 0 | CD15: 0 | CE15: 0 | CF15: 0 | CG15: 0 | CH15: 0 | CI15: 0 | CJ15: 0 | CK15: 0 | CL15: 0 | CM15: 0 | CN15: 0 | CO15: 0 | CP15: 0 | CQ15: 0 | CR15: 0 | CS15: 0 | CT15: 0 | CU15: 0 | CV15: 0 | CW15: 0 | CX15: 0 | CY15: 0 | CZ15: 0 | DA15: 0 | DB15: 0 | DC15: 0 | DD15: 0 | DE15: 0 | DF15: 0 | DG15: 0 | DH15: 0 | DI15: 0 | DJ15: 0 | DK15: 0 | DL15: 0 | DM15: 0 | DN15: 0 | DO15: 0 | DP15: 0 | DQ15: 0 | DR15: 0 | DS15: 0 | DT15: 0 | DU15: 0 | DV15: 0 | DW15: 0 | DX15: 0 | DY15: 0 | DZ15: 0 | EA15: 0 | EB15: 0 | EC15: 0 | ED15: 0 | EE15: 0 | EF15: 0 | EG15: 0 | EH15: 0 | EI15: 0 | EJ15: 0 | EK15: 0 | EL15: 0 | EM15: 0 | EN15: 0 | EO15: 0 | EP15: 0 | EQ15: 0 | ER15: 0 | ES15: 0 | ET15: 0 | EU15: 0 | EV15: 0 | EW15: 0 | EX15: 0 | EY15: 0 | EZ15: 0 | FA15: 0 | FB15: 0 | FC15: 0 | FD15: 0 | FE15: 0 | FF15: 0 | FG15: 0 | FH15: 0 | FI15: 0 | FJ15: 0 | FK15: 0 | FL15: 0 | FM15: 0 | FN15: 0 | FO15: 0 | FP15: 0 | FQ15: 0 | FR15: 0 | FS15: 0 | FT15: 0 | FU15: 0 | FV15: 0 | FW15: 0 | FX15: 0 | FY15: 0 | FZ15: 0 | GA15: 0 | GB15: 0 | GC15: 0 | GD15: 0 | GE15: 0 | GF15: 0 | GG15: 0 | GH15: 0 | GI15: 0 | GJ15: 0 | GK15: 0 | GL15: 0 | GM15: 0 | GN15: 0 | GO15: 0 | GP15: 0 | GQ15: 0 | GR15: 0 | GS15: 0 | GT15: 0 | GU15: 0 | GV15: 0 | GW15: 0 | GX15: 0 | GY15: 0 | GZ15: 0 | HA15: 0 | HB15: 0 | HC15: 0 | HD15: 0 | HE15: 0 | HF15: 0 | HG15: 0 | HH15: 0 | HI15: 0 | HJ15: 0 | HK15: 0 | HL15: 0 | HM15: 0 | HN15: 0 | HO15: 0 | HP15: 0 | HQ15: 0 | HR15: 0 | HS15: 0 | HT15: 0 | HU15: 0 | HV15: 0 | HW15: 0 | HX15: 0 | HY15: 0 | HZ15: 0 | IA15: 0 | IB15: 0 | IC15: 0 | ID15: 0 | IE15: 0 | IF15: 0 | IG15: 0 | IH15: 0 | II15: 0 | IJ15: 0 | IK15: 0 | IL15: 0 | IM15: 0 | IN15: 0 | IO15: 0 | IP15: 0 | IQ15: 0 | IR15: 0 | IS15: 0 | IT15: 0 | IU15: 0 | IV15: 0 | IW15: 0 | IX15: 0 | IY15: 0 | IZ15: 0 | JA15: 0 | JB15: 0 | JC15: 0 | JD15: 0 | JE15: 0 | JF15: 0 | JG15: 0 | JH15: 0 | JI15: 0 | JJ15: 0 | JK15: 0 | JL15: 0 | JM15: 0 | JN15: 0 | JO15: 0 | JP15: 0 | JQ15: 0 | JR15: 0 | JS15: 0 | JT15: 0 | JU15: 0 | JV15: 0 | JW15: 0 | JX15: 0 | JY15: 0 | JZ15: 0 | KA15: 0 | KB15: 0 | KC15: 0 | KD15: 0 | KE15: 0 | KF15: 0 | KG15: 0 | KH15: 0 | KI15: 0 | KJ15: 0 | KK15: 0 | KL15: 0 | KM15: 0 | KN15: 0 | KO15: 0 | KP15: 0 | KQ15: 0 | KR15: 0 | KS15: 0 | KT15: 0 | KU15: 0 | KV15: 0 | KW15: 0 | KX15: 0 | KY15: 0 | KZ15: 0 | LA15: 0 | LB15: 0 | LC15: 0 | LD15: 0 | LE15: 0 | LF15: 0 | LG15: 0 | LH15: 0 | LI15: 0 | LJ15: 0 | LK15: 0 | LL15: 0 | LM15: 0 | LN15: 0 | LO15: 0 | LP15: 0 | LQ15: 0 | LR15: 0 | LS15: 0 | LT15: 0 | LU15: 0 | LV15: 0 | LW15: 0 | LX15: 0 | LY15: 0 | LZ15: 0 | MA15: 0 | MB15: 0 | MC15: 0 | MD15: 0 | ME15: 0 | MF15: 0 | MG15: 0 | MH15: 0 | MI15: 0 | MJ15: 0 | MK15: 0 | ML15: 0 | MM15: 0 | MN15: 0 | MO15: 0 | MP15: 0 | MQ15: 0 | MR15: 0 | MS15: 0 | MT15: 0 | MU15: 0 | MV15: 0 | MW15: 0 | MX15: 0 | MY15: 0 | MZ15: 0 | NA15: 0 | NB15: 0 | NC15: 0 | ND15: 0 | NE15: 0 | NF15: 0 | NG15: 0 | NH15: 0 | NI15: 0 | NJ15: 0 | NK15: 0 | NL15: 0 | NM15: 0 | NN15: 0 | NO15: 0 | NP15: 0 | NQ15: 1895 | NR15: 2983 | NS15: 3171 | NT15: 6270 | NU15: 4069 | NV15: 5373 | NW15: 5158 | NX15: 3146 | NY15: 2878 | NZ15: 2098 | OA15: 2252 | OB15: 2283 | OC15: 1634 | OD15: 2222 | OE15: 4146 | OF15: 6128 | OG15: 5737 | OH15: 6637 | OI15: 4313 | OJ15: 4595 | OK15: 3135 | OL15: 3769 | OM15: 2363 | ON15: 2730 | OO15: 1445 | OP15: 2426 | OQ15: 3643 | OR15: 6021 | OS15: 5082 | OT15: 4457 | OU15: 4926 | OV15: 2688 | OW15: 3867 | OX15: 4926 | OY15: 2688 | OZ15: 3867 | PA15: 1069.609 | PB15: 1662.062 | PC15: 2365.71 | PD15: 3282.962 | PE15: 5210.585 | PF15: 5612.256 | PG15: 4835.268 | PH15: 4042.125 | PI15: 2947.864 | PJ15: 2130.15 | PK15: 1276.188 | PL15: 965.221 | PM15: 2416.509 | PN15: 1809.334 | PO15: 3189.079 | PP15: 3632.07 | PQ15: 3741.389 | PR15: 4179.219 | PS15: 3348.775 | PT15: 2592.888 | PU15: 3078.874 | PV15: 2829.359 | PW15: 2505.004 | PX15: 2486.5 | PY15: 1493.02 | PZ15: 1186.622 | QA15: 1659.21 | QB15: 1782.579 | QC15: 1821.45 | QD15: 1688.856 | QE15: 1563.376 | QF15: 1311.202 | QG15: 1437.43 | QH15: 1780.762 | QI15: 1755.9 | QJ15: 1586.593 | QK15: 2439.377 | QL15: 3221.792 | QM15: 4648.878 | QN15: 6416.209 | QO15: 7677.014 | QP15: 7668.087 | QQ15: 7072.82 | QR15: 6288.962 | QS15: 5090.068 | QT15: 3658.351 | QU15: 1971.816 | QV15: 2442.627 | QW15: 2616.329 | QX15: 2533.767 | QY15: 4345.261 | QZ15: 5197.236 | RA15: 6665.116 | RB15: 6368.399 | RC15: 6756.011 | RD15: 6252.414 | RE15: 3917.07 | RF15: 2873.798 | RG15: 2149.662 | RH15: 2323.937 | RI15: 1350.692 | RJ15: 2202.642 | RK15: 3986.732 | RL15: 5413.23 | RM15: 6292.369 | RN15: 7623.927 | RO15: 7873.691 | RP15: 6073.967 | RQ15: 4294.993 | RR15: 3642.322 | RS15: 2113.536 | RT15: 1531.899 | RU15: 1325.669 | RV15: 1947.416 | RW15: 3515.396 | RX15: 4813.343 | RY15: 6067.12 | RZ15: 7643.819 | SA15: 8148.173 | SB15: 6443.419 | SC15: 4854.138 | SD15: 3276.034 | SE15: 2685.875 | SF15: 2850.598 | SG15: 1605.102 | SH15: 2938.452 | SI15: 4180.699 | SJ15: 6562.777 | SK15: 7013.238 | SL15: 6973.017 | SM15: 5940.048 | SN15: 6206.854 | SO15: 3570.465 | SP15: 2841.581 | SQ15: 2928.337 | SR15: 2160.43 | SS15: 1735.945 | ST15: 2661.824 | SU15: 3400.691 | SV15: 3521.935 | SW15: 6021.655 | SX15: 6228.19 | SY15: 4577.145 | SZ15: 4572.853 | TA15: 3184.438 | TB15: 3546.85 | TC15: 1781.426 | TD15: 3099.048 | TE15: 1168 | TF15: 2581 | TG15: 5253 | TH15: 6000 | TI15: 6675 | TJ15: 6501 | TK15: 1258 | TL15: 0 | TM15: 12 | TN15: 49 | TO15: 82 | TP15: 92 | TQ15: 98 | TR15: 357 | TS15: 347 | TT15: 448 | TU15: 655 | TV15: 768 | TW15: 512 | TX15: 347 | TY15: 412 | TZ15: 287 | UA15: 645 | UB15: 131 | UC15: 42 | UD15: 807 | UE15: 667 | UF15: 1415 | UG15: 2226 | UH15: 1607 | UI15: 994 | UJ15: 559 | UK15: 264 | UL15: 166 | UM15: 299 | UN15: 262 | UO15: 349 | UP15: 163 | UQ15: 728 | UR15: 775 | US15: 1337 | UT15: 739 | UU15: 975 | UV15: 523 | UW15: 497 | UX15: 596 | UY15: 225 | UZ15: 354 | VA15: 0 | VB15: 0 | VC15: 0 | VD15: 0 | VE15: 0 | VF15: 0 | VG15: 0 | VH15: 0 | VI15: 0 | VJ15: 0 | VK15: 0
A16: 191 | B16: 2828670 | C16: 50536 | D16: Sky River LLC | E16: WT | F16: CA | I16: 0 | J16: 0 | K16: 0 | L16: 0 | M16: 0 | N16: 0 | O16: 0 | P16: 0 | Q16: 0 | R16: 0 | S16: 0 | T16: 0 | U16: 0 | V16: 0 | W16: 0 | X16: 0 | Y16: 0 | Z16: 0 | AA16: 0 | AB16: 0 | AC16: 0 | AD16: 0 | AE16: 0 | AF16: 0 | AG16: 0 | AH16: 0 | AI16: 0 | AJ16: 0 | AK16: 0 | AL16: 0 | AM16: 0 | AN16: 0 | AO16: 0 | AP16: 0 | AQ16: 0 | AR16: 0 | AS16: 0 | AT16: 0 | AU16: 0 | AV16: 0 | AW16: 0 | AX16: 0 | AY16: 0 | AZ16: 0 | BA16: 0 | BB16: 0 | BC16: 0 | BD16: 0 | BE16: 0 | BF16: 0 | BG16: 0 | BH16: 0 | BI16: 0 | BJ16: 0 | BK16: 0 | BL16: 0 | BM16: 0 | BN16: 0 | BO16: 0 | BP16: 0 | BQ16: 0 | BR16: 0 | BS16: 0 | BT16: 0 | BU16: 0 | BV16: 0 | BW16: 0 | BX16: 0 | BY16: 0 | BZ16: 0 | CA16: 0 | CB16: 0 | CC16: 0 | CD16: 0 | CE16: 0 | CF16: 0 | CG16: 0 | CH16: 0 | CI16: 0 | CJ16: 0 | CK16: 0 | CL16: 0 | CM16: 0 | CN16: 0 | CO16: 0 | CP16: 0 | CQ16: 0 | CR16: 0 | CS16: 0 | CT16: 0 | CU16: 0 | CV16: 0 | CW16: 0 | CX16: 0 | CY16: 0 | CZ16: 0 | DA16: 0 | DB16: 0 | DC16: 0 | DD16: 0 | DE16: 0 | DF16: 0 | DG16: 0 | DH16: 0 | DI16: 0 | DJ16: 0 | DK16: 0 | DL16: 0 | DM16: 0 | DN16: 0 | DO16: 0 | DP16: 0 | DQ16: 0 | DR16: 0 | DS16: 0 | DT16: 0 | DU16: 0 | DV16: 0 | DW16: 0 | DX16: 0 | DY16: 0 | DZ16: 0 | EA16: 0 | EB16: 0 | EC16: 0 | ED16: 0 | EE16: 0 | EF16: 0 | EG16: 0 | EH16: 0 | EI16: 0 | EJ16: 0 | EK16: 0 | EL16: 0 | EM16: 0 | EN16: 0 | EO16: 0 | EP16: 0 | EQ16: 0 | ER16: 0 | ES16: 0 | ET16: 0 | EU16: 0 | EV16: 0 | EW16: 0 | EX16: 0 | EY16: 0 | EZ16: 0 | FA16: 0 | FB16: 0 | FC16: 0 | FD16: 0 | FE16: 0 | FF16: 0 | FG16: 0 | FH16: 0 | FI16: 0 | FJ16: 0 | FK16: 0 | FL16: 0 | FM16: 0 | FN16: 0 | FO16: 0 | FP16: 0 | FQ16: 0 | FR16: 0 | FS16: 0 | FT16: 0 | FU16: 0 | FV16: 0 | FW16: 0 | FX16: 0 | FY16: 0 | FZ16: 0 | GA16: 0 | GB16: 0 | GC16: 0 | GD16: 0 | GE16: 0 | GF16: 0 | GG16: 0 | GH16: 0 | GI16: 0 | GJ16: 0 | GK16: 0 | GL16: 0 | GM16: 0 | GN16: 0 | GO16: 0 | GP16: 0 | GQ16: 0 | GR16: 0 | GS16: 0 | GT16: 0 | GU16: 0 | GV16: 0 | GW16: 0 | GX16: 0 | GY16: 0 | GZ16: 0 | HA16: 0 | HB16: 0 | HC16: 0 | HD16: 0 | HE16: 0 | HF16: 0 | HG16: 0 | HH16: 0 | HI16: 0 | HJ16: 0 | HK16: 0 | HL16: 0 | HM16: 0 | HN16: 0 | HO16: 0 | HP16: 0 | HQ16: 0 | HR16: 0 | HS16: 0 | HT16: 0 | HU16: 0 | HV16: 0 | HW16: 0 | HX16: 0 | HY16: 0 | HZ16: 0 | IA16: 0 | IB16: 0 | IC16: 0 | ID16: 0 | IE16: 0 | IF16: 0 | IG16: 0 | IH16: 0 | II16: 0 | IJ16: 0 | IK16: 0 | IL16: 0 | IM16: 0 | IN16: 0 | IO16: 0 | IP16: 0 | IQ16: 0 | IR16: 0 | IS16: 0 | IT16: 0 | IU16: 0 | IV16: 0 | IW16: 0 | IX16: 0 | IY16: 0 | IZ16: 0 | JA16: 0 | JB16: 0 | JC16: 0 | JD16: 0 | JE16: 0 | JF16: 0 | JG16: 0 | JH16: 0 | JI16: 0 | JJ16: 0 | JK16: 0 | JL16: 0 | JM16: 0 | JN16: 0 | JO16: 0 | JP16: 0 | JQ16: 0 | JR16: 0 | JS16: 0 | JT16: 0 | JU16: 0 | JV16: 0 | JW16: 0 | JX16: 0 | JY16: 0 | JZ16: 0 | KA16: 0 | KB16: 0 | KC16: 0 | KD16: 0 | KE16: 0 | KF16: 0 | KG16: 0 | KH16: 0 | KI16: 0 | KJ16: 0 | KK16: 0 | KL16: 0 | KM16: 0 | KN16: 0 | KO16: 0 | KP16: 0 | KQ16: 0 | KR16: 0 | KS16: 0 | KT16: 0 | KU16: 0 | KV16: 0 | KW16: 0 | KX16: 0 | KY16: 0 | KZ16: 0 | LA16: 0 | LB16: 0 | LC16: 0 | LD16: 0 | LE16: 0 | LF16: 0 | LG16: 0 | LH16: 0 | LI16: 0 | LJ16: 0 | LK16: 0 | LL16: 0 | LM16: 0 | LN16: 0 | LO16: 0 | LP16: 0 | LQ16: 0 | LR16: 0 | LS16: 0 | LT16: 0 | LU16: 0 | LV16: 0 | LW16: 0 | LX16: 0 | LY16: 0 | LZ16: 0 | MA16: 0 | MB16: 0 | MC16: 0 | MD16: 0 | ME16: 0 | MF16: 0 | MG16: 0 | MH16: 0 | MI16: 0 | MJ16: 0 | MK16: 0 | ML16: 0 | MM16: 0 | MN16: 0 | MO16: 0 | MP16: 0 | MQ16: 0 | MR16: 0 | MS16: 0 | MT16: 0 | MU16: 0 | MV16: 0 | MW16: 0 | MX16: 0 | MY16: 0 | MZ16: 0 | NA16: 0 | NB16: 0 | NC16: 0 | ND16: 0 | NE16: 0 | NF16: 0 | NG16: 0 | NH16: 0 | NI16: 0 | NJ16: 0 | NK16: 0 | NL16: 0 | NM16: 0 | NN16: 0 | NO16: 0 | NP16: 0 | NQ16: 10644 | NR16: 10215 | NS16: 19526 | NT16: 24133 | NU16: 20846 | NV16: 26562 | NW16: 19824 | NX16: 17203 | NY16: 10652 | NZ16: 13296 | OA16: 14160 | OB16: 14219 | OC16: 11273 | OD16: 14218 | OE16: 19635 | OF16: 24321 | OG16: 25920 | OH16: 25589 | OI16: 15180 | OJ16: 22287 | OK16: 13995 | OL16: 14317 | OM16: 16705 | ON16: 11271 | OO16: 11363 | OP16: 15992 | OQ16: 18967 | OR16: 19664 | OS16: 22577 | OT16: 25414 | OU16: 25414 | OV16: 12844 | OW16: 12842 | OX16: 13436 | OY16: 15026 | OZ16: 18725 | PA16: 7056 | PB16: 13401 | PC16: 16650 | PD16: 21382 | PE16: 29826 | PF16: 22968 | PG16: 16549 | PH16: 14639 | PI16: 15527 | PJ16: 14433 | PK16: 14346 | PL16: 13248 | PM16: 11268 | PN16: 11214 | PO16: 18700 | PP16: 19872 | PQ16: 29628 | PR16: 23724 | PS16: 16884 | PT16: 12096 | PU16: 16362 | PV16: 18234 | PW16: 17334 | PX16: 17786 | PY16: 20704 | PZ16: 12496 | QA16: 16071 | QB16: 16814 | QC16: 21030 | QD16: 18381 | QE16: 16261 | QF16: 12507 | QG16: 11149 | QH16: 14773 | QI16: 16631 | QJ16: 11504 | QK16: 11786 | QL16: 12776 | QM16: 17646 | QN16: 23432 | QO16: 18345 | QP16: 18761 | QQ16: 16672 | QR16: 15859 | QS16: 13936 | QT16: 18226 | QU16: 11468 | QV16: 15024 | QW16: 12651 | QX16: 9411 | QY16: 21314 | QZ16: 21445 | RA16: 19365 | RB16: 21840 | RC16: 16985 | RD16: 15661 | RE16: 8093 | RF16: 11432 | RG16: 11884 | RH16: 11706 | RI16: 11140 | RJ16: 11417 | RK16: 16468 | RL16: 20628 | RM16: 21259 | RN16: 18180 | RO16: 15003 | RP16: 12582 | RQ16: 9492 | RR16: 11218 | RS16: 9744 | RT16: 8314 | RU16: 5010 | RV16: 7071 | RW16: 15177 | RX16: 16658 | RY16: 24468 | RZ16: 25628 | SA16: 16950 | SB16: 15862 | SC16: 11582 | SD16: 9450 | SE16: 12072 | SF16: 12901 | SG16: 8054 | SH16: 12600 | SI16: 14787 | SJ16: 27472 | SK16: 25350 | SL16: 20787 | SM16: 14069 | SN16: 15569 | SO16: 6593 | SP16: 9346 | SQ16: 11878 | SR16: 3874 | SS16: 7436 | ST16: 6522 | SU16: 13261 | SV16: 13930 | SW16: 23897 | SX16: 16327 | SY16: 9066 | SZ16: 4832 | TA16: 4538 | TB16: 10020 | TC16: 0 | TD16: 450 | TE16: 5465 | TF16: 9136 | TG16: 15076 | TH16: 22251 | TI16: 20200 | TJ16: 18447 | TK16: 12668 | TL16: 11917 | TM16: 13690 | TN16: 12256 | TO16: 11442 | TP16: 10129 | TQ16: 11723 | TR16: 14736 | TS16: 15783 | TT16: 17914 | TU16: 22847 | TV16: 21817 | TW16: 11504 | TX16: 11870 | TY16: 11457 | TZ16: 9718 | UA16: 13452 | UB16: 11636 | UC16: 5326 | UD16: 10757 | UE16: 8650 | UF16: 14741 | UG16: 16268 | UH16: 16122 | UI16: 10394 | UJ16: 14730 | UK16: 8695 | UL16: 6860 | UM16: 8639 | UN16: 9375 | UO16: 7895 | UP16: 5527 | UQ16: 12945 | UR16: 11540 | US16: 14913 | UT16: 16300 | UU16: 16380 | UV16: 11728 | UW16: 9659 | UX16: 11236 | UY16: 6531 | UZ16: 11972 | VA16: 0 | VB16: 0 | VC16: 0 | VD16: 0 | VE16: 0 | VF16: 0 | VG16: 0 | VH16: 0 | VI16: 0 | VJ16: 0 | VK16: 0
A17: 191 | B17: 713136.16 | C17: 50821 | D17: Mojave 16 | E17: WT | F17: CA | I17: 0 | J17: 0 | K17: 0 | L17: 0 | M17: 0 | N17: 0 | O17: 0 | P17: 0 | Q17: 0 | R17: 0 | S17: 0 | T17: 0 | U17: 0 | V17: 0 | W17: 0 | X17: 0 | Y17: 0 | Z17: 0 | AA17: 0 | AB17: 0 | AC17: 0 | AD17: 0 | AE17: 0 | AF17: 0 | AG17: 0 | AH17: 0 | AI17: 0 | AJ17: 0 | AK17: 0 | AL17: 0 | AM17: 0 | AN17: 0 | AO17: 0 | AP17: 0 | AQ17: 0 | AR17: 0 | AS17: 0 | AT17: 0 | AU17: 0 | AV17: 0 | AW17: 0 | AX17: 0 | AY17: 0 | AZ17: 0 | BA17: 0 | BB17: 0 | BC17: 0 | BD17: 0 | BE17: 0 | BF17: 0 | BG17: 0 | BH17: 0 | BI17: 0 | BJ17: 0 | BK17: 0 | BL17: 0 | BM17: 0 | BN17: 0 | BO17: 0 | BP17: 0 | BQ17: 0 | BR17: 0 | BS17: 0 | BT17: 0 | BU17: 0 | BV17: 0 | BW17: 0 | BX17: 0 | BY17: 0 | BZ17: 0 | CA17: 0 | CB17: 0 | CC17: 0 | CD17: 0 | CE17: 0 | CF17: 0 | CG17: 0 | CH17: 0 | CI17: 0 | CJ17: 0 | CK17: 0 | CL17: 0 | CM17: 0 | CN17: 0 | CO17: 0 | CP17: 0 | CQ17: 0 | CR17: 0 | CS17: 0 | CT17: 0 | CU17: 0 | CV17: 0 | CW17: 0 | CX17: 0 | CY17: 0 | CZ17: 0 | DA17: 0 | DB17: 0 | DC17: 0 | DD17: 0 | DE17: 0 | DF17: 0 | DG17: 0 | DH17: 0 | DI17: 0 | DJ17: 0 | DK17: 0 | DL17: 0 | DM17: 0 | DN17: 0 | DO17: 0 | DP17: 0 | DQ17: 0 | DR17: 0 | DS17: 0 | DT17: 0 | DU17: 0 | DV17: 0 | DW17: 0 | DX17: 0 | DY17: 0 | DZ17: 0 | EA17: 0 | EB17: 0 | EC17: 0 | ED17: 0 | EE17: 0 | EF17: 0 | EG17: 0 | EH17: 0 | EI17: 0 | EJ17: 0 | EK17: 0 | EL17: 0 | EM17: 0 | EN17: 0 | EO17: 0 | EP17: 0 | EQ17: 0 | ER17: 0 | ES17: 0 | ET17: 0 | EU17: 0 | EV17: 0 | EW17: 0 | EX17: 0 | EY17: 0 | EZ17: 0 | FA17: 0 | FB17: 0 | FC17: 0 | FD17: 0 | FE17: 0 | FF17: 0 | FG17: 0 | FH17: 0 | FI17: 0 | FJ17: 0 | FK17: 0 | FL17: 0 | FM17: 0 | FN17: 0 | FO17: 0 | FP17: 0 | FQ17: 0 | FR17: 0 | FS17: 0 | FT17: 0 | FU17: 0 | FV17: 0 | FW17: 0 | FX17: 0 | FY17: 0 | FZ17: 0 | GA17: 0 | GB17: 0 | GC17: 0 | GD17: 0 | GE17: 0 | GF17: 0 | GG17: 0 | GH17: 0 | GI17: 0 | GJ17: 0 | GK17: 0 | GL17: 0 | GM17: 0 | GN17: 0 | GO17: 0 | GP17: 0 | GQ17: 0 | GR17: 0 | GS17: 0 | GT17: 0 | GU17: 0 | GV17: 0 | GW17: 0 | GX17: 0 | GY17: 0 | GZ17: 0 | HA17: 0 | HB17: 0 | HC17: 0 | HD17: 0 | HE17: 0 | HF17: 0 | HG17: 0 | HH17: 0 | HI17: 0 | HJ17: 0 | HK17: 0 | HL17: 0 | HM17: 0 | HN17: 0 | HO17: 0 | HP17: 0 | HQ17: 0 | HR17: 0 | HS17: 0 | HT17: 0 | HU17: 0 | HV17: 0 | HW17: 0 | HX17: 0 | HY17: 0 | HZ17: 0 | IA17: 0 | IB17: 0 | IC17: 0 | ID17: 0 | IE17: 0 | IF17: 0 | IG17: 0 | IH17: 0 | II17: 0 | IJ17: 0 | IK17: 0 | IL17: 0 | IM17: 0 | IN17: 0 | IO17: 0 | IP17: 0 | IQ17: 0 | IR17: 0 | IS17: 0 | IT17: 0 | IU17: 0 | IV17: 0 | IW17: 0 | IX17: 0 | IY17: 0 | IZ17: 0 | JA17: 0 | JB17: 0 | JC17: 0 | JD17: 0 | JE17: 0 | JF17: 0 | JG17: 0 | JH17: 0 | JI17: 0 | JJ17: 0 | JK17: 0 | JL17: 0 | JM17: 0 | JN17: 0 | JO17: 0 | JP17: 0 | JQ17: 0 | JR17: 0 | JS17: 0 | JT17: 0 | JU17: 0 | JV17: 0 | JW17: 0 | JX17: 0 | JY17: 0 | JZ17: 0 | KA17: 0 | KB17: 0 | KC17: 0 | KD17: 0 | KE17: 0 | KF17: 0 | KG17: 0 | KH17: 0 | KI17: 0 | KJ17: 0 | KK17: 0 | KL17: 0 | KM17: 0 | KN17: 0 | KO17: 0 | KP17: 0 | KQ17: 0 | KR17: 0 | KS17: 0 | KT17: 0 | KU17: 0 | KV17: 0 | KW17: 0 | KX17: 0 | KY17: 0 | KZ17: 0 | LA17: 0 | LB17: 0 | LC17: 0 | LD17: 0 | LE17: 0 | LF17: 0 | LG17: 0 | LH17: 0 | LI17: 0 | LJ17: 0 | LK17: 0 | LL17: 0 | LM17: 0 | LN17: 0 | LO17: 0 | LP17: 0 | LQ17: 0 | LR17: 0 | LS17: 0 | LT17: 0 | LU17: 0 | LV17: 0 | LW17: 0 | LX17: 0 | LY17: 0 | LZ17: 0 | MA17: 0 | MB17: 0 | MC17: 0 | MD17: 0 | ME17: 0 | MF17: 0 | MG17: 0 | MH17: 0 | MI17: 0 | MJ17: 0 | MK17: 0 | ML17: 0 | MM17: 0 | MN17: 0 | MO17: 0 | MP17: 0 | MQ17: 0 | MR17: 0 | MS17: 0 | MT17: 0 | MU17: 0 | MV17: 0 | MW17: 0 | MX17: 0 | MY17: 0 | MZ17: 0 | NA17: 0 | NB17: 0 | NC17: 0 | ND17: 0 | NE17: 0 | NF17: 0 | NG17: 0 | NH17: 0 | NI17: 0 | NJ17: 0 | NK17: 0 | NL17: 0 | NM17: 0 | NN17: 0 | NO17: 0 | NP17: 0 | NQ17: 1347 | NR17: 1930 | NS17: 6113 | NT17: 6509 | NU17: 6901 | NV17: 6930 | NW17: 4941 | NX17: 5421 | NY17: 3003 | NZ17: 3914 | OA17: 1979 | OB17: 3758 | OC17: 2426.49 | OD17: 1964.16 | OE17: 4233.24 | OF17: 6861.69 | OG17: 9913 | OH17: 9882.18 | OI17: 5890.5 | OJ17: 8681.31 | OK17: 4282.74 | OL17: 4093.65 | OM17: 2034.45 | ON17: 1935.45 | OO17: 1968 | OP17: 3271.95 | OQ17: 4869.81 | OR17: 4507.47 | OS17: 7759 | OT17: 8330.85 | OU17: 7827.93 | OV17: 3885.75 | OW17: 2667.06 | OX17: 3797.64 | OY17: 1974.06 | OZ17: 2595.78 | PA17: 2512 | PB17: 3555 | PC17: 3718 | PD17: 6133 | PE17: 6271 | PF17: 9227 | PG17: 4698 | PH17: 3569 | PI17: 4153 | PJ17: 2958 | PK17: 1938 | PL17: 670 | PM17: 1313 | PN17: 1135 | PO17: 3371 | PP17: 5347 | PQ17: 8353 | PR17: 6319 | PS17: 5651 | PT17: 3073 | PU17: 3072 | PV17: 3247 | PW17: 2356 | PX17: 1555 | PY17: 3213 | PZ17: 2158 | QA17: 3615 | QB17: 3656 | QC17: 7021 | QD17: 6528 | QE17: 5381 | QF17: 1869 | QG17: 2382 | QH17: 3309 | QI17: 3945 | QJ17: 2696 | QK17: 1796 | QL17: 3444 | QM17: 5799 | QN17: 7777 | QO17: 6609 | QP17: 6901 | QQ17: 5595 | QR17: 3627 | QS17: 3108 | QT17: 3854 | QU17: 1826 | QV17: 3203 | QW17: 3255 | QX17: 2697 | QY17: 3233 | QZ17: 3674 | RA17: 5946 | RB17: 6406 | RC17: 5933 | RD17: 4757 | RE17: 2461 | RF17: 2967 | RG17: 2167 | RH17: 2044 | RI17: 1201 | RJ17: 1902 | RK17: 4403 | RL17: 6257 | RM17: 5939 | RN17: 5447 | RO17: 5320 | RP17: 4009 | RQ17: 3421 | RR17: 2936 | RS17: 3439 | RT17: 1432 | RU17: 1087 | RV17: 1701 | RW17: 4218 | RX17: 5262 | RY17: 6576 | RZ17: 8825 | SA17: 5606 | SB17: 3447 | SC17: 2709 | SD17: 2443 | SE17: 1947 | SF17: 2466 | SG17: 1428 | SH17: 1839 | SI17: 4818 | SJ17: 6958 | SK17: 5941 | SL17: 6428 | SM17: 3517 | SN17: 4150 | SO17: 1987 | SP17: 1428 | SQ17: 2471 | SR17: 335 | SS17: 847 | ST17: 1926 | SU17: 2935 | SV17: 3888 | SW17: 6557 | SX17: 3764 | SY17: 2103 | SZ17: 2294 | TA17: 918 | TB17: 0 | TC17: 1064 | TD17: 2374 | TE17: 1996 | TF17: 2618 | TG17: 4332 | TH17: 6827 | TI17: 6591 | TJ17: 6897 | TK17: 3680 | TL17: 2698 | TM17: 3749 | TN17: 2089 | TO17: 1811 | TP17: 801 | TQ17: 1764 | TR17: 2583 | TS17: 2616 | TT17: 4269 | TU17: 5804 | TV17: 6091 | TW17: 2606 | TX17: 2227 | TY17: 1304 | TZ17: 2414 | UA17: 2600 | UB17: 1215 | UC17: 100 | UD17: 1096 | UE17: 2737 | UF17: 2852 | UG17: 3958 | UH17: 4474 | UI17: 2041 | UJ17: 4110 | UK17: 1374 | UL17: 1545 | UM17: 1413 | UN17: 1545 | UO17: 1376 | UP17: 1681 | UQ17: 3958 | UR17: 4131 | US17: 4595 | UT17: 5600 | UU17: 4517 | UV17: 3281 | UW17: 1869 | UX17: 2351 | UY17: 1624 | UZ17: 1917 | VA17: 0 | VB17: 0 | VC17: 0 | VD17: 0 | VE17: 0 | VF17: 0 | VG17: 0 | VH17: 0 | VI17: 0 | VJ17: 0 | VK17: 0
A18: 191 | B18: 942775.05 | C18: 50823 | D18: Mojave 18 | E18: WT | F18: CA | I18: 0 | J18: 0 | K18: 0 | L18: 0 | M18: 0 | N18: 0 | O18: 0 | P18: 0 | Q18: 0 | R18: 0 | S18: 0 | T18: 0 | U18: 0 | V18: 0 | W18: 0 | X18: 0 | Y18: 0 | Z18: 0 | AA18: 0 | AB18: 0 | AC18: 0 | AD18: 0 | AE18: 0 | AF18: 0 | AG18: 0 | AH18: 0 | AI18: 0 | AJ18: 0 | AK18: 0 | AL18: 0 | AM18: 0 | AN18: 0 | AO18: 0 | AP18: 0 | AQ18: 0 | AR18: 0 | AS18: 0 | AT18: 0 | AU18: 0 | AV18: 0 | AW18: 0 | AX18: 0 | AY18: 0 | AZ18: 0 | BA18: 0 | BB18: 0 | BC18: 0 | BD18: 0 | BE18: 0 | BF18: 0 | BG18: 0 | BH18: 0 | BI18: 0 | BJ18: 0 | BK18: 0 | BL18: 0 | BM18: 0 | BN18: 0 | BO18: 0 | BP18: 0 | BQ18: 0 | BR18: 0 | BS18: 0 | BT18: 0 | BU18: 0 | BV18: 0 | BW18: 0 | BX18: 0 | BY18: 0 | BZ18: 0 | CA18: 0 | CB18: 0 | CC18: 0 | CD18: 0 | CE18: 0 | CF18: 0 | CG18: 0 | CH18: 0 | CI18: 0 | CJ18: 0 | CK18: 0 | CL18: 0 | CM18: 0 | CN18: 0 | CO18: 0 | CP18: 0 | CQ18: 0 | CR18: 0 | CS18: 0 | CT18: 0 | CU18: 0 | CV18: 0 | CW18: 0 | CX18: 0 | CY18: 0 | CZ18: 0 | DA18: 0 | DB18: 0 | DC18: 0 | DD18: 0 | DE18: 0 | DF18: 0 | DG18: 0 | DH18: 0 | DI18: 0 | DJ18: 0 | DK18: 0 | DL18: 0 | DM18: 0 | DN18: 0 | DO18: 0 | DP18: 0 | DQ18: 0 | DR18: 0 | DS18: 0 | DT18: 0 | DU18: 0 | DV18: 0 | DW18: 0 | DX18: 0 | DY18: 0 | DZ18: 0 | EA18: 0 | EB18: 0 | EC18: 0 | ED18: 0 | EE18: 0 | EF18: 0 | EG18: 0 | EH18: 0 | EI18: 0 | EJ18: 0 | EK18: 0 | EL18: 0 | EM18: 0 | EN18: 0 | EO18: 0 | EP18: 0 | EQ18: 0 | ER18: 0 | ES18: 0 | ET18: 0 | EU18: 0 | EV18: 0 | EW18: 0 | EX18: 0 | EY18: 0 | EZ18: 0 | FA18: 0 | FB18: 0 | FC18: 0 | FD18: 0 | FE18: 0 | FF18: 0 | FG18: 0 | FH18: 0 | FI18: 0 | FJ18: 0 | FK18: 0 | FL18: 0 | FM18: 0 | FN18: 0 | FO18: 0 | FP18: 0 | FQ18: 0 | FR18: 0 | FS18: 0 | FT18: 0 | FU18: 0 | FV18: 0 | FW18: 0 | FX18: 0 | FY18: 0 | FZ18: 0 | GA18: 0 | GB18: 0 | GC18: 0 | GD18: 0 | GE18: 0 | GF18: 0 | GG18: 0 | GH18: 0 | GI18: 0 | GJ18: 0 | GK18: 0 | GL18: 0 | GM18: 0 | GN18: 0 | GO18: 0 | GP18: 0 | GQ18: 0 | GR18: 0 | GS18: 0 | GT18: 0 | GU18: 0 | GV18: 0 | GW18: 0 | GX18: 0 | GY18: 0 | GZ18: 0 | HA18: 0 | HB18: 0 | HC18: 0 | HD18: 0 | HE18: 0 | HF18: 0 | HG18: 0 | HH18: 0 | HI18: 0 | HJ18: 0 | HK18: 0 | HL18: 0 | HM18: 0 | HN18: 0 | HO18: 0 | HP18: 0 | HQ18: 0 | HR18: 0 | HS18: 0 | HT18: 0 | HU18: 0 | HV18: 0 | HW18: 0 | HX18: 0 | HY18: 0 | HZ18: 0 | IA18: 0 | IB18: 0 | IC18: 0 | ID18: 0 | IE18: 0 | IF18: 0 | IG18: 0 | IH18: 0 | II18: 0 | IJ18: 0 | IK18: 0 | IL18: 0 | IM18: 0 | IN18: 0 | IO18: 0 | IP18: 0 | IQ18: 0 | IR18: 0 | IS18: 0 | IT18: 0 | IU18: 0 | IV18: 0 | IW18: 0 | IX18: 0 | IY18: 0 | IZ18: 0 | JA18: 0 | JB18: 0 | JC18: 0 | JD18: 0 | JE18: 0 | JF18: 0 | JG18: 0 | JH18: 0 | JI18: 0 | JJ18: 0 | JK18: 0 | JL18: 0 | JM18: 0 | JN18: 0 | JO18: 0 | JP18: 0 | JQ18: 0 | JR18: 0 | JS18: 0 | JT18: 0 | JU18: 0 | JV18: 0 | JW18: 0 | JX18: 0 | JY18: 0 | JZ18: 0 | KA18: 0 | KB18: 0 | KC18: 0 | KD18: 0 | KE18: 0 | KF18: 0 | KG18: 0 | KH18: 0 | KI18: 0 | KJ18: 0 | KK18: 0 | KL18: 0 | KM18: 0 | KN18: 0 | KO18: 0 | KP18: 0 | KQ18: 0 | KR18: 0 | KS18: 0 | KT18: 0 | KU18: 0 | KV18: 0 | KW18: 0 | KX18: 0 | KY18: 0 | KZ18: 0 | LA18: 0 | LB18: 0 | LC18: 0 | LD18: 0 | LE18: 0 | LF18: 0 | LG18: 0 | LH18: 0 | LI18: 0 | LJ18: 0 | LK18: 0 | LL18: 0 | LM18: 0 | LN18: 0 | LO18: 0 | LP18: 0 | LQ18: 0 | LR18: 0 | LS18: 0 | LT18: 0 | LU18: 0 | LV18: 0 | LW18: 0 | LX18: 0 | LY18: 0 | LZ18: 0 | MA18: 0 | MB18: 0 | MC18: 0 | MD18: 0 | ME18: 0 | MF18: 0 | MG18: 0 | MH18: 0 | MI18: 0 | MJ18: 0 | MK18: 0 | ML18: 0 | MM18: 0 | MN18: 0 | MO18: 0 | MP18: 0 | MQ18: 0 | MR18: 0 | MS18: 0 | MT18: 0 | MU18: 0 | MV18: 0 | MW18: 0 | MX18: 0 | MY18: 0 | MZ18: 0 | NA18: 0 | NB18: 0 | NC18: 0 | ND18: 0 | NE18: 0 | NF18: 0 | NG18: 0 | NH18: 0 | NI18: 0 | NJ18: 0 | NK18: 0 | NL18: 0 | NM18: 0 | NN18: 0 | NO18: 0 | NP18: 0 | NQ18: 861 | NR18: 890 | NS18: 2814 | NT18: 2865 | NU18: 3161 | NV18: 7977 | NW18: 6467 | NX18: 6776 | NY18: 4060 | NZ18: 4872 | OA18: 2965 | OB18: 5175 | OC18: 3279.87 | OD18: 2732.4 | OE18: 5321.25 | OF18: 8359.56 | OG18: 10875 | OH18: 3982.77 | OI18: 6446.88 | OJ18: 8793.18 | OK18: 5296.5 | OL18: 5856.84 | OM18: 2951.19 | ON18: 2026.53 | OO18: 2963 | OP18: 4214.43 | OQ18: 6281.55 | OR18: 5384.61 | OS18: 9062 | OT18: 9611.91 | OU18: 8321.94 | OV18: 4753.98 | OW18: 3779.82 | OX18: 4557.96 | OY18: 3077.91 | OZ18: 3467.97 | PA18: 3616 | PB18: 4716 | PC18: 5487 | PD18: 7748 | PE18: 10461 | PF18: 10722 | PG18: 5759 | PH18: 4969 | PI18: 5777 | PJ18: 4184 | PK18: 3092 | PL18: 1133 | PM18: 2277 | PN18: 1557 | PO18: 5344 | PP18: 6948 | PQ18: 10593 | PR18: 8488 | PS18: 7438 | PT18: 4593 | PU18: 4675 | PV18: 5229 | PW18: 4076 | PX18: 3263 | PY18: 5377 | PZ18: 3300 | QA18: 5328 | QB18: 5244 | QC18: 9857 | QD18: 8502 | QE18: 6126 | QF18: 3530 | QG18: 3881 | QH18: 5181 | QI18: 6427 | QJ18: 4741 | QK18: 3037 | QL18: 5140 | QM18: 8263 | QN18: 10895 | QO18: 8564 | QP18: 9411 | QQ18: 7817 | QR18: 5220 | QS18: 4786 | QT18: 5340 | QU18: 2577 | QV18: 4137 | QW18: 4169 | QX18: 4161 | QY18: 4113 | QZ18: 2978 | RA18: 8786 | RB18: 8820 | RC18: 5101 | RD18: 8087 | RE18: 4025 | RF18: 4429 | RG18: 3774 | RH18: 3718 | RI18: 2320 | RJ18: 3588 | RK18: 7298 | RL18: 8713 | RM18: 9479 | RN18: 7636 | RO18: 7152 | RP18: 5839 | RQ18: 5000 | RR18: 3993 | RS18: 5047 | RT18: 2223 | RU18: 1906 | RV18: 3285 | RW18: 6661 | RX18: 7532 | RY18: 10238 | RZ18: 11467 | SA18: 7374 | SB18: 5093 | SC18: 4275 | SD18: 3836 | SE18: 3668 | SF18: 3876 | SG18: 2737 | SH18: 3223 | SI18: 6421 | SJ18: 8953 | SK18: 7882 | SL18: 7949 | SM18: 4725 | SN18: 5654 | SO18: 3112 | SP18: 2737 | SQ18: 3613 | SR18: 749 | SS18: 1561 | ST18: 3116 | SU18: 5691 | SV18: 5486 | SW18: 9008 | SX18: 5166 | SY18: 2696 | SZ18: 2822 | TA18: 1308 | TB18: 0 | TC18: 1566 | TD18: 2954 | TE18: 2586 | TF18: 3555 | TG18: 5382 | TH18: 8163 | TI18: 8332 | TJ18: 7721 | TK18: 4030 | TL18: 2910 | TM18: 4310 | TN18: 2817 | TO18: 2662 | TP18: 888 | TQ18: 2752 | TR18: 3657 | TS18: 3905 | TT18: 5817 | TU18: 7067 | TV18: 7428 | TW18: 3395 | TX18: 3124 | TY18: 2209 | TZ18: 3329 | UA18: 3132 | UB18: 2254 | UC18: 457 | UD18: 2041 | UE18: 3741 | UF18: 4392 | UG18: 4940 | UH18: 5562 | UI18: 2961 | UJ18: 5066 | UK18: 2209 | UL18: 2367 | UM18: 2518 | UN18: 2367 | UO18: 2392 | UP18: 2405 | UQ18: 5879 | UR18: 5641 | US18: 5902 | UT18: 7086 | UU18: 4949 | UV18: 3978 | UW18: 2347 | UX18: 3565 | UY18: 2238 | UZ18: 2450 | VA18: 0 | VB18: 0 | VC18: 0 | VD18: 0 | VE18: 0 | VF18: 0 | VG18: 0 | VH18: 0 | VI18: 0 | VJ18: 0 | VK18: 0
A19: 180 | B19: 758806 | C19: 7937 | D19: Ponnequin | E19: WT | F19: CO | I19: 0 | J19: 0 | K19: 0 | L19: 0 | M19: 0 | N19: 0 | O19: 0 | P19: 0 | Q19: 0 | R19: 0 | S19: 0 | T19: 0 | U19: 0 | V19: 0 | W19: 0 | X19: 0 | Y19: 0 | Z19: 0 | AA19: 0 | AB19: 0 | AC19: 0 | AD19: 0 | AE19: 0 | AF19: 0 | AG19: 0 | AH19: 0 | AI19: 0 | AJ19: 0 | AK19: 0 | AL19: 0 | AM19: 0 | AN19: 0 | AO19: 0 | AP19: 0 | AQ19: 0 | AR19: 0 | AS19: 0 | AT19: 0 | AU19: 0 | AV19: 0 | AW19: 0 | AX19: 0 | AY19: 0 | AZ19: 0 | BA19: 0 | BB19: 0 | BC19: 0 | BD19: 0 | BE19: 0 | BF19: 0 | BG19: 0 | BH19: 0 | BI19: 0 | BJ19: 0 | BK19: 0 | BL19: 0 | BM19: 0 | BN19: 0 | BO19: 0 | BP19: 0 | BQ19: 0 | BR19: 0 | BS19: 0 | BT19: 0 | BU19: 0 | BV19: 0 | BW19: 0 | BX19: 0 | BY19: 0 | BZ19: 0 | CA19: 0 | CB19: 0 | CC19: 0 | CD19: 0 | CE19: 0 | CF19: 0 | CG19: 0 | CH19: 0 | CI19: 0 | CJ19: 0 | CK19: 0 | CL19: 0 | CM19: 0 | CN19: 0 | CO19: 0 | CP19: 0 | CQ19: 0 | CR19: 0 | CS19: 0 | CT19: 0 | CU19: 0 | CV19: 0 | CW19: 0 | CX19: 0 | CY19: 0 | CZ19: 0 | DA19: 0 | DB19: 0 | DC19: 0 | DD19: 0 | DE19: 0 | DF19: 0 | DG19: 0 | DH19: 0 | DI19: 0 | DJ19: 0 | DK19: 0 | DL19: 0 | DM19: 0 | DN19: 0 | DO19: 0 | DP19: 0 | DQ19: 0 | DR19: 0 | DS19: 0 | DT19: 0 | DU19: 0 | DV19: 0 | DW19: 0 | DX19: 0 | DY19: 0 | DZ19: 0 | EA19: 0 | EB19: 0 | EC19: 0 | ED19: 0 | EE19: 0 | EF19: 0 | EG19: 0 | EH19: 0 | EI19: 0 | EJ19: 0 | EK19: 0 | EL19: 0 | EM19: 0 | EN19: 0 | EO19: 0 | EP19: 0 | EQ19: 0 | ER19: 0 | ES19: 0 | ET19: 0 | EU19: 0 | EV19: 0 | EW19: 0 | EX19: 0 | EY19: 0 | EZ19: 0 | FA19: 0 | FB19: 0 | FC19: 0 | FD19: 0 | FE19: 0 | FF19: 0 | FG19: 0 | FH19: 0 | FI19: 0 | FJ19: 0 | FK19: 0 | FL19: 0 | FM19: 0 | FN19: 0 | FO19: 0 | FP19: 0 | FQ19: 0 | FR19: 0 | FS19: 0 | FT19: 0 | FU19: 0 | FV19: 0 | FW19: 0 | FX19: 0 | FY19: 0 | FZ19: 0 | GA19: 0 | GB19: 0 | GC19: 0 | GD19: 0 | GE19: 0 | GF19: 0 | GG19: 0 | GH19: 0 | GI19: 0 | GJ19: 0 | GK19: 0 | GL19: 0 | GM19: 0 | GN19: 0 | GO19: 0 | GP19: 0 | GQ19: 0 | GR19: 0 | GS19: 0 | GT19: 0 | GU19: 0 | GV19: 0 | GW19: 0 | GX19: 0 | GY19: 0 | GZ19: 0 | HA19: 0 | HB19: 0 | HC19: 0 | HD19: 0 | HE19: 0 | HF19: 0 | HG19: 0 | HH19: 0 | HI19: 0 | HJ19: 0 | HK19: 0 | HL19: 0 | HM19: 0 | HN19: 0 | HO19: 0 | HP19: 0 | HQ19: 0 | HR19: 0 | HS19: 0 | HT19: 0 | HU19: 0 | HV19: 0 | HW19: 0 | HX19: 0 | HY19: 0 | HZ19: 0 | IA19: 0 | IB19: 0 | IC19: 0 | ID19: 0 | IE19: 0 | IF19: 0 | IG19: 0 | IH19: 0 | II19: 0 | IJ19: 0 | IK19: 0 | IL19: 0 | IM19: 0 | IN19: 0 | IO19: 0 | IP19: 0 | IQ19: 0 | IR19: 0 | IS19: 0 | IT19: 0 | IU19: 0 | IV19: 0 | IW19: 0 | IX19: 0 | IY19: 0 | IZ19: 0 | JA19: 0 | JB19: 0 | JC19: 0 | JD19: 0 | JE19: 0 | JF19: 0 | JG19: 0 | JH19: 0 | JI19: 0 | JJ19: 0 | JK19: 0 | JL19: 0 | JM19: 0 | JN19: 0 | JO19: 0 | JP19: 0 | JQ19: 0 | JR19: 0 | JS19: 0 | JT19: 0 | JU19: 0 | JV19: 0 | JW19: 0 | JX19: 0 | JY19: 0 | JZ19: 0 | KA19: 0 | KB19: 0 | KC19: 0 | KD19: 0 | KE19: 0 | KF19: 0 | KG19: 0 | KH19: 0 | KI19: 0 | KJ19: 0 | KK19: 0 | KL19: 0 | KM19: 0 | KN19: 0 | KO19: 0 | KP19: 0 | KQ19: 0 | KR19: 0 | KS19: 0 | KT19: 0 | KU19: 0 | KV19: 0 | KW19: 0 | KX19: 0 | KY19: 0 | KZ19: 0 | LA19: 0 | LB19: 0 | LC19: 0 | LD19: 0 | LE19: 0 | LF19: 0 | LG19: 0 | LH19: 0 | LI19: 0 | LJ19: 0 | LK19: 0 | LL19: 0 | LM19: 0 | LN19: 0 | LO19: 0 | LP19: 0 | LQ19: 0 | LR19: 0 | LS19: 0 | LT19: 0 | LU19: 0 | LV19: 0 | LW19: 0 | LX19: 0 | LY19: 0 | LZ19: 0 | MA19: 0 | MB19: 0 | MC19: 0 | MD19: 0 | ME19: 0 | MF19: 0 | MG19: 0 | MH19: 0 | MI19: 0 | MJ19: 0 | MK19: 0 | ML19: 0 | MM19: 0 | MN19: 0 | MO19: 0 | MP19: 0 | MQ19: 0 | MR19: 0 | MS19: 0 | MT19: 0 | MU19: 0 | MV19: 0 | MW19: 0 | MX19: 0 | MY19: 0 | MZ19: 0 | NA19: 0 | NB19: 0 | NC19: 0 | ND19: 0 | NE19: 0 | NF19: 0 | NG19: 0 | NH19: 0 | NI19: 0 | NJ19: 0 | NK19: 0 | NL19: 0 | NM19: 0 | NN19: 0 | NO19: 0 | NP19: 0 | NQ19: 4158 | NR19: 2441 | NS19: 2074 | NT19: 2550 | NU19: 2876 | NV19: 1797 | NW19: 1423 | NX19: 2931 | NY19: 2125 | NZ19: 5032 | OA19: 5034 | OB19: 6323 | OC19: 6917 | OD19: 6130 | OE19: 5510 | OF19: 5315 | OG19: 4493 | OH19: 3606 | OI19: 3163 | OJ19: 4012 | OK19: 4058 | OL19: 3948 | OM19: 7213 | ON19: 5622 | OO19: 7423 | OP19: 4590 | OQ19: 8232 | OR19: 4982 | OS19: 4242 | OT19: 3354 | OU19: 2732 | OV19: 3025 | OW19: 3463 | OX19: 4753 | OY19: 5581 | OZ19: 6100 | PA19: 5565 | PB19: 5079 | PC19: 6658 | PD19: 4631 | PE19: 4825 | PF19: 3184 | PG19: 2697 | PH19: 2779 | PI19: 3401 | PJ19: 4101 | PK19: 4711 | PL19: 6029 | PM19: 4061 | PN19: 3195 | PO19: 5 | PP19: 4324 | PQ19: 2925 | PR19: 2925 | PS19: 2619 | PT19: 2152 | PU19: 2554 | PV19: 3550 | PW19: 6101 | PX19: 6528 | PY19: 6756 | PZ19: 5017 | QA19: 3093 | QB19: 4471 | QC19: 3245 | QD19: 2538 | QE19: 1683 | QF19: 1159 | QG19: 2917 | QH19: 4692 | QI19: 4372 | QJ19: 4904 | QK19: 4353 | QL19: 4104 | QM19: 4623 | QN19: 3127 | QO19: 2531 | QP19: 2715 | QQ19: 1851 | QR19: 1951 | QS19: 2834 | QT19: 4201 | QU19: 4548 | QV19: 4883 | QW19: 4949 | QX19: 5975 | QY19: 5617 | QZ19: 4551 | RA19: 4511 | RB19: 3911 | RC19: 2419 | RD19: 2506 | RE19: 2906 | RF19: 3794 | RG19: 5532 | RH19: 5130 | RI19: 6144 | RJ19: 3895 | RK19: 3900 | RL19: 2954 | RM19: 3528 | RN19: 1962 | RO19: 1908 | RP19: 2276 | RQ19: 3427 | RR19: 5185 | RS19: 3622 | RT19: 4523 | RU19: 3186 | RV19: 3503 | RW19: 5072 | RX19: 4997 | RY19: 4213 | RZ19: 2516 | SA19: 2827 | SB19: 2711 | SC19: 4046 | SD19: 5088 | SE19: 5195 | SF19: 5680 | SG19: 8340 | SH19: 5255 | SI19: 5318 | SJ19: 6355 | SK19: 5100 | SL19: 3354 | SM19: 2181 | SN19: 3237 | SO19: 3685 | SP19: 5144 | SQ19: 6896 | SR19: 5520 | SS19: 7848 | ST19: 6283 | SU19: 4544 | SV19: 4901 | SW19: 3607 | SX19: 3185 | SY19: 2380 | SZ19: 3190 | TA19: 3054 | TB19: 5432 | TC19: 4267 | TD19: 5590 | TE19: 7463 | TF19: 6907 | TG19: 6563 | TH19: 4551 | TI19: 4102 | TJ19: 3250 | TK19: 2932 | TL19: 357 | TM19: 3182 | TN19: 6228 | TO19: 5070 | TP19: 6615 | TQ19: 9587 | TR19: 5323 | TS19: 6188 | TT19: 7327 | TU19: 4953 | TV19: 3705 | TW19: 2298 | TX19: 2503 | TY19: 3167 | TZ19: 4621 | UA19: 6392 | UB19: 5459 | UC19: 6711 | UD19: 6248 | UE19: 4683 | UF19: 4241 | UG19: 4683 | UH19: 2313 | UI19: 2136 | UJ19: 2754 | UK19: 2556 | UL19: 3135 | UM19: 2791 | UN19: 592 | UO19: 0 | UP19: 0 | UQ19: 0 | UR19: 0 | US19: 0 | UT19: 0 | UU19: 0 | UV19: 0 | UW19: 0 | UX19: 0 | UY19: 0 | UZ19: 0 | VA19: 0 | VB19: 0 | VC19: 0 | VD19: 0 | VE19: 0 | VF19: 0 | VG19: 0 | VH19: 0 | VI19: 0 | VJ19: 0 | VK19: 0
A20: 180 | B20: 660049.06 | C20: 10027 | D20: Windpark Unlimited 1 | E20: WT | F20: CA | I20: 0 | J20: 0 | K20: 0 | L20: 0 | M20: 0 | N20: 0 | O20: 0 | P20: 0 | Q20: 0 | R20: 0 | S20: 0 | T20: 0 | U20: 0 | V20: 0 | W20: 0 | X20: 0 | Y20: 0 | Z20: 0 | AA20: 0 | AB20: 0 | AC20: 0 | AD20: 0 | AE20: 0 | AF20: 0 | AG20: 0 | AH20: 0 | AI20: 0 | AJ20: 0 | AK20: 0 | AL20: 0 | AM20: 0 | AN20: 0 | AO20: 0 | AP20: 0 | AQ20: 0 | AR20: 0 | AS20: 0 | AT20: 0 | AU20: 0 | AV20: 0 | AW20: 0 | AX20: 0 | AY20: 0 | AZ20: 0 | BA20: 0 | BB20: 0 | BC20: 0 | BD20: 0 | BE20: 0 | BF20: 0 | BG20: 0 | BH20: 0 | BI20: 0 | BJ20: 0 | BK20: 0 | BL20: 0 | BM20: 0 | BN20: 0 | BO20: 0 | BP20: 0 | BQ20: 0 | BR20: 0 | BS20: 0 | BT20: 0 | BU20: 0 | BV20: 0 | BW20: 0 | BX20: 0 | BY20: 0 | BZ20: 0 | CA20: 0 | CB20: 0 | CC20: 0 | CD20: 0 | CE20: 0 | CF20: 0 | CG20: 0 | CH20: 0 | CI20: 0 | CJ20: 0 | CK20: 0 | CL20: 0 | CM20: 0 | CN20: 0 | CO20: 0 | CP20: 0 | CQ20: 0 | CR20: 0 | CS20: 0 | CT20: 0 | CU20: 0 | CV20: 0 | CW20: 0 | CX20: 0 | CY20: 0 | CZ20: 0 | DA20: 0 | DB20: 0 | DC20: 0 | DD20: 0 | DE20: 0 | DF20: 0 | DG20: 0 | DH20: 0 | DI20: 0 | DJ20: 0 | DK20: 0 | DL20: 0 | DM20: 0 | DN20: 0 | DO20: 0 | DP20: 0 | DQ20: 0 | DR20: 0 | DS20: 0 | DT20: 0 | DU20: 0 | DV20: 0 | DW20: 0 | DX20: 0 | DY20: 0 | DZ20: 0 | EA20: 0 | EB20: 0 | EC20: 0 | ED20: 0 | EE20: 0 | EF20: 0 | EG20: 0 | EH20: 0 | EI20: 0 | EJ20: 0 | EK20: 0 | EL20: 0 | EM20: 0 | EN20: 0 | EO20: 0 | EP20: 0 | EQ20: 0 | ER20: 0 | ES20: 0 | ET20: 0 | EU20: 0 | EV20: 0 | EW20: 0 | EX20: 0 | EY20: 0 | EZ20: 0 | FA20: 0 | FB20: 0 | FC20: 0 | FD20: 0 | FE20: 0 | FF20: 0 | FG20: 0 | FH20: 0 | FI20: 0 | FJ20: 0 | FK20: 0 | FL20: 0 | FM20: 0 | FN20: 0 | FO20: 0 | FP20: 0 | FQ20: 0 | FR20: 0 | FS20: 0 | FT20: 0 | FU20: 0 | FV20: 0 | FW20: 0 | FX20: 0 | FY20: 0 | FZ20: 0 | GA20: 0 | GB20: 0 | GC20: 0 | GD20: 0 | GE20: 0 | GF20: 0 | GG20: 0 | GH20: 0 | GI20: 0 | GJ20: 0 | GK20: 0 | GL20: 0 | GM20: 0 | GN20: 0 | GO20: 0 | GP20: 0 | GQ20: 0 | GR20: 0 | GS20: 0 | GT20: 0 | GU20: 0 | GV20: 0 | GW20: 0 | GX20: 0 | GY20: 0 | GZ20: 0 | HA20: 0 | HB20: 0 | HC20: 0 | HD20: 0 | HE20: 0 | HF20: 0 | HG20: 0 | HH20: 0 | HI20: 0 | HJ20: 0 | HK20: 0 | HL20: 0 | HM20: 0 | HN20: 0 | HO20: 0 | HP20: 0 | HQ20: 0 | HR20: 0 | HS20: 0 | HT20: 0 | HU20: 0 | HV20: 0 | HW20: 0 | HX20: 0 | HY20: 0 | HZ20: 0 | IA20: 0 | IB20: 0 | IC20: 0 | ID20: 0 | IE20: 0 | IF20: 0 | IG20: 0 | IH20: 0 | II20: 0 | IJ20: 0 | IK20: 0 | IL20: 0 | IM20: 0 | IN20: 0 | IO20: 0 | IP20: 0 | IQ20: 0 | IR20: 0 | IS20: 0 | IT20: 0 | IU20: 0 | IV20: 0 | IW20: 0 | IX20: 0 | IY20: 0 | IZ20: 0 | JA20: 0 | JB20: 0 | JC20: 0 | JD20: 0 | JE20: 0 | JF20: 0 | JG20: 0 | JH20: 0 | JI20: 0 | JJ20: 0 | JK20: 0 | JL20: 0 | JM20: 0 | JN20: 0 | JO20: 0 | JP20: 0 | JQ20: 0 | JR20: 0 | JS20: 0 | JT20: 0 | JU20: 0 | JV20: 0 | JW20: 0 | JX20: 0 | JY20: 0 | JZ20: 0 | KA20: 0 | KB20: 0 | KC20: 0 | KD20: 0 | KE20: 0 | KF20: 0 | KG20: 0 | KH20: 0 | KI20: 0 | KJ20: 0 | KK20: 0 | KL20: 0 | KM20: 0 | KN20: 0 | KO20: 0 | KP20: 0 | KQ20: 0 | KR20: 0 | KS20: 0 | KT20: 0 | KU20: 0 | KV20: 0 | KW20: 0 | KX20: 0 | KY20: 0 | KZ20: 0 | LA20: 0 | LB20: 0 | LC20: 0 | LD20: 0 | LE20: 0 | LF20: 0 | LG20: 0 | LH20: 0 | LI20: 0 | LJ20: 0 | LK20: 0 | LL20: 0 | LM20: 0 | LN20: 0 | LO20: 0 | LP20: 0 | LQ20: 0 | LR20: 0 | LS20: 0 | LT20: 0 | LU20: 0 | LV20: 0 | LW20: 0 | LX20: 0 | LY20: 0 | LZ20: 0 | MA20: 0 | MB20: 0 | MC20: 0 | MD20: 0 | ME20: 0 | MF20: 0 | MG20: 0 | MH20: 0 | MI20: 0 | MJ20: 0 | MK20: 0 | ML20: 0 | MM20: 0 | MN20: 0 | MO20: 0 | MP20: 0 | MQ20: 0 | MR20: 0 | MS20: 0 | MT20: 0 | MU20: 0 | MV20: 0 | MW20: 0 | MX20: 0 | MY20: 0 | MZ20: 0 | NA20: 0 | NB20: 0 | NC20: 0 | ND20: 0 | NE20: 0 | NF20: 0 | NG20: 0 | NH20: 0 | NI20: 0 | NJ20: 0 | NK20: 0 | NL20: 0 | NM20: 0 | NN20: 0 | NO20: 0 | NP20: 0 | NQ20: 2249 | NR20: 3145 | NS20: 4327 | NT20: 7394 | NU20: 4932 | NV20: 6921 | NW20: 6651 | NX20: 3870 | NY20: 3337 | NZ20: 2681 | OA20: 2213 | OB20: 2277 | OC20: 1451.34 | OD20: 3385.8 | OE20: 4334.22 | OF20: 6924.06 | OG20: 6608 | OH20: 7150.77 | OI20: 5045.04 | OJ20: 5630.13 | OK20: 4412.43 | OL20: 5121.27 | OM20: 2213 | ON20: 2277 | OO20: 995 | OP20: 2774 | OQ20: 7577 | OR20: 8186 | OS20: 5953 | OT20: 5432 | OU20: 3910 | OV20: 3084 | OW20: 2456 | OX20: 2540 | OY20: 2508 | OZ20: 2382 | PA20: 1378 | PB20: 2259 | PC20: 2180 | PD20: 3228 | PE20: 5882 | PF20: 4408 | PG20: 3502 | PH20: 3216 | PI20: 3004 | PJ20: 2693 | PK20: 1331 | PL20: 1386 | PM20: 1073 | PN20: 1180 | PO20: 4461 | PP20: 5184 | PQ20: 5659 | PR20: 6405 | PS20: 4277 | PT20: 2720 | PU20: 4219 | PV20: 2998 | PW20: 1878 | PX20: 1659 | PY20: 2144 | PZ20: 1608 | QA20: 4761 | QB20: 5242 | QC20: 6023 | QD20: 3631 | QE20: 3905 | QF20: 3623 | QG20: 2841 | QH20: 4086 | QI20: 1979 | QJ20: 1677 | QK20: 1815 | QL20: 3353 | QM20: 2921 | QN20: 5187 | QO20: 4318 | QP20: 5311 | QQ20: 3646 | QR20: 4189 | QS20: 4571 | QT20: 3602 | QU20: 637 | QV20: 1433 | QW20: 2165.357 | QX20: 2097.025 | QY20: 3596.274 | QZ20: 4301.395 | RA20: 5516.258 | RB20: 5270.686 | RC20: 5591.486 | RD20: 5174.693 | RE20: 3241.89 | RF20: 2378.445 | RG20: 1779.128 | RH20: 1923.363 | RI20: 1261.685 | RJ20: 2057.495 | RK20: 3724.018 | RL20: 5056.514 | RM20: 5877.721 | RN20: 7121.534 | RO20: 7354.839 | RP20: 5673.711 | RQ20: 4011.966 | RR20: 3402.304 | RS20: 1974.261 | RT20: 1430.952 | RU20: 1143.367 | RV20: 1679.61 | RW20: 3031.964 | RX20: 4151.419 | RY20: 5232.779 | RZ20: 6592.653 | SA20: 7027.649 | SB20: 5557.33 | SC20: 4186.604 | SD20: 2825.519 | SE20: 2316.518 | SF20: 2458.588 | SG20: 1416.963 | SH20: 2594.029 | SI20: 3690.669 | SJ20: 5793.538 | SK20: 6191.199 | SL20: 6155.693 | SM20: 5243.801 | SN20: 5479.334 | SO20: 3151.962 | SP20: 2508.512 | SQ20: 2585.099 | SR20: 1907.201 | SS20: 1762.533 | ST20: 2702.594 | SU20: 3452.777 | SV20: 3575.878 | SW20: 6113.884 | SX20: 6323.582 | SY20: 4647.249 | SZ20: 4642.892 | TA20: 3233.212 | TB20: 3601.174 | TC20: 1808.711 | TD20: 3146.514 | TE20: 1479 | TF20: 2740 | TG20: 5401 | TH20: 5201 | TI20: 6448 | TJ20: 5078 | TK20: 4065 | TL20: 2742 | TM20: 3158 | TN20: 2826 | TO20: 1924 | TP20: 1805 | TQ20: 1064 | TR20: 3041 | TS20: 3474 | TT20: 2745 | TU20: 5856 | TV20: 6557 | TW20: 4364 | TX20: 1995 | TY20: 2365 | TZ20: 2142 | UA20: 2897 | UB20: 736 | UC20: 117 | UD20: 2558 | UE20: 2317 | UF20: 3161 | UG20: 7237 | UH20: 5452 | UI20: 4495 | UJ20: 4301 | UK20: 2677 | UL20: 1705 | UM20: 2116 | UN20: 2864 | UO20: 0 | UP20: 0 | UQ20: 0 | UR20: 0 | US20: 0 | UT20: 0 | UU20: 0 | UV20: 0 | UW20: 0 | UX20: 0 | UY20: 0 | UZ20: 0 | VA20: 0 | VB20: 0 | VC20: 0 | VD20: 0 | VE20: 0 | VF20: 0 | VG20: 0 | VH20: 0 | VI20: 0 | VJ20: 0 | VK20: 0
A21: 175 | B21: 2952582 | C21: 7936 | D21: Nine Canyon | E21: WT | F21: WA | I21: 0 | J21: 0 | K21: 0 | L21: 0 | M21: 0 | N21: 0 | O21: 0 | P21: 0 | Q21: 0 | R21: 0 | S21: 0 | T21: 0 | U21: 0 | V21: 0 | W21: 0 | X21: 0 | Y21: 0 | Z21: 0 | AA21: 0 | AB21: 0 | AC21: 0 | AD21: 0 | AE21: 0 | AF21: 0 | AG21: 0 | AH21: 0 | AI21: 0 | AJ21: 0 | AK21: 0 | AL21: 0 | AM21: 0 | AN21: 0 | AO21: 0 | AP21: 0 | AQ21: 0 | AR21: 0 | AS21: 0 | AT21: 0 | AU21: 0 | AV21: 0 | AW21: 0 | AX21: 0 | AY21: 0 | AZ21: 0 | BA21: 0 | BB21: 0 | BC21: 0 | BD21: 0 | BE21: 0 | BF21: 0 | BG21: 0 | BH21: 0 | BI21: 0 | BJ21: 0 | BK21: 0 | BL21: 0 | BM21: 0 | BN21: 0 | BO21: 0 | BP21: 0 | BQ21: 0 | BR21: 0 | BS21: 0 | BT21: 0 | BU21: 0 | BV21: 0 | BW21: 0 | BX21: 0 | BY21: 0 | BZ21: 0 | CA21: 0 | CB21: 0 | CC21: 0 | CD21: 0 | CE21: 0 | CF21: 0 | CG21: 0 | CH21: 0 | CI21: 0 | CJ21: 0 | CK21: 0 | CL21: 0 | CM21: 0 | CN21: 0 | CO21: 0 | CP21: 0 | CQ21: 0 | CR21: 0 | CS21: 0 | CT21: 0 | CU21: 0 | CV21: 0 | CW21: 0 | CX21: 0 | CY21: 0 | CZ21: 0 | DA21: 0 | DB21: 0 | DC21: 0 | DD21: 0 | DE21: 0 | DF21: 0 | DG21: 0 | DH21: 0 | DI21: 0 | DJ21: 0 | DK21: 0 | DL21: 0 | DM21: 0 | DN21: 0 | DO21: 0 | DP21: 0 | DQ21: 0 | DR21: 0 | DS21: 0 | DT21: 0 | DU21: 0 | DV21: 0 | DW21: 0 | DX21: 0 | DY21: 0 | DZ21: 0 | EA21: 0 | EB21: 0 | EC21: 0 | ED21: 0 | EE21: 0 | EF21: 0 | EG21: 0 | EH21: 0 | EI21: 0 | EJ21: 0 | EK21: 0 | EL21: 0 | EM21: 0 | EN21: 0 | EO21: 0 | EP21: 0 | EQ21: 0 | ER21: 0 | ES21: 0 | ET21: 0 | EU21: 0 | EV21: 0 | EW21: 0 | EX21: 0 | EY21: 0 | EZ21: 0 | FA21: 0 | FB21: 0 | FC21: 0 | FD21: 0 | FE21: 0 | FF21: 0 | FG21: 0 | FH21: 0 | FI21: 0 | FJ21: 0 | FK21: 0 | FL21: 0 | FM21: 0 | FN21: 0 | FO21: 0 | FP21: 0 | FQ21: 0 | FR21: 0 | FS21: 0 | FT21: 0 | FU21: 0 | FV21: 0 | FW21: 0 | FX21: 0 | FY21: 0 | FZ21: 0 | GA21: 0 | GB21: 0 | GC21: 0 | GD21: 0 | GE21: 0 | GF21: 0 | GG21: 0 | GH21: 0 | GI21: 0 | GJ21: 0 | GK21: 0 | GL21: 0 | GM21: 0 | GN21: 0 | GO21: 0 | GP21: 0 | GQ21: 0 | GR21: 0 | GS21: 0 | GT21: 0 | GU21: 0 | GV21: 0 | GW21: 0 | GX21: 0 | GY21: 0 | GZ21: 0 | HA21: 0 | HB21: 0 | HC21: 0 | HD21: 0 | HE21: 0 | HF21: 0 | HG21: 0 | HH21: 0 | HI21: 0 | HJ21: 0 | HK21: 0 | HL21: 0 | HM21: 0 | HN21: 0 | HO21: 0 | HP21: 0 | HQ21: 0 | HR21: 0 | HS21: 0 | HT21: 0 | HU21: 0 | HV21: 0 | HW21: 0 | HX21: 0 | HY21: 0 | HZ21: 0 | IA21: 0 | IB21: 0 | IC21: 0 | ID21: 0 | IE21: 0 | IF21: 0 | IG21: 0 | IH21: 0 | II21: 0 | IJ21: 0 | IK21: 0 | IL21: 0 | IM21: 0 | IN21: 0 | IO21: 0 | IP21: 0 | IQ21: 0 | IR21: 0 | IS21: 0 | IT21: 0 | IU21: 0 | IV21: 0 | IW21: 0 | IX21: 0 | IY21: 0 | IZ21: 0 | JA21: 0 | JB21: 0 | JC21: 0 | JD21: 0 | JE21: 0 | JF21: 0 | JG21: 0 | JH21: 0 | JI21: 0 | JJ21: 0 | JK21: 0 | JL21: 0 | JM21: 0 | JN21: 0 | JO21: 0 | JP21: 0 | JQ21: 0 | JR21: 0 | JS21: 0 | JT21: 0 | JU21: 0 | JV21: 0 | JW21: 0 | JX21: 0 | JY21: 0 | JZ21: 0 | KA21: 0 | KB21: 0 | KC21: 0 | KD21: 0 | KE21: 0 | KF21: 0 | KG21: 0 | KH21: 0 | KI21: 0 | KJ21: 0 | KK21: 0 | KL21: 0 | KM21: 0 | KN21: 0 | KO21: 0 | KP21: 0 | KQ21: 0 | KR21: 0 | KS21: 0 | KT21: 0 | KU21: 0 | KV21: 0 | KW21: 0 | KX21: 0 | KY21: 0 | KZ21: 0 | LA21: 0 | LB21: 0 | LC21: 0 | LD21: 0 | LE21: 0 | LF21: 0 | LG21: 0 | LH21: 0 | LI21: 0 | LJ21: 0 | LK21: 0 | LL21: 0 | LM21: 0 | LN21: 0 | LO21: 0 | LP21: 0 | LQ21: 0 | LR21: 0 | LS21: 0 | LT21: 0 | LU21: 0 | LV21: 0 | LW21: 0 | LX21: 0 | LY21: 0 | LZ21: 0 | MA21: 0 | MB21: 0 | MC21: 0 | MD21: 0 | ME21: 0 | MF21: 0 | MG21: 0 | MH21: 0 | MI21: 0 | MJ21: 0 | MK21: 0 | ML21: 0 | MM21: 0 | MN21: 0 | MO21: 0 | MP21: 0 | MQ21: 0 | MR21: 0 | MS21: 0 | MT21: 0 | MU21: 0 | MV21: 0 | MW21: 0 | MX21: 0 | MY21: 0 | MZ21: 0 | NA21: 0 | NB21: 0 | NC21: 0 | ND21: 0 | NE21: 0 | NF21: 0 | NG21: 0 | NH21: 0 | NI21: 0 | NJ21: 0 | NK21: 0 | NL21: 0 | NM21: 0 | NN21: 0 | NO21: 0 | NP21: 0 | NQ21: 0 | NR21: 0 | NS21: 0 | NT21: 0 | NU21: 0 | NV21: 0 | NW21: 0 | NX21: 0 | NY21: 0 | NZ21: 0 | OA21: 0 | OB21: 0 | OC21: 0 | OD21: 0 | OE21: 0 | OF21: 0 | OG21: 0 | OH21: 133 | OI21: 1980 | OJ21: 4201 | OK21: 6889 | OL21: 5244 | OM21: 9579 | ON21: 9728 | OO21: 7467 | OP21: 8899 | OQ21: 16843 | OR21: 12298 | OS21: 9719 | OT21: 9082 | OU21: 7083 | OV21: 7271 | OW21: 7063 | OX21: 11770 | OY21: 16015 | OZ21: 10790 | PA21: 13486 | PB21: 6006 | PC21: 19967 | PD21: 10081 | PE21: 16156 | PF21: 12761 | PG21: 10486 | PH21: 13270 | PI21: 12419 | PJ21: 15236 | PK21: 10638 | PL21: 12031 | PM21: 12123 | PN21: 8714 | PO21: 16741 | PP21: 12446 | PQ21: 13222 | PR21: 17197 | PS21: 7398 | PT21: 9168 | PU21: 10455 | PV21: 13922 | PW21: 15143 | PX21: 10819 | PY21: 25612 | PZ21: 15014 | QA21: 14998 | QB21: 13220 | QC21: 12497 | QD21: 10093 | QE21: 13553 | QF21: 9051 | QG21: 7064 | QH21: 11992 | QI21: 23011 | QJ21: 8408 | QK21: 13553 | QL21: 14485 | QM21: 16032 | QN21: 13951 | QO21: 11880 | QP21: 13726 | QQ21: 8483 | QR21: 10488 | QS21: 10466 | QT21: 17101 | QU21: 11105 | QV21: 21446 | QW21: 26865 | QX21: 24813 | QY21: 30325 | QZ21: 26916 | RA21: 19163 | RB21: 26925 | RC21: 16053 | RD21: 17135 | RE21: 11076 | RF21: 17097 | RG21: 14573 | RH21: 25108 | RI21: 24472 | RJ21: 11252 | RK21: 29403 | RL21: 19728 | RM21: 22203 | RN21: 18170 | RO21: 12249 | RP21: 18817 | RQ21: 16154 | RR21: 21461 | RS21: 28603 | RT21: 11124 | RU21: 15002 | RV21: 9946 | RW21: 21609 | RX21: 30605 | RY21: 21830 | RZ21: 19328 | SA21: 14530 | SB21: 17474 | SC21: 16578 | SD21: 17034 | SE21: 19693 | SF21: 19274 | SG21: 29256 | SH21: 26569 | SI21: 27652 | SJ21: 28501 | SK21: 23638 | SL21: 24534 | SM21: 15148 | SN21: 18160 | SO21: 13093 | SP21: 20275 | SQ21: 25347 | SR21: 14463 | SS21: 28571 | ST21: 22050 | SU21: 35348 | SV21: 23116 | SW21: 19150 | SX21: 26903 | SY21: 14768 | SZ21: 9124 | TA21: 6817 | TB21: 23992 | TC21: 18048 | TD21: 30166 | TE21: 16907 | TF21: 24722 | TG21: 24557 | TH21: 28039 | TI21: 18290 | TJ21: 12798 | TK21: 10523 | TL21: 12435 | TM21: 22190 | TN21: 13379 | TO21: 19814 | TP21: 21243 | TQ21: 18879 | TR21: 23879 | TS21: 28515 | TT21: 26586 | TU21: 21569 | TV21: 20350 | TW21: 15582 | TX21: 13740 | TY21: 12999 | TZ21: 18286 | UA21: 24495 | UB21: 19393 | UC21: 10051 | UD21: 13881 | UE21: 22081 | UF21: 18903 | UG21: 15966 | UH21: 11372 | UI21: 18699 | UJ21: 17384 | UK21: 14178 | UL21: 19112 | UM21: 21662 | UN21: 27919 | UO21: 13866 | UP21: 24433 | UQ21: 26318 | UR21: 20640 | US21: 19153 | UT21: 21255 | UU21: 13697 | UV21: 14647 | UW21: 18881 | UX21: 26356 | UY21: 22807 | UZ21: 23706 | VA21: 0 | VB21: 0 | VC21: 0 | VD21: 0 | VE21: 0 | VF21: 0 | VG21: 0 | VH21: 0 | VI21: 0 | VJ21: 0 | VK21: 0
A22: 174 | B22: 430727.71 | C22: 50386 | D22: Windland | E22: WT | F22: CA | I22: 0 | J22: 0 | K22: 0 | L22: 0 | M22: 0 | N22: 0 | O22: 0 | P22: 0 | Q22: 0 | R22: 0 | S22: 0 | T22: 0 | U22: 0 | V22: 0 | W22: 0 | X22: 0 | Y22: 0 | Z22: 0 | AA22: 0 | AB22: 0 | AC22: 0 | AD22: 0 | AE22: 0 | AF22: 0 | AG22: 0 | AH22: 0 | AI22: 0 | AJ22: 0 | AK22: 0 | AL22: 0 | AM22: 0 | AN22: 0 | AO22: 0 | AP22: 0 | AQ22: 0 | AR22: 0 | AS22: 0 | AT22: 0 | AU22: 0 | AV22: 0 | AW22: 0 | AX22: 0 | AY22: 0 | AZ22: 0 | BA22: 0 | BB22: 0 | BC22: 0 | BD22: 0 | BE22: 0 | BF22: 0 | BG22: 0 | BH22: 0 | BI22: 0 | BJ22: 0 | BK22: 0 | BL22: 0 | BM22: 0 | BN22: 0 | BO22: 0 | BP22: 0 | BQ22: 0 | BR22: 0 | BS22: 0 | BT22: 0 | BU22: 0 | BV22: 0 | BW22: 0 | BX22: 0 | BY22: 0 | BZ22: 0 | CA22: 0 | CB22: 0 | CC22: 0 | CD22: 0 | CE22: 0 | CF22: 0 | CG22: 0 | CH22: 0 | CI22: 0 | CJ22: 0 | CK22: 0 | CL22: 0 | CM22: 0 | CN22: 0 | CO22: 0 | CP22: 0 | CQ22: 0 | CR22: 0 | CS22: 0 | CT22: 0 | CU22: 0 | CV22: 0 | CW22: 0 | CX22: 0 | CY22: 0 | CZ22: 0 | DA22: 0 | DB22: 0 | DC22: 0 | DD22: 0 | DE22: 0 | DF22: 0 | DG22: 0 | DH22: 0 | DI22: 0 | DJ22: 0 | DK22: 0 | DL22: 0 | DM22: 0 | DN22: 0 | DO22: 0 | DP22: 0 | DQ22: 0 | DR22: 0 | DS22: 0 | DT22: 0 | DU22: 0 | DV22: 0 | DW22: 0 | DX22: 0 | DY22: 0 | DZ22: 0 | EA22: 0 | EB22: 0 | EC22: 0 | ED22: 0 | EE22: 0 | EF22: 0 | EG22: 0 | EH22: 0 | EI22: 0 | EJ22: 0 | EK22: 0 | EL22: 0 | EM22: 0 | EN22: 0 | EO22: 0 | EP22: 0 | EQ22: 0 | ER22: 0 | ES22: 0 | ET22: 0 | EU22: 0 | EV22: 0 | EW22: 0 | EX22: 0 | EY22: 0 | EZ22: 0 | FA22: 0 | FB22: 0 | FC22: 0 | FD22: 0 | FE22: 0 | FF22: 0 | FG22: 0 | FH22: 0 | FI22: 0 | FJ22: 0 | FK22: 0 | FL22: 0 | FM22: 0 | FN22: 0 | FO22: 0 | FP22: 0 | FQ22: 0 | FR22: 0 | FS22: 0 | FT22: 0 | FU22: 0 | FV22: 0 | FW22: 0 | FX22: 0 | FY22: 0 | FZ22: 0 | GA22: 0 | GB22: 0 | GC22: 0 | GD22: 0 | GE22: 0 | GF22: 0 | GG22: 0 | GH22: 0 | GI22: 0 | GJ22: 0 | GK22: 0 | GL22: 0 | GM22: 0 | GN22: 0 | GO22: 0 | GP22: 0 | GQ22: 0 | GR22: 0 | GS22: 0 | GT22: 0 | GU22: 0 | GV22: 0 | GW22: 0 | GX22: 0 | GY22: 0 | GZ22: 0 | HA22: 0 | HB22: 0 | HC22: 0 | HD22: 0 | HE22: 0 | HF22: 0 | HG22: 0 | HH22: 0 | HI22: 0 | HJ22: 0 | HK22: 0 | HL22: 0 | HM22: 0 | HN22: 0 | HO22: 0 | HP22: 0 | HQ22: 0 | HR22: 0 | HS22: 0 | HT22: 0 | HU22: 0 | HV22: 0 | HW22: 0 | HX22: 0 | HY22: 0 | HZ22: 0 | IA22: 0 | IB22: 0 | IC22: 0 | ID22: 0 | IE22: 0 | IF22: 0 | IG22: 0 | IH22: 0 | II22: 0 | IJ22: 0 | IK22: 0 | IL22: 0 | IM22: 0 | IN22: 0 | IO22: 0 | IP22: 0 | IQ22: 0 | IR22: 0 | IS22: 0 | IT22: 0 | IU22: 0 | IV22: 0 | IW22: 0 | IX22: 0 | IY22: 0 | IZ22: 0 | JA22: 6 | JB22: 0 | JC22: 0 | JD22: 0 | JE22: 7 | JF22: 5 | JG22: 10 | JH22: 6 | JI22: 2 | JJ22: 0 | JK22: 0 | JL22: 0 | JM22: 0 | JN22: 0 | JO22: 0 | JP22: 0 | JQ22: 0 | JR22: 0 | JS22: 0 | JT22: 0 | JU22: 0 | JV22: 0 | JW22: 0 | JX22: 0 | JY22: 0 | JZ22: 0 | KA22: 0 | KB22: 0 | KC22: 0 | KD22: 0 | KE22: 0 | KF22: 0 | KG22: 0 | KH22: 0 | KI22: 0 | KJ22: 0 | KK22: 0 | KL22: 0 | KM22: 0 | KN22: 0 | KO22: 0 | KP22: 0 | KQ22: 0 | KR22: 0 | KS22: 0 | KT22: 0 | KU22: 0 | KV22: 0 | KW22: 0 | KX22: 0 | KY22: 0 | KZ22: 0 | LA22: 0 | LB22: 0 | LC22: 0 | LD22: 0 | LE22: 0 | LF22: 0 | LG22: 0 | LH22: 0 | LI22: 0 | LJ22: 0 | LK22: 0 | LL22: 0 | LM22: 0 | LN22: 0 | LO22: 0 | LP22: 0 | LQ22: 0 | LR22: 0 | LS22: 0 | LT22: 0 | LU22: 0 | LV22: 0 | LW22: 0 | LX22: 0 | LY22: 0 | LZ22: 0 | MA22: 0 | MB22: 0 | MC22: 0 | MD22: 0 | ME22: 0 | MF22: 0 | MG22: 0 | MH22: 0 | MI22: 0 | MJ22: 0 | MK22: 0 | ML22: 0 | MM22: 0 | MN22: 0 | MO22: 0 | MP22: 0 | MQ22: 0 | MR22: 0 | MS22: 0 | MT22: 0 | MU22: 0 | MV22: 0 | MW22: 0 | MX22: 0 | MY22: 0 | MZ22: 0 | NA22: 0 | NB22: 0 | NC22: 0 | ND22: 0 | NE22: 0 | NF22: 0 | NG22: 0 | NH22: 0 | NI22: 0 | NJ22: 0 | NK22: 0 | NL22: 0 | NM22: 0 | NN22: 0 | NO22: 0 | NP22: 0 | NQ22: 4819 | NR22: 3400 | NS22: 3400 | NT22: 3400 | NU22: 3400 | NV22: 3400 | NW22: 2544 | NX22: 1983 | NY22: 1401 | NZ22: 2 | OA22: 1431 | OB22: 1746 | OC22: 1183 | OD22: 1633 | OE22: 2123 | OF22: 2900 | OG22: 3777 | OH22: 3912 | OI22: 2150 | OJ22: 3226 | OK22: 1991 | OL22: 2029 | OM22: 1691 | ON22: 6075 | OO22: 1498 | OP22: 2049 | OQ22: 3412 | OR22: 3196.71 | OS22: 3335 | OT22: 3551 | OU22: 2692 | OV22: 1649 | OW22: 1531 | OX22: 1468 | OY22: 1959 | OZ22: 1977 | PA22: 802.72 | PB22: 1247.345 | PC22: 1775.419 | PD22: 2463.798 | PE22: 3910.441 | PF22: 4211.887 | PG22: 3628.773 | PH22: 3033.535 | PI22: 2212.314 | PJ22: 1598.636 | PK22: 957.754 | PL22: 724.38 | PM22: 1806.46 | PN22: 1352.567 | PO22: 2383.994 | PP22: 2715.152 | PQ22: 2796.873 | PR22: 3124.173 | PS22: 2503.375 | PT22: 1938.312 | PU22: 2301.611 | PV22: 2115.086 | PW22: 1872.615 | PX22: 1858.781 | PY22: 2187.497 | PZ22: 1738.578 | QA22: 2430.99 | QB22: 2611.745 | QC22: 2668.696 | QD22: 2474.426 | QE22: 2290.578 | QF22: 1921.106 | QG22: 2106.049 | QH22: 2609.083 | QI22: 2572.656 | QJ22: 2324.595 | QK22: 1292.458 | QL22: 1707.007 | QM22: 2463.121 | QN22: 3399.509 | QO22: 4067.523 | QP22: 4062.793 | QQ22: 3747.402 | QR22: 3332.09 | QS22: 2696.878 | QT22: 1938.309 | QU22: 1044.73 | QV22: 1294.18 | QW22: 1601.879 | QX22: 1551.329 | QY22: 2660.437 | QZ22: 3182.069 | RA22: 4080.796 | RB22: 3899.127 | RC22: 4136.447 | RD22: 3828.114 | RE22: 2398.272 | RF22: 1759.516 | RG22: 1316.156 | RH22: 1422.858 | RI22: 814.101 | RJ22: 1327.596 | RK22: 2402.919 | RL22: 3262.711 | RM22: 3792.593 | RN22: 4595.162 | RO22: 4745.702 | RP22: 3660.956 | RQ22: 2588.717 | RR22: 2195.333 | RS22: 1273.89 | RT22: 923.32 | RU22: 744.114 | RV22: 1093.106 | RW22: 1973.231 | RX22: 2701.783 | RY22: 3405.542 | RZ22: 4290.561 | SA22: 4573.66 | SB22: 3616.763 | SC22: 2724.682 | SD22: 1838.874 | SE22: 1507.612 | SF22: 1600.072 | SG22: 1051.152 | SH22: 1924.339 | SI22: 2737.864 | SJ22: 4297.843 | SK22: 4592.842 | SL22: 4566.502 | SM22: 3890.03 | SN22: 4064.756 | SO22: 2338.233 | SP22: 1860.899 | SQ22: 1917.714 | SR22: 1414.826 | SS22: 1414.301 | ST22: 2168.632 | SU22: 2770.598 | SV22: 2869.378 | SW22: 4905.94 | SX22: 5074.207 | SY22: 3729.074 | SZ22: 3725.578 | TA22: 2594.414 | TB22: 2889.676 | TC22: 1451.357 | TD22: 2524.845 | TE22: 1305.381 | TF22: 1971.756 | TG22: 2874.866 | TH22: 4231.39 | TI22: 4745.073 | TJ22: 4448.164 | TK22: 3848.435 | TL22: 3534.808 | TM22: 3160.417 | TN22: 2037.822 | TO22: 1511.384 | TP22: 1246.504 | TQ22: 0 | TR22: 0 | TS22: 0 | TT22: 0 | TU22: 0 | TV22: 0 | TW22: 0 | TX22: 0 | TY22: 0 | TZ22: 0 | UA22: 0 | UB22: 0 | UC22: 418.401 | UD22: 1379.206 | UE22: 1845.667 | UF22: 2814.673 | UG22: 3742.999 | UH22: 3719.375 | UI22: 3222.32 | UJ22: 3395.868 | UK22: 1817.404 | UL22: 1485.972 | UM22: 1378.154 | UN22: 2038.961 | UO22: 0 | UP22: 0 | UQ22: 0 | UR22: 0 | US22: 0 | UT22: 0 | UU22: 0 | UV22: 0 | UW22: 0 | UX22: 0 | UY22: 0 | UZ22: 0 | VA22: 0 | VB22: 0 | VC22: 0 | VD22: 0 | VE22: 0 | VF22: 0 | VG22: 0 | VH22: 0 | VI22: 0 | VJ22: 0 | VK22: 0
A23: 172 | B23: 7930480 | C23: 50712 | D23: Altamont Pass Windplant | E23: WT | F23: CA | I23: 0 | J23: 0 | K23: 0 | L23: 0 | M23: 0 | N23: 0 | O23: 0 | P23: 0 | Q23: 0 | R23: 0 | S23: 0 | T23: 0 | U23: 0 | V23: 0 | W23: 0 | X23: 0 | Y23: 0 | Z23: 0 | AA23: 0 | AB23: 0 | AC23: 0 | AD23: 0 | AE23: 0 | AF23: 0 | AG23: 0 | AH23: 0 | AI23: 0 | AJ23: 0 | AK23: 0 | AL23: 0 | AM23: 0 | AN23: 0 | AO23: 0 | AP23: 0 | AQ23: 0 | AR23: 0 | AS23: 0 | AT23: 0 | AU23: 0 | AV23: 0 | AW23: 0 | AX23: 0 | AY23: 0 | AZ23: 0 | BA23: 0 | BB23: 0 | BC23: 0 | BD23: 0 | BE23: 0 | BF23: 0 | BG23: 0 | BH23: 0 | BI23: 0 | BJ23: 0 | BK23: 0 | BL23: 0 | BM23: 0 | BN23: 0 | BO23: 0 | BP23: 0 | BQ23: 0 | BR23: 0 | BS23: 0 | BT23: 0 | BU23: 0 | BV23: 0 | BW23: 0 | BX23: 0 | BY23: 0 | BZ23: 0 | CA23: 0 | CB23: 0 | CC23: 0 | CD23: 0 | CE23: 0 | CF23: 0 | CG23: 0 | CH23: 0 | CI23: 0 | CJ23: 0 | CK23: 0 | CL23: 0 | CM23: 0 | CN23: 0 | CO23: 0 | CP23: 0 | CQ23: 0 | CR23: 0 | CS23: 0 | CT23: 0 | CU23: 0 | CV23: 0 | CW23: 0 | CX23: 0 | CY23: 0 | CZ23: 0 | DA23: 0 | DB23: 0 | DC23: 0 | DD23: 0 | DE23: 0 | DF23: 0 | DG23: 0 | DH23: 0 | DI23: 0 | DJ23: 0 | DK23: 0 | DL23: 0 | DM23: 0 | DN23: 0 | DO23: 0 | DP23: 0 | DQ23: 0 | DR23: 0 | DS23: 0 | DT23: 0 | DU23: 0 | DV23: 0 | DW23: 0 | DX23: 0 | DY23: 0 | DZ23: 0 | EA23: 0 | EB23: 0 | EC23: 0 | ED23: 0 | EE23: 0 | EF23: 0 | EG23: 0 | EH23: 0 | EI23: 0 | EJ23: 0 | EK23: 0 | EL23: 0 | EM23: 0 | EN23: 0 | EO23: 0 | EP23: 0 | EQ23: 0 | ER23: 0 | ES23: 0 | ET23: 0 | EU23: 0 | EV23: 0 | EW23: 0 | EX23: 0 | EY23: 0 | EZ23: 0 | FA23: 0 | FB23: 0 | FC23: 0 | FD23: 0 | FE23: 0 | FF23: 0 | FG23: 0 | FH23: 0 | FI23: 0 | FJ23: 0 | FK23: 0 | FL23: 0 | FM23: 0 | FN23: 0 | FO23: 0 | FP23: 0 | FQ23: 0 | FR23: 0 | FS23: 0 | FT23: 0 | FU23: 0 | FV23: 0 | FW23: 0 | FX23: 0 | FY23: 0 | FZ23: 0 | GA23: 0 | GB23: 0 | GC23: 0 | GD23: 0 | GE23: 0 | GF23: 0 | GG23: 0 | GH23: 0 | GI23: 0 | GJ23: 0 | GK23: 0 | GL23: 0 | GM23: 0 | GN23: 0 | GO23: 0 | GP23: 0 | GQ23: 0 | GR23: 0 | GS23: 0 | GT23: 0 | GU23: 0 | GV23: 0 | GW23: 0 | GX23: 0 | GY23: 0 | GZ23: 0 | HA23: 0 | HB23: 0 | HC23: 0 | HD23: 0 | HE23: 0 | HF23: 0 | HG23: 0 | HH23: 0 | HI23: 0 | HJ23: 0 | HK23: 0 | HL23: 0 | HM23: 0 | HN23: 0 | HO23: 0 | HP23: 0 | HQ23: 0 | HR23: 0 | HS23: 0 | HT23: 0 | HU23: 0 | HV23: 0 | HW23: 0 | HX23: 0 | HY23: 0 | HZ23: 0 | IA23: 0 | IB23: 0 | IC23: 0 | ID23: 0 | IE23: 0 | IF23: 0 | IG23: 0 | IH23: 0 | II23: 0 | IJ23: 0 | IK23: 0 | IL23: 0 | IM23: 0 | IN23: 0 | IO23: 0 | IP23: 0 | IQ23: 0 | IR23: 0 | IS23: 0 | IT23: 0 | IU23: 0 | IV23: 0 | IW23: 0 | IX23: 0 | IY23: 0 | IZ23: 0 | JA23: 0 | JB23: 0 | JC23: 0 | JD23: 0 | JE23: 0 | JF23: 0 | JG23: 0 | JH23: 0 | JI23: 0 | JJ23: 0 | JK23: 0 | JL23: 0 | JM23: 0 | JN23: 0 | JO23: 0 | JP23: 0 | JQ23: 0 | JR23: 0 | JS23: 0 | JT23: 0 | JU23: 0 | JV23: 0 | JW23: 0 | JX23: 0 | JY23: 0 | JZ23: 0 | KA23: 0 | KB23: 0 | KC23: 0 | KD23: 0 | KE23: 0 | KF23: 0 | KG23: 0 | KH23: 0 | KI23: 0 | KJ23: 0 | KK23: 0 | KL23: 0 | KM23: 0 | KN23: 0 | KO23: 0 | KP23: 0 | KQ23: 0 | KR23: 0 | KS23: 0 | KT23: 0 | KU23: 0 | KV23: 0 | KW23: 0 | KX23: 0 | KY23: 0 | KZ23: 0 | LA23: 0 | LB23: 0 | LC23: 0 | LD23: 0 | LE23: 0 | LF23: 0 | LG23: 0 | LH23: 0 | LI23: 0 | LJ23: 0 | LK23: 0 | LL23: 0 | LM23: 0 | LN23: 0 | LO23: 0 | LP23: 0 | LQ23: 0 | LR23: 0 | LS23: 0 | LT23: 0 | LU23: 0 | LV23: 0 | LW23: 0 | LX23: 0 | LY23: 0 | LZ23: 0 | MA23: 0 | MB23: 0 | MC23: 0 | MD23: 0 | ME23: 0 | MF23: 0 | MG23: 0 | MH23: 0 | MI23: 0 | MJ23: 0 | MK23: 0 | ML23: 0 | MM23: 0 | MN23: 0 | MO23: 0 | MP23: 0 | MQ23: 0 | MR23: 0 | MS23: 0 | MT23: 0 | MU23: 0 | MV23: 0 | MW23: 0 | MX23: 0 | MY23: 0 | MZ23: 0 | NA23: 0 | NB23: 0 | NC23: 0 | ND23: 0 | NE23: 0 | NF23: 0 | NG23: 0 | NH23: 0 | NI23: 0 | NJ23: 0 | NK23: 0 | NL23: 0 | NM23: 0 | NN23: 0 | NO23: 0 | NP23: 0 | NQ23: 10045 | NR23: 16573 | NS23: 43897 | NT23: 64908 | NU23: 74029 | NV23: 81581 | NW23: 115979 | NX23: 109197 | NY23: 69991 | NZ23: 43195 | OA23: 12054 | OB23: 11539 | OC23: 3542 | OD23: 6243 | OE23: 34708 | OF23: 62829 | OG23: 89364 | OH23: 130636 | OI23: 125825 | OJ23: 125825 | OK23: 59548 | OL23: 50531 | OM23: 12909 | ON23: 534 | OO23: 1472 | OP23: 13878 | OQ23: 40136 | OR23: 43525 | OS23: 70472 | OT23: 129088 | OU23: 93756 | OV23: 100191 | OW23: 86336 | OX23: 56457 | OY23: 5834 | OZ23: 7822 | PA23: 1589 | PB23: 12469 | PC23: 41197 | PD23: 62613 | PE23: 115430 | PF23: 148290 | PG23: 131953 | PH23: 114366 | PI23: 59289 | PJ23: 38921 | PK23: 10000 | PL23: 7790 | PM23: 5801 | PN23: 4762 | PO23: 22759 | PP23: 50056 | PQ23: 70571 | PR23: 92860 | PS23: 87963 | PT23: 81489 | PU23: 72789 | PV23: 37091 | PW23: 9691 | PX23: 6222 | PY23: 6082 | PZ23: 7535 | QA23: 22829 | QB23: 34437 | QC23: 78554 | QD23: 109512 | QE23: 99951 | QF23: 107959 | QG23: 68434 | QH23: 36042 | QI23: 751 | QJ23: 9080 | QK23: 13528 | QL23: 12504 | QM23: 46389 | QN23: 68124 | QO23: 105653 | QP23: 105839 | QQ23: 120110 | QR23: 100360 | QS23: 70556 | QT23: 31383 | QU23: 4122 | QV23: 3882 | QW23: 8824 | QX23: 14518 | QY23: 41961 | QZ23: 60867 | RA23: 89329 | RB23: 82589 | RC23: 108432 | RD23: 93017 | RE23: 49586 | RF23: 22667 | RG23: 6562 | RH23: 0 | RI23: 0 | RJ23: 7697 | RK23: 30748 | RL23: 56986 | RM23: 77765 | RN23: 100862 | RO23: 113951 | RP23: 91250 | RQ23: 58136 | RR23: 29968 | RS23: 1241 | RT23: 656 | RU23: 802 | RV23: 5952 | RW23: 23626 | RX23: 51745 | RY23: 32554 | RZ23: 89466 | SA23: 109824 | SB23: 67395 | SC23: 95627 | SD23: 26663 | SE23: 3155 | SF23: 0 | SG23: 433 | SH23: 19070 | SI23: 19788 | SJ23: 50786 | SK23: 66216 | SL23: 64876 | SM23: 71383 | SN23: 72463 | SO23: 40049 | SP23: 17597 | SQ23: 2023 | SR23: 2117 | SS23: 1625 | ST23: 13700 | SU23: 27135 | SV23: 32455 | SW23: 59783 | SX23: 58732 | SY23: 60369 | SZ23: 63839 | TA23: 36828 | TB23: 24245 | TC23: 241 | TD23: 191 | TE23: 133 | TF23: 9458 | TG23: 21384 | TH23: 32900 | TI23: 59626 | TJ23: 53631 | TK23: 64463 | TL23: 73509 | TM23: 50170 | TN23: 15523 | TO23: 230 | TP23: 165 | TQ23: 75 | TR23: 3750 | TS23: 16992 | TT23: 33808 | TU23: 59360 | TV23: 60832 | TW23: 57595 | TX23: 53279 | TY23: 39905 | TZ23: 13917 | UA23: 0 | UB23: 0 | UC23: 0 | UD23: 6435 | UE23: 11962 | UF23: 17520 | UG23: 43828 | UH23: 30103 | UI23: 35997 | UJ23: 28580 | UK23: 15309 | UL23: 5650 | UM23: 0 | UN23: 0 | UO23: 0 | UP23: 0 | UQ23: 0 | UR23: 0 | US23: 0 | UT23: 0 | UU23: 0 | UV23: 0 | UW23: 0 | UX23: 0 | UY23: 0 | UZ23: 0 | VA23: 0 | VB23: 0 | VC23: 0 | VD23: 0 | VE23: 0 | VF23: 0 | VG23: 0 | VH23: 0 | VI23: 0 | VJ23: 0 | VK23: 0
A24: 171 | B24: 314473.999 | C24: 50276 | D24: Wintec Energy Ltd | E24: WT | F24: CA | I24: 0 | J24: 0 | K24: 0 | L24: 0 | M24: 0 | N24: 0 | O24: 0 | P24: 0 | Q24: 0 | R24: 0 | S24: 0 | T24: 0 | U24: 0 | V24: 0 | W24: 0 | X24: 0 | Y24: 0 | Z24: 0 | AA24: 0 | AB24: 0 | AC24: 0 | AD24: 0 | AE24: 0 | AF24: 0 | AG24: 0 | AH24: 0 | AI24: 0 | AJ24: 0 | AK24: 0 | AL24: 0 | AM24: 0 | AN24: 0 | AO24: 0 | AP24: 0 | AQ24: 0 | AR24: 0 | AS24: 0 | AT24: 0 | AU24: 0 | AV24: 0 | AW24: 0 | AX24: 0 | AY24: 0 | AZ24: 0 | BA24: 0 | BB24: 0 | BC24: 0 | BD24: 0 | BE24: 0 | BF24: 0 | BG24: 0 | BH24: 0 | BI24: 0 | BJ24: 0 | BK24: 0 | BL24: 0 | BM24: 0 | BN24: 0 | BO24: 0 | BP24: 0 | BQ24: 0 | BR24: 0 | BS24: 0 | BT24: 0 | BU24: 0 | BV24: 0 | BW24: 0 | BX24: 0 | BY24: 0 | BZ24: 0 | CA24: 0 | CB24: 0 | CC24: 0 | CD24: 0 | CE24: 0 | CF24: 0 | CG24: 0 | CH24: 0 | CI24: 0 | CJ24: 0 | CK24: 0 | CL24: 0 | CM24: 0 | CN24: 0 | CO24: 0 | CP24: 0 | CQ24: 0 | CR24: 0 | CS24: 0 | CT24: 0 | CU24: 0 | CV24: 0 | CW24: 0 | CX24: 0 | CY24: 0 | CZ24: 0 | DA24: 0 | DB24: 0 | DC24: 0 | DD24: 0 | DE24: 0 | DF24: 0 | DG24: 0 | DH24: 0 | DI24: 0 | DJ24: 0 | DK24: 0 | DL24: 0 | DM24: 0 | DN24: 0 | DO24: 0 | DP24: 0 | DQ24: 0 | DR24: 0 | DS24: 0 | DT24: 0 | DU24: 0 | DV24: 0 | DW24: 0 | DX24: 0 | DY24: 0 | DZ24: 0 | EA24: 0 | EB24: 0 | EC24: 0 | ED24: 0 | EE24: 0 | EF24: 0 | EG24: 0 | EH24: 0 | EI24: 0 | EJ24: 0 | EK24: 0 | EL24: 0 | EM24: 0 | EN24: 0 | EO24: 0 | EP24: 0 | EQ24: 0 | ER24: 0 | ES24: 0 | ET24: 0 | EU24: 0 | EV24: 0 | EW24: 0 | EX24: 0 | EY24: 0 | EZ24: 0 | FA24: 0 | FB24: 0 | FC24: 0 | FD24: 0 | FE24: 0 | FF24: 0 | FG24: 0 | FH24: 0 | FI24: 0 | FJ24: 0 | FK24: 0 | FL24: 0 | FM24: 0 | FN24: 0 | FO24: 0 | FP24: 0 | FQ24: 0 | FR24: 0 | FS24: 0 | FT24: 0 | FU24: 0 | FV24: 0 | FW24: 0 | FX24: 0 | FY24: 0 | FZ24: 0 | GA24: 0 | GB24: 0 | GC24: 0 | GD24: 0 | GE24: 0 | GF24: 0 | GG24: 0 | GH24: 0 | GI24: 0 | GJ24: 0 | GK24: 0 | GL24: 0 | GM24: 0 | GN24: 0 | GO24: 0 | GP24: 0 | GQ24: 0 | GR24: 0 | GS24: 0 | GT24: 0 | GU24: 0 | GV24: 0 | GW24: 0 | GX24: 0 | GY24: 0 | GZ24: 0 | HA24: 0 | HB24: 0 | HC24: 0 | HD24: 0 | HE24: 0 | HF24: 0 | HG24: 0 | HH24: 0 | HI24: 0 | HJ24: 0 | HK24: 0 | HL24: 0 | HM24: 0 | HN24: 0 | HO24: 0 | HP24: 0 | HQ24: 0 | HR24: 0 | HS24: 0 | HT24: 0 | HU24: 0 | HV24: 0 | HW24: 0 | HX24: 0 | HY24: 0 | HZ24: 0 | IA24: 0 | IB24: 0 | IC24: 0 | ID24: 0 | IE24: 0 | IF24: 0 | IG24: 0 | IH24: 0 | II24: 0 | IJ24: 0 | IK24: 0 | IL24: 0 | IM24: 0 | IN24: 0 | IO24: 0 | IP24: 0 | IQ24: 0 | IR24: 0 | IS24: 0 | IT24: 0 | IU24: 0 | IV24: 0 | IW24: 0 | IX24: 0 | IY24: 0 | IZ24: 0 | JA24: 0 | JB24: 0 | JC24: 0 | JD24: 0 | JE24: 0 | JF24: 0 | JG24: 0 | JH24: 0 | JI24: 0 | JJ24: 0 | JK24: 0 | JL24: 0 | JM24: -146 | JN24: -121 | JO24: -23 | JP24: 129 | JQ24: -63 | JR24: -54 | JS24: -8 | JT24: 215 | JU24: 1 | JV24: -41 | JW24: -70 | JX24: -124 | JY24: 0 | JZ24: 0 | KA24: 0 | KB24: 0 | KC24: 0 | KD24: 0 | KE24: 0 | KF24: 0 | KG24: 0 | KH24: 0 | KI24: 0 | KJ24: 0 | KK24: 0 | KL24: 0 | KM24: 0 | KN24: 0 | KO24: 0 | KP24: 0 | KQ24: 0 | KR24: 0 | KS24: 0 | KT24: 0 | KU24: 0 | KV24: 0 | KW24: 0 | KX24: 0 | KY24: 0 | KZ24: 0 | LA24: 0 | LB24: 0 | LC24: 0 | LD24: 0 | LE24: 0 | LF24: 0 | LG24: 0 | LH24: 0 | LI24: 0 | LJ24: 0 | LK24: 0 | LL24: 0 | LM24: 0 | LN24: 0 | LO24: 0 | LP24: 0 | LQ24: 0 | LR24: 0 | LS24: 0 | LT24: 0 | LU24: 0 | LV24: 0 | LW24: 0 | LX24: 0 | LY24: 0 | LZ24: 0 | MA24: 0 | MB24: 0 | MC24: 0 | MD24: 0 | ME24: 0 | MF24: 0 | MG24: 0 | MH24: 0 | MI24: 0 | MJ24: 0 | MK24: 0 | ML24: 0 | MM24: 0 | MN24: 0 | MO24: 0 | MP24: 0 | MQ24: 0 | MR24: 0 | MS24: 0 | MT24: 0 | MU24: 0 | MV24: 0 | MW24: 0 | MX24: 0 | MY24: 0 | MZ24: 0 | NA24: 0 | NB24: 0 | NC24: 0 | ND24: 0 | NE24: 0 | NF24: 0 | NG24: 0 | NH24: 0 | NI24: 0 | NJ24: 0 | NK24: 0 | NL24: 0 | NM24: 0 | NN24: 0 | NO24: 0 | NP24: 0 | NQ24: 1629 | NR24: 2526 | NS24: 4568 | NT24: 7329 | NU24: 5494 | NV24: 6139 | NW24: 6637 | NX24: 3987 | NY24: 4280 | NZ24: 3333 | OA24: 2223 | OB24: 1706 | OC24: 1453 | OD24: 1615 | OE24: 4362 | OF24: 6807 | OG24: 7392 | OH24: 7645 | OI24: 5543 | OJ24: 5270 | OK24: 3966 | OL24: 5296 | OM24: 1651 | ON24: 1781 | OO24: 677 | OP24: 2250 | OQ24: 3768 | OR24: 7791 | OS24: 5744 | OT24: 5741 | OU24: 4090 | OV24: 3320 | OW24: 2498 | OX24: 2261 | OY24: 1998 | OZ24: 1887 | PA24: 538.158 | PB24: 836.242 | PC24: 1190.273 | PD24: 1651.775 | PE24: 2621.631 | PF24: 2823.726 | PG24: 2432.795 | PH24: 2033.737 | PI24: 1483.175 | PJ24: 1071.754 | PK24: 642.096 | PL24: 485.637 | PM24: 1268.011 | PN24: 949.409 | PO24: 1673.4 | PP24: 1905.851 | PQ24: 1963.213 | PR24: 2192.955 | PS24: 1757.198 | PT24: 1360.562 | PU24: 1615.573 | PV24: 1484.645 | PW24: 1314.447 | PX24: 1304.737 | PY24: 1525.438 | PZ24: 1212.387 | QA24: 1695.236 | QB24: 1821.284 | QC24: 1860.999 | QD24: 1725.526 | QE24: 1597.321 | QF24: 1339.672 | QG24: 1468.64 | QH24: 1819.428 | QI24: 1794.026 | QJ24: 1621.042 | QK24: 793.185 | QL24: 1047.594 | QM24: 1511.623 | QN24: 2086.286 | QO24: 2496.248 | QP24: 2493.345 | QQ24: 2299.789 | QR24: 2044.911 | QS24: 1655.08 | QT24: 1189.545 | QU24: 641.153 | QV24: 794.241 | QW24: 851.682 | QX24: 824.806 | QY24: 1414.493 | QZ24: 1691.833 | RA24: 2169.665 | RB24: 2073.076 | RC24: 2199.254 | RD24: 2035.32 | RE24: 1275.106 | RF24: 935.494 | RG24: 699.77 | RH24: 756.501 | RI24: 576.26 | RJ24: 939.738 | RK24: 1700.904 | RL24: 2309.507 | RM24: 2684.584 | RN24: 3252.682 | RO24: 3359.241 | RP24: 2591.405 | RQ24: 1832.421 | RR24: 1553.965 | RS24: 901.722 | RT24: 653.571 | RU24: 487.546 | RV24: 716.208 | RW24: 1292.87 | RX24: 1770.22 | RY24: 2231.327 | RZ24: 2811.195 | SA24: 2996.683 | SB24: 2369.719 | SC24: 1785.224 | SD24: 1204.839 | SE24: 987.794 | SF24: 1048.375 | SG24: 470.087 | SH24: 860.586 | SI24: 1224.404 | SJ24: 1922.044 | SK24: 2053.97 | SL24: 2042.191 | SM24: 1739.665 | SN24: 1817.805 | SO24: 1045.684 | SP24: 832.215 | SQ24: 857.623 | SR24: 632.726 | SS24: 382.454 | ST24: 586.44 | SU24: 749.223 | SV24: 775.935 | SW24: 1326.66 | SX24: 1372.163 | SY24: 1008.413 | SZ24: 1007.468 | TA24: 701.579 | TB24: 781.424 | TC24: 392.475 | TD24: 682.766 | TE24: 285.109 | TF24: 430.651 | TG24: 627.899 | TH24: 924.177 | TI24: 1036.371 | TJ24: 971.523 | TK24: 840.536 | TL24: 772.037 | TM24: 690.266 | TN24: 445.081 | TO24: 330.101 | TP24: 272.249 | TQ24: 0 | TR24: 0 | TS24: 0 | TT24: 0 | TU24: 0 | TV24: 0 | TW24: 0 | TX24: 0 | TY24: 0 | TZ24: 0 | UA24: 0 | UB24: 0 | UC24: 47.734 | UD24: 157.355 | UE24: 210.574 | UF24: 321.128 | UG24: 427.042 | UH24: 424.346 | UI24: 367.637 | UJ24: 387.437 | UK24: 207.349 | UL24: 169.536 | UM24: 157.235 | UN24: 232.627 | UO24: 0 | UP24: 0 | UQ24: 0 | UR24: 0 | US24: 0 | UT24: 0 | UU24: 0 | UV24: 0 | UW24: 0 | UX24: 0 | UY24: 0 | UZ24: 0 | VA24: 0 | VB24: 0 | VC24: 0 | VD24: 0 | VE24: 0 | VF24: 0 | VG24: 0 | VH24: 0 | VI24: 0 | VJ24: 0 | VK24: 0
A25: 169 | B25: 39965 | C25: 7901 | D25: Byron | E25: WT | F25: WI | I25: 0 | J25: 0 | K25: 0 | L25: 0 | M25: 0 | N25: 0 | O25: 0 | P25: 0 | Q25: 0 | R25: 0 | S25: 0 | T25: 0 | U25: 0 | V25: 0 | W25: 0 | X25: 0 | Y25: 0 | Z25: 0 | AA25: 0 | AB25: 0 | AC25: 0 | AD25: 0 | AE25: 0 | AF25: 0 | AG25: 0 | AH25: 0 | AI25: 0 | AJ25: 0 | AK25: 0 | AL25: 0 | AM25: 0 | AN25: 0 | AO25: 0 | AP25: 0 | AQ25: 0 | AR25: 0 | AS25: 0 | AT25: 0 | AU25: 0 | AV25: 0 | AW25: 0 | AX25: 0 | AY25: 0 | AZ25: 0 | BA25: 0 | BB25: 0 | BC25: 0 | BD25: 0 | BE25: 0 | BF25: 0 | BG25: 0 | BH25: 0 | BI25: 0 | BJ25: 0 | BK25: 0 | BL25: 0 | BM25: 0 | BN25: 0 | BO25: 0 | BP25: 0 | BQ25: 0 | BR25: 0 | BS25: 0 | BT25: 0 | BU25: 0 | BV25: 0 | BW25: 0 | BX25: 0 | BY25: 0 | BZ25: 0 | CA25: 0 | CB25: 0 | CC25: 0 | CD25: 0 | CE25: 0 | CF25: 0 | CG25: 0 | CH25: 0 | CI25: 0 | CJ25: 0 | CK25: 0 | CL25: 0 | CM25: 0 | CN25: 0 | CO25: 0 | CP25: 0 | CQ25: 0 | CR25: 0 | CS25: 0 | CT25: 0 | CU25: 0 | CV25: 0 | CW25: 0 | CX25: 0 | CY25: 0 | CZ25: 0 | DA25: 0 | DB25: 0 | DC25: 0 | DD25: 0 | DE25: 0 | DF25: 0 | DG25: 0 | DH25: 0 | DI25: 0 | DJ25: 0 | DK25: 0 | DL25: 0 | DM25: 0 | DN25: 0 | DO25: 0 | DP25: 0 | DQ25: 0 | DR25: 0 | DS25: 0 | DT25: 0 | DU25: 0 | DV25: 0 | DW25: 0 | DX25: 0 | DY25: 0 | DZ25: 0 | EA25: 0 | EB25: 0 | EC25: 0 | ED25: 0 | EE25: 0 | EF25: 0 | EG25: 0 | EH25: 0 | EI25: 0 | EJ25: 0 | EK25: 0 | EL25: 0 | EM25: 0 | EN25: 0 | EO25: 0 | EP25: 0 | EQ25: 0 | ER25: 0 | ES25: 0 | ET25: 0 | EU25: 0 | EV25: 0 | EW25: 0 | EX25: 0 | EY25: 0 | EZ25: 0 | FA25: 0 | FB25: 0 | FC25: 0 | FD25: 0 | FE25: 0 | FF25: 0 | FG25: 0 | FH25: 0 | FI25: 0 | FJ25: 0 | FK25: 0 | FL25: 0 | FM25: 0 | FN25: 0 | FO25: 0 | FP25: 0 | FQ25: 0 | FR25: 0 | FS25: 0 | FT25: 0 | FU25: 0 | FV25: 0 | FW25: 0 | FX25: 0 | FY25: 0 | FZ25: 0 | GA25: 0 | GB25: 0 | GC25: 0 | GD25: 0 | GE25: 0 | GF25: 0 | GG25: 0 | GH25: 0 | GI25: 0 | GJ25: 0 | GK25: 0 | GL25: 0 | GM25: 0 | GN25: 0 | GO25: 0 | GP25: 0 | GQ25: 0 | GR25: 0 | GS25: 0 | GT25: 0 | GU25: 0 | GV25: 0 | GW25: 0 | GX25: 0 | GY25: 0 | GZ25: 0 | HA25: 0 | HB25: 0 | HC25: 0 | HD25: 0 | HE25: 0 | HF25: 0 | HG25: 0 | HH25: 0 | HI25: 0 | HJ25: 0 | HK25: 0 | HL25: 0 | HM25: 0 | HN25: 0 | HO25: 0 | HP25: 0 | HQ25: 0 | HR25: 0 | HS25: 0 | HT25: 0 | HU25: 0 | HV25: 0 | HW25: 0 | HX25: 0 | HY25: 0 | HZ25: 0 | IA25: 0 | IB25: 0 | IC25: 0 | ID25: 0 | IE25: 0 | IF25: 0 | IG25: 0 | IH25: 0 | II25: 0 | IJ25: 0 | IK25: 0 | IL25: 0 | IM25: 0 | IN25: 0 | IO25: 0 | IP25: 0 | IQ25: 0 | IR25: 0 | IS25: 0 | IT25: 0 | IU25: 0 | IV25: 0 | IW25: 0 | IX25: 0 | IY25: 0 | IZ25: 0 | JA25: 0 | JB25: 0 | JC25: 0 | JD25: 0 | JE25: 0 | JF25: 0 | JG25: 0 | JH25: 0 | JI25: 0 | JJ25: 0 | JK25: 0 | JL25: 0 | JM25: 0 | JN25: 0 | JO25: 0 | JP25: 0 | JQ25: 0 | JR25: 0 | JS25: 0 | JT25: 0 | JU25: 0 | JV25: 0 | JW25: 0 | JX25: 0 | JY25: 0 | JZ25: 0 | KA25: 0 | KB25: 0 | KC25: 0 | KD25: 0 | KE25: 0 | KF25: 0 | KG25: 0 | KH25: 0 | KI25: 0 | KJ25: 0 | KK25: 0 | KL25: 0 | KM25: 0 | KN25: 0 | KO25: 0 | KP25: 0 | KQ25: 0 | KR25: 0 | KS25: 0 | KT25: 0 | KU25: 0 | KV25: 0 | KW25: 0 | KX25: 0 | KY25: 0 | KZ25: 0 | LA25: 0 | LB25: 0 | LC25: 0 | LD25: 0 | LE25: 0 | LF25: 0 | LG25: 0 | LH25: 0 | LI25: 0 | LJ25: 0 | LK25: 0 | LL25: 0 | LM25: 0 | LN25: 0 | LO25: 0 | LP25: 0 | LQ25: 0 | LR25: 0 | LS25: 0 | LT25: 0 | LU25: 0 | LV25: 0 | LW25: 0 | LX25: 0 | LY25: 0 | LZ25: 0 | MA25: 0 | MB25: 0 | MC25: 0 | MD25: 0 | ME25: 0 | MF25: 0 | MG25: 0 | MH25: 0 | MI25: 0 | MJ25: 0 | MK25: 0 | ML25: 0 | MM25: 0 | MN25: 0 | MO25: 0 | MP25: 0 | MQ25: 0 | MR25: 0 | MS25: 0 | MT25: 0 | MU25: 0 | MV25: 0 | MW25: 0 | MX25: 0 | MY25: 0 | MZ25: 0 | NA25: 0 | NB25: 0 | NC25: 0 | ND25: 0 | NE25: 0 | NF25: 0 | NG25: 0 | NH25: 0 | NI25: 0 | NJ25: 0 | NK25: 0 | NL25: 0 | NM25: 0 | NN25: 0 | NO25: 283 | NP25: 232 | NQ25: 322 | NR25: 0 | NS25: 264 | NT25: 364 | NU25: 220 | NV25: 148 | NW25: 105 | NX25: 133 | NY25: 189 | NZ25: 349 | OA25: 382 | OB25: 311 | OC25: 385 | OD25: 414 | OE25: 348 | OF25: 311 | OG25: 284 | OH25: 170 | OI25: 142 | OJ25: 136 | OK25: 190 | OL25: 238 | OM25: 264 | ON25: 384 | OO25: 362 | OP25: 232 | OQ25: 317 | OR25: 308 | OS25: 246 | OT25: 111 | OU25: 168 | OV25: 130 | OW25: 251 | OX25: 230 | OY25: 355 | OZ25: 308 | PA25: 345 | PB25: 286 | PC25: 378 | PD25: 277 | PE25: 241 | PF25: 169 | PG25: 114 | PH25: 166 | PI25: 209 | PJ25: 314 | PK25: 233 | PL25: 400 | PM25: 251 | PN25: 194 | PO25: 268 | PP25: 281 | PQ25: 239 | PR25: 134 | PS25: 132 | PT25: 133 | PU25: 212 | PV25: 235 | PW25: 391 | PX25: 227 | PY25: 304 | PZ25: 294 | QA25: 247 | QB25: 366 | QC25: 223 | QD25: 133 | QE25: 152 | QF25: 104 | QG25: 196 | QH25: 293 | QI25: 245 | QJ25: 414 | QK25: 339 | QL25: 319 | QM25: 390 | QN25: 263 | QO25: 293 | QP25: 168 | QQ25: 135 | QR25: 121 | QS25: 261 | QT25: 330 | QU25: 361 | QV25: 271 | QW25: 24.875 | QX25: 15.821 | QY25: 18.205 | QZ25: 27.468 | RA25: 83.773 | RB25: 148.888 | RC25: 226.109 | RD25: 158.3 | RE25: 233.378 | RF25: 442.42 | RG25: 449.576 | RH25: 716.187 | RI25: 246.821 | RJ25: 292.915 | RK25: 308.179 | RL25: 294.945 | RM25: 285.593 | RN25: 151.786 | RO25: 132.181 | RP25: 175.19 | RQ25: 88.26 | RR25: 200.64 | RS25: 235.476 | RT25: 237.014 | RU25: 276.293 | RV25: 147.284 | RW25: 207.45 | RX25: 328.11 | RY25: 212.729 | RZ25: 138.229 | SA25: 143.912 | SB25: 157.04 | SC25: 218.009 | SD25: 226.378 | SE25: 304.887 | SF25: 257.679 | SG25: 192.488 | SH25: 302.822 | SI25: 223.097 | SJ25: 288.56 | SK25: 298.092 | SL25: 193.539 | SM25: 129.97 | SN25: 102.731 | SO25: 176.48 | SP25: 243.32 | SQ25: 311.687 | SR25: 298.214 | SS25: 317.727 | ST25: 199.506 | SU25: 284.054 | SV25: 236.139 | SW25: 217.565 | SX25: 190.31 | SY25: 108.223 | SZ25: 125.012 | TA25: 170.009 | TB25: 247.986 | TC25: 224.764 | TD25: 223.705 | TE25: 320.025 | TF25: 241.387 | TG25: 216.134 | TH25: 304.848 | TI25: 222.312 | TJ25: 121.626 | TK25: 109.492 | TL25: 104.728 | TM25: 161.658 | TN25: 205.973 | TO25: 312.607 | TP25: 222.21 | TQ25: 0 | TR25: 0 | TS25: 0 | TT25: 0 | TU25: 0 | TV25: 0 | TW25: 0 | TX25: 0 | TY25: 0 | TZ25: 0 | UA25: 0 | UB25: 0 | UC25: 237.061 | UD25: 215.95 | UE25: 249.395 | UF25: 251.513 | UG25: 254.519 | UH25: 122.278 | UI25: 128.047 | UJ25: 158.266 | UK25: 158.146 | UL25: 267.806 | UM25: 330.948 | UN25: 293.071 | UO25: 0 | UP25: 0 | UQ25: 0 | UR25: 0 | US25: 0 | UT25: 0 | UU25: 0 | UV25: 0 | UW25: 0 | UX25: 0 | UY25: 0 | UZ25: 0 | VA25: 0 | VB25: 0 | VC25: 0 | VD25: 0 | VE25: 0 | VF25: 0 | VG25: 0 | VH25: 0 | VI25: 0 | VJ25: 0 | VK25: 0
A26: 168 | B26: 345321.819 | C26: 10005 | D26: Dinosaur Point | E26: WT | F26: CA | I26: 0 | J26: 0 | K26: 0 | L26: 0 | M26: 0 | N26: 0 | O26: 0 | P26: 0 | Q26: 0 | R26: 0 | S26: 0 | T26: 0 | U26: 0 | V26: 0 | W26: 0 | X26: 0 | Y26: 0 | Z26: 0 | AA26: 0 | AB26: 0 | AC26: 0 | AD26: 0 | AE26: 0 | AF26: 0 | AG26: 0 | AH26: 0 | AI26: 0 | AJ26: 0 | AK26: 0 | AL26: 0 | AM26: 0 | AN26: 0 | AO26: 0 | AP26: 0 | AQ26: 0 | AR26: 0 | AS26: 0 | AT26: 0 | AU26: 0 | AV26: 0 | AW26: 0 | AX26: 0 | AY26: 0 | AZ26: 0 | BA26: 0 | BB26: 0 | BC26: 0 | BD26: 0 | BE26: 0 | BF26: 0 | BG26: 0 | BH26: 0 | BI26: 0 | BJ26: 0 | BK26: 0 | BL26: 0 | BM26: 0 | BN26: 0 | BO26: 0 | BP26: 0 | BQ26: 0 | BR26: 0 | BS26: 0 | BT26: 0 | BU26: 0 | BV26: 0 | BW26: 0 | BX26: 0 | BY26: 0 | BZ26: 0 | CA26: 0 | CB26: 0 | CC26: 0 | CD26: 0 | CE26: 0 | CF26: 0 | CG26: 0 | CH26: 0 | CI26: 0 | CJ26: 0 | CK26: 0 | CL26: 0 | CM26: 0 | CN26: 0 | CO26: 0 | CP26: 0 | CQ26: 0 | CR26: 0 | CS26: 0 | CT26: 0 | CU26: 0 | CV26: 0 | CW26: 0 | CX26: 0 | CY26: 0 | CZ26: 0 | DA26: 0 | DB26: 0 | DC26: 0 | DD26: 0 | DE26: 0 | DF26: 0 | DG26: 0 | DH26: 0 | DI26: 0 | DJ26: 0 | DK26: 0 | DL26: 0 | DM26: 0 | DN26: 0 | DO26: 0 | DP26: 0 | DQ26: 0 | DR26: 0 | DS26: 0 | DT26: 0 | DU26: 0 | DV26: 0 | DW26: 0 | DX26: 0 | DY26: 0 | DZ26: 0 | EA26: 0 | EB26: 0 | EC26: 0 | ED26: 0 | EE26: 0 | EF26: 0 | EG26: 0 | EH26: 0 | EI26: 0 | EJ26: 0 | EK26: 0 | EL26: 0 | EM26: 0 | EN26: 0 | EO26: 0 | EP26: 0 | EQ26: 0 | ER26: 0 | ES26: 0 | ET26: 0 | EU26: 0 | EV26: 0 | EW26: 0 | EX26: 0 | EY26: 0 | EZ26: 0 | FA26: 0 | FB26: 0 | FC26: 0 | FD26: 0 | FE26: 0 | FF26: 0 | FG26: 0 | FH26: 0 | FI26: 0 | FJ26: 0 | FK26: 0 | FL26: 0 | FM26: 0 | FN26: 0 | FO26: 0 | FP26: 0 | FQ26: 0 | FR26: 0 | FS26: 0 | FT26: 0 | FU26: 0 | FV26: 0 | FW26: 0 | FX26: 0 | FY26: 0 | FZ26: 0 | GA26: 0 | GB26: 0 | GC26: 0 | GD26: 0 | GE26: 0 | GF26: 0 | GG26: 0 | GH26: 0 | GI26: 0 | GJ26: 0 | GK26: 0 | GL26: 0 | GM26: 0 | GN26: 0 | GO26: 0 | GP26: 0 | GQ26: 0 | GR26: 0 | GS26: 0 | GT26: 0 | GU26: 0 | GV26: 0 | GW26: 0 | GX26: 0 | GY26: 0 | GZ26: 0 | HA26: 0 | HB26: 0 | HC26: 0 | HD26: 0 | HE26: 0 | HF26: 0 | HG26: 0 | HH26: 0 | HI26: 0 | HJ26: 0 | HK26: 0 | HL26: 0 | HM26: 0 | HN26: 0 | HO26: 0 | HP26: 0 | HQ26: 0 | HR26: 0 | HS26: 0 | HT26: 0 | HU26: 0 | HV26: 0 | HW26: 0 | HX26: 0 | HY26: 0 | HZ26: 0 | IA26: 0 | IB26: 0 | IC26: 0 | ID26: 0 | IE26: 0 | IF26: 0 | IG26: 0 | IH26: 0 | II26: 0 | IJ26: 0 | IK26: 0 | IL26: 0 | IM26: 0 | IN26: 0 | IO26: 0 | IP26: 0 | IQ26: 0 | IR26: 0 | IS26: 0 | IT26: 0 | IU26: 0 | IV26: 0 | IW26: 0 | IX26: 0 | IY26: 0 | IZ26: 0 | JA26: 0 | JB26: 0 | JC26: 0 | JD26: 0 | JE26: 0 | JF26: 0 | JG26: 0 | JH26: 0 | JI26: 0 | JJ26: 0 | JK26: 0 | JL26: 0 | JM26: 0 | JN26: 0 | JO26: 0 | JP26: 0 | JQ26: 0 | JR26: 0 | JS26: 0 | JT26: 0 | JU26: 0 | JV26: 0 | JW26: 0 | JX26: 0 | JY26: 0 | JZ26: 0 | KA26: 0 | KB26: 0 | KC26: 0 | KD26: 0 | KE26: 0 | KF26: 0 | KG26: 0 | KH26: 0 | KI26: 0 | KJ26: 0 | KK26: 0 | KL26: 0 | KM26: 0 | KN26: 0 | KO26: 0 | KP26: 0 | KQ26: 0 | KR26: 0 | KS26: 0 | KT26: 0 | KU26: 0 | KV26: 0 | KW26: 0 | KX26: 0 | KY26: 0 | KZ26: 0 | LA26: 0 | LB26: 0 | LC26: 0 | LD26: 0 | LE26: 0 | LF26: 0 | LG26: 0 | LH26: 0 | LI26: 0 | LJ26: 0 | LK26: 0 | LL26: 0 | LM26: 0 | LN26: 0 | LO26: 0 | LP26: 0 | LQ26: 0 | LR26: 0 | LS26: 0 | LT26: 0 | LU26: 0 | LV26: 0 | LW26: 0 | LX26: 0 | LY26: 0 | LZ26: 0 | MA26: 0 | MB26: 0 | MC26: 0 | MD26: 0 | ME26: 0 | MF26: 0 | MG26: 0 | MH26: 0 | MI26: 0 | MJ26: 0 | MK26: 0 | ML26: 0 | MM26: 0 | MN26: 0 | MO26: 0 | MP26: 0 | MQ26: 0 | MR26: 0 | MS26: 0 | MT26: 0 | MU26: 0 | MV26: 0 | MW26: 0 | MX26: 0 | MY26: 0 | MZ26: 0 | NA26: 0 | NB26: 0 | NC26: 0 | ND26: 0 | NE26: 0 | NF26: 0 | NG26: 0 | NH26: 0 | NI26: 0 | NJ26: 0 | NK26: 0 | NL26: 0 | NM26: 0 | NN26: 0 | NO26: 0 | NP26: 0 | NQ26: 420 | NR26: 645 | NS26: 1903 | NT26: 2520 | NU26: 2590 | NV26: 3444 | NW26: 4620 | NX26: 3493 | NY26: 2323 | NZ26: 421 | OA26: 421 | OB26: 661 | OC26: 250.47 | OD26: 404.91 | OE26: 1525.59 | OF26: 3209 | OG26: 3832.29 | OH26: 4900.5 | OI26: 4900.5 | OJ26: 3601.62 | OK26: 2036 | OL26: 1801 | OM26: 732.6 | ON26: 786.06 | OO26: 54 | OP26: 612 | OQ26: 1406 | OR26: 2385 | OS26: 2954 | OT26: 5168 | OU26: 3440 | OV26: 3225 | OW26: 2262 | OX26: 1337.49 | OY26: 420 | OZ26: 533 | PA26: 838.814 | PB26: 1303.431 | PC26: 1855.25 | PD26: 2574.582 | PE26: 4086.273 | PF26: 4401.273 | PG26: 3791.94 | PH26: 3169.937 | PI26: 2311.79 | PJ26: 1670.518 | PK26: 1000.819 | PL26: 756.951 | PM26: 1568.852 | PN26: 1174.66 | PO26: 2070.421 | PP26: 2358.021 | PQ26: 2428.993 | PR26: 2713.242 | PS26: 2174.1 | PT26: 1683.36 | PU26: 1998.874 | PV26: 1836.883 | PW26: 1626.305 | PX26: 1614.291 | PY26: 1770.529 | PZ26: 1407.18 | QA26: 1967.609 | QB26: 2113.909 | QC26: 2160.005 | QD26: 2002.765 | QE26: 1853.962 | QF26: 1554.916 | QG26: 1704.606 | QH26: 2111.754 | QI26: 2082.271 | QJ26: 1881.494 | QK26: 1111.916 | QL26: 1468.556 | QM26: 2119.05 | QN26: 2924.634 | QO26: 3499.334 | QP26: 3495.265 | QQ26: 3223.931 | QR26: 2866.633 | QS26: 2320.153 | QT26: 1667.548 | QU26: 898.792 | QV26: 1113.397 | QW26: 1124.641 | QX26: 1089.151 | QY26: 1867.83 | QZ26: 2234.055 | RA26: 2865.029 | RB26: 2737.484 | RC26: 2904.101 | RD26: 2687.628 | RE26: 1683.77 | RF26: 1235.315 | RG26: 924.042 | RH26: 998.954 | RI26: 674.417 | RJ26: 1099.808 | RK26: 1990.627 | RL26: 2702.896 | RM26: 3141.861 | RN26: 3806.726 | RO26: 3931.436 | RP26: 3032.811 | RQ26: 2144.546 | RR26: 1818.659 | RS26: 1055.316 | RT26: 764.897 | RU26: 556.042 | RV26: 816.831 | RW26: 1474.51 | RX26: 2018.925 | RY26: 2544.813 | RZ26: 3206.149 | SA26: 3417.697 | SB26: 2702.649 | SC26: 2036.036 | SD26: 1374.111 | SE26: 1126.573 | SF26: 1195.664 | SG26: 714.64 | SH26: 1308.286 | SI26: 1861.371 | SJ26: 2921.943 | SK26: 3122.502 | SL26: 3104.594 | SM26: 2644.686 | SN26: 2763.476 | SO26: 1589.677 | SP26: 1265.156 | SQ26: 1303.782 | SR26: 961.887 | SS26: 910.731 | ST26: 1396.479 | SU26: 1784.113 | SV26: 1847.721 | SW26: 3159.155 | SX26: 3267.51 | SY26: 2401.318 | SZ26: 2399.067 | TA26: 1670.659 | TB26: 1860.792 | TC26: 934.594 | TD26: 1625.861 | TE26: 928.003 | TF26: 1401.734 | TG26: 2043.76 | TH26: 3008.121 | TI26: 3373.302 | TJ26: 3162.227 | TK26: 2735.876 | TL26: 2512.917 | TM26: 2246.76 | TN26: 1448.7 | TO26: 1074.452 | TP26: 886.148 | TQ26: 0 | TR26: 0 | TS26: 0 | TT26: 0 | TU26: 0 | TV26: 0 | TW26: 0 | TX26: 0 | TY26: 0 | TZ26: 0 | UA26: 0 | UB26: 0 | UC26: 416.36 | UD26: 1372.477 | UE26: 1836.662 | UF26: 2800.939 | UG26: 3724.736 | UH26: 3701.228 | UI26: 3206.598 | UJ26: 3379.299 | UK26: 1808.537 | UL26: 1478.722 | UM26: 1371.429 | UN26: 2029.013 | UO26: 0 | UP26: 0 | UQ26: 0 | UR26: 0 | US26: 0 | UT26: 0 | UU26: 0 | UV26: 0 | UW26: 0 | UX26: 0 | UY26: 0 | UZ26: 0 | VA26: 0 | VB26: 0 | VC26: 0 | VD26: 0 | VE26: 0 | VF26: 0 | VG26: 0 | VH26: 0 | VI26: 0 | VJ26: 0 | VK26: 0
A27: 168 | B27: 618186.171 | C27: 10815 | D27: Difwind Farms Ltd VII | E27: WT | F27: CA | I27: 0 | J27: 0 | K27: 0 | L27: 0 | M27: 0 | N27: 0 | O27: 0 | P27: 0 | Q27: 0 | R27: 0 | S27: 0 | T27: 0 | U27: 0 | V27: 0 | W27: 0 | X27: 0 | Y27: 0 | Z27: 0 | AA27: 0 | AB27: 0 | AC27: 0 | AD27: 0 | AE27: 0 | AF27: 0 | AG27: 0 | AH27: 0 | AI27: 0 | AJ27: 0 | AK27: 0 | AL27: 0 | AM27: 0 | AN27: 0 | AO27: 0 | AP27: 0 | AQ27: 0 | AR27: 0 | AS27: 0 | AT27: 0 | AU27: 0 | AV27: 0 | AW27: 0 | AX27: 0 | AY27: 0 | AZ27: 0 | BA27: 0 | BB27: 0 | BC27: 0 | BD27: 0 | BE27: 0 | BF27: 0 | BG27: 0 | BH27: 0 | BI27: 0 | BJ27: 0 | BK27: 0 | BL27: 0 | BM27: 0 | BN27: 0 | BO27: 0 | BP27: 0 | BQ27: 0 | BR27: 0 | BS27: 0 | BT27: 0 | BU27: 0 | BV27: 0 | BW27: 0 | BX27: 0 | BY27: 0 | BZ27: 0 | CA27: 0 | CB27: 0 | CC27: 0 | CD27: 0 | CE27: 0 | CF27: 0 | CG27: 0 | CH27: 0 | CI27: 0 | CJ27: 0 | CK27: 0 | CL27: 0 | CM27: 0 | CN27: 0 | CO27: 0 | CP27: 0 | CQ27: 0 | CR27: 0 | CS27: 0 | CT27: 0 | CU27: 0 | CV27: 0 | CW27: 0 | CX27: 0 | CY27: 0 | CZ27: 0 | DA27: 0 | DB27: 0 | DC27: 0 | DD27: 0 | DE27: 0 | DF27: 0 | DG27: 0 | DH27: 0 | DI27: 0 | DJ27: 0 | DK27: 0 | DL27: 0 | DM27: 0 | DN27: 0 | DO27: 0 | DP27: 0 | DQ27: 0 | DR27: 0 | DS27: 0 | DT27: 0 | DU27: 0 | DV27: 0 | DW27: 0 | DX27: 0 | DY27: 0 | DZ27: 0 | EA27: 0 | EB27: 0 | EC27: 0 | ED27: 0 | EE27: 0 | EF27: 0 | EG27: 0 | EH27: 0 | EI27: 0 | EJ27: 0 | EK27: 0 | EL27: 0 | EM27: 0 | EN27: 0 | EO27: 0 | EP27: 0 | EQ27: 0 | ER27: 0 | ES27: 0 | ET27: 0 | EU27: 0 | EV27: 0 | EW27: 0 | EX27: 0 | EY27: 0 | EZ27: 0 | FA27: 0 | FB27: 0 | FC27: 0 | FD27: 0 | FE27: 0 | FF27: 0 | FG27: 0 | FH27: 0 | FI27: 0 | FJ27: 0 | FK27: 0 | FL27: 0 | FM27: 0 | FN27: 0 | FO27: 0 | FP27: 0 | FQ27: 0 | FR27: 0 | FS27: 0 | FT27: 0 | FU27: 0 | FV27: 0 | FW27: 0 | FX27: 0 | FY27: 0 | FZ27: 0 | GA27: 0 | GB27: 0 | GC27: 0 | GD27: 0 | GE27: 0 | GF27: 0 | GG27: 0 | GH27: 0 | GI27: 0 | GJ27: 0 | GK27: 0 | GL27: 0 | GM27: 0 | GN27: 0 | GO27: 0 | GP27: 0 | GQ27: 0 | GR27: 0 | GS27: 0 | GT27: 0 | GU27: 0 | GV27: 0 | GW27: 0 | GX27: 0 | GY27: 0 | GZ27: 0 | HA27: 0 | HB27: 0 | HC27: 0 | HD27: 0 | HE27: 0 | HF27: 0 | HG27: 0 | HH27: 0 | HI27: 0 | HJ27: 0 | HK27: 0 | HL27: 0 | HM27: 0 | HN27: 0 | HO27: 0 | HP27: 0 | HQ27: 0 | HR27: 0 | HS27: 0 | HT27: 0 | HU27: 0 | HV27: 0 | HW27: 0 | HX27: 0 | HY27: 0 | HZ27: 0 | IA27: 0 | IB27: 0 | IC27: 0 | ID27: 0 | IE27: 0 | IF27: 0 | IG27: 0 | IH27: 0 | II27: 0 | IJ27: 0 | IK27: 0 | IL27: 0 | IM27: 0 | IN27: 0 | IO27: 0 | IP27: 0 | IQ27: 0 | IR27: 0 | IS27: 0 | IT27: 0 | IU27: 0 | IV27: 0 | IW27: 0 | IX27: 0 | IY27: 0 | IZ27: 0 | JA27: 0 | JB27: 0 | JC27: 0 | JD27: 0 | JE27: 0 | JF27: 0 | JG27: 0 | JH27: 0 | JI27: 0 | JJ27: 0 | JK27: 0 | JL27: 0 | JM27: 0 | JN27: 0 | JO27: 0 | JP27: 0 | JQ27: 0 | JR27: 0 | JS27: 0 | JT27: 0 | JU27: 0 | JV27: 0 | JW27: 0 | JX27: 0 | JY27: 0 | JZ27: 0 | KA27: 0 | KB27: 0 | KC27: 0 | KD27: 0 | KE27: 0 | KF27: 0 | KG27: 0 | KH27: 0 | KI27: 0 | KJ27: 0 | KK27: 0 | KL27: 0 | KM27: 0 | KN27: 0 | KO27: 0 | KP27: 0 | KQ27: 0 | KR27: 0 | KS27: 0 | KT27: 0 | KU27: 0 | KV27: 0 | KW27: 0 | KX27: 0 | KY27: 0 | KZ27: 0 | LA27: 0 | LB27: 0 | LC27: 0 | LD27: 0 | LE27: 0 | LF27: 0 | LG27: 0 | LH27: 0 | LI27: 0 | LJ27: 0 | LK27: 0 | LL27: 0 | LM27: 0 | LN27: 0 | LO27: 0 | LP27: 0 | LQ27: 0 | LR27: 0 | LS27: 0 | LT27: 0 | LU27: 0 | LV27: 0 | LW27: 0 | LX27: 0 | LY27: 0 | LZ27: 0 | MA27: 0 | MB27: 0 | MC27: 0 | MD27: 0 | ME27: 0 | MF27: 0 | MG27: 0 | MH27: 0 | MI27: 0 | MJ27: 0 | MK27: 0 | ML27: 0 | MM27: 0 | MN27: 0 | MO27: 0 | MP27: 0 | MQ27: 0 | MR27: 0 | MS27: 0 | MT27: 0 | MU27: 0 | MV27: 0 | MW27: 0 | MX27: 0 | MY27: 0 | MZ27: 0 | NA27: 0 | NB27: 0 | NC27: 0 | ND27: 0 | NE27: 0 | NF27: 0 | NG27: 0 | NH27: 0 | NI27: 0 | NJ27: 0 | NK27: 0 | NL27: 0 | NM27: 0 | NN27: 0 | NO27: 0 | NP27: 0 | NQ27: 861 | NR27: 1256 | NS27: 4090 | NT27: 4500 | NU27: 6529 | NV27: 6650 | NW27: 8780 | NX27: 9727 | NY27: 6379 | NZ27: 3800 | OA27: 1038 | OB27: 1115 | OC27: 408 | OD27: 438 | OE27: 2043 | OF27: 4895 | OG27: 7339 | OH27: 8733 | OI27: 8133 | OJ27: 7450 | OK27: 4459 | OL27: 3423 | OM27: 1005 | ON27: 975 | OO27: 36 | OP27: 775.17 | OQ27: 3126 | OR27: 2643 | OS27: 5360 | OT27: 8869 | OU27: 7222 | OV27: 7404 | OW27: 6130 | OX27: 4252 | OY27: 756 | OZ27: 673 | PA27: 1689.287 | PB27: 2624.978 | PC27: 3736.285 | PD27: 5184.947 | PE27: 8229.339 | PF27: 8863.717 | PG27: 7636.582 | PH27: 6383.931 | PI27: 4655.71 | PJ27: 3364.253 | PK27: 2015.548 | PL27: 1524.423 | PM27: 2729.024 | PN27: 2043.326 | PO27: 3601.506 | PP27: 4101.788 | PQ27: 4225.244 | PR27: 4719.697 | PS27: 3781.856 | PT27: 2928.213 | PU27: 3477.049 | PV27: 3195.266 | PW27: 2828.964 | PX27: 2808.066 | PY27: 3227.686 | PZ27: 2565.299 | QA27: 3586.963 | QB27: 3853.67 | QC27: 3937.703 | QD27: 3651.054 | QE27: 3379.784 | QF27: 2834.622 | QG27: 3107.508 | QH27: 3849.742 | QI27: 3795.993 | QJ27: 3429.976 | QK27: 2144.259 | QL27: 2832.017 | QM27: 4086.452 | QN27: 5639.97 | QO27: 6748.242 | QP27: 6740.394 | QQ27: 6217.144 | QR27: 5528.117 | QS27: 4474.267 | QT27: 3215.76 | QU27: 1733.264 | QV27: 2147.116 | QW27: 2268.604 | QX27: 2197.013 | QY27: 3767.748 | QZ27: 4506.49 | RA27: 5779.279 | RB27: 5521.998 | RC27: 5858.094 | RD27: 5421.428 | RE27: 3396.466 | RF27: 2491.851 | RG27: 1863.958 | RH27: 2015.071 | RI27: 1088.234 | RJ27: 1774.64 | RK27: 3212.058 | RL27: 4361.369 | RM27: 5069.68 | RN27: 6142.499 | RO27: 6343.731 | RP27: 4893.717 | RQ27: 3460.42 | RR27: 2934.572 | RS27: 1702.849 | RT27: 1234.231 | RU27: 948.591 | RV27: 1393.483 | RW27: 2515.459 | RX27: 3444.212 | RY27: 4341.358 | RZ27: 5469.573 | SA27: 5830.466 | SB27: 4610.621 | SC27: 3473.403 | SD27: 2344.182 | SE27: 1921.892 | SF27: 2039.76 | SG27: 1130.434 | SH27: 2069.482 | SI27: 2944.367 | SJ27: 4622.008 | SK27: 4939.256 | SL27: 4910.93 | SM27: 4183.435 | SN27: 4371.34 | SO27: 2514.593 | SP27: 2001.258 | SQ27: 2062.358 | SR27: 1521.539 | SS27: 1512.155 | ST27: 2318.679 | SU27: 2962.296 | SV27: 3067.91 | SW27: 5245.382 | SX27: 5425.291 | SY27: 3987.088 | SZ27: 3983.35 | TA27: 2773.921 | TB27: 3089.613 | TC27: 1551.776 | TD27: 2699.539 | TE27: 1531.641 | TF27: 2313.521 | TG27: 3373.168 | TH27: 4964.818 | TI27: 5567.538 | TJ27: 5219.165 | TK27: 4515.485 | TL27: 4147.498 | TM27: 3708.214 | TN27: 2391.038 | TO27: 1773.353 | TP27: 1462.561 | TQ27: 0 | TR27: 0 | TS27: 0 | TT27: 0 | TU27: 0 | TV27: 0 | TW27: 0 | TX27: 0 | TY27: 0 | TZ27: 0 | UA27: 0 | UB27: 0 | UC27: 542.484 | UD27: 1788.227 | UE27: 2393.023 | UF27: 3649.399 | UG27: 4853.032 | UH27: 4822.403 | UI27: 4177.94 | UJ27: 4402.955 | UK27: 2356.378 | UL27: 1926.656 | UM27: 1786.862 | UN27: 2643.641 | UO27: 0 | UP27: 0 | UQ27: 0 | UR27: 0 | US27: 0 | UT27: 0 | UU27: 0 | UV27: 0 | UW27: 0 | UX27: 0 | UY27: 0 | UZ27: 0 | VA27: 0 | VB27: 0 | VC27: 0 | VD27: 0 | VE27: 0 | VF27: 0 | VG27: 0 | VH27: 0 | VI27: 0 | VJ27: 0 | VK27: 0
A28: 168 | B28: 477348.001 | C28: 50533 | D28: Painted Hills | E28: WT | F28: CA | I28: 0 | J28: 0 | K28: 0 | L28: 0 | M28: 0 | N28: 0 | O28: 0 | P28: 0 | Q28: 0 | R28: 0 | S28: 0 | T28: 0 | U28: 0 | V28: 0 | W28: 0 | X28: 0 | Y28: 0 | Z28: 0 | AA28: 0 | AB28: 0 | AC28: 0 | AD28: 0 | AE28: 0 | AF28: 0 | AG28: 0 | AH28: 0 | AI28: 0 | AJ28: 0 | AK28: 0 | AL28: 0 | AM28: 0 | AN28: 0 | AO28: 0 | AP28: 0 | AQ28: 0 | AR28: 0 | AS28: 0 | AT28: 0 | AU28: 0 | AV28: 0 | AW28: 0 | AX28: 0 | AY28: 0 | AZ28: 0 | BA28: 0 | BB28: 0 | BC28: 0 | BD28: 0 | BE28: 0 | BF28: 0 | BG28: 0 | BH28: 0 | BI28: 0 | BJ28: 0 | BK28: 0 | BL28: 0 | BM28: 0 | BN28: 0 | BO28: 0 | BP28: 0 | BQ28: 0 | BR28: 0 | BS28: 0 | BT28: 0 | BU28: 0 | BV28: 0 | BW28: 0 | BX28: 0 | BY28: 0 | BZ28: 0 | CA28: 0 | CB28: 0 | CC28: 0 | CD28: 0 | CE28: 0 | CF28: 0 | CG28: 0 | CH28: 0 | CI28: 0 | CJ28: 0 | CK28: 0 | CL28: 0 | CM28: 0 | CN28: 0 | CO28: 0 | CP28: 0 | CQ28: 0 | CR28: 0 | CS28: 0 | CT28: 0 | CU28: 0 | CV28: 0 | CW28: 0 | CX28: 0 | CY28: 0 | CZ28: 0 | DA28: 0 | DB28: 0 | DC28: 0 | DD28: 0 | DE28: 0 | DF28: 0 | DG28: 0 | DH28: 0 | DI28: 0 | DJ28: 0 | DK28: 0 | DL28: 0 | DM28: 0 | DN28: 0 | DO28: 0 | DP28: 0 | DQ28: 0 | DR28: 0 | DS28: 0 | DT28: 0 | DU28: 0 | DV28: 0 | DW28: 0 | DX28: 0 | DY28: 0 | DZ28: 0 | EA28: 0 | EB28: 0 | EC28: 0 | ED28: 0 | EE28: 0 | EF28: 0 | EG28: 0 | EH28: 0 | EI28: 0 | EJ28: 0 | EK28: 0 | EL28: 0 | EM28: 0 | EN28: 0 | EO28: 0 | EP28: 0 | EQ28: 0 | ER28: 0 | ES28: 0 | ET28: 0 | EU28: 0 | EV28: 0 | EW28: 0 | EX28: 0 | EY28: 0 | EZ28: 0 | FA28: 0 | FB28: 0 | FC28: 0 | FD28: 0 | FE28: 0 | FF28: 0 | FG28: 0 | FH28: 0 | FI28: 0 | FJ28: 0 | FK28: 0 | FL28: 0 | FM28: 0 | FN28: 0 | FO28: 0 | FP28: 0 | FQ28: 0 | FR28: 0 | FS28: 0 | FT28: 0 | FU28: 0 | FV28: 0 | FW28: 0 | FX28: 0 | FY28: 0 | FZ28: 0 | GA28: 0 | GB28: 0 | GC28: 0 | GD28: 0 | GE28: 0 | GF28: 0 | GG28: 0 | GH28: 0 | GI28: 0 | GJ28: 0 | GK28: 0 | GL28: 0 | GM28: 0 | GN28: 0 | GO28: 0 | GP28: 0 | GQ28: 0 | GR28: 0 | GS28: 0 | GT28: 0 | GU28: 0 | GV28: 0 | GW28: 0 | GX28: 0 | GY28: 0 | GZ28: 0 | HA28: 0 | HB28: 0 | HC28: 0 | HD28: 0 | HE28: 0 | HF28: 0 | HG28: 0 | HH28: 0 | HI28: 0 | HJ28: 0 | HK28: 0 | HL28: 0 | HM28: 0 | HN28: 0 | HO28: 0 | HP28: 0 | HQ28: 0 | HR28: 0 | HS28: 0 | HT28: 0 | HU28: 0 | HV28: 0 | HW28: 0 | HX28: 0 | HY28: 0 | HZ28: 0 | IA28: 0 | IB28: 0 | IC28: 0 | ID28: 0 | IE28: 0 | IF28: 0 | IG28: 0 | IH28: 0 | II28: 0 | IJ28: 0 | IK28: 0 | IL28: 0 | IM28: 0 | IN28: 0 | IO28: 0 | IP28: 0 | IQ28: 0 | IR28: 0 | IS28: 0 | IT28: 0 | IU28: 0 | IV28: 0 | IW28: 0 | IX28: 0 | IY28: 0 | IZ28: 0 | JA28: 0 | JB28: 0 | JC28: 0 | JD28: 0 | JE28: 0 | JF28: 0 | JG28: 0 | JH28: 0 | JI28: 0 | JJ28: 0 | JK28: 0 | JL28: 0 | JM28: 0 | JN28: 0 | JO28: 0 | JP28: 0 | JQ28: 0 | JR28: 0 | JS28: 0 | JT28: 0 | JU28: 0 | JV28: 0 | JW28: 0 | JX28: 0 | JY28: 0 | JZ28: 0 | KA28: 0 | KB28: 0 | KC28: 0 | KD28: 0 | KE28: 0 | KF28: 0 | KG28: 0 | KH28: 0 | KI28: 0 | KJ28: 0 | KK28: 0 | KL28: 0 | KM28: 0 | KN28: 0 | KO28: 0 | KP28: 0 | KQ28: 0 | KR28: 0 | KS28: 0 | KT28: 0 | KU28: 0 | KV28: 0 | KW28: 0 | KX28: 0 | KY28: 0 | KZ28: 0 | LA28: 0 | LB28: 0 | LC28: 0 | LD28: 0 | LE28: 0 | LF28: 0 | LG28: 0 | LH28: 0 | LI28: 0 | LJ28: 0 | LK28: 0 | LL28: 0 | LM28: 0 | LN28: 0 | LO28: 0 | LP28: 0 | LQ28: 0 | LR28: 0 | LS28: 0 | LT28: 0 | LU28: 0 | LV28: 0 | LW28: 0 | LX28: 0 | LY28: 0 | LZ28: 0 | MA28: 0 | MB28: 0 | MC28: 0 | MD28: 0 | ME28: 0 | MF28: 0 | MG28: 0 | MH28: 0 | MI28: 0 | MJ28: 0 | MK28: 0 | ML28: 0 | MM28: 0 | MN28: 0 | MO28: 0 | MP28: 0 | MQ28: 0 | MR28: 0 | MS28: 0 | MT28: 0 | MU28: 0 | MV28: 0 | MW28: 0 | MX28: 0 | MY28: 0 | MZ28: 0 | NA28: 0 | NB28: 0 | NC28: 0 | ND28: 0 | NE28: 0 | NF28: 0 | NG28: 0 | NH28: 0 | NI28: 0 | NJ28: 0 | NK28: 0 | NL28: 0 | NM28: 0 | NN28: 0 | NO28: 0 | NP28: 0 | NQ28: 1235 | NR28: 2159 | NS28: 2578 | NT28: 5487 | NU28: 3489 | NV28: 4913 | NW28: 4361 | NX28: 2557 | NY28: 2385 | NZ28: 1670 | OA28: 1762 | OB28: 1548 | OC28: 1114 | OD28: 1441 | OE28: 3418 | OF28: 5416 | OG28: 5056 | OH28: 5965 | OI28: 3615 | OJ28: 3516 | OK28: 2724 | OL28: 2884 | OM28: 2315 | ON28: 2674 | OO28: 558 | OP28: 1619 | OQ28: 3618 | OR28: 5353 | OS28: 4128 | OT28: 3962 | OU28: 2683 | OV28: 3183 | OW28: 1558 | OX28: 1330 | OY28: 1786 | OZ28: 1694 | PA28: 851.185 | PB28: 1322.654 | PC28: 1882.611 | PD28: 2612.552 | PE28: 4146.536 | PF28: 4466.182 | PG28: 3847.862 | PH28: 3216.687 | PI28: 2345.884 | PJ28: 1695.154 | PK28: 1015.579 | PL28: 768.114 | PM28: 2327.026 | PN28: 1742.335 | PO28: 3070.988 | PP28: 3497.576 | PQ28: 3602.846 | PR28: 4024.464 | PS28: 3224.771 | PT28: 2496.873 | PU28: 2964.864 | PV28: 2724.588 | PW28: 2412.245 | PX28: 2394.425 | PY28: 2713.386 | PZ28: 2156.544 | QA28: 3015.416 | QB28: 3239.626 | QC28: 3310.269 | QD28: 3069.295 | QE28: 2841.249 | QF28: 2382.953 | QG28: 2612.357 | QH28: 3236.323 | QI28: 3191.139 | QJ28: 2883.443 | QK28: 1542.657 | QL28: 2037.455 | QM28: 2939.941 | QN28: 4057.599 | QO28: 4854.929 | QP28: 4849.284 | QQ28: 4472.838 | QR28: 3977.128 | QS28: 3218.949 | QT28: 2313.534 | QU28: 1246.973 | QV28: 1544.713 | QW28: 1690.685 | QX28: 1637.332 | QY28: 2807.928 | QZ28: 3358.479 | RA28: 4307.029 | RB28: 4115.29 | RC28: 4365.766 | RD28: 4040.339 | RE28: 2531.229 | RF28: 1857.062 | RG28: 1389.122 | RH28: 1501.739 | RI28: 936.54 | RJ28: 1527.263 | RK28: 2764.312 | RL28: 3753.414 | RM28: 4362.989 | RN28: 5286.262 | RO28: 5459.443 | RP28: 4211.554 | RQ28: 2978.053 | RR28: 2525.506 | RS28: 1465.479 | RT28: 1062.185 | RU28: 859.455 | RV28: 1262.543 | RW28: 2279.092 | RX28: 3120.573 | RY28: 3933.418 | RZ28: 4955.619 | SA28: 5282.6 | SB28: 4177.379 | SC28: 3147.021 | SD28: 2123.909 | SE28: 1741.299 | SF28: 1848.092 | SG28: 1148.512 | SH28: 2102.575 | SI28: 2991.45 | SJ28: 4695.918 | SK28: 5018.24 | SL28: 4989.46 | SM28: 4250.332 | SN28: 4441.242 | SO28: 2554.804 | SP28: 2033.26 | SQ28: 2095.337 | SR28: 1545.87 | SS28: 1193.256 | ST28: 1829.689 | SU28: 2337.573 | SV28: 2420.913 | SW28: 4139.175 | SX28: 4281.143 | SY28: 3146.245 | SZ28: 3143.295 | TA28: 2188.924 | TB28: 2438.039 | TC28: 1224.519 | TD28: 2130.229 | TE28: 1212.064 | TF28: 1830.803 | TG28: 2669.354 | TH28: 3928.905 | TI28: 4405.867 | TJ28: 4130.183 | TK28: 3573.326 | TL28: 3282.12 | TM28: 2934.492 | TN28: 1892.147 | TO28: 1403.342 | TP28: 1157.397 | TQ28: 0 | TR28: 0 | TS28: 0 | TT28: 0 | TU28: 0 | TV28: 0 | TW28: 0 | TX28: 0 | TY28: 0 | TZ28: 0 | UA28: 0 | UB28: 0 | UC28: 488.193 | UD28: 1609.268 | UE28: 2153.538 | UF28: 3284.181 | UG28: 4367.358 | UH28: 4339.794 | UI28: 3759.826 | UJ28: 3962.323 | UK28: 2120.561 | UL28: 1733.843 | UM28: 1608.04 | UN28: 2379.075 | UO28: 0 | UP28: 0 | UQ28: 0 | UR28: 0 | US28: 0 | UT28: 0 | UU28: 0 | UV28: 0 | UW28: 0 | UX28: 0 | UY28: 0 | UZ28: 0 | VA28: 0 | VB28: 0 | VC28: 0 | VD28: 0 | VE28: 0 | VF28: 0 | VG28: 0 | VH28: 0 | VI28: 0 | VJ28: 0 | VK28: 0
A29: 168 | B29: 360721.62 | C29: 50553 | D29: Edom Hills Project 1 LLC | E29: WT | F29: CA | I29: 0 | J29: 0 | K29: 0 | L29: 0 | M29: 0 | N29: 0 | O29: 0 | P29: 0 | Q29: 0 | R29: 0 | S29: 0 | T29: 0 | U29: 0 | V29: 0 | W29: 0 | X29: 0 | Y29: 0 | Z29: 0 | AA29: 0 | AB29: 0 | AC29: 0 | AD29: 0 | AE29: 0 | AF29: 0 | AG29: 0 | AH29: 0 | AI29: 0 | AJ29: 0 | AK29: 0 | AL29: 0 | AM29: 0 | AN29: 0 | AO29: 0 | AP29: 0 | AQ29: 0 | AR29: 0 | AS29: 0 | AT29: 0 | AU29: 0 | AV29: 0 | AW29: 0 | AX29: 0 | AY29: 0 | AZ29: 0 | BA29: 0 | BB29: 0 | BC29: 0 | BD29: 0 | BE29: 0 | BF29: 0 | BG29: 0 | BH29: 0 | BI29: 0 | BJ29: 0 | BK29: 0 | BL29: 0 | BM29: 0 | BN29: 0 | BO29: 0 | BP29: 0 | BQ29: 0 | BR29: 0 | BS29: 0 | BT29: 0 | BU29: 0 | BV29: 0 | BW29: 0 | BX29: 0 | BY29: 0 | BZ29: 0 | CA29: 0 | CB29: 0 | CC29: 0 | CD29: 0 | CE29: 0 | CF29: 0 | CG29: 0 | CH29: 0 | CI29: 0 | CJ29: 0 | CK29: 0 | CL29: 0 | CM29: 0 | CN29: 0 | CO29: 0 | CP29: 0 | CQ29: 0 | CR29: 0 | CS29: 0 | CT29: 0 | CU29: 0 | CV29: 0 | CW29: 0 | CX29: 0 | CY29: 0 | CZ29: 0 | DA29: 0 | DB29: 0 | DC29: 0 | DD29: 0 | DE29: 0 | DF29: 0 | DG29: 0 | DH29: 0 | DI29: 0 | DJ29: 0 | DK29: 0 | DL29: 0 | DM29: 0 | DN29: 0 | DO29: 0 | DP29: 0 | DQ29: 0 | DR29: 0 | DS29: 0 | DT29: 0 | DU29: 0 | DV29: 0 | DW29: 0 | DX29: 0 | DY29: 0 | DZ29: 0 | EA29: 0 | EB29: 0 | EC29: 0 | ED29: 0 | EE29: 0 | EF29: 0 | EG29: 0 | EH29: 0 | EI29: 0 | EJ29: 0 | EK29: 0 | EL29: 0 | EM29: 0 | EN29: 0 | EO29: 0 | EP29: 0 | EQ29: 0 | ER29: 0 | ES29: 0 | ET29: 0 | EU29: 0 | EV29: 0 | EW29: 0 | EX29: 0 | EY29: 0 | EZ29: 0 | FA29: 0 | FB29: 0 | FC29: 0 | FD29: 0 | FE29: 0 | FF29: 0 | FG29: 0 | FH29: 0 | FI29: 0 | FJ29: 0 | FK29: 0 | FL29: 0 | FM29: 0 | FN29: 0 | FO29: 0 | FP29: 0 | FQ29: 0 | FR29: 0 | FS29: 0 | FT29: 0 | FU29: 0 | FV29: 0 | FW29: 0 | FX29: 0 | FY29: 0 | FZ29: 0 | GA29: 0 | GB29: 0 | GC29: 0 | GD29: 0 | GE29: 0 | GF29: 0 | GG29: 0 | GH29: 0 | GI29: 0 | GJ29: 0 | GK29: 0 | GL29: 0 | GM29: 0 | GN29: 0 | GO29: 0 | GP29: 0 | GQ29: 0 | GR29: 0 | GS29: 0 | GT29: 0 | GU29: 0 | GV29: 0 | GW29: 0 | GX29: 0 | GY29: 0 | GZ29: 0 | HA29: 0 | HB29: 0 | HC29: 0 | HD29: 0 | HE29: 0 | HF29: 0 | HG29: 0 | HH29: 0 | HI29: 0 | HJ29: 0 | HK29: 0 | HL29: 0 | HM29: 0 | HN29: 0 | HO29: 0 | HP29: 0 | HQ29: 0 | HR29: 0 | HS29: 0 | HT29: 0 | HU29: 0 | HV29: 0 | HW29: 0 | HX29: 0 | HY29: 0 | HZ29: 0 | IA29: 0 | IB29: 0 | IC29: 0 | ID29: 0 | IE29: 0 | IF29: 0 | IG29: 0 | IH29: 0 | II29: 0 | IJ29: 0 | IK29: 0 | IL29: 0 | IM29: 0 | IN29: 0 | IO29: 0 | IP29: 0 | IQ29: 0 | IR29: 0 | IS29: 0 | IT29: 0 | IU29: 0 | IV29: 0 | IW29: 0 | IX29: 0 | IY29: 0 | IZ29: 0 | JA29: 0 | JB29: 0 | JC29: 0 | JD29: 0 | JE29: 0 | JF29: 0 | JG29: 0 | JH29: 0 | JI29: 0 | JJ29: 0 | JK29: 0 | JL29: 0 | JM29: 0 | JN29: 0 | JO29: 0 | JP29: 0 | JQ29: 0 | JR29: 0 | JS29: 0 | JT29: 0 | JU29: 0 | JV29: 0 | JW29: 0 | JX29: 0 | JY29: 0 | JZ29: 0 | KA29: 0 | KB29: 0 | KC29: 0 | KD29: 0 | KE29: 0 | KF29: 0 | KG29: 0 | KH29: 0 | KI29: 0 | KJ29: 0 | KK29: 0 | KL29: 0 | KM29: 0 | KN29: 0 | KO29: 0 | KP29: 0 | KQ29: 0 | KR29: 0 | KS29: 0 | KT29: 0 | KU29: 0 | KV29: 0 | KW29: 0 | KX29: 0 | KY29: 0 | KZ29: 0 | LA29: 0 | LB29: 0 | LC29: 0 | LD29: 0 | LE29: 0 | LF29: 0 | LG29: 0 | LH29: 0 | LI29: 0 | LJ29: 0 | LK29: 0 | LL29: 0 | LM29: 0 | LN29: 0 | LO29: 0 | LP29: 0 | LQ29: 0 | LR29: 0 | LS29: 0 | LT29: 0 | LU29: 0 | LV29: 0 | LW29: 0 | LX29: 0 | LY29: 0 | LZ29: 0 | MA29: 0 | MB29: 0 | MC29: 0 | MD29: 0 | ME29: 0 | MF29: 0 | MG29: 0 | MH29: 0 | MI29: 0 | MJ29: 0 | MK29: 0 | ML29: 0 | MM29: 0 | MN29: 0 | MO29: 0 | MP29: 0 | MQ29: 0 | MR29: 0 | MS29: 0 | MT29: 0 | MU29: 0 | MV29: 0 | MW29: 0 | MX29: 0 | MY29: 0 | MZ29: 0 | NA29: 0 | NB29: 0 | NC29: 0 | ND29: 0 | NE29: 0 | NF29: 0 | NG29: 0 | NH29: 0 | NI29: 0 | NJ29: 0 | NK29: 0 | NL29: 0 | NM29: 0 | NN29: 0 | NO29: 0 | NP29: 0 | NQ29: 329 | NR29: 589 | NS29: 1301 | NT29: 2894 | NU29: 2017 | NV29: 2143 | NW29: 1660 | NX29: 1156 | NY29: 1095 | NZ29: 705 | OA29: 428 | OB29: 534 | OC29: 276 | OD29: 512 | OE29: 1663 | OF29: 2611.62 | OG29: 2997 | OH29: 2788 | OI29: 1563 | OJ29: 1224 | OK29: 1204 | OL29: 1747 | OM29: 411 | ON29: 465 | OO29: 88 | OP29: 469 | OQ29: 1116 | OR29: 3238 | OS29: 2342 | OT29: 2682 | OU29: 1310 | OV29: 770 | OW29: 585 | OX29: 57 | OY29: 475 | OZ29: 428 | PA29: 386.358 | PB29: 600.361 | PC29: 854.529 | PD29: 1185.854 | PE29: 1882.14 | PF29: 2027.229 | PG29: 1746.57 | PH29: 1460.075 | PI29: 1064.812 | PJ29: 769.442 | PK29: 460.978 | PL29: 348.652 | PM29: 950.637 | PN29: 711.779 | PO29: 1254.56 | PP29: 1428.83 | PQ29: 1471.835 | PR29: 1644.074 | PS29: 1317.384 | PT29: 1020.023 | PU29: 1211.207 | PV29: 1113.049 | PW29: 985.45 | PX29: 978.171 | PY29: 982.714 | PZ29: 781.041 | QA29: 1092.101 | QB29: 1173.303 | QC29: 1198.888 | QD29: 1111.614 | QE29: 1029.022 | QF29: 863.04 | QG29: 946.124 | QH29: 1172.107 | QI29: 1155.743 | QJ29: 1044.304 | QK29: 141.377 | QL29: 186.723 | QM29: 269.431 | QN29: 371.859 | QO29: 444.93 | QP29: 444.413 | QQ29: 409.914 | QR29: 364.484 | QS29: 295.001 | QT29: 212.024 | QU29: 114.279 | QV29: 141.565 | QW29: 282.72 | QX29: 273.798 | QY29: 469.548 | QZ29: 561.612 | RA29: 720.231 | RB29: 688.168 | RC29: 730.053 | RD29: 675.634 | RE29: 423.278 | RF29: 310.542 | RG29: 232.292 | RH29: 251.124 | RI29: 815.596 | RJ29: 1330.034 | RK29: 2407.332 | RL29: 3268.702 | RM29: 3799.558 | RN29: 4603.601 | RO29: 4754.417 | RP29: 3667.679 | RQ29: 2593.471 | RR29: 2199.365 | RS29: 1276.229 | RT29: 925.016 | RU29: 1188.999 | RV29: 1746.643 | RW29: 3152.97 | RX29: 4317.102 | RY29: 5441.619 | RZ29: 6855.766 | SA29: 7308.122 | SB29: 5779.123 | SC29: 4353.691 | SD29: 2938.285 | SE29: 2408.97 | SF29: 2556.71 | SG29: 1582.263 | SH29: 2896.642 | SI29: 4121.213 | SJ29: 6469.397 | SK29: 6913.448 | SL29: 6873.8 | SM29: 5855.529 | SN29: 6118.538 | SO29: 3519.662 | SP29: 2801.148 | SQ29: 2886.67 | SR29: 2129.69 | SS29: 1748.983 | ST29: 2681.819 | SU29: 3426.236 | SV29: 3548.39 | SW29: 6066.887 | SX29: 6274.973 | SY29: 4611.526 | SZ29: 4607.202 | TA29: 3208.358 | TB29: 3573.492 | TC29: 1794.807 | TD29: 3122.327 | TE29: 1745.491 | TF29: 2636.538 | TG29: 3844.133 | TH29: 5658.011 | TI29: 6344.884 | TJ29: 5947.871 | TK29: 5145.942 | TL29: 4726.576 | TM29: 4225.959 | TN29: 2724.878 | TO29: 2020.951 | TP29: 1666.766 | TQ29: 0 | TR29: 0 | TS29: 0 | TT29: 0 | TU29: 0 | TV29: 0 | TW29: 0 | TX29: 0 | TY29: 0 | TZ29: 0 | UA29: 0 | UB29: 0 | UC29: 663.081 | UD29: 2185.763 | UE29: 2925.01 | UF29: 4460.687 | UG29: 5931.895 | UH29: 5894.457 | UI29: 5106.725 | UJ29: 5381.763 | UK29: 2880.218 | UL29: 2354.965 | UM29: 2184.095 | UN29: 3231.341 | UO29: 0 | UP29: 0 | UQ29: 0 | UR29: 0 | US29: 0 | UT29: 0 | UU29: 0 | UV29: 0 | UW29: 0 | UX29: 0 | UY29: 0 | UZ29: 0 | VA29: 0 | VB29: 0 | VC29: 0 | VD29: 0 | VE29: 0 | VF29: 0 | VG29: 0 | VH29: 0 | VI29: 0 | VJ29: 0 | VK29: 0
A30: 168 | B30: 1056889.17 | C30: 52142 | D30: Mojave 4 | E30: WT | F30: CA | I30: 0 | J30: 0 | K30: 0 | L30: 0 | M30: 0 | N30: 0 | O30: 0 | P30: 0 | Q30: 0 | R30: 0 | S30: 0 | T30: 0 | U30: 0 | V30: 0 | W30: 0 | X30: 0 | Y30: 0 | Z30: 0 | AA30: 0 | AB30: 0 | AC30: 0 | AD30: 0 | AE30: 0 | AF30: 0 | AG30: 0 | AH30: 0 | AI30: 0 | AJ30: 0 | AK30: 0 | AL30: 0 | AM30: 0 | AN30: 0 | AO30: 0 | AP30: 0 | AQ30: 0 | AR30: 0 | AS30: 0 | AT30: 0 | AU30: 0 | AV30: 0 | AW30: 0 | AX30: 0 | AY30: 0 | AZ30: 0 | BA30: 0 | BB30: 0 | BC30: 0 | BD30: 0 | BE30: 0 | BF30: 0 | BG30: 0 | BH30: 0 | BI30: 0 | BJ30: 0 | BK30: 0 | BL30: 0 | BM30: 0 | BN30: 0 | BO30: 0 | BP30: 0 | BQ30: 0 | BR30: 0 | BS30: 0 | BT30: 0 | BU30: 0 | BV30: 0 | BW30: 0 | BX30: 0 | BY30: 0 | BZ30: 0 | CA30: 0 | CB30: 0 | CC30: 0 | CD30: 0 | CE30: 0 | CF30: 0 | CG30: 0 | CH30: 0 | CI30: 0 | CJ30: 0 | CK30: 0 | CL30: 0 | CM30: 0 | CN30: 0 | CO30: 0 | CP30: 0 | CQ30: 0 | CR30: 0 | CS30: 0 | CT30: 0 | CU30: 0 | CV30: 0 | CW30: 0 | CX30: 0 | CY30: 0 | CZ30: 0 | DA30: 0 | DB30: 0 | DC30: 0 | DD30: 0 | DE30: 0 | DF30: 0 | DG30: 0 | DH30: 0 | DI30: 0 | DJ30: 0 | DK30: 0 | DL30: 0 | DM30: 0 | DN30: 0 | DO30: 0 | DP30: 0 | DQ30: 0 | DR30: 0 | DS30: 0 | DT30: 0 | DU30: 0 | DV30: 0 | DW30: 0 | DX30: 0 | DY30: 0 | DZ30: 0 | EA30: 0 | EB30: 0 | EC30: 0 | ED30: 0 | EE30: 0 | EF30: 0 | EG30: 0 | EH30: 0 | EI30: 0 | EJ30: 0 | EK30: 0 | EL30: 0 | EM30: 0 | EN30: 0 | EO30: 0 | EP30: 0 | EQ30: 0 | ER30: 0 | ES30: 0 | ET30: 0 | EU30: 0 | EV30: 0 | EW30: 0 | EX30: 0 | EY30: 0 | EZ30: 0 | FA30: 0 | FB30: 0 | FC30: 0 | FD30: 0 | FE30: 0 | FF30: 0 | FG30: 0 | FH30: 0 | FI30: 0 | FJ30: 0 | FK30: 0 | FL30: 0 | FM30: 0 | FN30: 0 | FO30: 0 | FP30: 0 | FQ30: 0 | FR30: 0 | FS30: 0 | FT30: 0 | FU30: 0 | FV30: 0 | FW30: 0 | FX30: 0 | FY30: 0 | FZ30: 0 | GA30: 0 | GB30: 0 | GC30: 0 | GD30: 0 | GE30: 0 | GF30: 0 | GG30: 0 | GH30: 0 | GI30: 0 | GJ30: 0 | GK30: 0 | GL30: 0 | GM30: 0 | GN30: 0 | GO30: 0 | GP30: 0 | GQ30: 0 | GR30: 0 | GS30: 0 | GT30: 0 | GU30: 0 | GV30: 0 | GW30: 0 | GX30: 0 | GY30: 0 | GZ30: 0 | HA30: 0 | HB30: 0 | HC30: 0 | HD30: 0 | HE30: 0 | HF30: 0 | HG30: 0 | HH30: 0 | HI30: 0 | HJ30: 0 | HK30: 0 | HL30: 0 | HM30: 0 | HN30: 0 | HO30: 0 | HP30: 0 | HQ30: 0 | HR30: 0 | HS30: 0 | HT30: 0 | HU30: 0 | HV30: 0 | HW30: 0 | HX30: 0 | HY30: 0 | HZ30: 0 | IA30: 0 | IB30: 0 | IC30: 0 | ID30: 0 | IE30: 0 | IF30: 0 | IG30: 0 | IH30: 0 | II30: 0 | IJ30: 0 | IK30: 0 | IL30: 0 | IM30: 0 | IN30: 0 | IO30: 0 | IP30: 0 | IQ30: 0 | IR30: 0 | IS30: 0 | IT30: 0 | IU30: 0 | IV30: 0 | IW30: 0 | IX30: 0 | IY30: 0 | IZ30: 0 | JA30: 0 | JB30: 0 | JC30: 0 | JD30: 0 | JE30: 0 | JF30: 0 | JG30: 0 | JH30: 0 | JI30: 0 | JJ30: 0 | JK30: 0 | JL30: 0 | JM30: 0 | JN30: 0 | JO30: 0 | JP30: 0 | JQ30: 0 | JR30: 0 | JS30: 0 | JT30: 0 | JU30: 0 | JV30: 0 | JW30: 0 | JX30: 0 | JY30: 0 | JZ30: 0 | KA30: 0 | KB30: 0 | KC30: 0 | KD30: 0 | KE30: 0 | KF30: 0 | KG30: 0 | KH30: 0 | KI30: 0 | KJ30: 0 | KK30: 0 | KL30: 0 | KM30: 0 | KN30: 0 | KO30: 0 | KP30: 0 | KQ30: 0 | KR30: 0 | KS30: 0 | KT30: 0 | KU30: 0 | KV30: 0 | KW30: 0 | KX30: 0 | KY30: 0 | KZ30: 0 | LA30: 0 | LB30: 0 | LC30: 0 | LD30: 0 | LE30: 0 | LF30: 0 | LG30: 0 | LH30: 0 | LI30: 0 | LJ30: 0 | LK30: 0 | LL30: 0 | LM30: 0 | LN30: 0 | LO30: 0 | LP30: 0 | LQ30: 0 | LR30: 0 | LS30: 0 | LT30: 0 | LU30: 0 | LV30: 0 | LW30: 0 | LX30: 0 | LY30: 0 | LZ30: 0 | MA30: 0 | MB30: 0 | MC30: 0 | MD30: 0 | ME30: 0 | MF30: 0 | MG30: 0 | MH30: 0 | MI30: 0 | MJ30: 0 | MK30: 0 | ML30: 0 | MM30: 0 | MN30: 0 | MO30: 0 | MP30: 0 | MQ30: 0 | MR30: 0 | MS30: 0 | MT30: 0 | MU30: 0 | MV30: 0 | MW30: 0 | MX30: 0 | MY30: 0 | MZ30: 0 | NA30: 0 | NB30: 0 | NC30: 0 | ND30: 0 | NE30: 0 | NF30: 0 | NG30: 0 | NH30: 0 | NI30: 0 | NJ30: 0 | NK30: 0 | NL30: 0 | NM30: 0 | NN30: 0 | NO30: 0 | NP30: 0 | NQ30: 2459 | NR30: 2622 | NS30: 9160 | NT30: 10074 | NU30: 10593 | NV30: 11492 | NW30: 9057 | NX30: 8996 | NY30: 5304 | NZ30: 6019 | OA30: 2952 | OB30: 5589 | OC30: 3861 | OD30: 3105.63 | OE30: 5831.1 | OF30: 9004.05 | OG30: 12486.87 | OH30: 13492.71 | OI30: 8487.27 | OJ30: 11652.3 | OK30: 6564.69 | OL30: 6816.15 | OM30: 2574 | ON30: 2923.47 | OO30: 2359.17 | OP30: 4508.46 | OQ30: 7328.97 | OR30: 6558 | OS30: 10249.47 | OT30: 10367.28 | OU30: 10004.94 | OV30: 6554.79 | OW30: 4343.13 | OX30: 5549.94 | OY30: 3564.99 | OZ30: 3782.79 | PA30: 0 | PB30: 0 | PC30: 0 | PD30: 0 | PE30: 0 | PF30: 0 | PG30: 0 | PH30: 0 | PI30: 0 | PJ30: 0 | PK30: 0 | PL30: 0 | PM30: 1875 | PN30: 1526 | PO30: 5763 | PP30: 7898 | PQ30: 12302 | PR30: 9901 | PS30: 9106 | PT30: 5865 | PU30: 5707 | PV30: 5956 | PW30: 4467 | PX30: 3328 | PY30: 5403 | PZ30: 3428 | QA30: 5910 | QB30: 6121 | QC30: 10747 | QD30: 9918 | QE30: 8331 | QF30: 5159 | QG30: 4469 | QH30: 5430 | QI30: 6944 | QJ30: 4632 | QK30: 2761 | QL30: 5618 | QM30: 8946 | QN30: 11414 | QO30: 9743 | QP30: 11916 | QQ30: 9825 | QR30: 7726 | QS30: 5513 | QT30: 5509 | QU30: 3177 | QV30: 4695 | QW30: 0 | QX30: 0 | QY30: 0 | QZ30: 0 | RA30: 0 | RB30: 0 | RC30: 0 | RD30: 0 | RE30: 0 | RF30: 0 | RG30: 0 | RH30: 0 | RI30: 1879.419 | RJ30: 3064.868 | RK30: 5547.34 | RL30: 7532.24 | RM30: 8755.519 | RN30: 10608.316 | RO30: 10955.85 | RP30: 8451.624 | RQ30: 5976.27 | RR30: 5068.111 | RS30: 2940.881 | RT30: 2131.562 | RU30: 1855.732 | RV30: 2726.076 | RW30: 4921.003 | RX30: 6737.925 | RY30: 8493.017 | RZ30: 10700.148 | SA30: 11406.164 | SB30: 9019.776 | SC30: 6795.032 | SD30: 4585.933 | SE30: 3759.804 | SF30: 3990.39 | SG30: 2416.223 | SH30: 4423.364 | SI30: 6293.366 | SJ30: 9879.199 | SK30: 10557.294 | SL30: 10496.748 | SM30: 8941.781 | SN30: 9343.414 | SO30: 5374.757 | SP30: 4277.54 | SQ30: 4408.137 | SR30: 3252.177 | SS30: 2043.294 | ST30: 3133.102 | SU30: 4002.785 | SV30: 4145.496 | SW30: 7087.792 | SX30: 7330.893 | SY30: 5387.53 | SZ30: 5382.479 | TA30: 3748.244 | TB30: 4174.821 | TC30: 2096.828 | TD30: 3647.736 | TE30: 2621 | TF30: 4804 | TG30: 6890 | TH30: 9697 | TI30: 10141 | TJ30: 10792 | TK30: 6978 | TL30: 6348 | TM30: 6560 | TN30: 3984 | TO30: 3406 | TP30: 1837 | TQ30: 5375 | TR30: 4553 | TS30: 6069 | TT30: 8251 | TU30: 10254 | TV30: 10680 | TW30: 6384 | TX30: 5830 | TY30: 4209 | TZ30: 4050 | UA30: 6027 | UB30: 3128 | UC30: 634 | UD30: 3398 | UE30: 5344 | UF30: 6406 | UG30: 8528 | UH30: 9255 | UI30: 5977 | UJ30: 8958 | UK30: 4262 | UL30: 3476 | UM30: 3394 | UN30: 5646 | UO30: 3554 | UP30: 3473 | UQ30: 9124 | UR30: 7505 | US30: 8658 | UT30: 11026 | UU30: 10176 | UV30: 7669 | UW30: 4946 | UX30: 5453 | UY30: 3822 | UZ30: 4272 | VA30: 0 | VB30: 0 | VC30: 0 | VD30: 0 | VE30: 0 | VF30: 0 | VG30: 0 | VH30: 0 | VI30: 0 | VJ30: 0 | VK30: 0
A31: 167 | B31: 37265.006 | C31: 7965 | D31: Salt Valley Wind Plant | E31: WT | F31: NE | I31: 0 | J31: 0 | K31: 0 | L31: 0 | M31: 0 | N31: 0 | O31: 0 | P31: 0 | Q31: 0 | R31: 0 | S31: 0 | T31: 0 | U31: 0 | V31: 0 | W31: 0 | X31: 0 | Y31: 0 | Z31: 0 | AA31: 0 | AB31: 0 | AC31: 0 | AD31: 0 | AE31: 0 | AF31: 0 | AG31: 0 | AH31: 0 | AI31: 0 | AJ31: 0 | AK31: 0 | AL31: 0 | AM31: 0 | AN31: 0 | AO31: 0 | AP31: 0 | AQ31: 0 | AR31: 0 | AS31: 0 | AT31: 0 | AU31: 0 | AV31: 0 | AW31: 0 | AX31: 0 | AY31: 0 | AZ31: 0 | BA31: 0 | BB31: 0 | BC31: 0 | BD31: 0 | BE31: 0 | BF31: 0 | BG31: 0 | BH31: 0 | BI31: 0 | BJ31: 0 | BK31: 0 | BL31: 0 | BM31: 0 | BN31: 0 | BO31: 0 | BP31: 0 | BQ31: 0 | BR31: 0 | BS31: 0 | BT31: 0 | BU31: 0 | BV31: 0 | BW31: 0 | BX31: 0 | BY31: 0 | BZ31: 0 | CA31: 0 | CB31: 0 | CC31: 0 | CD31: 0 | CE31: 0 | CF31: 0 | CG31: 0 | CH31: 0 | CI31: 0 | CJ31: 0 | CK31: 0 | CL31: 0 | CM31: 0 | CN31: 0 | CO31: 0 | CP31: 0 | CQ31: 0 | CR31: 0 | CS31: 0 | CT31: 0 | CU31: 0 | CV31: 0 | CW31: 0 | CX31: 0 | CY31: 0 | CZ31: 0 | DA31: 0 | DB31: 0 | DC31: 0 | DD31: 0 | DE31: 0 | DF31: 0 | DG31: 0 | DH31: 0 | DI31: 0 | DJ31: 0 | DK31: 0 | DL31: 0 | DM31: 0 | DN31: 0 | DO31: 0 | DP31: 0 | DQ31: 0 | DR31: 0 | DS31: 0 | DT31: 0 | DU31: 0 | DV31: 0 | DW31: 0 | DX31: 0 | DY31: 0 | DZ31: 0 | EA31: 0 | EB31: 0 | EC31: 0 | ED31: 0 | EE31: 0 | EF31: 0 | EG31: 0 | EH31: 0 | EI31: 0 | EJ31: 0 | EK31: 0 | EL31: 0 | EM31: 0 | EN31: 0 | EO31: 0 | EP31: 0 | EQ31: 0 | ER31: 0 | ES31: 0 | ET31: 0 | EU31: 0 | EV31: 0 | EW31: 0 | EX31: 0 | EY31: 0 | EZ31: 0 | FA31: 0 | FB31: 0 | FC31: 0 | FD31: 0 | FE31: 0 | FF31: 0 | FG31: 0 | FH31: 0 | FI31: 0 | FJ31: 0 | FK31: 0 | FL31: 0 | FM31: 0 | FN31: 0 | FO31: 0 | FP31: 0 | FQ31: 0 | FR31: 0 | FS31: 0 | FT31: 0 | FU31: 0 | FV31: 0 | FW31: 0 | FX31: 0 | FY31: 0 | FZ31: 0 | GA31: 0 | GB31: 0 | GC31: 0 | GD31: 0 | GE31: 0 | GF31: 0 | GG31: 0 | GH31: 0 | GI31: 0 | GJ31: 0 | GK31: 0 | GL31: 0 | GM31: 0 | GN31: 0 | GO31: 0 | GP31: 0 | GQ31: 0 | GR31: 0 | GS31: 0 | GT31: 0 | GU31: 0 | GV31: 0 | GW31: 0 | GX31: 0 | GY31: 0 | GZ31: 0 | HA31: 0 | HB31: 0 | HC31: 0 | HD31: 0 | HE31: 0 | HF31: 0 | HG31: 0 | HH31: 0 | HI31: 0 | HJ31: 0 | HK31: 0 | HL31: 0 | HM31: 0 | HN31: 0 | HO31: 0 | HP31: 0 | HQ31: 0 | HR31: 0 | HS31: 0 | HT31: 0 | HU31: 0 | HV31: 0 | HW31: 0 | HX31: 0 | HY31: 0 | HZ31: 0 | IA31: 0 | IB31: 0 | IC31: 0 | ID31: 0 | IE31: 0 | IF31: 0 | IG31: 0 | IH31: 0 | II31: 0 | IJ31: 0 | IK31: 0 | IL31: 0 | IM31: 0 | IN31: 0 | IO31: 0 | IP31: 0 | IQ31: 0 | IR31: 0 | IS31: 0 | IT31: 0 | IU31: 0 | IV31: 0 | IW31: 0 | IX31: 0 | IY31: 0 | IZ31: 0 | JA31: 0 | JB31: 0 | JC31: 0 | JD31: 0 | JE31: 0 | JF31: 0 | JG31: 0 | JH31: 0 | JI31: 0 | JJ31: 0 | JK31: 0 | JL31: 0 | JM31: 0 | JN31: 0 | JO31: 0 | JP31: 0 | JQ31: 0 | JR31: 0 | JS31: 0 | JT31: 0 | JU31: 0 | JV31: 0 | JW31: 0 | JX31: 0 | JY31: 0 | JZ31: 0 | KA31: 0 | KB31: 0 | KC31: 0 | KD31: 0 | KE31: 0 | KF31: 0 | KG31: 0 | KH31: 0 | KI31: 0 | KJ31: 0 | KK31: 0 | KL31: 0 | KM31: 0 | KN31: 0 | KO31: 0 | KP31: 0 | KQ31: 0 | KR31: 0 | KS31: 0 | KT31: 0 | KU31: 0 | KV31: 0 | KW31: 0 | KX31: 0 | KY31: 0 | KZ31: 0 | LA31: 0 | LB31: 0 | LC31: 0 | LD31: 0 | LE31: 0 | LF31: 0 | LG31: 0 | LH31: 0 | LI31: 0 | LJ31: 0 | LK31: 0 | LL31: 0 | LM31: 0 | LN31: 0 | LO31: 0 | LP31: 0 | LQ31: 0 | LR31: 0 | LS31: 0 | LT31: 0 | LU31: 0 | LV31: 0 | LW31: 0 | LX31: 0 | LY31: 0 | LZ31: 0 | MA31: 0 | MB31: 0 | MC31: 0 | MD31: 0 | ME31: 0 | MF31: 0 | MG31: 0 | MH31: 0 | MI31: 0 | MJ31: 0 | MK31: 0 | ML31: 0 | MM31: 0 | MN31: 0 | MO31: 0 | MP31: 0 | MQ31: 0 | MR31: 0 | MS31: 0 | MT31: 0 | MU31: 0 | MV31: 0 | MW31: 0 | MX31: 0 | MY31: 0 | MZ31: 0 | NA31: 0 | NB31: 0 | NC31: 0 | ND31: 0 | NE31: 0 | NF31: 0 | NG31: 0 | NH31: 0 | NI31: 0 | NJ31: 0 | NK31: 0 | NL31: 0 | NM31: 0 | NN31: 0 | NO31: 0 | NP31: 0 | NQ31: 228 | NR31: 171 | NS31: 171 | NT31: 323 | NU31: 294 | NV31: 203 | NW31: 118 | NX31: 105 | NY31: 144 | NZ31: 304 | OA31: 281 | OB31: 288 | OC31: 340 | OD31: 345 | OE31: 0 | OF31: 349 | OG31: 271 | OH31: 282 | OI31: 162 | OJ31: 173 | OK31: 188 | OL31: 201 | OM31: 208 | ON31: 218 | OO31: 268 | OP31: 226 | OQ31: 326 | OR31: 313 | OS31: 205 | OT31: 166 | OU31: 168 | OV31: 101 | OW31: 184 | OX31: 249 | OY31: 224 | OZ31: 273 | PA31: 228.917 | PB31: 228.917 | PC31: 228.917 | PD31: 228.917 | PE31: 228.917 | PF31: 228.917 | PG31: 228.917 | PH31: 228.917 | PI31: 228.917 | PJ31: 228.917 | PK31: 228.917 | PL31: 228.917 | PM31: 111.899 | PN31: 147.399 | PO31: 219.093 | PP31: 221.725 | PQ31: 235.558 | PR31: 199.877 | PS31: 136.657 | PT31: 122.971 | PU31: 259.392 | PV31: 343.867 | PW31: 472.714 | PX31: 384.848 | PY31: 317.631 | PZ31: 258.209 | QA31: 263.697 | QB31: 265.016 | QC31: 249.422 | QD31: 167.348 | QE31: 170.677 | QF31: 147.715 | QG31: 180.361 | QH31: 256.004 | QI31: 289.102 | QJ31: 310.818 | QK31: 390.527 | QL31: 190.184 | QM31: 272.98 | QN31: 230.238 | QO31: 211.787 | QP31: 214.013 | QQ31: 195.204 | QR31: 153.118 | QS31: 178.128 | QT31: 215.597 | QU31: 240.681 | QV31: 223.545 | QW31: 296.099 | QX31: 245.363 | QY31: 243.823 | QZ31: 309.893 | RA31: 247.162 | RB31: 169.032 | RC31: 196.118 | RD31: 194.805 | RE31: 179.017 | RF31: 189.165 | RG31: 275.172 | RH31: 376.351 | RI31: 166.817 | RJ31: 113.924 | RK31: 269.593 | RL31: 298.046 | RM31: 264.55 | RN31: 133.411 | RO31: 144.305 | RP31: 212.912 | RQ31: 247.26 | RR31: 268.383 | RS31: 281.72 | RT31: 228.079 | RU31: 200.348 | RV31: 156.842 | RW31: 226.226 | RX31: 230.188 | RY31: 215.631 | RZ31: 134.741 | SA31: 151.684 | SB31: 164.215 | SC31: 165.921 | SD31: 199.505 | SE31: 209.401 | SF31: 269.298 | SG31: 136.975 | SH31: 219.903 | SI31: 205.32 | SJ31: 231.197 | SK31: 234.984 | SL31: 194.368 | SM31: 145.502 | SN31: 120.695 | SO31: 135.36 | SP31: 222.014 | SQ31: 245.461 | SR31: 241.221 | SS31: 268.363 | ST31: 212.66 | SU31: 234.177 | SV31: 212.317 | SW31: 212.666 | SX31: 208.422 | SY31: 167.367 | SZ31: 171.498 | TA31: 162.542 | TB31: 231.101 | TC31: 227.374 | TD31: 289.513 | TE31: 238.064 | TF31: 225.771 | TG31: 250.627 | TH31: 247.262 | TI31: 244.891 | TJ31: 184.901 | TK31: 158.395 | TL31: 168.62 | TM31: 235.786 | TN31: 266.731 | TO31: 330.835 | TP31: 282.117 | TQ31: 0 | TR31: 0 | TS31: 0 | TT31: 0 | TU31: 0 | TV31: 0 | TW31: 0 | TX31: 0 | TY31: 0 | TZ31: 0 | UA31: 0 | UB31: 0 | UC31: 243.729 | UD31: 210.223 | UE31: 210.145 | UF31: 209.651 | UG31: 193.688 | UH31: 138.723 | UI31: 125.85 | UJ31: 159.575 | UK31: 201.661 | UL31: 199.738 | UM31: 234.939 | UN31: 232.078 | UO31: 0 | UP31: 0 | UQ31: 0 | UR31: 0 | US31: 0 | UT31: 0 | UU31: 0 | UV31: 0 | UW31: 0 | UX31: 0 | UY31: 0 | UZ31: 0 | VA31: 0 | VB31: 0 | VC31: 0 | VD31: 0 | VE31: 0 | VF31: 0 | VG31: 0 | VH31: 0 | VI31: 0 | VJ31: 0 | VK31: 0
A32: 158 | B32: 67467 | C32: 7974 | D32: Chamberlain Wind Project | E32: WT | F32: SD | I32: 0 | J32: 0 | K32: 0 | L32: 0 | M32: 0 | N32: 0 | O32: 0 | P32: 0 | Q32: 0 | R32: 0 | S32: 0 | T32: 0 | U32: 0 | V32: 0 | W32: 0 | X32: 0 | Y32: 0 | Z32: 0 | AA32: 0 | AB32: 0 | AC32: 0 | AD32: 0 | AE32: 0 | AF32: 0 | AG32: 0 | AH32: 0 | AI32: 0 | AJ32: 0 | AK32: 0 | AL32: 0 | AM32: 0 | AN32: 0 | AO32: 0 | AP32: 0 | AQ32: 0 | AR32: 0 | AS32: 0 | AT32: 0 | AU32: 0 | AV32: 0 | AW32: 0 | AX32: 0 | AY32: 0 | AZ32: 0 | BA32: 0 | BB32: 0 | BC32: 0 | BD32: 0 | BE32: 0 | BF32: 0 | BG32: 0 | BH32: 0 | BI32: 0 | BJ32: 0 | BK32: 0 | BL32: 0 | BM32: 0 | BN32: 0 | BO32: 0 | BP32: 0 | BQ32: 0 | BR32: 0 | BS32: 0 | BT32: 0 | BU32: 0 | BV32: 0 | BW32: 0 | BX32: 0 | BY32: 0 | BZ32: 0 | CA32: 0 | CB32: 0 | CC32: 0 | CD32: 0 | CE32: 0 | CF32: 0 | CG32: 0 | CH32: 0 | CI32: 0 | CJ32: 0 | CK32: 0 | CL32: 0 | CM32: 0 | CN32: 0 | CO32: 0 | CP32: 0 | CQ32: 0 | CR32: 0 | CS32: 0 | CT32: 0 | CU32: 0 | CV32: 0 | CW32: 0 | CX32: 0 | CY32: 0 | CZ32: 0 | DA32: 0 | DB32: 0 | DC32: 0 | DD32: 0 | DE32: 0 | DF32: 0 | DG32: 0 | DH32: 0 | DI32: 0 | DJ32: 0 | DK32: 0 | DL32: 0 | DM32: 0 | DN32: 0 | DO32: 0 | DP32: 0 | DQ32: 0 | DR32: 0 | DS32: 0 | DT32: 0 | DU32: 0 | DV32: 0 | DW32: 0 | DX32: 0 | DY32: 0 | DZ32: 0 | EA32: 0 | EB32: 0 | EC32: 0 | ED32: 0 | EE32: 0 | EF32: 0 | EG32: 0 | EH32: 0 | EI32: 0 | EJ32: 0 | EK32: 0 | EL32: 0 | EM32: 0 | EN32: 0 | EO32: 0 | EP32: 0 | EQ32: 0 | ER32: 0 | ES32: 0 | ET32: 0 | EU32: 0 | EV32: 0 | EW32: 0 | EX32: 0 | EY32: 0 | EZ32: 0 | FA32: 0 | FB32: 0 | FC32: 0 | FD32: 0 | FE32: 0 | FF32: 0 | FG32: 0 | FH32: 0 | FI32: 0 | FJ32: 0 | FK32: 0 | FL32: 0 | FM32: 0 | FN32: 0 | FO32: 0 | FP32: 0 | FQ32: 0 | FR32: 0 | FS32: 0 | FT32: 0 | FU32: 0 | FV32: 0 | FW32: 0 | FX32: 0 | FY32: 0 | FZ32: 0 | GA32: 0 | GB32: 0 | GC32: 0 | GD32: 0 | GE32: 0 | GF32: 0 | GG32: 0 | GH32: 0 | GI32: 0 | GJ32: 0 | GK32: 0 | GL32: 0 | GM32: 0 | GN32: 0 | GO32: 0 | GP32: 0 | GQ32: 0 | GR32: 0 | GS32: 0 | GT32: 0 | GU32: 0 | GV32: 0 | GW32: 0 | GX32: 0 | GY32: 0 | GZ32: 0 | HA32: 0 | HB32: 0 | HC32: 0 | HD32: 0 | HE32: 0 | HF32: 0 | HG32: 0 | HH32: 0 | HI32: 0 | HJ32: 0 | HK32: 0 | HL32: 0 | HM32: 0 | HN32: 0 | HO32: 0 | HP32: 0 | HQ32: 0 | HR32: 0 | HS32: 0 | HT32: 0 | HU32: 0 | HV32: 0 | HW32: 0 | HX32: 0 | HY32: 0 | HZ32: 0 | IA32: 0 | IB32: 0 | IC32: 0 | ID32: 0 | IE32: 0 | IF32: 0 | IG32: 0 | IH32: 0 | II32: 0 | IJ32: 0 | IK32: 0 | IL32: 0 | IM32: 0 | IN32: 0 | IO32: 0 | IP32: 0 | IQ32: 0 | IR32: 0 | IS32: 0 | IT32: 0 | IU32: 0 | IV32: 0 | IW32: 0 | IX32: 0 | IY32: 0 | IZ32: 0 | JA32: 0 | JB32: 0 | JC32: 0 | JD32: 0 | JE32: 0 | JF32: 0 | JG32: 0 | JH32: 0 | JI32: 0 | JJ32: 0 | JK32: 0 | JL32: 0 | JM32: 0 | JN32: 0 | JO32: 0 | JP32: 0 | JQ32: 0 | JR32: 0 | JS32: 0 | JT32: 0 | JU32: 0 | JV32: 0 | JW32: 0 | JX32: 0 | JY32: 0 | JZ32: 0 | KA32: 0 | KB32: 0 | KC32: 0 | KD32: 0 | KE32: 0 | KF32: 0 | KG32: 0 | KH32: 0 | KI32: 0 | KJ32: 0 | KK32: 0 | KL32: 0 | KM32: 0 | KN32: 0 | KO32: 0 | KP32: 0 | KQ32: 0 | KR32: 0 | KS32: 0 | KT32: 0 | KU32: 0 | KV32: 0 | KW32: 0 | KX32: 0 | KY32: 0 | KZ32: 0 | LA32: 0 | LB32: 0 | LC32: 0 | LD32: 0 | LE32: 0 | LF32: 0 | LG32: 0 | LH32: 0 | LI32: 0 | LJ32: 0 | LK32: 0 | LL32: 0 | LM32: 0 | LN32: 0 | LO32: 0 | LP32: 0 | LQ32: 0 | LR32: 0 | LS32: 0 | LT32: 0 | LU32: 0 | LV32: 0 | LW32: 0 | LX32: 0 | LY32: 0 | LZ32: 0 | MA32: 0 | MB32: 0 | MC32: 0 | MD32: 0 | ME32: 0 | MF32: 0 | MG32: 0 | MH32: 0 | MI32: 0 | MJ32: 0 | MK32: 0 | ML32: 0 | MM32: 0 | MN32: 0 | MO32: 0 | MP32: 0 | MQ32: 0 | MR32: 0 | MS32: 0 | MT32: 0 | MU32: 0 | MV32: 0 | MW32: 0 | MX32: 0 | MY32: 0 | MZ32: 0 | NA32: 0 | NB32: 0 | NC32: 0 | ND32: 0 | NE32: 0 | NF32: 0 | NG32: 0 | NH32: 0 | NI32: 0 | NJ32: 0 | NK32: 0 | NL32: 0 | NM32: 0 | NN32: 0 | NO32: 0 | NP32: 0 | NQ32: 0 | NR32: 0 | NS32: 0 | NT32: 0 | NU32: 0 | NV32: 0 | NW32: 0 | NX32: 0 | NY32: 0 | NZ32: 0 | OA32: 425 | OB32: 446 | OC32: 395 | OD32: 567 | OE32: 485 | OF32: 569 | OG32: 592 | OH32: 406 | OI32: 302 | OJ32: 406 | OK32: 490 | OL32: 413 | OM32: 940 | ON32: 478 | OO32: 410 | OP32: 329 | OQ32: 550 | OR32: 675 | OS32: 562 | OT32: 413 | OU32: 206 | OV32: 274 | OW32: 310 | OX32: 442 | OY32: 485 | OZ32: 511 | PA32: 490 | PB32: 576 | PC32: 706 | PD32: 446 | PE32: 252 | PF32: 293 | PG32: 336 | PH32: 218 | PI32: 420 | PJ32: 492 | PK32: 367 | PL32: 485 | PM32: 389 | PN32: 329 | PO32: 545 | PP32: 600 | PQ32: 590 | PR32: 526 | PS32: 348 | PT32: 353 | PU32: 494 | PV32: 478 | PW32: 631 | PX32: 494 | PY32: 336 | PZ32: 432 | QA32: 734 | QB32: 607 | QC32: 612 | QD32: 386 | QE32: 401 | QF32: 461 | QG32: 485 | QH32: 509 | QI32: 454 | QJ32: 367 | QK32: 410 | QL32: 408 | QM32: 468 | QN32: 259 | QO32: 526 | QP32: 432 | QQ32: 372 | QR32: 355 | QS32: 569 | QT32: 592 | QU32: 504 | QV32: 326 | QW32: 428.957 | QX32: 345.45 | QY32: 395.959 | QZ32: 532.082 | RA32: 484.388 | RB32: 346.311 | RC32: 305.278 | RD32: 297.732 | RE32: 406.813 | RF32: 535.556 | RG32: 575.922 | RH32: 798.552 | RI32: 218.335 | RJ32: 314.866 | RK32: 308.969 | RL32: 668.933 | RM32: 564.072 | RN32: 318.581 | RO32: 333.507 | RP32: 415.724 | RQ32: 467.689 | RR32: 536.615 | RS32: 476.303 | RT32: 558.406 | RU32: 308.658 | RV32: 219.146 | RW32: 363.128 | RX32: 477.184 | RY32: 550.416 | RZ32: 372.263 | SA32: 354.858 | SB32: 437.779 | SC32: 485.377 | SD32: 477.313 | SE32: 491.01 | SF32: 490.868 | SG32: 368.905 | SH32: 532.711 | SI32: 473.461 | SJ32: 532.173 | SK32: 572.852 | SL32: 421.806 | SM32: 301.379 | SN32: 317.945 | SO32: 287.215 | SP32: 512.737 | SQ32: 556.139 | SR32: 520.677 | SS32: 473.328 | ST32: 370.713 | SU32: 477.425 | SV32: 474.338 | SW32: 450.367 | SX32: 378.11 | SY32: 308.035 | SZ32: 290.475 | TA32: 329.008 | TB32: 487.695 | TC32: 433.398 | TD32: 351.108 | TE32: 459.129 | TF32: 375.075 | TG32: 407.799 | TH32: 479.855 | TI32: 416.522 | TJ32: 355.357 | TK32: 276.259 | TL32: 264.701 | TM32: 355.484 | TN32: 451.975 | TO32: 500.955 | TP32: 399.889 | TQ32: 0 | TR32: 0 | TS32: 0 | TT32: 0 | TU32: 0 | TV32: 0 | TW32: 0 | TX32: 0 | TY32: 0 | TZ32: 0 | UA32: 0 | UB32: 0 | UC32: 283.095 | UD32: 223.084 | UE32: 260.999 | UF32: 272.067 | UG32: 246.374 | UH32: 182.961 | UI32: 184.163 | UJ32: 213.816 | UK32: 239.967 | UL32: 284.616 | UM32: 291.772 | UN32: 212.086 | UO32: 0 | UP32: 0 | UQ32: 0 | UR32: 0 | US32: 0 | UT32: 0 | UU32: 0 | UV32: 0 | UW32: 0 | UX32: 0 | UY32: 0 | UZ32: 0 | VA32: 0 | VB32: 0 | VC32: 0 | VD32: 0 | VE32: 0 | VF32: 0 | VG32: 0 | VH32: 0 | VI32: 0 | VJ32: 0 | VK32: 0
A33: 156 | B33: 27769.998 | C33: 7855 | D33: Moorhead Wind Turbine | E33: WT | F33: MN | I33: 0 | J33: 0 | K33: 0 | L33: 0 | M33: 0 | N33: 0 | O33: 0 | P33: 0 | Q33: 0 | R33: 0 | S33: 0 | T33: 0 | U33: 0 | V33: 0 | W33: 0 | X33: 0 | Y33: 0 | Z33: 0 | AA33: 0 | AB33: 0 | AC33: 0 | AD33: 0 | AE33: 0 | AF33: 0 | AG33: 0 | AH33: 0 | AI33: 0 | AJ33: 0 | AK33: 0 | AL33: 0 | AM33: 0 | AN33: 0 | AO33: 0 | AP33: 0 | AQ33: 0 | AR33: 0 | AS33: 0 | AT33: 0 | AU33: 0 | AV33: 0 | AW33: 0 | AX33: 0 | AY33: 0 | AZ33: 0 | BA33: 0 | BB33: 0 | BC33: 0 | BD33: 0 | BE33: 0 | BF33: 0 | BG33: 0 | BH33: 0 | BI33: 0 | BJ33: 0 | BK33: 0 | BL33: 0 | BM33: 0 | BN33: 0 | BO33: 0 | BP33: 0 | BQ33: 0 | BR33: 0 | BS33: 0 | BT33: 0 | BU33: 0 | BV33: 0 | BW33: 0 | BX33: 0 | BY33: 0 | BZ33: 0 | CA33: 0 | CB33: 0 | CC33: 0 | CD33: 0 | CE33: 0 | CF33: 0 | CG33: 0 | CH33: 0 | CI33: 0 | CJ33: 0 | CK33: 0 | CL33: 0 | CM33: 0 | CN33: 0 | CO33: 0 | CP33: 0 | CQ33: 0 | CR33: 0 | CS33: 0 | CT33: 0 | CU33: 0 | CV33: 0 | CW33: 0 | CX33: 0 | CY33: 0 | CZ33: 0 | DA33: 0 | DB33: 0 | DC33: 0 | DD33: 0 | DE33: 0 | DF33: 0 | DG33: 0 | DH33: 0 | DI33: 0 | DJ33: 0 | DK33: 0 | DL33: 0 | DM33: 0 | DN33: 0 | DO33: 0 | DP33: 0 | DQ33: 0 | DR33: 0 | DS33: 0 | DT33: 0 | DU33: 0 | DV33: 0 | DW33: 0 | DX33: 0 | DY33: 0 | DZ33: 0 | EA33: 0 | EB33: 0 | EC33: 0 | ED33: 0 | EE33: 0 | EF33: 0 | EG33: 0 | EH33: 0 | EI33: 0 | EJ33: 0 | EK33: 0 | EL33: 0 | EM33: 0 | EN33: 0 | EO33: 0 | EP33: 0 | EQ33: 0 | ER33: 0 | ES33: 0 | ET33: 0 | EU33: 0 | EV33: 0 | EW33: 0 | EX33: 0 | EY33: 0 | EZ33: 0 | FA33: 0 | FB33: 0 | FC33: 0 | FD33: 0 | FE33: 0 | FF33: 0 | FG33: 0 | FH33: 0 | FI33: 0 | FJ33: 0 | FK33: 0 | FL33: 0 | FM33: 0 | FN33: 0 | FO33: 0 | FP33: 0 | FQ33: 0 | FR33: 0 | FS33: 0 | FT33: 0 | FU33: 0 | FV33: 0 | FW33: 0 | FX33: 0 | FY33: 0 | FZ33: 0 | GA33: 0 | GB33: 0 | GC33: 0 | GD33: 0 | GE33: 0 | GF33: 0 | GG33: 0 | GH33: 0 | GI33: 0 | GJ33: 0 | GK33: 0 | GL33: 0 | GM33: 0 | GN33: 0 | GO33: 0 | GP33: 0 | GQ33: 0 | GR33: 0 | GS33: 0 | GT33: 0 | GU33: 0 | GV33: 0 | GW33: 0 | GX33: 0 | GY33: 0 | GZ33: 0 | HA33: 0 | HB33: 0 | HC33: 0 | HD33: 0 | HE33: 0 | HF33: 0 | HG33: 0 | HH33: 0 | HI33: 0 | HJ33: 0 | HK33: 0 | HL33: 0 | HM33: 0 | HN33: 0 | HO33: 0 | HP33: 0 | HQ33: 0 | HR33: 0 | HS33: 0 | HT33: 0 | HU33: 0 | HV33: 0 | HW33: 0 | HX33: 0 | HY33: 0 | HZ33: 0 | IA33: 0 | IB33: 0 | IC33: 0 | ID33: 0 | IE33: 0 | IF33: 0 | IG33: 0 | IH33: 0 | II33: 0 | IJ33: 0 | IK33: 0 | IL33: 0 | IM33: 0 | IN33: 0 | IO33: 0 | IP33: 0 | IQ33: 0 | IR33: 0 | IS33: 0 | IT33: 0 | IU33: 0 | IV33: 0 | IW33: 0 | IX33: 0 | IY33: 0 | IZ33: 0 | JA33: 0 | JB33: 0 | JC33: 0 | JD33: 0 | JE33: 0 | JF33: 0 | JG33: 0 | JH33: 0 | JI33: 0 | JJ33: 0 | JK33: 0 | JL33: 0 | JM33: 0 | JN33: 0 | JO33: 0 | JP33: 0 | JQ33: 0 | JR33: 0 | JS33: 0 | JT33: 0 | JU33: 0 | JV33: 0 | JW33: 0 | JX33: 0 | JY33: 0 | JZ33: 0 | KA33: 0 | KB33: 0 | KC33: 0 | KD33: 0 | KE33: 0 | KF33: 0 | KG33: 0 | KH33: 0 | KI33: 0 | KJ33: 0 | KK33: 0 | KL33: 0 | KM33: 0 | KN33: 0 | KO33: 0 | KP33: 0 | KQ33: 0 | KR33: 0 | KS33: 0 | KT33: 0 | KU33: 0 | KV33: 0 | KW33: 0 | KX33: 0 | KY33: 0 | KZ33: 0 | LA33: 0 | LB33: 0 | LC33: 0 | LD33: 0 | LE33: 0 | LF33: 0 | LG33: 0 | LH33: 0 | LI33: 0 | LJ33: 0 | LK33: 0 | LL33: 0 | LM33: 0 | LN33: 0 | LO33: 0 | LP33: 0 | LQ33: 0 | LR33: 0 | LS33: 0 | LT33: 0 | LU33: 0 | LV33: 0 | LW33: 0 | LX33: 0 | LY33: 0 | LZ33: 0 | MA33: 0 | MB33: 0 | MC33: 0 | MD33: 0 | ME33: 0 | MF33: 0 | MG33: 0 | MH33: 0 | MI33: 0 | MJ33: 0 | MK33: 0 | ML33: 0 | MM33: 0 | MN33: 0 | MO33: 0 | MP33: 0 | MQ33: 0 | MR33: 0 | MS33: 0 | MT33: 0 | MU33: 0 | MV33: 0 | MW33: 0 | MX33: 0 | MY33: 0 | MZ33: 0 | NA33: 0 | NB33: 0 | NC33: 0 | ND33: 0 | NE33: 0 | NF33: 0 | NG33: 0 | NH33: 0 | NI33: 0 | NJ33: 0 | NK33: 0 | NL33: 0 | NM33: 0 | NN33: 0 | NO33: 0 | NP33: 0 | NQ33: 0 | NR33: 0 | NS33: 0 | NT33: 0 | NU33: 0 | NV33: 0 | NW33: 0 | NX33: 0 | NY33: 0 | NZ33: 0 | OA33: 0 | OB33: 0 | OC33: 0.262 | OD33: 0.228 | OE33: 0.246 | OF33: 0.226 | OG33: 0.22 | OH33: 0.246 | OI33: 0.281 | OJ33: 0.268 | OK33: 0.249 | OL33: 0.257 | OM33: 0.247 | ON33: 0.27 | OO33: 0.26 | OP33: 0.243 | OQ33: 0.235 | OR33: 0.225 | OS33: 0.228 | OT33: 0.238 | OU33: 0.275 | OV33: 0.279 | OW33: 0.241 | OX33: 0.25 | OY33: 0.257 | OZ33: 0.268 | PA33: 231.416 | PB33: 244.225 | PC33: 305.46 | PD33: 256.517 | PE33: 311.6 | PF33: 200.713 | PG33: 142.38 | PH33: 188.705 | PI33: 253.807 | PJ33: 280.029 | PK33: 317.287 | PL33: 347.86 | PM33: 98.303 | PN33: 129.49 | PO33: 192.474 | PP33: 194.786 | PQ33: 206.938 | PR33: 175.593 | PS33: 120.053 | PT33: 108.03 | PU33: 227.876 | PV33: 302.088 | PW33: 415.28 | PX33: 338.09 | PY33: 329.669 | PZ33: 267.995 | QA33: 273.691 | QB33: 275.06 | QC33: 258.875 | QD33: 173.69 | QE33: 177.146 | QF33: 153.313 | QG33: 187.196 | QH33: 265.707 | QI33: 300.059 | QJ33: 322.598 | QK33: 298.517 | QL33: 209.841 | QM33: 290.257 | QN33: 259.537 | QO33: 281.659 | QP33: 176.036 | QQ33: 135.205 | QR33: 105.753 | QS33: 241.365 | QT33: 248.657 | QU33: 232.108 | QV33: 193.065 | QW33: 238.02 | QX33: 193.177 | QY33: 200.739 | QZ33: 263.18 | RA33: 241.448 | RB33: 152.631 | RC33: 135.97 | RD33: 149.723 | RE33: 212.51 | RF33: 241.156 | RG33: 275.384 | RH33: 357.062 | RI33: 241.764 | RJ33: 244.043 | RK33: 266.112 | RL33: 267.691 | RM33: 235.749 | RN33: 143.127 | RO33: 128.629 | RP33: 152.81 | RQ33: 124.866 | RR33: 200.112 | RS33: 196.486 | RT33: 219.611 | RU33: 210.131 | RV33: 130.962 | RW33: 214.25 | RX33: 230.185 | RY33: 210.048 | RZ33: 140.319 | SA33: 127.992 | SB33: 156.923 | SC33: 164.143 | SD33: 206.229 | SE33: 241.134 | SF33: 218.684 | SG33: 191.148 | SH33: 281.928 | SI33: 218.783 | SJ33: 258.311 | SK33: 284.048 | SL33: 193.424 | SM33: 118.764 | SN33: 108.695 | SO33: 143.205 | SP33: 291.037 | SQ33: 320.525 | SR33: 291.132 | SS33: 253.266 | ST33: 182.893 | SU33: 213.993 | SV33: 235.786 | SW33: 229.543 | SX33: 179.373 | SY33: 115.446 | SZ33: 124.396 | TA33: 153.288 | TB33: 244.806 | TC33: 228.459 | TD33: 191.751 | TE33: 180.404 | TF33: 138 | TG33: 147.363 | TH33: 159.895 | TI33: 156.599 | TJ33: 111.126 | TK33: 101.713 | TL33: 74.576 | TM33: 121.291 | TN33: 138.492 | TO33: 185.725 | TP33: 135.816 | TQ33: 0 | TR33: 0 | TS33: 0 | TT33: 0 | TU33: 0 | TV33: 0 | TW33: 0 | TX33: 0 | TY33: 0 | TZ33: 0 | UA33: 0 | UB33: 0 | UC33: 240.847 | UD33: 219.64 | UE33: 240.099 | UF33: 249.184 | UG33: 228.812 | UH33: 127.866 | UI33: 113.34 | UJ33: 150.453 | UK33: 170.251 | UL33: 229.773 | UM33: 279.575 | UN33: 230.16 | UO33: 0 | UP33: 0 | UQ33: 0 | UR33: 0 | US33: 0 | UT33: 0 | UU33: 0 | UV33: 0 | UW33: 0 | UX33: 0 | UY33: 0 | UZ33: 0 | VA33: 0 | VB33: 0 | VC33: 0 | VD33: 0 | VE33: 0 | VF33: 0 | VG33: 0 | VH33: 0 | VI33: 0 | VJ33: 0 | VK33: 0
A34: 156 | B34: 73175 | C34: 7966 | D34: Iowa Distributed Wind Generation Project | E34: WT | F34: IA | I34: 0 | J34: 0 | K34: 0 | L34: 0 | M34: 0 | N34: 0 | O34: 0 | P34: 0 | Q34: 0 | R34: 0 | S34: 0 | T34: 0 | U34: 0 | V34: 0 | W34: 0 | X34: 0 | Y34: 0 | Z34: 0 | AA34: 0 | AB34: 0 | AC34: 0 | AD34: 0 | AE34: 0 | AF34: 0 | AG34: 0 | AH34: 0 | AI34: 0 | AJ34: 0 | AK34: 0 | AL34: 0 | AM34: 0 | AN34: 0 | AO34: 0 | AP34: 0 | AQ34: 0 | AR34: 0 | AS34: 0 | AT34: 0 | AU34: 0 | AV34: 0 | AW34: 0 | AX34: 0 | AY34: 0 | AZ34: 0 | BA34: 0 | BB34: 0 | BC34: 0 | BD34: 0 | BE34: 0 | BF34: 0 | BG34: 0 | BH34: 0 | BI34: 0 | BJ34: 0 | BK34: 0 | BL34: 0 | BM34: 0 | BN34: 0 | BO34: 0 | BP34: 0 | BQ34: 0 | BR34: 0 | BS34: 0 | BT34: 0 | BU34: 0 | BV34: 0 | BW34: 0 | BX34: 0 | BY34: 0 | BZ34: 0 | CA34: 0 | CB34: 0 | CC34: 0 | CD34: 0 | CE34: 0 | CF34: 0 | CG34: 0 | CH34: 0 | CI34: 0 | CJ34: 0 | CK34: 0 | CL34: 0 | CM34: 0 | CN34: 0 | CO34: 0 | CP34: 0 | CQ34: 0 | CR34: 0 | CS34: 0 | CT34: 0 | CU34: 0 | CV34: 0 | CW34: 0 | CX34: 0 | CY34: 0 | CZ34: 0 | DA34: 0 | DB34: 0 | DC34: 0 | DD34: 0 | DE34: 0 | DF34: 0 | DG34: 0 | DH34: 0 | DI34: 0 | DJ34: 0 | DK34: 0 | DL34: 0 | DM34: 0 | DN34: 0 | DO34: 0 | DP34: 0 | DQ34: 0 | DR34: 0 | DS34: 0 | DT34: 0 | DU34: 0 | DV34: 0 | DW34: 0 | DX34: 0 | DY34: 0 | DZ34: 0 | EA34: 0 | EB34: 0 | EC34: 0 | ED34: 0 | EE34: 0 | EF34: 0 | EG34: 0 | EH34: 0 | EI34: 0 | EJ34: 0 | EK34: 0 | EL34: 0 | EM34: 0 | EN34: 0 | EO34: 0 | EP34: 0 | EQ34: 0 | ER34: 0 | ES34: 0 | ET34: 0 | EU34: 0 | EV34: 0 | EW34: 0 | EX34: 0 | EY34: 0 | EZ34: 0 | FA34: 0 | FB34: 0 | FC34: 0 | FD34: 0 | FE34: 0 | FF34: 0 | FG34: 0 | FH34: 0 | FI34: 0 | FJ34: 0 | FK34: 0 | FL34: 0 | FM34: 0 | FN34: 0 | FO34: 0 | FP34: 0 | FQ34: 0 | FR34: 0 | FS34: 0 | FT34: 0 | FU34: 0 | FV34: 0 | FW34: 0 | FX34: 0 | FY34: 0 | FZ34: 0 | GA34: 0 | GB34: 0 | GC34: 0 | GD34: 0 | GE34: 0 | GF34: 0 | GG34: 0 | GH34: 0 | GI34: 0 | GJ34: 0 | GK34: 0 | GL34: 0 | GM34: 0 | GN34: 0 | GO34: 0 | GP34: 0 | GQ34: 0 | GR34: 0 | GS34: 0 | GT34: 0 | GU34: 0 | GV34: 0 | GW34: 0 | GX34: 0 | GY34: 0 | GZ34: 0 | HA34: 0 | HB34: 0 | HC34: 0 | HD34: 0 | HE34: 0 | HF34: 0 | HG34: 0 | HH34: 0 | HI34: 0 | HJ34: 0 | HK34: 0 | HL34: 0 | HM34: 0 | HN34: 0 | HO34: 0 | HP34: 0 | HQ34: 0 | HR34: 0 | HS34: 0 | HT34: 0 | HU34: 0 | HV34: 0 | HW34: 0 | HX34: 0 | HY34: 0 | HZ34: 0 | IA34: 0 | IB34: 0 | IC34: 0 | ID34: 0 | IE34: 0 | IF34: 0 | IG34: 0 | IH34: 0 | II34: 0 | IJ34: 0 | IK34: 0 | IL34: 0 | IM34: 0 | IN34: 0 | IO34: 0 | IP34: 0 | IQ34: 0 | IR34: 0 | IS34: 0 | IT34: 0 | IU34: 0 | IV34: 0 | IW34: 0 | IX34: 0 | IY34: 0 | IZ34: 0 | JA34: 0 | JB34: 0 | JC34: 0 | JD34: 0 | JE34: 0 | JF34: 0 | JG34: 0 | JH34: 0 | JI34: 0 | JJ34: 0 | JK34: 0 | JL34: 0 | JM34: 0 | JN34: 0 | JO34: 0 | JP34: 0 | JQ34: 0 | JR34: 0 | JS34: 0 | JT34: 0 | JU34: 0 | JV34: 0 | JW34: 0 | JX34: 0 | JY34: 0 | JZ34: 0 | KA34: 0 | KB34: 0 | KC34: 0 | KD34: 0 | KE34: 0 | KF34: 0 | KG34: 0 | KH34: 0 | KI34: 0 | KJ34: 0 | KK34: 0 | KL34: 0 | KM34: 0 | KN34: 0 | KO34: 0 | KP34: 0 | KQ34: 0 | KR34: 0 | KS34: 0 | KT34: 0 | KU34: 0 | KV34: 0 | KW34: 0 | KX34: 0 | KY34: 0 | KZ34: 0 | LA34: 0 | LB34: 0 | LC34: 0 | LD34: 0 | LE34: 0 | LF34: 0 | LG34: 0 | LH34: 0 | LI34: 0 | LJ34: 0 | LK34: 0 | LL34: 0 | LM34: 0 | LN34: 0 | LO34: 0 | LP34: 0 | LQ34: 0 | LR34: 0 | LS34: 0 | LT34: 0 | LU34: 0 | LV34: 0 | LW34: 0 | LX34: 0 | LY34: 0 | LZ34: 0 | MA34: 0 | MB34: 0 | MC34: 0 | MD34: 0 | ME34: 0 | MF34: 0 | MG34: 0 | MH34: 0 | MI34: 0 | MJ34: 0 | MK34: 0 | ML34: 0 | MM34: 0 | MN34: 0 | MO34: 0 | MP34: 0 | MQ34: 0 | MR34: 0 | MS34: 0 | MT34: 0 | MU34: 0 | MV34: 0 | MW34: 0 | MX34: 0 | MY34: 0 | MZ34: 0 | NA34: 0 | NB34: 0 | NC34: 0 | ND34: 0 | NE34: 0 | NF34: 0 | NG34: 0 | NH34: 0 | NI34: 0 | NJ34: 0 | NK34: 0 | NL34: 0 | NM34: 0 | NN34: 0 | NO34: 0 | NP34: 0 | NQ34: 589.284 | NR34: 508.062 | NS34: 561.342 | NT34: 453.803 | NU34: 446.176 | NV34: 514.847 | NW34: 624.186 | NX34: 615.149 | NY34: 502.9 | NZ34: 509.164 | OA34: 497.112 | OB34: 538.976 | OC34: 642 | OD34: 823 | OE34: 733 | OF34: 793 | OG34: 666 | OH34: 583 | OI34: 290 | OJ34: 308 | OK34: 365 | OL34: 460 | OM34: 547 | ON34: 691 | OO34: 1816 | OP34: 2311 | OQ34: 2529 | OR34: 668 | OS34: 512 | OT34: 350 | OU34: 294 | OV34: 175 | OW34: 301 | OX34: 333 | OY34: 350 | OZ34: 452 | PA34: 482 | PB34: 602 | PC34: 601 | PD34: 540 | PE34: 561 | PF34: 221 | PG34: 191 | PH34: 267 | PI34: 497 | PJ34: 466 | PK34: 489 | PL34: 697 | PM34: 552 | PN34: 486 | PO34: 622 | PP34: 615 | PQ34: 655 | PR34: 430 | PS34: 309 | PT34: 200 | PU34: 346 | PV34: 322 | PW34: 451 | PX34: 410 | PY34: 0 | PZ34: 0 | QA34: 0 | QB34: 0 | QC34: 0 | QD34: 0 | QE34: 0 | QF34: 0 | QG34: 0 | QH34: 0 | QI34: 0 | QJ34: 0 | QK34: 575.791 | QL34: 406.31 | QM34: 513.596 | QN34: 518.943 | QO34: 528.066 | QP34: 314.343 | QQ34: 230.143 | QR34: 220.222 | QS34: 408.389 | QT34: 447.399 | QU34: 545.47 | QV34: 330.327 | QW34: 432.541 | QX34: 325.196 | QY34: 383.04 | QZ34: 556.217 | RA34: 450.574 | RB34: 335.328 | RC34: 230.992 | RD34: 212.97 | RE34: 330.849 | RF34: 511.542 | RG34: 606.199 | RH34: 916.552 | RI34: 438.676 | RJ34: 493.317 | RK34: 543.35 | RL34: 540.044 | RM34: 473.031 | RN34: 298.994 | RO34: 246.732 | RP34: 333.999 | RQ34: 223.292 | RR34: 450.258 | RS34: 515.753 | RT34: 493.554 | RU34: 430.595 | RV34: 378.745 | RW34: 495.555 | RX34: 528.807 | RY34: 449.078 | RZ34: 324.622 | SA34: 265.315 | SB34: 348.85 | SC34: 435.268 | SD34: 509.145 | SE34: 650.151 | SF34: 534.869 | SG34: 383.931 | SH34: 469.706 | SI34: 414.67 | SJ34: 505.825 | SK34: 536.146 | SL34: 404.374 | SM34: 230.879 | SN34: 197.817 | SO34: 272.309 | SP34: 522.776 | SQ34: 597.589 | SR34: 503.978 | SS34: 531.103 | ST34: 407.025 | SU34: 486.915 | SV34: 461.186 | SW34: 468.551 | SX34: 378.375 | SY34: 229.214 | SZ34: 250.551 | TA34: 312.729 | TB34: 485.584 | TC34: 495.513 | TD34: 475.254 | TE34: 570.031 | TF34: 473.449 | TG34: 484.762 | TH34: 501.508 | TI34: 493.129 | TJ34: 373.739 | TK34: 298.9 | TL34: 230.535 | TM34: 397.285 | TN34: 454.753 | TO34: 597.914 | TP34: 437.995 | TQ34: 0 | TR34: 0 | TS34: 0 | TT34: 0 | TU34: 0 | TV34: 0 | TW34: 0 | TX34: 0 | TY34: 0 | TZ34: 0 | UA34: 0 | UB34: 0 | UC34: 279.56 | UD34: 242.531 | UE34: 253.15 | UF34: 245.637 | UG34: 246.519 | UH34: 139.07 | UI34: 121.17 | UJ34: 154.319 | UK34: 204.366 | UL34: 260.05 | UM34: 313.276 | UN34: 281.352 | UO34: 0 | UP34: 0 | UQ34: 0 | UR34: 0 | US34: 0 | UT34: 0 | UU34: 0 | UV34: 0 | UW34: 0 | UX34: 0 | UY34: 0 | UZ34: 0 | VA34: 0 | VB34: 0 | VC34: 0 | VD34: 0 | VE34: 0 | VF34: 0 | VG34: 0 | VH34: 0 | VI34: 0 | VJ34: 0 | VK34: 0
A35: 156 | B35: 193533.997 | C35: 10191 | D35: Tehachapi Wind Resource I | E35: WT | F35: CA | I35: 0 | J35: 0 | K35: 0 | L35: 0 | M35: 0 | N35: 0 | O35: 0 | P35: 0 | Q35: 0 | R35: 0 | S35: 0 | T35: 0 | U35: 0 | V35: 0 | W35: 0 | X35: 0 | Y35: 0 | Z35: 0 | AA35: 0 | AB35: 0 | AC35: 0 | AD35: 0 | AE35: 0 | AF35: 0 | AG35: 0 | AH35: 0 | AI35: 0 | AJ35: 0 | AK35: 0 | AL35: 0 | AM35: 0 | AN35: 0 | AO35: 0 | AP35: 0 | AQ35: 0 | AR35: 0 | AS35: 0 | AT35: 0 | AU35: 0 | AV35: 0 | AW35: 0 | AX35: 0 | AY35: 0 | AZ35: 0 | BA35: 0 | BB35: 0 | BC35: 0 | BD35: 0 | BE35: 0 | BF35: 0 | BG35: 0 | BH35: 0 | BI35: 0 | BJ35: 0 | BK35: 0 | BL35: 0 | BM35: 0 | BN35: 0 | BO35: 0 | BP35: 0 | BQ35: 0 | BR35: 0 | BS35: 0 | BT35: 0 | BU35: 0 | BV35: 0 | BW35: 0 | BX35: 0 | BY35: 0 | BZ35: 0 | CA35: 0 | CB35: 0 | CC35: 0 | CD35: 0 | CE35: 0 | CF35: 0 | CG35: 0 | CH35: 0 | CI35: 0 | CJ35: 0 | CK35: 0 | CL35: 0 | CM35: 0 | CN35: 0 | CO35: 0 | CP35: 0 | CQ35: 0 | CR35: 0 | CS35: 0 | CT35: 0 | CU35: 0 | CV35: 0 | CW35: 0 | CX35: 0 | CY35: 0 | CZ35: 0 | DA35: 0 | DB35: 0 | DC35: 0 | DD35: 0 | DE35: 0 | DF35: 0 | DG35: 0 | DH35: 0 | DI35: 0 | DJ35: 0 | DK35: 0 | DL35: 0 | DM35: 0 | DN35: 0 | DO35: 0 | DP35: 0 | DQ35: 0 | DR35: 0 | DS35: 0 | DT35: 0 | DU35: 0 | DV35: 0 | DW35: 0 | DX35: 0 | DY35: 0 | DZ35: 0 | EA35: 0 | EB35: 0 | EC35: 0 | ED35: 0 | EE35: 0 | EF35: 0 | EG35: 0 | EH35: 0 | EI35: 0 | EJ35: 0 | EK35: 0 | EL35: 0 | EM35: 0 | EN35: 0 | EO35: 0 | EP35: 0 | EQ35: 0 | ER35: 0 | ES35: 0 | ET35: 0 | EU35: 0 | EV35: 0 | EW35: 0 | EX35: 0 | EY35: 0 | EZ35: 0 | FA35: 0 | FB35: 0 | FC35: 0 | FD35: 0 | FE35: 0 | FF35: 0 | FG35: 0 | FH35: 0 | FI35: 0 | FJ35: 0 | FK35: 0 | FL35: 0 | FM35: 0 | FN35: 0 | FO35: 0 | FP35: 0 | FQ35: 0 | FR35: 0 | FS35: 0 | FT35: 0 | FU35: 0 | FV35: 0 | FW35: 0 | FX35: 0 | FY35: 0 | FZ35: 0 | GA35: 0 | GB35: 0 | GC35: 0 | GD35: 0 | GE35: 0 | GF35: 0 | GG35: 0 | GH35: 0 | GI35: 0 | GJ35: 0 | GK35: 0 | GL35: 0 | GM35: 0 | GN35: 0 | GO35: 0 | GP35: 0 | GQ35: 0 | GR35: 0 | GS35: 0 | GT35: 0 | GU35: 0 | GV35: 0 | GW35: 0 | GX35: 0 | GY35: 0 | GZ35: 0 | HA35: 0 | HB35: 0 | HC35: 0 | HD35: 0 | HE35: 0 | HF35: 0 | HG35: 0 | HH35: 0 | HI35: 0 | HJ35: 0 | HK35: 0 | HL35: 0 | HM35: 0 | HN35: 0 | HO35: 0 | HP35: 0 | HQ35: 0 | HR35: 0 | HS35: 0 | HT35: 0 | HU35: 0 | HV35: 0 | HW35: 0 | HX35: 0 | HY35: 0 | HZ35: 0 | IA35: 0 | IB35: 0 | IC35: 0 | ID35: 0 | IE35: 0 | IF35: 0 | IG35: 0 | IH35: 0 | II35: 0 | IJ35: 0 | IK35: 0 | IL35: 0 | IM35: 0 | IN35: 0 | IO35: 0 | IP35: 0 | IQ35: 0 | IR35: 0 | IS35: 0 | IT35: 0 | IU35: 0 | IV35: 0 | IW35: 0 | IX35: 0 | IY35: 0 | IZ35: 0 | JA35: 0 | JB35: 0 | JC35: 0 | JD35: 0 | JE35: 0 | JF35: 0 | JG35: 0 | JH35: 0 | JI35: 0 | JJ35: 0 | JK35: 0 | JL35: 0 | JM35: 0 | JN35: 0 | JO35: 0 | JP35: 0 | JQ35: 0 | JR35: 0 | JS35: 0 | JT35: 0 | JU35: 0 | JV35: 0 | JW35: 0 | JX35: 0 | JY35: 0 | JZ35: 0 | KA35: 0 | KB35: 0 | KC35: 0 | KD35: 0 | KE35: 0 | KF35: 0 | KG35: 0 | KH35: 0 | KI35: 0 | KJ35: 0 | KK35: 0 | KL35: 0 | KM35: 0 | KN35: 0 | KO35: 0 | KP35: 0 | KQ35: 0 | KR35: 0 | KS35: 0 | KT35: 0 | KU35: 0 | KV35: 0 | KW35: 0 | KX35: 0 | KY35: 0 | KZ35: 0 | LA35: 0 | LB35: 0 | LC35: 0 | LD35: 0 | LE35: 0 | LF35: 0 | LG35: 0 | LH35: 0 | LI35: 0 | LJ35: 0 | LK35: 0 | LL35: 0 | LM35: 0 | LN35: 0 | LO35: 0 | LP35: 0 | LQ35: 0 | LR35: 0 | LS35: 0 | LT35: 0 | LU35: 0 | LV35: 0 | LW35: 0 | LX35: 0 | LY35: 0 | LZ35: 0 | MA35: 0 | MB35: 0 | MC35: 0 | MD35: 0 | ME35: 0 | MF35: 0 | MG35: 0 | MH35: 0 | MI35: 0 | MJ35: 0 | MK35: 0 | ML35: 0 | MM35: 0 | MN35: 0 | MO35: 0 | MP35: 0 | MQ35: 0 | MR35: 0 | MS35: 0 | MT35: 0 | MU35: 0 | MV35: 0 | MW35: 0 | MX35: 0 | MY35: 0 | MZ35: 0 | NA35: 0 | NB35: 0 | NC35: 0 | ND35: 0 | NE35: 0 | NF35: 0 | NG35: 0 | NH35: 0 | NI35: 0 | NJ35: 0 | NK35: 0 | NL35: 0 | NM35: 0 | NN35: 0 | NO35: 0 | NP35: 0 | NQ35: 0 | NR35: 0 | NS35: 0 | NT35: 0 | NU35: 0 | NV35: 0 | NW35: 0 | NX35: 0 | NY35: 0 | NZ35: 0 | OA35: 0 | OB35: 0 | OC35: 1174.528 | OD35: 1024.559 | OE35: 1301.665 | OF35: 1049.795 | OG35: 1088.492 | OH35: 1413 | OI35: 1706.06 | OJ35: 1624.248 | OK35: 1464.298 | OL35: 1241.212 | OM35: 1143.319 | ON35: 1253.825 | OO35: 647 | OP35: 991 | OQ35: 1995 | OR35: 1741 | OS35: 1899 | OT35: 2081 | OU35: 1449 | OV35: 786 | OW35: 839 | OX35: 799 | OY35: 992 | OZ35: 1041 | PA35: 417.268 | PB35: 648.392 | PC35: 922.894 | PD35: 1280.726 | PE35: 2032.717 | PF35: 2189.414 | PG35: 1886.301 | PH35: 1576.885 | PI35: 1150 | PJ35: 830.999 | PK35: 497.858 | PL35: 376.545 | PM35: 992.949 | PN35: 743.46 | PO35: 1310.4 | PP35: 1492.426 | PQ35: 1537.345 | PR35: 1717.251 | PS35: 1376.019 | PT35: 1065.423 | PU35: 1265.116 | PV35: 1162.59 | PW35: 1029.312 | PX35: 1021.708 | PY35: 1171.504 | PZ35: 931.088 | QA35: 1301.906 | QB35: 1398.708 | QC35: 1429.208 | QD35: 1325.168 | QE35: 1226.709 | QF35: 1028.84 | QG35: 1127.885 | QH35: 1397.283 | QI35: 1377.774 | QJ35: 1244.926 | QK35: 691.065 | QL35: 912.72 | QM35: 1317.007 | QN35: 1817.685 | QO35: 2174.866 | QP35: 2172.337 | QQ35: 2003.7 | QR35: 1781.636 | QS35: 1441.995 | QT35: 1036.395 | QU35: 558.607 | QV35: 691.986 | QW35: 834.927 | QX35: 808.58 | QY35: 1386.666 | QZ35: 1658.55 | RA35: 2126.982 | RB35: 2032.293 | RC35: 2155.989 | RD35: 1995.28 | RE35: 1250.021 | RF35: 917.091 | RG35: 686.003 | RH35: 741.618 | RI35: 389.87 | RJ35: 635.782 | RK35: 1150.75 | RL35: 1562.502 | RM35: 1816.261 | RN35: 2200.609 | RO35: 2272.702 | RP35: 1753.221 | RQ35: 1239.728 | RR35: 1051.338 | RS35: 610.062 | RT35: 442.175 | RU35: 393.834 | RV35: 578.543 | RW35: 1044.362 | RX35: 1429.959 | RY35: 1802.434 | RZ35: 2270.844 | SA35: 2420.679 | SB35: 1914.226 | SC35: 1442.079 | SD35: 973.252 | SE35: 797.926 | SF35: 846.862 | SG35: 467.144 | SH35: 855.2 | SI35: 1216.741 | SJ35: 1910.015 | SK35: 2041.116 | SL35: 2029.41 | SM35: 1728.777 | SN35: 1806.428 | SO35: 1039.14 | SP35: 827.007 | SQ35: 852.256 | SR35: 628.766 | SS35: 561.64 | ST35: 861.196 | SU35: 1100.246 | SV35: 1139.473 | SW35: 1948.223 | SX35: 2015.044 | SY35: 1480.871 | SZ35: 1479.483 | TA35: 1030.281 | TB35: 1147.534 | TC35: 576.355 | TD35: 1002.654 | TE35: 494.545 | TF35: 747.004 | TG35: 1089.149 | TH35: 1603.071 | TI35: 1797.681 | TJ35: 1685.196 | TK35: 1457.988 | TL35: 1339.17 | TM35: 1197.331 | TN35: 772.033 | TO35: 572.591 | TP35: 472.241 | TQ35: 0 | TR35: 0 | TS35: 0 | TT35: 0 | TU35: 0 | TV35: 0 | TW35: 0 | TX35: 0 | TY35: 0 | TZ35: 0 | UA35: 0 | UB35: 0 | UC35: 185.679 | UD35: 612.064 | UE35: 819.07 | UF35: 1249.096 | UG35: 1661.068 | UH35: 1650.584 | UI35: 1430.001 | UJ35: 1507.018 | UK35: 806.528 | UL35: 659.445 | UM35: 611.597 | UN35: 904.85 | UO35: 0 | UP35: 0 | UQ35: 0 | UR35: 0 | US35: 0 | UT35: 0 | UU35: 0 | UV35: 0 | UW35: 0 | UX35: 0 | UY35: 0 | UZ35: 0 | VA35: 0 | VB35: 0 | VC35: 0 | VD35: 0 | VE35: 0 | VF35: 0 | VG35: 0 | VH35: 0 | VI35: 0 | VJ35: 0 | VK35: 0
A36: 156 | B36: 1096886.999 | C36: 50001 | D36: Altamont Midway Ltd | E36: WT | F36: CA | I36: 0 | J36: 0 | K36: 0 | L36: 0 | M36: 0 | N36: 0 | O36: 0 | P36: 0 | Q36: 0 | R36: 0 | S36: 0 | T36: 0 | U36: 0 | V36: 0 | W36: 0 | X36: 0 | Y36: 0 | Z36: 0 | AA36: 0 | AB36: 0 | AC36: 0 | AD36: 0 | AE36: 0 | AF36: 0 | AG36: 0 | AH36: 0 | AI36: 0 | AJ36: 0 | AK36: 0 | AL36: 0 | AM36: 0 | AN36: 0 | AO36: 0 | AP36: 0 | AQ36: 0 | AR36: 0 | AS36: 0 | AT36: 0 | AU36: 0 | AV36: 0 | AW36: 0 | AX36: 0 | AY36: 0 | AZ36: 0 | BA36: 0 | BB36: 0 | BC36: 0 | BD36: 0 | BE36: 0 | BF36: 0 | BG36: 0 | BH36: 0 | BI36: 0 | BJ36: 0 | BK36: 0 | BL36: 0 | BM36: 0 | BN36: 0 | BO36: 0 | BP36: 0 | BQ36: 0 | BR36: 0 | BS36: 0 | BT36: 0 | BU36: 0 | BV36: 0 | BW36: 0 | BX36: 0 | BY36: 0 | BZ36: 0 | CA36: 0 | CB36: 0 | CC36: 0 | CD36: 0 | CE36: 0 | CF36: 0 | CG36: 0 | CH36: 0 | CI36: 0 | CJ36: 0 | CK36: 0 | CL36: 0 | CM36: 0 | CN36: 0 | CO36: 0 | CP36: 0 | CQ36: 0 | CR36: 0 | CS36: 0 | CT36: 0 | CU36: 0 | CV36: 0 | CW36: 0 | CX36: 0 | CY36: 0 | CZ36: 0 | DA36: 0 | DB36: 0 | DC36: 0 | DD36: 0 | DE36: 0 | DF36: 0 | DG36: 0 | DH36: 0 | DI36: 0 | DJ36: 0 | DK36: 0 | DL36: 0 | DM36: 0 | DN36: 0 | DO36: 0 | DP36: 0 | DQ36: 0 | DR36: 0 | DS36: 0 | DT36: 0 | DU36: 0 | DV36: 0 | DW36: 0 | DX36: 0 | DY36: 0 | DZ36: 0 | EA36: 0 | EB36: 0 | EC36: 0 | ED36: 0 | EE36: 0 | EF36: 0 | EG36: 0 | EH36: 0 | EI36: 0 | EJ36: 0 | EK36: 0 | EL36: 0 | EM36: 0 | EN36: 0 | EO36: 0 | EP36: 0 | EQ36: 0 | ER36: 0 | ES36: 0 | ET36: 0 | EU36: 0 | EV36: 0 | EW36: 0 | EX36: 0 | EY36: 0 | EZ36: 0 | FA36: 0 | FB36: 0 | FC36: 0 | FD36: 0 | FE36: 0 | FF36: 0 | FG36: 0 | FH36: 0 | FI36: 0 | FJ36: 0 | FK36: 0 | FL36: 0 | FM36: 0 | FN36: 0 | FO36: 0 | FP36: 0 | FQ36: 0 | FR36: 0 | FS36: 0 | FT36: 0 | FU36: 0 | FV36: 0 | FW36: 0 | FX36: 0 | FY36: 0 | FZ36: 0 | GA36: 0 | GB36: 0 | GC36: 0 | GD36: 0 | GE36: 0 | GF36: 0 | GG36: 0 | GH36: 0 | GI36: 0 | GJ36: 0 | GK36: 0 | GL36: 0 | GM36: 0 | GN36: 0 | GO36: 0 | GP36: 0 | GQ36: 0 | GR36: 0 | GS36: 0 | GT36: 0 | GU36: 0 | GV36: 0 | GW36: 0 | GX36: 0 | GY36: 0 | GZ36: 0 | HA36: 0 | HB36: 0 | HC36: 0 | HD36: 0 | HE36: 0 | HF36: 0 | HG36: 0 | HH36: 0 | HI36: 0 | HJ36: 0 | HK36: 0 | HL36: 0 | HM36: 0 | HN36: 0 | HO36: 0 | HP36: 0 | HQ36: 0 | HR36: 0 | HS36: 0 | HT36: 0 | HU36: 0 | HV36: 0 | HW36: 0 | HX36: 0 | HY36: 0 | HZ36: 0 | IA36: 0 | IB36: 0 | IC36: 0 | ID36: 0 | IE36: 0 | IF36: 0 | IG36: 0 | IH36: 0 | II36: 0 | IJ36: 0 | IK36: 0 | IL36: 0 | IM36: 0 | IN36: 0 | IO36: 0 | IP36: 0 | IQ36: 0 | IR36: 0 | IS36: 0 | IT36: 0 | IU36: 0 | IV36: 0 | IW36: 0 | IX36: 0 | IY36: 0 | IZ36: 0 | JA36: 330 | JB36: 301 | JC36: 259 | JD36: 259 | JE36: 224 | JF36: 234 | JG36: 253 | JH36: 240 | JI36: 243 | JJ36: 259 | JK36: 282 | JL36: 310 | JM36: 84113 | JN36: 27350 | JO36: 140664 | JP36: 140153 | JQ36: 128019 | JR36: 109568 | JS36: 46728 | JT36: 42917 | JU36: 37424 | JV36: 18622 | JW36: 110976 | JX36: 69438 | JY36: 0 | JZ36: 0 | KA36: 0 | KB36: 0 | KC36: 0 | KD36: 0 | KE36: 0 | KF36: 0 | KG36: 0 | KH36: 0 | KI36: 0 | KJ36: 0 | KK36: 0 | KL36: 0 | KM36: 0 | KN36: 0 | KO36: 0 | KP36: 0 | KQ36: 0 | KR36: 0 | KS36: 0 | KT36: 0 | KU36: 0 | KV36: 0 | KW36: 0 | KX36: 0 | KY36: 0 | KZ36: 0 | LA36: 0 | LB36: 0 | LC36: 0 | LD36: 0 | LE36: 0 | LF36: 0 | LG36: 0 | LH36: 0 | LI36: 0 | LJ36: 0 | LK36: 0 | LL36: 0 | LM36: 0 | LN36: 0 | LO36: 0 | LP36: 0 | LQ36: 0 | LR36: 0 | LS36: 0 | LT36: 0 | LU36: 0 | LV36: 0 | LW36: 0 | LX36: 0 | LY36: 0 | LZ36: 0 | MA36: 0 | MB36: 0 | MC36: 0 | MD36: 0 | ME36: 0 | MF36: 0 | MG36: 0 | MH36: 0 | MI36: 0 | MJ36: 0 | MK36: 0 | ML36: 0 | MM36: 0 | MN36: 0 | MO36: 0 | MP36: 0 | MQ36: 0 | MR36: 0 | MS36: 0 | MT36: 0 | MU36: 0 | MV36: 0 | MW36: 0 | MX36: 0 | MY36: 0 | MZ36: 0 | NA36: 0 | NB36: 0 | NC36: 0 | ND36: 0 | NE36: 0 | NF36: 0 | NG36: 0 | NH36: 0 | NI36: 0 | NJ36: 0 | NK36: 0 | NL36: 0 | NM36: 0 | NN36: 0 | NO36: 0 | NP36: 0 | NQ36: 216 | NR36: 288 | NS36: 1656 | NT36: 1584 | NU36: 2052 | NV36: 2484 | NW36: 3060 | NX36: 3168 | NY36: 3168 | NZ36: 936 | OA36: 108 | OB36: 252 | OC36: 72 | OD36: 108 | OE36: 720 | OF36: 1764 | OG36: 3204 | OH36: 3132 | OI36: 2772 | OJ36: 2304 | OK36: 1404 | OL36: 1152 | OM36: 324 | ON36: 360 | OO36: 36 | OP36: 216 | OQ36: 936 | OR36: 1044 | OS36: 2052 | OT36: 3384 | OU36: 2232 | OV36: 2664 | OW36: 2304 | OX36: 1296 | OY36: 109 | OZ36: 72 | PA36: 49.371 | PB36: 76.718 | PC36: 109.197 | PD36: 151.536 | PE36: 240.511 | PF36: 259.052 | PG36: 223.187 | PH36: 186.577 | PI36: 136.068 | PJ36: 98.324 | PK36: 58.907 | PL36: 44.553 | PM36: 875.933 | PN36: 655.845 | PO36: 1155.973 | PP36: 1316.548 | PQ36: 1356.174 | PR36: 1514.878 | PS36: 1213.86 | PT36: 939.867 | PU36: 1116.026 | PV36: 1025.582 | PW36: 908.011 | PX36: 901.303 | PY36: 906.681 | PZ36: 720.611 | QA36: 1007.604 | QB36: 1082.524 | QC36: 1106.13 | QD36: 1025.608 | QE36: 949.406 | QF36: 796.266 | QG36: 872.922 | QH36: 1081.421 | QI36: 1066.322 | QJ36: 963.505 | QK36: 693.771 | QL36: 916.294 | QM36: 1322.164 | QN36: 1824.802 | QO36: 2183.382 | QP36: 2180.843 | QQ36: 2011.546 | QR36: 1788.613 | QS36: 1447.641 | QT36: 1040.453 | QU36: 560.794 | QV36: 694.695 | QW36: 597.339 | QX36: 578.49 | QY36: 992.076 | QZ36: 1186.592 | RA36: 1521.726 | RB36: 1453.982 | RC36: 1542.479 | RD36: 1427.502 | RE36: 894.314 | RF36: 656.123 | RG36: 490.794 | RH36: 530.583 | RI36: 358.397 | RJ36: 584.457 | RK36: 1057.853 | RL36: 1436.365 | RM36: 1669.639 | RN36: 2022.96 | RO36: 2089.233 | RP36: 1611.688 | RQ36: 1139.649 | RR36: 966.467 | RS36: 560.813 | RT36: 406.479 | RU36: 183.121 | RV36: 269.005 | RW36: 485.597 | RX36: 664.888 | RY36: 838.078 | RZ36: 1055.875 | SA36: 1125.543 | SB36: 890.058 | SC36: 670.524 | SD36: 452.533 | SE36: 371.012 | SF36: 393.766 | SG36: 274.609 | SH36: 502.726 | SI36: 715.256 | SJ36: 1122.794 | SK36: 1199.861 | SL36: 1192.98 | SM36: 1016.254 | SN36: 1061.901 | SO36: 610.854 | SP36: 486.152 | SQ36: 500.995 | SR36: 369.618 | SS36: 0 | ST36: 0 | SU36: 0 | SV36: 0 | SW36: 0 | SX36: 0 | SY36: 0 | SZ36: 0 | TA36: 0 | TB36: 0 | TC36: 0 | TD36: 0 | TE36: 0 | TF36: 0 | TG36: 0 | TH36: 0 | TI36: 0 | TJ36: 0 | TK36: 0 | TL36: 0 | TM36: 0 | TN36: 0 | TO36: 0 | TP36: 0 | TQ36: 0 | TR36: 0 | TS36: 0 | TT36: 0 | TU36: 0 | TV36: 0 | TW36: 0 | TX36: 0 | TY36: 0 | TZ36: 0 | UA36: 0 | UB36: 0 | UC36: 0 | UD36: 0 | UE36: 0 | UF36: 0 | UG36: 0 | UH36: 0 | UI36: 0 | UJ36: 0 | UK36: 0 | UL36: 0 | UM36: 0 | UN36: 0 | UO36: 0 | UP36: 0 | UQ36: 0 | UR36: 0 | US36: 0 | UT36: 0 | UU36: 0 | UV36: 0 | UW36: 0 | UX36: 0 | UY36: 0 | UZ36: 0 | VA36: 0 | VB36: 0 | VC36: 0 | VD36: 0 | VE36: 0 | VF36: 0 | VG36: 0 | VH36: 0 | VI36: 0 | VJ36: 0 | VK36: 0
A37: 156 | B37: 372723.998 | C37: 50532 | D37: Victory Garden (Tehachapi) | E37: WT | F37: CA | I37: 0 | J37: 0 | K37: 0 | L37: 0 | M37: 0 | N37: 0 | O37: 0 | P37: 0 | Q37: 0 | R37: 0 | S37: 0 | T37: 0 | U37: 0 | V37: 0 | W37: 0 | X37: 0 | Y37: 0 | Z37: 0 | AA37: 0 | AB37: 0 | AC37: 0 | AD37: 0 | AE37: 0 | AF37: 0 | AG37: 0 | AH37: 0 | AI37: 0 | AJ37: 0 | AK37: 0 | AL37: 0 | AM37: 0 | AN37: 0 | AO37: 0 | AP37: 0 | AQ37: 0 | AR37: 0 | AS37: 0 | AT37: 0 | AU37: 0 | AV37: 0 | AW37: 0 | AX37: 0 | AY37: 0 | AZ37: 0 | BA37: 0 | BB37: 0 | BC37: 0 | BD37: 0 | BE37: 0 | BF37: 0 | BG37: 0 | BH37: 0 | BI37: 0 | BJ37: 0 | BK37: 0 | BL37: 0 | BM37: 0 | BN37: 0 | BO37: 0 | BP37: 0 | BQ37: 0 | BR37: 0 | BS37: 0 | BT37: 0 | BU37: 0 | BV37: 0 | BW37: 0 | BX37: 0 | BY37: 0 | BZ37: 0 | CA37: 0 | CB37: 0 | CC37: 0 | CD37: 0 | CE37: 0 | CF37: 0 | CG37: 0 | CH37: 0 | CI37: 0 | CJ37: 0 | CK37: 0 | CL37: 0 | CM37: 0 | CN37: 0 | CO37: 0 | CP37: 0 | CQ37: 0 | CR37: 0 | CS37: 0 | CT37: 0 | CU37: 0 | CV37: 0 | CW37: 0 | CX37: 0 | CY37: 0 | CZ37: 0 | DA37: 0 | DB37: 0 | DC37: 0 | DD37: 0 | DE37: 0 | DF37: 0 | DG37: 0 | DH37: 0 | DI37: 0 | DJ37: 0 | DK37: 0 | DL37: 0 | DM37: 0 | DN37: 0 | DO37: 0 | DP37: 0 | DQ37: 0 | DR37: 0 | DS37: 0 | DT37: 0 | DU37: 0 | DV37: 0 | DW37: 0 | DX37: 0 | DY37: 0 | DZ37: 0 | EA37: 0 | EB37: 0 | EC37: 0 | ED37: 0 | EE37: 0 | EF37: 0 | EG37: 0 | EH37: 0 | EI37: 0 | EJ37: 0 | EK37: 0 | EL37: 0 | EM37: 0 | EN37: 0 | EO37: 0 | EP37: 0 | EQ37: 0 | ER37: 0 | ES37: 0 | ET37: 0 | EU37: 0 | EV37: 0 | EW37: 0 | EX37: 0 | EY37: 0 | EZ37: 0 | FA37: 0 | FB37: 0 | FC37: 0 | FD37: 0 | FE37: 0 | FF37: 0 | FG37: 0 | FH37: 0 | FI37: 0 | FJ37: 0 | FK37: 0 | FL37: 0 | FM37: 0 | FN37: 0 | FO37: 0 | FP37: 0 | FQ37: 0 | FR37: 0 | FS37: 0 | FT37: 0 | FU37: 0 | FV37: 0 | FW37: 0 | FX37: 0 | FY37: 0 | FZ37: 0 | GA37: 0 | GB37: 0 | GC37: 0 | GD37: 0 | GE37: 0 | GF37: 0 | GG37: 0 | GH37: 0 | GI37: 0 | GJ37: 0 | GK37: 0 | GL37: 0 | GM37: 0 | GN37: 0 | GO37: 0 | GP37: 0 | GQ37: 0 | GR37: 0 | GS37: 0 | GT37: 0 | GU37: 0 | GV37: 0 | GW37: 0 | GX37: 0 | GY37: 0 | GZ37: 0 | HA37: 0 | HB37: 0 | HC37: 0 | HD37: 0 | HE37: 0 | HF37: 0 | HG37: 0 | HH37: 0 | HI37: 0 | HJ37: 0 | HK37: 0 | HL37: 0 | HM37: 0 | HN37: 0 | HO37: 0 | HP37: 0 | HQ37: 0 | HR37: 0 | HS37: 0 | HT37: 0 | HU37: 0 | HV37: 0 | HW37: 0 | HX37: 0 | HY37: 0 | HZ37: 0 | IA37: 0 | IB37: 0 | IC37: 0 | ID37: 0 | IE37: 0 | IF37: 0 | IG37: 0 | IH37: 0 | II37: 0 | IJ37: 0 | IK37: 0 | IL37: 0 | IM37: 0 | IN37: 0 | IO37: 0 | IP37: 0 | IQ37: 0 | IR37: 0 | IS37: 0 | IT37: 0 | IU37: 0 | IV37: 0 | IW37: 0 | IX37: 0 | IY37: 0 | IZ37: 0 | JA37: 0 | JB37: 0 | JC37: 0 | JD37: 0 | JE37: 0 | JF37: 0 | JG37: 0 | JH37: 0 | JI37: 0 | JJ37: 0 | JK37: 0 | JL37: 0 | JM37: 0 | JN37: 0 | JO37: 0 | JP37: 0 | JQ37: 0 | JR37: 0 | JS37: 0 | JT37: 0 | JU37: 0 | JV37: 0 | JW37: 0 | JX37: 0 | JY37: 0 | JZ37: 0 | KA37: 0 | KB37: 0 | KC37: 0 | KD37: 0 | KE37: 0 | KF37: 0 | KG37: 0 | KH37: 0 | KI37: 0 | KJ37: 0 | KK37: 0 | KL37: 0 | KM37: 0 | KN37: 0 | KO37: 0 | KP37: 0 | KQ37: 0 | KR37: 0 | KS37: 0 | KT37: 0 | KU37: 0 | KV37: 0 | KW37: 0 | KX37: 0 | KY37: 0 | KZ37: 0 | LA37: 0 | LB37: 0 | LC37: 0 | LD37: 0 | LE37: 0 | LF37: 0 | LG37: 0 | LH37: 0 | LI37: 0 | LJ37: 0 | LK37: 0 | LL37: 0 | LM37: 0 | LN37: 0 | LO37: 0 | LP37: 0 | LQ37: 0 | LR37: 0 | LS37: 0 | LT37: 0 | LU37: 0 | LV37: 0 | LW37: 0 | LX37: 0 | LY37: 0 | LZ37: 0 | MA37: 0 | MB37: 0 | MC37: 0 | MD37: 0 | ME37: 0 | MF37: 0 | MG37: 0 | MH37: 0 | MI37: 0 | MJ37: 0 | MK37: 0 | ML37: 0 | MM37: 0 | MN37: 0 | MO37: 0 | MP37: 0 | MQ37: 0 | MR37: 0 | MS37: 0 | MT37: 0 | MU37: 0 | MV37: 0 | MW37: 0 | MX37: 0 | MY37: 0 | MZ37: 0 | NA37: 0 | NB37: 0 | NC37: 0 | ND37: 0 | NE37: 0 | NF37: 0 | NG37: 0 | NH37: 0 | NI37: 0 | NJ37: 0 | NK37: 0 | NL37: 0 | NM37: 0 | NN37: 0 | NO37: 0 | NP37: 0 | NQ37: 1387 | NR37: 1075 | NS37: 3027 | NT37: 3728 | NU37: 2889 | NV37: 4945 | NW37: 2813 | NX37: 2441 | NY37: 1715 | NZ37: 2135 | OA37: 1371 | OB37: 2289 | OC37: 938 | OD37: 1467 | OE37: 2478 | OF37: 3138 | OG37: 3336 | OH37: 3374 | OI37: 10044 | OJ37: 9148 | OK37: 2497 | OL37: 1348 | OM37: 3466 | ON37: 4003 | OO37: 1213 | OP37: 1749 | OQ37: 3390 | OR37: 3231 | OS37: 3409 | OT37: 3282 | OU37: 2840 | OV37: 1201 | OW37: 1140 | OX37: 1446 | OY37: 1930 | OZ37: 1783 | PA37: 777.37 | PB37: 1207.953 | PC37: 1719.35 | PD37: 2385.99 | PE37: 3786.947 | PF37: 4078.873 | PG37: 3514.174 | PH37: 2937.734 | PI37: 2142.448 | PJ37: 1548.15 | PK37: 927.507 | PL37: 701.503 | PM37: 1534.975 | PN37: 1149.295 | PO37: 2025.714 | PP37: 2307.104 | PQ37: 2376.543 | PR37: 2654.654 | PS37: 2127.154 | PT37: 1647.011 | PU37: 1955.711 | PV37: 1797.218 | PW37: 1591.187 | PX37: 1579.433 | PY37: 1082.864 | PZ37: 860.639 | QA37: 1203.399 | QB37: 1292.877 | QC37: 1321.07 | QD37: 1224.901 | QE37: 1133.892 | QF37: 950.994 | QG37: 1042.546 | QH37: 1291.559 | QI37: 1273.527 | QJ37: 1150.731 | QK37: 1335.754 | QL37: 1764.189 | QM37: 2545.633 | QN37: 3513.388 | QO37: 4203.78 | QP37: 4198.891 | QQ37: 3872.935 | QR37: 3443.71 | QS37: 2787.22 | QT37: 2003.24 | QU37: 1079.727 | QV37: 1337.534 | QW37: 1231.008 | QX37: 1192.16 | QY37: 2044.485 | QZ37: 2445.347 | RA37: 3135.997 | RB37: 2996.389 | RC37: 3178.764 | RD37: 2941.817 | RE37: 1843.017 | RF37: 1352.148 | RG37: 1011.435 | RH37: 1093.433 | RI37: 557.572 | RJ37: 909.263 | RK37: 1645.744 | RL37: 2234.61 | RM37: 2597.524 | RN37: 3147.198 | RO37: 3250.302 | RP37: 2507.366 | RQ37: 1772.996 | RR37: 1503.57 | RS37: 872.479 | RT37: 632.376 | RU37: 569.331 | RV37: 836.352 | RW37: 1509.748 | RX37: 2067.174 | RY37: 2605.631 | RZ37: 3282.771 | SA37: 3499.375 | SB37: 2767.239 | SC37: 2084.694 | SD37: 1406.95 | SE37: 1153.496 | SF37: 1224.239 | SG37: 1878.468 | SH37: 3438.901 | SI37: 4892.716 | SJ37: 7680.487 | SK37: 8207.665 | SL37: 8160.595 | SM37: 6951.701 | SN37: 7263.946 | SO37: 4178.553 | SP37: 3325.531 | SQ37: 3427.063 | SR37: 2528.374 | SS37: 0 | ST37: 0 | SU37: 0 | SV37: 0 | SW37: 0 | SX37: 0 | SY37: 0 | SZ37: 0 | TA37: 0 | TB37: 0 | TC37: 0 | TD37: 0 | TE37: 936.714 | TF37: 1414.891 | TG37: 2062.945 | TH37: 3036.358 | TI37: 3404.966 | TJ37: 3191.91 | TK37: 2761.557 | TL37: 2536.506 | TM37: 2267.85 | TN37: 1462.299 | TO37: 1084.538 | TP37: 894.466 | TQ37: 0 | TR37: 0 | TS37: 0 | TT37: 0 | TU37: 0 | TV37: 0 | TW37: 0 | TX37: 0 | TY37: 0 | TZ37: 0 | UA37: 0 | UB37: 0 | UC37: 315.823 | UD37: 1041.071 | UE37: 1393.171 | UF37: 2124.609 | UG37: 2825.34 | UH37: 2807.508 | UI37: 2432.314 | UJ37: 2563.314 | UK37: 1371.837 | UL37: 1121.661 | UM37: 1040.276 | UN37: 1539.076 | UO37: 0 | UP37: 0 | UQ37: 0 | UR37: 0 | US37: 0 | UT37: 0 | UU37: 0 | UV37: 0 | UW37: 0 | UX37: 0 | UY37: 0 | UZ37: 0 | VA37: 0 | VB37: 0 | VC37: 0 | VD37: 0 | VE37: 0 | VF37: 0 | VG37: 0 | VH37: 0 | VI37: 0 | VJ37: 0 | VK37: 0
A38: 156 | B38: 110319.713 | C38: 50820 | D38: East Winds Project | E38: WT | F38: CA | I38: 0 | J38: 0 | K38: 0 | L38: 0 | M38: 0 | N38: 0 | O38: 0 | P38: 0 | Q38: 0 | R38: 0 | S38: 0 | T38: 0 | U38: 0 | V38: 0 | W38: 0 | X38: 0 | Y38: 0 | Z38: 0 | AA38: 0 | AB38: 0 | AC38: 0 | AD38: 0 | AE38: 0 | AF38: 0 | AG38: 0 | AH38: 0 | AI38: 0 | AJ38: 0 | AK38: 0 | AL38: 0 | AM38: 0 | AN38: 0 | AO38: 0 | AP38: 0 | AQ38: 0 | AR38: 0 | AS38: 0 | AT38: 0 | AU38: 0 | AV38: 0 | AW38: 0 | AX38: 0 | AY38: 0 | AZ38: 0 | BA38: 0 | BB38: 0 | BC38: 0 | BD38: 0 | BE38: 0 | BF38: 0 | BG38: 0 | BH38: 0 | BI38: 0 | BJ38: 0 | BK38: 0 | BL38: 0 | BM38: 0 | BN38: 0 | BO38: 0 | BP38: 0 | BQ38: 0 | BR38: 0 | BS38: 0 | BT38: 0 | BU38: 0 | BV38: 0 | BW38: 0 | BX38: 0 | BY38: 0 | BZ38: 0 | CA38: 0 | CB38: 0 | CC38: 0 | CD38: 0 | CE38: 0 | CF38: 0 | CG38: 0 | CH38: 0 | CI38: 0 | CJ38: 0 | CK38: 0 | CL38: 0 | CM38: 0 | CN38: 0 | CO38: 0 | CP38: 0 | CQ38: 0 | CR38: 0 | CS38: 0 | CT38: 0 | CU38: 0 | CV38: 0 | CW38: 0 | CX38: 0 | CY38: 0 | CZ38: 0 | DA38: 0 | DB38: 0 | DC38: 0 | DD38: 0 | DE38: 0 | DF38: 0 | DG38: 0 | DH38: 0 | DI38: 0 | DJ38: 0 | DK38: 0 | DL38: 0 | DM38: 0 | DN38: 0 | DO38: 0 | DP38: 0 | DQ38: 0 | DR38: 0 | DS38: 0 | DT38: 0 | DU38: 0 | DV38: 0 | DW38: 0 | DX38: 0 | DY38: 0 | DZ38: 0 | EA38: 0 | EB38: 0 | EC38: 0 | ED38: 0 | EE38: 0 | EF38: 0 | EG38: 0 | EH38: 0 | EI38: 0 | EJ38: 0 | EK38: 0 | EL38: 0 | EM38: 0 | EN38: 0 | EO38: 0 | EP38: 0 | EQ38: 0 | ER38: 0 | ES38: 0 | ET38: 0 | EU38: 0 | EV38: 0 | EW38: 0 | EX38: 0 | EY38: 0 | EZ38: 0 | FA38: 0 | FB38: 0 | FC38: 0 | FD38: 0 | FE38: 0 | FF38: 0 | FG38: 0 | FH38: 0 | FI38: 0 | FJ38: 0 | FK38: 0 | FL38: 0 | FM38: 0 | FN38: 0 | FO38: 0 | FP38: 0 | FQ38: 0 | FR38: 0 | FS38: 0 | FT38: 0 | FU38: 0 | FV38: 0 | FW38: 0 | FX38: 0 | FY38: 0 | FZ38: 0 | GA38: 0 | GB38: 0 | GC38: 0 | GD38: 0 | GE38: 0 | GF38: 0 | GG38: 0 | GH38: 0 | GI38: 0 | GJ38: 0 | GK38: 0 | GL38: 0 | GM38: 0 | GN38: 0 | GO38: 0 | GP38: 0 | GQ38: 0 | GR38: 0 | GS38: 0 | GT38: 0 | GU38: 0 | GV38: 0 | GW38: 0 | GX38: 0 | GY38: 0 | GZ38: 0 | HA38: 0 | HB38: 0 | HC38: 0 | HD38: 0 | HE38: 0 | HF38: 0 | HG38: 0 | HH38: 0 | HI38: 0 | HJ38: 0 | HK38: 0 | HL38: 0 | HM38: 0 | HN38: 0 | HO38: 0 | HP38: 0 | HQ38: 0 | HR38: 0 | HS38: 0 | HT38: 0 | HU38: 0 | HV38: 0 | HW38: 0 | HX38: 0 | HY38: 0 | HZ38: 0 | IA38: 0 | IB38: 0 | IC38: 0 | ID38: 0 | IE38: 0 | IF38: 0 | IG38: 0 | IH38: 0 | II38: 0 | IJ38: 0 | IK38: 0 | IL38: 0 | IM38: 0 | IN38: 0 | IO38: 0 | IP38: 0 | IQ38: 0 | IR38: 0 | IS38: 0 | IT38: 0 | IU38: 0 | IV38: 0 | IW38: 0 | IX38: 0 | IY38: 0 | IZ38: 0 | JA38: 0 | JB38: 0 | JC38: 0 | JD38: 0 | JE38: 0 | JF38: 0 | JG38: 0 | JH38: 0 | JI38: 0 | JJ38: 0 | JK38: 0 | JL38: 0 | JM38: 0 | JN38: 0 | JO38: 0 | JP38: 0 | JQ38: 0 | JR38: 0 | JS38: 0 | JT38: 0 | JU38: 0 | JV38: 0 | JW38: 0 | JX38: 0 | JY38: 0 | JZ38: 0 | KA38: 0 | KB38: 0 | KC38: 0 | KD38: 0 | KE38: 0 | KF38: 0 | KG38: 0 | KH38: 0 | KI38: 0 | KJ38: 0 | KK38: 0 | KL38: 0 | KM38: 0 | KN38: 0 | KO38: 0 | KP38: 0 | KQ38: 0 | KR38: 0 | KS38: 0 | KT38: 0 | KU38: 0 | KV38: 0 | KW38: 0 | KX38: 0 | KY38: 0 | KZ38: 0 | LA38: 0 | LB38: 0 | LC38: 0 | LD38: 0 | LE38: 0 | LF38: 0 | LG38: 0 | LH38: 0 | LI38: 0 | LJ38: 0 | LK38: 0 | LL38: 0 | LM38: 0 | LN38: 0 | LO38: 0 | LP38: 0 | LQ38: 0 | LR38: 0 | LS38: 0 | LT38: 0 | LU38: 0 | LV38: 0 | LW38: 0 | LX38: 0 | LY38: 0 | LZ38: 0 | MA38: 0 | MB38: 0 | MC38: 0 | MD38: 0 | ME38: 0 | MF38: 0 | MG38: 0 | MH38: 0 | MI38: 0 | MJ38: 0 | MK38: 0 | ML38: 0 | MM38: 0 | MN38: 0 | MO38: 0 | MP38: 0 | MQ38: 0 | MR38: 0 | MS38: 0 | MT38: 0 | MU38: 0 | MV38: 0 | MW38: 0 | MX38: 0 | MY38: 0 | MZ38: 0 | NA38: 0 | NB38: 0 | NC38: 0 | ND38: 0 | NE38: 0 | NF38: 0 | NG38: 0 | NH38: 0 | NI38: 0 | NJ38: 0 | NK38: 0 | NL38: 0 | NM38: 0 | NN38: 0 | NO38: 0 | NP38: 0 | NQ38: 938.182 | NR38: 816.941 | NS38: 879.602 | NT38: 865.29 | NU38: 907.024 | NV38: 893.048 | NW38: 1024.717 | NX38: 1060.215 | NY38: 882.34 | NZ38: 833.675 | OA38: 686.269 | OB38: 739.697 | OC38: 863.697 | OD38: 753.417 | OE38: 957.188 | OF38: 771.974 | OG38: 800.43 | OH38: 1039.059 | OI38: 1254.563 | OJ38: 1194.402 | OK38: 1076.782 | OL38: 912.734 | OM38: 840.747 | ON38: 922.009 | OO38: 714.328 | OP38: 659.071 | OQ38: 726.546 | OR38: 687.084 | OS38: 786.7 | OT38: 819.662 | OU38: 1052.372 | OV38: 988.667 | OW38: 903.454 | OX38: 850.23 | OY38: 719.719 | OZ38: 764.166 | PA38: 265.287 | PB38: 412.229 | PC38: 586.75 | PD38: 814.249 | PE38: 1292.343 | PF38: 1391.966 | PG38: 1199.256 | PH38: 1002.538 | PI38: 731.137 | PJ38: 528.325 | PK38: 316.523 | PL38: 239.397 | PM38: 373.655 | PN38: 279.77 | PO38: 493.114 | PP38: 561.612 | PQ38: 578.516 | PR38: 646.216 | PS38: 517.808 | PT38: 400.928 | PU38: 476.074 | PV38: 437.492 | PW38: 387.339 | PX38: 384.477 | PY38: 397.157 | PZ38: 315.653 | QA38: 441.365 | QB38: 474.183 | QC38: 484.523 | QD38: 449.252 | QE38: 415.872 | QF38: 348.792 | QG38: 382.37 | QH38: 473.699 | QI38: 467.086 | QJ38: 422.048 | QK38: 321.928 | QL38: 425.185 | QM38: 613.519 | QN38: 846.757 | QO38: 1013.147 | QP38: 1011.969 | QQ38: 933.41 | QR38: 829.964 | QS38: 671.744 | QT38: 482.798 | QU38: 260.223 | QV38: 322.357 | QW38: 363.123 | QX38: 351.664 | QY38: 603.084 | QZ38: 721.33 | RA38: 925.059 | RB38: 883.877 | RC38: 937.674 | RD38: 867.78 | RE38: 543.655 | RF38: 398.858 | RG38: 298.354 | RH38: 322.542 | RI38: 208.17 | RJ38: 339.476 | RK38: 614.444 | RL38: 834.299 | RM38: 969.793 | RN38: 1175.016 | RO38: 1213.51 | RP38: 936.133 | RQ38: 661.954 | RR38: 561.362 | RS38: 325.743 | RT38: 236.1 | RU38: 213.162 | RV38: 313.137 | RW38: 565.261 | RX38: 773.966 | RY38: 975.568 | RZ38: 1229.095 | SA38: 1310.193 | SB38: 1036.076 | SC38: 780.526 | SD38: 526.773 | SE38: 431.878 | SF38: 458.365 | SG38: 232.602 | SH38: 425.823 | SI38: 605.842 | SJ38: 951.039 | SK38: 1016.317 | SL38: 1010.489 | SM38: 860.797 | SN38: 899.461 | SO38: 517.411 | SP38: 411.785 | SQ38: 424.357 | SR38: 313.077 | SS38: 593.476 | ST38: 910.011 | SU38: 1162.611 | SV38: 1204.061 | SW38: 2058.653 | SX38: 2129.262 | SY38: 1564.811 | SZ38: 1563.344 | TA38: 1088.68 | TB38: 1212.579 | TC38: 609.025 | TD38: 1059.487 | TE38: 0 | TF38: 0 | TG38: 0 | TH38: 0 | TI38: 0 | TJ38: 0 | TK38: 0 | TL38: 0 | TM38: 0 | TN38: 0 | TO38: 0 | TP38: 0 | TQ38: 0 | TR38: 0 | TS38: 0 | TT38: 0 | TU38: 0 | TV38: 0 | TW38: 0 | TX38: 0 | TY38: 0 | TZ38: 0 | UA38: 0 | UB38: 0 | UC38: 74.898 | UD38: 246.896 | UE38: 330.398 | UF38: 503.862 | UG38: 670.045 | UH38: 665.816 | UI38: 576.837 | UJ38: 607.904 | UK38: 325.339 | UL38: 266.008 | UM38: 246.707 | UN38: 365 | UO38: 0 | UP38: 0 | UQ38: 0 | UR38: 0 | US38: 0 | UT38: 0 | UU38: 0 | UV38: 0 | UW38: 0 | UX38: 0 | UY38: 0 | UZ38: 0 | VA38: 0 | VB38: 0 | VC38: 0 | VD38: 0 | VE38: 0 | VF38: 0 | VG38: 0 | VH38: 0 | VI38: 0 | VJ38: 0 | VK38: 0
A39: 144 | B39: 317023.998 | C39: 50534 | D39: Santa Clara (85C) | E39: WT | F39: CA | I39: 0 | J39: 0 | K39: 0 | L39: 0 | M39: 0 | N39: 0 | O39: 0 | P39: 0 | Q39: 0 | R39: 0 | S39: 0 | T39: 0 | U39: 0 | V39: 0 | W39: 0 | X39: 0 | Y39: 0 | Z39: 0 | AA39: 0 | AB39: 0 | AC39: 0 | AD39: 0 | AE39: 0 | AF39: 0 | AG39: 0 | AH39: 0 | AI39: 0 | AJ39: 0 | AK39: 0 | AL39: 0 | AM39: 0 | AN39: 0 | AO39: 0 | AP39: 0 | AQ39: 0 | AR39: 0 | AS39: 0 | AT39: 0 | AU39: 0 | AV39: 0 | AW39: 0 | AX39: 0 | AY39: 0 | AZ39: 0 | BA39: 0 | BB39: 0 | BC39: 0 | BD39: 0 | BE39: 0 | BF39: 0 | BG39: 0 | BH39: 0 | BI39: 0 | BJ39: 0 | BK39: 0 | BL39: 0 | BM39: 0 | BN39: 0 | BO39: 0 | BP39: 0 | BQ39: 0 | BR39: 0 | BS39: 0 | BT39: 0 | BU39: 0 | BV39: 0 | BW39: 0 | BX39: 0 | BY39: 0 | BZ39: 0 | CA39: 0 | CB39: 0 | CC39: 0 | CD39: 0 | CE39: 0 | CF39: 0 | CG39: 0 | CH39: 0 | CI39: 0 | CJ39: 0 | CK39: 0 | CL39: 0 | CM39: 0 | CN39: 0 | CO39: 0 | CP39: 0 | CQ39: 0 | CR39: 0 | CS39: 0 | CT39: 0 | CU39: 0 | CV39: 0 | CW39: 0 | CX39: 0 | CY39: 0 | CZ39: 0 | DA39: 0 | DB39: 0 | DC39: 0 | DD39: 0 | DE39: 0 | DF39: 0 | DG39: 0 | DH39: 0 | DI39: 0 | DJ39: 0 | DK39: 0 | DL39: 0 | DM39: 0 | DN39: 0 | DO39: 0 | DP39: 0 | DQ39: 0 | DR39: 0 | DS39: 0 | DT39: 0 | DU39: 0 | DV39: 0 | DW39: 0 | DX39: 0 | DY39: 0 | DZ39: 0 | EA39: 0 | EB39: 0 | EC39: 0 | ED39: 0 | EE39: 0 | EF39: 0 | EG39: 0 | EH39: 0 | EI39: 0 | EJ39: 0 | EK39: 0 | EL39: 0 | EM39: 0 | EN39: 0 | EO39: 0 | EP39: 0 | EQ39: 0 | ER39: 0 | ES39: 0 | ET39: 0 | EU39: 0 | EV39: 0 | EW39: 0 | EX39: 0 | EY39: 0 | EZ39: 0 | FA39: 0 | FB39: 0 | FC39: 0 | FD39: 0 | FE39: 0 | FF39: 0 | FG39: 0 | FH39: 0 | FI39: 0 | FJ39: 0 | FK39: 0 | FL39: 0 | FM39: 0 | FN39: 0 | FO39: 0 | FP39: 0 | FQ39: 0 | FR39: 0 | FS39: 0 | FT39: 0 | FU39: 0 | FV39: 0 | FW39: 0 | FX39: 0 | FY39: 0 | FZ39: 0 | GA39: 0 | GB39: 0 | GC39: 0 | GD39: 0 | GE39: 0 | GF39: 0 | GG39: 0 | GH39: 0 | GI39: 0 | GJ39: 0 | GK39: 0 | GL39: 0 | GM39: 0 | GN39: 0 | GO39: 0 | GP39: 0 | GQ39: 0 | GR39: 0 | GS39: 0 | GT39: 0 | GU39: 0 | GV39: 0 | GW39: 0 | GX39: 0 | GY39: 0 | GZ39: 0 | HA39: 0 | HB39: 0 | HC39: 0 | HD39: 0 | HE39: 0 | HF39: 0 | HG39: 0 | HH39: 0 | HI39: 0 | HJ39: 0 | HK39: 0 | HL39: 0 | HM39: 0 | HN39: 0 | HO39: 0 | HP39: 0 | HQ39: 0 | HR39: 0 | HS39: 0 | HT39: 0 | HU39: 0 | HV39: 0 | HW39: 0 | HX39: 0 | HY39: 0 | HZ39: 0 | IA39: 0 | IB39: 0 | IC39: 0 | ID39: 0 | IE39: 0 | IF39: 0 | IG39: 0 | IH39: 0 | II39: 0 | IJ39: 0 | IK39: 0 | IL39: 0 | IM39: 0 | IN39: 0 | IO39: 0 | IP39: 0 | IQ39: 0 | IR39: 0 | IS39: 0 | IT39: 0 | IU39: 0 | IV39: 0 | IW39: 0 | IX39: 0 | IY39: 0 | IZ39: 0 | JA39: 0 | JB39: 0 | JC39: 0 | JD39: 0 | JE39: 0 | JF39: 0 | JG39: 0 | JH39: 0 | JI39: 0 | JJ39: 0 | JK39: 0 | JL39: 0 | JM39: 0 | JN39: 0 | JO39: 0 | JP39: 0 | JQ39: 0 | JR39: 0 | JS39: 0 | JT39: 0 | JU39: 0 | JV39: 0 | JW39: 0 | JX39: 0 | JY39: 0 | JZ39: 0 | KA39: 0 | KB39: 0 | KC39: 0 | KD39: 0 | KE39: 0 | KF39: 0 | KG39: 0 | KH39: 0 | KI39: 0 | KJ39: 0 | KK39: 0 | KL39: 0 | KM39: 0 | KN39: 0 | KO39: 0 | KP39: 0 | KQ39: 0 | KR39: 0 | KS39: 0 | KT39: 0 | KU39: 0 | KV39: 0 | KW39: 0 | KX39: 0 | KY39: 0 | KZ39: 0 | LA39: 0 | LB39: 0 | LC39: 0 | LD39: 0 | LE39: 0 | LF39: 0 | LG39: 0 | LH39: 0 | LI39: 0 | LJ39: 0 | LK39: 0 | LL39: 0 | LM39: 0 | LN39: 0 | LO39: 0 | LP39: 0 | LQ39: 0 | LR39: 0 | LS39: 0 | LT39: 0 | LU39: 0 | LV39: 0 | LW39: 0 | LX39: 0 | LY39: 0 | LZ39: 0 | MA39: 0 | MB39: 0 | MC39: 0 | MD39: 0 | ME39: 0 | MF39: 0 | MG39: 0 | MH39: 0 | MI39: 0 | MJ39: 0 | MK39: 0 | ML39: 0 | MM39: 0 | MN39: 0 | MO39: 0 | MP39: 0 | MQ39: 0 | MR39: 0 | MS39: 0 | MT39: 0 | MU39: 0 | MV39: 0 | MW39: 0 | MX39: 0 | MY39: 0 | MZ39: 0 | NA39: 0 | NB39: 0 | NC39: 0 | ND39: 0 | NE39: 0 | NF39: 0 | NG39: 0 | NH39: 0 | NI39: 0 | NJ39: 0 | NK39: 0 | NL39: 0 | NM39: 0 | NN39: 0 | NO39: 0 | NP39: 0 | NQ39: 663 | NR39: 923 | NS39: 2479 | NT39: 3143 | NU39: 3821 | NV39: 3919 | NW39: 5966 | NX39: 915 | NY39: 4668 | NZ39: 2328 | OA39: 732 | OB39: 797 | OC39: 356 | OD39: 431 | OE39: 1645 | OF39: 3237 | OG39: 4286 | OH39: 5672 | OI39: 4906 | OJ39: 4437 | OK39: 2732 | OL39: 1989 | OM39: 2182 | ON39: 2520 | OO39: 1774 | OP39: 660 | OQ39: 1761 | OR39: 2760 | OS39: 2959 | OT39: 4351 | OU39: 4246 | OV39: 4552 | OW39: 3762 | OX39: 2549 | OY39: 466 | OZ39: 516 | PA39: 1075.47 | PB39: 1671.17 | PC39: 2378.675 | PD39: 3300.954 | PE39: 5239.14 | PF39: 5643.012 | PG39: 4861.766 | PH39: 4064.277 | PI39: 2964.019 | PJ39: 2141.824 | PK39: 1283.182 | PL39: 970.511 | PM39: 1655.905 | PN39: 1239.84 | PO39: 2185.306 | PP39: 2488.864 | PQ39: 2563.774 | PR39: 2863.796 | PS39: 2294.737 | PT39: 1776.768 | PU39: 2109.788 | PV39: 1938.809 | PW39: 1716.546 | PX39: 1703.866 | PY39: 1.096 | PZ39: 0.871 | QA39: 1.218 | QB39: 1.309 | QC39: 1.337 | QD39: 1.24 | QE39: 1.148 | QF39: 0.963 | QG39: 1.055 | QH39: 1.308 | QI39: 1.289 | QJ39: 1.165 | QK39: 1323.64 | QL39: 1748.189 | QM39: 2522.545 | QN39: 3481.524 | QO39: 4165.654 | QP39: 4160.81 | QQ39: 3837.81 | QR39: 3412.478 | QS39: 2761.941 | QT39: 1985.072 | QU39: 1069.934 | QV39: 1325.403 | QW39: 1332.644 | QX39: 1290.589 | QY39: 2213.285 | QZ39: 2647.243 | RA39: 3394.916 | RB39: 3243.782 | RC39: 3441.214 | RD39: 3184.704 | RE39: 1995.183 | RF39: 1463.786 | RG39: 1094.943 | RH39: 1183.711 | RI39: 816.574 | RJ39: 1331.632 | RK39: 2410.223 | RL39: 3272.628 | RM39: 3804.121 | RN39: 4609.13 | RO39: 4760.127 | RP39: 3672.084 | RQ39: 2596.586 | RR39: 2202.006 | RS39: 1277.762 | RT39: 926.127 | RU39: 607.785 | RV39: 892.843 | RW39: 1611.724 | RX39: 2206.801 | RY39: 2781.627 | RZ39: 3504.505 | SA39: 3735.739 | SB39: 2954.151 | SC39: 2225.504 | SD39: 1501.982 | SE39: 1231.409 | SF39: 1306.93 | SG39: 734.567 | SH39: 1344.766 | SI39: 1913.274 | SJ39: 3003.418 | SK39: 3209.569 | SL39: 3191.162 | SM39: 2718.43 | SN39: 2840.532 | SO39: 1634.003 | SP39: 1300.433 | SQ39: 1340.137 | SR39: 988.709 | SS39: 0 | ST39: 0 | SU39: 0 | SV39: 0 | SW39: 0 | SX39: 0 | SY39: 0 | SZ39: 0 | TA39: 0 | TB39: 0 | TC39: 0 | TD39: 0 | TE39: 0 | TF39: 0 | TG39: 0 | TH39: 0 | TI39: 0 | TJ39: 0 | TK39: 0 | TL39: 0 | TM39: 0 | TN39: 0 | TO39: 0 | TP39: 0 | TQ39: 0 | TR39: 0 | TS39: 0 | TT39: 0 | TU39: 0 | TV39: 0 | TW39: 0 | TX39: 0 | TY39: 0 | TZ39: 0 | UA39: 0 | UB39: 0 | UC39: 353.565 | UD39: 1165.487 | UE39: 1559.667 | UF39: 2378.517 | UG39: 3162.991 | UH39: 3143.028 | UI39: 2722.996 | UJ39: 2869.651 | UK39: 1535.783 | UL39: 1255.709 | UM39: 1164.598 | UN39: 1723.008 | UO39: 0 | UP39: 0 | UQ39: 0 | UR39: 0 | US39: 0 | UT39: 0 | UU39: 0 | UV39: 0 | UW39: 0 | UX39: 0 | UY39: 0 | UZ39: 0 | VA39: 0 | VB39: 0 | VC39: 0 | VD39: 0 | VE39: 0 | VF39: 0 | VG39: 0 | VH39: 0 | VI39: 0 | VJ39: 0 | VK39: 0
A40: 144 | B40: 759099.891 | C40: 52143 | D40: Mojave 3 | E40: WT | F40: CA | I40: 0 | J40: 0 | K40: 0 | L40: 0 | M40: 0 | N40: 0 | O40: 0 | P40: 0 | Q40: 0 | R40: 0 | S40: 0 | T40: 0 | U40: 0 | V40: 0 | W40: 0 | X40: 0 | Y40: 0 | Z40: 0 | AA40: 0 | AB40: 0 | AC40: 0 | AD40: 0 | AE40: 0 | AF40: 0 | AG40: 0 | AH40: 0 | AI40: 0 | AJ40: 0 | AK40: 0 | AL40: 0 | AM40: 0 | AN40: 0 | AO40: 0 | AP40: 0 | AQ40: 0 | AR40: 0 | AS40: 0 | AT40: 0 | AU40: 0 | AV40: 0 | AW40: 0 | AX40: 0 | AY40: 0 | AZ40: 0 | BA40: 0 | BB40: 0 | BC40: 0 | BD40: 0 | BE40: 0 | BF40: 0 | BG40: 0 | BH40: 0 | BI40: 0 | BJ40: 0 | BK40: 0 | BL40: 0 | BM40: 0 | BN40: 0 | BO40: 0 | BP40: 0 | BQ40: 0 | BR40: 0 | BS40: 0 | BT40: 0 | BU40: 0 | BV40: 0 | BW40: 0 | BX40: 0 | BY40: 0 | BZ40: 0 | CA40: 0 | CB40: 0 | CC40: 0 | CD40: 0 | CE40: 0 | CF40: 0 | CG40: 0 | CH40: 0 | CI40: 0 | CJ40: 0 | CK40: 0 | CL40: 0 | CM40: 0 | CN40: 0 | CO40: 0 | CP40: 0 | CQ40: 0 | CR40: 0 | CS40: 0 | CT40: 0 | CU40: 0 | CV40: 0 | CW40: 0 | CX40: 0 | CY40: 0 | CZ40: 0 | DA40: 0 | DB40: 0 | DC40: 0 | DD40: 0 | DE40: 0 | DF40: 0 | DG40: 0 | DH40: 0 | DI40: 0 | DJ40: 0 | DK40: 0 | DL40: 0 | DM40: 0 | DN40: 0 | DO40: 0 | DP40: 0 | DQ40: 0 | DR40: 0 | DS40: 0 | DT40: 0 | DU40: 0 | DV40: 0 | DW40: 0 | DX40: 0 | DY40: 0 | DZ40: 0 | EA40: 0 | EB40: 0 | EC40: 0 | ED40: 0 | EE40: 0 | EF40: 0 | EG40: 0 | EH40: 0 | EI40: 0 | EJ40: 0 | EK40: 0 | EL40: 0 | EM40: 0 | EN40: 0 | EO40: 0 | EP40: 0 | EQ40: 0 | ER40: 0 | ES40: 0 | ET40: 0 | EU40: 0 | EV40: 0 | EW40: 0 | EX40: 0 | EY40: 0 | EZ40: 0 | FA40: 0 | FB40: 0 | FC40: 0 | FD40: 0 | FE40: 0 | FF40: 0 | FG40: 0 | FH40: 0 | FI40: 0 | FJ40: 0 | FK40: 0 | FL40: 0 | FM40: 0 | FN40: 0 | FO40: 0 | FP40: 0 | FQ40: 0 | FR40: 0 | FS40: 0 | FT40: 0 | FU40: 0 | FV40: 0 | FW40: 0 | FX40: 0 | FY40: 0 | FZ40: 0 | GA40: 0 | GB40: 0 | GC40: 0 | GD40: 0 | GE40: 0 | GF40: 0 | GG40: 0 | GH40: 0 | GI40: 0 | GJ40: 0 | GK40: 0 | GL40: 0 | GM40: 0 | GN40: 0 | GO40: 0 | GP40: 0 | GQ40: 0 | GR40: 0 | GS40: 0 | GT40: 0 | GU40: 0 | GV40: 0 | GW40: 0 | GX40: 0 | GY40: 0 | GZ40: 0 | HA40: 0 | HB40: 0 | HC40: 0 | HD40: 0 | HE40: 0 | HF40: 0 | HG40: 0 | HH40: 0 | HI40: 0 | HJ40: 0 | HK40: 0 | HL40: 0 | HM40: 0 | HN40: 0 | HO40: 0 | HP40: 0 | HQ40: 0 | HR40: 0 | HS40: 0 | HT40: 0 | HU40: 0 | HV40: 0 | HW40: 0 | HX40: 0 | HY40: 0 | HZ40: 0 | IA40: 0 | IB40: 0 | IC40: 0 | ID40: 0 | IE40: 0 | IF40: 0 | IG40: 0 | IH40: 0 | II40: 0 | IJ40: 0 | IK40: 0 | IL40: 0 | IM40: 0 | IN40: 0 | IO40: 0 | IP40: 0 | IQ40: 0 | IR40: 0 | IS40: 0 | IT40: 0 | IU40: 0 | IV40: 0 | IW40: 0 | IX40: 0 | IY40: 0 | IZ40: 0 | JA40: 0 | JB40: 0 | JC40: 0 | JD40: 0 | JE40: 0 | JF40: 0 | JG40: 0 | JH40: 0 | JI40: 0 | JJ40: 0 | JK40: 0 | JL40: 0 | JM40: 0 | JN40: 0 | JO40: 0 | JP40: 0 | JQ40: 0 | JR40: 0 | JS40: 0 | JT40: 0 | JU40: 0 | JV40: 0 | JW40: 0 | JX40: 0 | JY40: 0 | JZ40: 0 | KA40: 0 | KB40: 0 | KC40: 0 | KD40: 0 | KE40: 0 | KF40: 0 | KG40: 0 | KH40: 0 | KI40: 0 | KJ40: 0 | KK40: 0 | KL40: 0 | KM40: 0 | KN40: 0 | KO40: 0 | KP40: 0 | KQ40: 0 | KR40: 0 | KS40: 0 | KT40: 0 | KU40: 0 | KV40: 0 | KW40: 0 | KX40: 0 | KY40: 0 | KZ40: 0 | LA40: 0 | LB40: 0 | LC40: 0 | LD40: 0 | LE40: 0 | LF40: 0 | LG40: 0 | LH40: 0 | LI40: 0 | LJ40: 0 | LK40: 0 | LL40: 0 | LM40: 0 | LN40: 0 | LO40: 0 | LP40: 0 | LQ40: 0 | LR40: 0 | LS40: 0 | LT40: 0 | LU40: 0 | LV40: 0 | LW40: 0 | LX40: 0 | LY40: 0 | LZ40: 0 | MA40: 0 | MB40: 0 | MC40: 0 | MD40: 0 | ME40: 0 | MF40: 0 | MG40: 0 | MH40: 0 | MI40: 0 | MJ40: 0 | MK40: 0 | ML40: 0 | MM40: 0 | MN40: 0 | MO40: 0 | MP40: 0 | MQ40: 0 | MR40: 0 | MS40: 0 | MT40: 0 | MU40: 0 | MV40: 0 | MW40: 0 | MX40: 0 | MY40: 0 | MZ40: 0 | NA40: 0 | NB40: 0 | NC40: 0 | ND40: 0 | NE40: 0 | NF40: 0 | NG40: 0 | NH40: 0 | NI40: 0 | NJ40: 0 | NK40: 0 | NL40: 0 | NM40: 0 | NN40: 0 | NO40: 0 | NP40: 0 | NQ40: 2056 | NR40: 2151 | NS40: 7601 | NT40: 8544 | NU40: 9883 | NV40: 8413 | NW40: 8237 | NX40: 7773 | NY40: 4607 | NZ40: 5044 | OA40: 2196 | OB40: 4302 | OC40: 3168 | OD40: 2315.61 | OE40: 5023 | OF40: 7696.26 | OG40: 9845.55 | OH40: 11402 | OI40: 7319.07 | OJ40: 9946.53 | OK40: 5808.33 | OL40: 5843.97 | OM40: 2827.44 | ON40: 2775.96 | OO40: 2529.45 | OP40: 3799.62 | OQ40: 5878.62 | OR40: 6156 | OS40: 8460.54 | OT40: 10555.38 | OU40: 8433.81 | OV40: 5543.01 | OW40: 3909.51 | OX40: 5067.81 | OY40: 2884.86 | OZ40: 2914.56 | PA40: 0 | PB40: 0 | PC40: 0 | PD40: 0 | PE40: 0 | PF40: 0 | PG40: 0 | PH40: 0 | PI40: 0 | PJ40: 0 | PK40: 0 | PL40: 0 | PM40: 3880.154 | PN40: 2905.222 | PO40: 5120.658 | PP40: 5831.964 | PQ40: 6007.494 | PR40: 6710.513 | PS40: 5377.081 | PT40: 4163.363 | PU40: 4943.704 | PV40: 4543.061 | PW40: 4022.25 | PX40: 3992.537 | PY40: 5109.641 | PZ40: 4061.039 | QA40: 5678.401 | QB40: 6100.615 | QC40: 6233.645 | QD40: 5779.862 | QE40: 5350.423 | QF40: 4487.395 | QG40: 4919.391 | QH40: 6094.397 | QI40: 6009.309 | QJ40: 5429.88 | QK40: 3081.277 | QL40: 4069.577 | QM40: 5872.187 | QN40: 8104.576 | QO40: 9697.15 | QP40: 9685.874 | QQ40: 8933.968 | QR40: 7943.845 | QS40: 6429.473 | QT40: 4621.012 | QU40: 2490.681 | QV40: 3085.382 | QW40: 0 | QX40: 0 | QY40: 0 | QZ40: 0 | RA40: 0 | RB40: 0 | RC40: 0 | RD40: 0 | RE40: 0 | RF40: 0 | RG40: 0 | RH40: 0 | RI40: 1602.014 | RJ40: 2612.485 | RK40: 4728.538 | RL40: 6420.462 | RM40: 7463.182 | RN40: 9042.501 | RO40: 9338.738 | RP40: 7204.142 | RQ40: 5094.157 | RR40: 4320.044 | RS40: 2506.799 | RT40: 1816.938 | RU40: 1568.898 | RV40: 2304.72 | RW40: 4160.387 | RX40: 5696.476 | RY40: 7180.292 | RZ40: 9046.278 | SA40: 9643.168 | SB40: 7625.633 | SC40: 5744.756 | SD40: 3877.108 | SE40: 3178.669 | SF40: 3373.615 | SG40: 1992.66 | SH40: 3647.954 | SI40: 5190.147 | SJ40: 8147.388 | SK40: 8706.614 | SL40: 8656.681 | SM40: 7374.298 | SN40: 7705.526 | SO40: 4432.569 | SP40: 3527.692 | SQ40: 3635.396 | SR40: 2682.075 | SS40: 1767.466 | ST40: 2710.159 | SU40: 3462.443 | SV40: 3585.888 | SW40: 6130.999 | SX40: 6341.284 | SY40: 4660.258 | SZ40: 4655.889 | TA40: 3242.263 | TB40: 3611.255 | TC40: 1813.774 | TD40: 3155.322 | TE40: 2307.52 | TF40: 3485.472 | TG40: 5081.9 | TH40: 7479.826 | TI40: 8387.863 | TJ40: 7863.017 | TK40: 6802.877 | TL40: 6248.48 | TM40: 5586.669 | TN40: 3602.257 | TO40: 2671.674 | TP40: 2203.445 | TQ40: 0 | TR40: 0 | TS40: 0 | TT40: 0 | TU40: 0 | TV40: 0 | TW40: 0 | TX40: 0 | TY40: 0 | TZ40: 0 | UA40: 0 | UB40: 0 | UC40: 818.322 | UD40: 2697.494 | UE40: 3609.814 | UF40: 5505.024 | UG40: 7320.673 | UH40: 7274.47 | UI40: 6302.314 | UJ40: 6641.743 | UK40: 3554.536 | UL40: 2906.31 | UM40: 2695.436 | UN40: 3987.864 | UO40: 0 | UP40: 0 | UQ40: 0 | UR40: 0 | US40: 0 | UT40: 0 | UU40: 0 | UV40: 0 | UW40: 0 | UX40: 0 | UY40: 0 | UZ40: 0 | VA40: 0 | VB40: 0 | VC40: 0 | VD40: 0 | VE40: 0 | VF40: 0 | VG40: 0 | VH40: 0 | VI40: 0 | VJ40: 0 | VK40: 0
A41: 144 | B41: 756642.159 | C41: 52144 | D41: Mojave 5 | E41: WT | F41: CA | I41: 0 | J41: 0 | K41: 0 | L41: 0 | M41: 0 | N41: 0 | O41: 0 | P41: 0 | Q41: 0 | R41: 0 | S41: 0 | T41: 0 | U41: 0 | V41: 0 | W41: 0 | X41: 0 | Y41: 0 | Z41: 0 | AA41: 0 | AB41: 0 | AC41: 0 | AD41: 0 | AE41: 0 | AF41: 0 | AG41: 0 | AH41: 0 | AI41: 0 | AJ41: 0 | AK41: 0 | AL41: 0 | AM41: 0 | AN41: 0 | AO41: 0 | AP41: 0 | AQ41: 0 | AR41: 0 | AS41: 0 | AT41: 0 | AU41: 0 | AV41: 0 | AW41: 0 | AX41: 0 | AY41: 0 | AZ41: 0 | BA41: 0 | BB41: 0 | BC41: 0 | BD41: 0 | BE41: 0 | BF41: 0 | BG41: 0 | BH41: 0 | BI41: 0 | BJ41: 0 | BK41: 0 | BL41: 0 | BM41: 0 | BN41: 0 | BO41: 0 | BP41: 0 | BQ41: 0 | BR41: 0 | BS41: 0 | BT41: 0 | BU41: 0 | BV41: 0 | BW41: 0 | BX41: 0 | BY41: 0 | BZ41: 0 | CA41: 0 | CB41: 0 | CC41: 0 | CD41: 0 | CE41: 0 | CF41: 0 | CG41: 0 | CH41: 0 | CI41: 0 | CJ41: 0 | CK41: 0 | CL41: 0 | CM41: 0 | CN41: 0 | CO41: 0 | CP41: 0 | CQ41: 0 | CR41: 0 | CS41: 0 | CT41: 0 | CU41: 0 | CV41: 0 | CW41: 0 | CX41: 0 | CY41: 0 | CZ41: 0 | DA41: 0 | DB41: 0 | DC41: 0 | DD41: 0 | DE41: 0 | DF41: 0 | DG41: 0 | DH41: 0 | DI41: 0 | DJ41: 0 | DK41: 0 | DL41: 0 | DM41: 0 | DN41: 0 | DO41: 0 | DP41: 0 | DQ41: 0 | DR41: 0 | DS41: 0 | DT41: 0 | DU41: 0 | DV41: 0 | DW41: 0 | DX41: 0 | DY41: 0 | DZ41: 0 | EA41: 0 | EB41: 0 | EC41: 0 | ED41: 0 | EE41: 0 | EF41: 0 | EG41: 0 | EH41: 0 | EI41: 0 | EJ41: 0 | EK41: 0 | EL41: 0 | EM41: 0 | EN41: 0 | EO41: 0 | EP41: 0 | EQ41: 0 | ER41: 0 | ES41: 0 | ET41: 0 | EU41: 0 | EV41: 0 | EW41: 0 | EX41: 0 | EY41: 0 | EZ41: 0 | FA41: 0 | FB41: 0 | FC41: 0 | FD41: 0 | FE41: 0 | FF41: 0 | FG41: 0 | FH41: 0 | FI41: 0 | FJ41: 0 | FK41: 0 | FL41: 0 | FM41: 0 | FN41: 0 | FO41: 0 | FP41: 0 | FQ41: 0 | FR41: 0 | FS41: 0 | FT41: 0 | FU41: 0 | FV41: 0 | FW41: 0 | FX41: 0 | FY41: 0 | FZ41: 0 | GA41: 0 | GB41: 0 | GC41: 0 | GD41: 0 | GE41: 0 | GF41: 0 | GG41: 0 | GH41: 0 | GI41: 0 | GJ41: 0 | GK41: 0 | GL41: 0 | GM41: 0 | GN41: 0 | GO41: 0 | GP41: 0 | GQ41: 0 | GR41: 0 | GS41: 0 | GT41: 0 | GU41: 0 | GV41: 0 | GW41: 0 | GX41: 0 | GY41: 0 | GZ41: 0 | HA41: 0 | HB41: 0 | HC41: 0 | HD41: 0 | HE41: 0 | HF41: 0 | HG41: 0 | HH41: 0 | HI41: 0 | HJ41: 0 | HK41: 0 | HL41: 0 | HM41: 0 | HN41: 0 | HO41: 0 | HP41: 0 | HQ41: 0 | HR41: 0 | HS41: 0 | HT41: 0 | HU41: 0 | HV41: 0 | HW41: 0 | HX41: 0 | HY41: 0 | HZ41: 0 | IA41: 0 | IB41: 0 | IC41: 0 | ID41: 0 | IE41: 0 | IF41: 0 | IG41: 0 | IH41: 0 | II41: 0 | IJ41: 0 | IK41: 0 | IL41: 0 | IM41: 0 | IN41: 0 | IO41: 0 | IP41: 0 | IQ41: 0 | IR41: 0 | IS41: 0 | IT41: 0 | IU41: 0 | IV41: 0 | IW41: 0 | IX41: 0 | IY41: 0 | IZ41: 0 | JA41: 0 | JB41: 0 | JC41: 0 | JD41: 0 | JE41: 0 | JF41: 0 | JG41: 0 | JH41: 0 | JI41: 0 | JJ41: 0 | JK41: 0 | JL41: 0 | JM41: 0 | JN41: 0 | JO41: 0 | JP41: 0 | JQ41: 0 | JR41: 0 | JS41: 0 | JT41: 0 | JU41: 0 | JV41: 0 | JW41: 0 | JX41: 0 | JY41: 0 | JZ41: 0 | KA41: 0 | KB41: 0 | KC41: 0 | KD41: 0 | KE41: 0 | KF41: 0 | KG41: 0 | KH41: 0 | KI41: 0 | KJ41: 0 | KK41: 0 | KL41: 0 | KM41: 0 | KN41: 0 | KO41: 0 | KP41: 0 | KQ41: 0 | KR41: 0 | KS41: 0 | KT41: 0 | KU41: 0 | KV41: 0 | KW41: 0 | KX41: 0 | KY41: 0 | KZ41: 0 | LA41: 0 | LB41: 0 | LC41: 0 | LD41: 0 | LE41: 0 | LF41: 0 | LG41: 0 | LH41: 0 | LI41: 0 | LJ41: 0 | LK41: 0 | LL41: 0 | LM41: 0 | LN41: 0 | LO41: 0 | LP41: 0 | LQ41: 0 | LR41: 0 | LS41: 0 | LT41: 0 | LU41: 0 | LV41: 0 | LW41: 0 | LX41: 0 | LY41: 0 | LZ41: 0 | MA41: 0 | MB41: 0 | MC41: 0 | MD41: 0 | ME41: 0 | MF41: 0 | MG41: 0 | MH41: 0 | MI41: 0 | MJ41: 0 | MK41: 0 | ML41: 0 | MM41: 0 | MN41: 0 | MO41: 0 | MP41: 0 | MQ41: 0 | MR41: 0 | MS41: 0 | MT41: 0 | MU41: 0 | MV41: 0 | MW41: 0 | MX41: 0 | MY41: 0 | MZ41: 0 | NA41: 0 | NB41: 0 | NC41: 0 | ND41: 0 | NE41: 0 | NF41: 0 | NG41: 0 | NH41: 0 | NI41: 0 | NJ41: 0 | NK41: 0 | NL41: 0 | NM41: 0 | NN41: 0 | NO41: 0 | NP41: 0 | NQ41: 2084 | NR41: 2232 | NS41: 7331 | NT41: 7959 | NU41: 9285 | NV41: 7942 | NW41: 6632 | NX41: 7469 | NY41: 4728 | NZ41: 4827 | OA41: 2589 | OB41: 4673 | OC41: 3366 | OD41: 2654.19 | OE41: 4879.71 | OF41: 7567.56 | OG41: 8857.53 | OH41: 10858 | OI41: 3958.02 | OJ41: 9110.97 | OK41: 5478.66 | OL41: 6161.76 | OM41: 2860.11 | ON41: 2969.01 | OO41: 2945.25 | OP41: 4266.9 | OQ41: 6290.46 | OR41: 5220 | OS41: 8551.62 | OT41: 9960.39 | OU41: 8190.27 | OV41: 5631.12 | OW41: 4064.94 | OX41: 5091.57 | OY41: 3282.84 | OZ41: 3239.28 | PA41: 0 | PB41: 0 | PC41: 0 | PD41: 0 | PE41: 0 | PF41: 0 | PG41: 0 | PH41: 0 | PI41: 0 | PJ41: 0 | PK41: 0 | PL41: 0 | PM41: 4211.835 | PN41: 3153.564 | PO41: 5558.378 | PP41: 6330.487 | PQ41: 6521.022 | PR41: 7284.136 | PS41: 5836.72 | PT41: 4519.252 | PU41: 5366.298 | PV41: 4931.407 | PW41: 4366.077 | PX41: 4333.824 | PY41: 5126.242 | PZ41: 4074.232 | QA41: 5696.85 | QB41: 6120.435 | QC41: 6253.898 | QD41: 5798.64 | QE41: 5367.805 | QF41: 4501.974 | QG41: 4935.374 | QH41: 6114.197 | QI41: 6028.833 | QJ41: 5447.52 | QK41: 3024.326 | QL41: 3994.36 | QM41: 5763.653 | QN41: 7954.781 | QO41: 9517.92 | QP41: 9506.852 | QQ41: 8768.844 | QR41: 7797.021 | QS41: 6310.638 | QT41: 4535.603 | QU41: 2444.646 | QV41: 3028.355 | QW41: 0 | QX41: 0 | QY41: 0 | QZ41: 0 | RA41: 0 | RB41: 0 | RC41: 0 | RD41: 0 | RE41: 0 | RF41: 0 | RG41: 0 | RH41: 0 | RI41: 1585.388 | RJ41: 2585.372 | RK41: 4679.465 | RL41: 6353.83 | RM41: 7385.728 | RN41: 8948.657 | RO41: 9241.82 | RP41: 7129.377 | RQ41: 5041.289 | RR41: 4275.21 | RS41: 2480.783 | RT41: 1798.081 | RU41: 1536.457 | RV41: 2257.062 | RW41: 4074.358 | RX41: 5578.683 | RY41: 7031.816 | RZ41: 8859.217 | SA41: 9443.764 | SB41: 7467.948 | SC41: 5625.965 | SD41: 3796.936 | SE41: 3112.94 | SF41: 3303.854 | SG41: 1981.102 | SH41: 3626.799 | SI41: 5160.049 | SJ41: 8100.14 | SK41: 8656.123 | SL41: 8606.48 | SM41: 7331.533 | SN41: 7660.84 | SO41: 4406.864 | SP41: 3507.235 | SQ41: 3614.314 | SR41: 2666.521 | SS41: 1797.696 | ST41: 2756.512 | SU41: 3521.662 | SV41: 3647.219 | SW41: 6235.861 | SX41: 6449.742 | SY41: 4739.965 | SZ41: 4735.521 | TA41: 3297.717 | TB41: 3673.02 | TC41: 1844.796 | TD41: 3209.289 | TE41: 2326.736 | TF41: 3514.499 | TG41: 5124.221 | TH41: 7542.116 | TI41: 8457.716 | TJ41: 7928.499 | TK41: 6859.53 | TL41: 6300.516 | TM41: 5633.193 | TN41: 3632.256 | TO41: 2693.923 | TP41: 2221.795 | TQ41: 0 | TR41: 0 | TS41: 0 | TT41: 0 | TU41: 0 | TV41: 0 | TW41: 0 | TX41: 0 | TY41: 0 | TZ41: 0 | UA41: 0 | UB41: 0 | UC41: 857.294 | UD41: 2825.959 | UE41: 3781.726 | UF41: 5767.193 | UG41: 7669.309 | UH41: 7620.905 | UI41: 6602.452 | UJ41: 6958.046 | UK41: 3723.815 | UL41: 3044.719 | UM41: 2823.802 | UN41: 4177.78 | UO41: 0 | UP41: 0 | UQ41: 0 | UR41: 0 | US41: 0 | UT41: 0 | UU41: 0 | UV41: 0 | UW41: 0 | UX41: 0 | UY41: 0 | UZ41: 0 | VA41: 0 | VB41: 0 | VC41: 0 | VD41: 0 | VE41: 0 | VF41: 0 | VG41: 0 | VH41: 0 | VI41: 0 | VJ41: 0 | VK41: 0
A42: 143 | B42: 354268.978 | C42: 10718 | D42: Karen Avenue Wind Farm | E42: WT | F42: CA | I42: 0 | J42: 0 | K42: 0 | L42: 0 | M42: 0 | N42: 0 | O42: 0 | P42: 0 | Q42: 0 | R42: 0 | S42: 0 | T42: 0 | U42: 0 | V42: 0 | W42: 0 | X42: 0 | Y42: 0 | Z42: 0 | AA42: 0 | AB42: 0 | AC42: 0 | AD42: 0 | AE42: 0 | AF42: 0 | AG42: 0 | AH42: 0 | AI42: 0 | AJ42: 0 | AK42: 0 | AL42: 0 | AM42: 0 | AN42: 0 | AO42: 0 | AP42: 0 | AQ42: 0 | AR42: 0 | AS42: 0 | AT42: 0 | AU42: 0 | AV42: 0 | AW42: 0 | AX42: 0 | AY42: 0 | AZ42: 0 | BA42: 0 | BB42: 0 | BC42: 0 | BD42: 0 | BE42: 0 | BF42: 0 | BG42: 0 | BH42: 0 | BI42: 0 | BJ42: 0 | BK42: 0 | BL42: 0 | BM42: 0 | BN42: 0 | BO42: 0 | BP42: 0 | BQ42: 0 | BR42: 0 | BS42: 0 | BT42: 0 | BU42: 0 | BV42: 0 | BW42: 0 | BX42: 0 | BY42: 0 | BZ42: 0 | CA42: 0 | CB42: 0 | CC42: 0 | CD42: 0 | CE42: 0 | CF42: 0 | CG42: 0 | CH42: 0 | CI42: 0 | CJ42: 0 | CK42: 0 | CL42: 0 | CM42: 0 | CN42: 0 | CO42: 0 | CP42: 0 | CQ42: 0 | CR42: 0 | CS42: 0 | CT42: 0 | CU42: 0 | CV42: 0 | CW42: 0 | CX42: 0 | CY42: 0 | CZ42: 0 | DA42: 0 | DB42: 0 | DC42: 0 | DD42: 0 | DE42: 0 | DF42: 0 | DG42: 0 | DH42: 0 | DI42: 0 | DJ42: 0 | DK42: 0 | DL42: 0 | DM42: 0 | DN42: 0 | DO42: 0 | DP42: 0 | DQ42: 0 | DR42: 0 | DS42: 0 | DT42: 0 | DU42: 0 | DV42: 0 | DW42: 0 | DX42: 0 | DY42: 0 | DZ42: 0 | EA42: 0 | EB42: 0 | EC42: 0 | ED42: 0 | EE42: 0 | EF42: 0 | EG42: 0 | EH42: 0 | EI42: 0 | EJ42: 0 | EK42: 0 | EL42: 0 | EM42: 0 | EN42: 0 | EO42: 0 | EP42: 0 | EQ42: 0 | ER42: 0 | ES42: 0 | ET42: 0 | EU42: 0 | EV42: 0 | EW42: 0 | EX42: 0 | EY42: 0 | EZ42: 0 | FA42: 0 | FB42: 0 | FC42: 0 | FD42: 0 | FE42: 0 | FF42: 0 | FG42: 0 | FH42: 0 | FI42: 0 | FJ42: 0 | FK42: 0 | FL42: 0 | FM42: 0 | FN42: 0 | FO42: 0 | FP42: 0 | FQ42: 0 | FR42: 0 | FS42: 0 | FT42: 0 | FU42: 0 | FV42: 0 | FW42: 0 | FX42: 0 | FY42: 0 | FZ42: 0 | GA42: 0 | GB42: 0 | GC42: 0 | GD42: 0 | GE42: 0 | GF42: 0 | GG42: 0 | GH42: 0 | GI42: 0 | GJ42: 0 | GK42: 0 | GL42: 0 | GM42: 0 | GN42: 0 | GO42: 0 | GP42: 0 | GQ42: 0 | GR42: 0 | GS42: 0 | GT42: 0 | GU42: 0 | GV42: 0 | GW42: 0 | GX42: 0 | GY42: 0 | GZ42: 0 | HA42: 0 | HB42: 0 | HC42: 0 | HD42: 0 | HE42: 0 | HF42: 0 | HG42: 0 | HH42: 0 | HI42: 0 | HJ42: 0 | HK42: 0 | HL42: 0 | HM42: 0 | HN42: 0 | HO42: 0 | HP42: 0 | HQ42: 0 | HR42: 0 | HS42: 0 | HT42: 0 | HU42: 0 | HV42: 0 | HW42: 0 | HX42: 0 | HY42: 0 | HZ42: 0 | IA42: 0 | IB42: 0 | IC42: 0 | ID42: 0 | IE42: 0 | IF42: 0 | IG42: 0 | IH42: 0 | II42: 0 | IJ42: 0 | IK42: 0 | IL42: 0 | IM42: 0 | IN42: 0 | IO42: 0 | IP42: 0 | IQ42: 0 | IR42: 0 | IS42: 0 | IT42: 0 | IU42: 0 | IV42: 0 | IW42: 0 | IX42: 0 | IY42: 0 | IZ42: 0 | JA42: 0 | JB42: 0 | JC42: 0 | JD42: 0 | JE42: 0 | JF42: 0 | JG42: 0 | JH42: 0 | JI42: 0 | JJ42: 0 | JK42: 0 | JL42: 0 | JM42: 0 | JN42: 0 | JO42: 0 | JP42: 0 | JQ42: 0 | JR42: 0 | JS42: 0 | JT42: 0 | JU42: 0 | JV42: 0 | JW42: 0 | JX42: 0 | JY42: 0 | JZ42: 0 | KA42: 0 | KB42: 0 | KC42: 0 | KD42: 0 | KE42: 0 | KF42: 0 | KG42: 0 | KH42: 0 | KI42: 0 | KJ42: 0 | KK42: 0 | KL42: 0 | KM42: 0 | KN42: 0 | KO42: 0 | KP42: 0 | KQ42: 0 | KR42: 0 | KS42: 0 | KT42: 0 | KU42: 0 | KV42: 0 | KW42: 0 | KX42: 0 | KY42: 0 | KZ42: 0 | LA42: 0 | LB42: 0 | LC42: 0 | LD42: 0 | LE42: 0 | LF42: 0 | LG42: 0 | LH42: 0 | LI42: 0 | LJ42: 0 | LK42: 0 | LL42: 0 | LM42: 0 | LN42: 0 | LO42: 0 | LP42: 0 | LQ42: 0 | LR42: 0 | LS42: 0 | LT42: 0 | LU42: 0 | LV42: 0 | LW42: 0 | LX42: 0 | LY42: 0 | LZ42: 0 | MA42: 0 | MB42: 0 | MC42: 0 | MD42: 0 | ME42: 0 | MF42: 0 | MG42: 0 | MH42: 0 | MI42: 0 | MJ42: 0 | MK42: 0 | ML42: 0 | MM42: 0 | MN42: 0 | MO42: 0 | MP42: 0 | MQ42: 0 | MR42: 0 | MS42: 0 | MT42: 0 | MU42: 0 | MV42: 0 | MW42: 0 | MX42: 0 | MY42: 0 | MZ42: 0 | NA42: 0 | NB42: 0 | NC42: 0 | ND42: 0 | NE42: 0 | NF42: 0 | NG42: 0 | NH42: 0 | NI42: 0 | NJ42: 0 | NK42: 0 | NL42: 0 | NM42: 0 | NN42: 0 | NO42: 0 | NP42: 0 | NQ42: 0 | NR42: 0 | NS42: 0 | NT42: 0 | NU42: 0 | NV42: 0 | NW42: 0 | NX42: 0 | NY42: 0 | NZ42: 0 | OA42: 0 | OB42: 0 | OC42: 0 | OD42: 0 | OE42: 0 | OF42: 0 | OG42: 0 | OH42: 0 | OI42: 0 | OJ42: 0 | OK42: 0 | OL42: 0 | OM42: 0 | ON42: 0 | OO42: 1150.589 | OP42: 1061.585 | OQ42: 1170.27 | OR42: 1106.707 | OS42: 1267.161 | OT42: 1320.255 | OU42: 1695.087 | OV42: 1592.475 | OW42: 1455.22 | OX42: 1369.49 | OY42: 1159.274 | OZ42: 1230.865 | PA42: 0 | PB42: 1180 | PC42: 1056 | PD42: 2164 | PE42: 3167 | PF42: 2437 | PG42: 2346 | PH42: 1659 | PI42: 1669 | PJ42: 1210 | PK42: 748 | PL42: 483 | PM42: 833 | PN42: 869 | PO42: 3371 | PP42: 3598 | PQ42: 4783 | PR42: 4978 | PS42: 3081 | PT42: 1948 | PU42: 3091 | PV42: 2240 | PW42: 1444 | PX42: 1035 | PY42: 1605 | PZ42: 1253 | QA42: 4082 | QB42: 4000 | QC42: 3986 | QD42: 3329 | QE42: 2517 | QF42: 2695 | QG42: 1860 | QH42: 3266 | QI42: 1697 | QJ42: 1232 | QK42: 1613 | QL42: 2675 | QM42: 2548 | QN42: 4560 | QO42: 3985 | QP42: 4494 | QQ42: 2737 | QR42: 2851 | QS42: 3698 | QT42: 2932 | QU42: 926 | QV42: 1176 | QW42: 1573.199 | QX42: 1523.554 | QY42: 2612.806 | QZ42: 3125.098 | RA42: 4007.734 | RB42: 3829.318 | RC42: 4062.39 | RD42: 3759.577 | RE42: 2355.334 | RF42: 1728.015 | RG42: 1292.592 | RH42: 1397.383 | RI42: 860.626 | RJ42: 1403.47 | RK42: 2540.248 | RL42: 3449.178 | RM42: 4009.344 | RN42: 4857.78 | RO42: 5016.923 | RP42: 3870.184 | RQ42: 2736.665 | RR42: 2320.799 | RS42: 1346.694 | RT42: 976.089 | RU42: 846.165 | RV42: 1243.022 | RW42: 2243.853 | RX42: 3072.324 | RY42: 3872.601 | RZ42: 4878.997 | SA42: 5200.922 | SB42: 4112.79 | SC42: 3098.363 | SD42: 2091.07 | SE42: 1714.376 | SF42: 1819.517 | SG42: 1125.521 | SH42: 2060.487 | SI42: 2931.569 | SJ42: 4601.918 | SK42: 4917.788 | SL42: 4889.584 | SM42: 4165.251 | SN42: 4352.339 | SO42: 2503.664 | SP42: 1992.559 | SQ42: 2053.394 | SR42: 1514.926 | SS42: 1193.883 | ST42: 1830.65 | SU42: 2338.8 | SV42: 2422.185 | SW42: 4141.348 | SX42: 4283.391 | SY42: 3147.897 | SZ42: 3144.945 | TA42: 2190.073 | TB42: 2439.319 | TC42: 1225.162 | TD42: 2131.347 | TE42: 1068.65 | TF42: 1614.179 | TG42: 2353.511 | TH42: 3464.029 | TI42: 3884.556 | TJ42: 3641.491 | TK42: 3150.523 | TL42: 2893.773 | TM42: 2587.277 | TN42: 1668.264 | TO42: 1237.296 | TP42: 1020.451 | TQ42: 0 | TR42: 0 | TS42: 0 | TT42: 0 | TU42: 0 | TV42: 0 | TW42: 0 | TX42: 0 | TY42: 0 | TZ42: 0 | UA42: 0 | UB42: 0 | UC42: 438.248 | UD42: 1444.627 | UE42: 1933.215 | UF42: 2948.183 | UG42: 3920.543 | UH42: 3895.8 | UI42: 3375.167 | UJ42: 3556.947 | UK42: 1903.611 | UL42: 1556.457 | UM42: 1443.525 | UN42: 2135.677 | UO42: 0 | UP42: 0 | UQ42: 0 | UR42: 0 | US42: 0 | UT42: 0 | UU42: 0 | UV42: 0 | UW42: 0 | UX42: 0 | UY42: 0 | UZ42: 0 | VA42: 0 | VB42: 0 | VC42: 0 | VD42: 0 | VE42: 0 | VF42: 0 | VG42: 0 | VH42: 0 | VI42: 0 | VJ42: 0 | VK42: 0
A43: 132 | B43: 98714.001 | C43: 50818 | D43: Dyer Road | E43: WT | F43: CA | I43: 0 | J43: 0 | K43: 0 | L43: 0 | M43: 0 | N43: 0 | O43: 0 | P43: 0 | Q43: 0 | R43: 0 | S43: 0 | T43: 0 | U43: 0 | V43: 0 | W43: 0 | X43: 0 | Y43: 0 | Z43: 0 | AA43: 0 | AB43: 0 | AC43: 0 | AD43: 0 | AE43: 0 | AF43: 0 | AG43: 0 | AH43: 0 | AI43: 0 | AJ43: 0 | AK43: 0 | AL43: 0 | AM43: 0 | AN43: 0 | AO43: 0 | AP43: 0 | AQ43: 0 | AR43: 0 | AS43: 0 | AT43: 0 | AU43: 0 | AV43: 0 | AW43: 0 | AX43: 0 | AY43: 0 | AZ43: 0 | BA43: 0 | BB43: 0 | BC43: 0 | BD43: 0 | BE43: 0 | BF43: 0 | BG43: 0 | BH43: 0 | BI43: 0 | BJ43: 0 | BK43: 0 | BL43: 0 | BM43: 0 | BN43: 0 | BO43: 0 | BP43: 0 | BQ43: 0 | BR43: 0 | BS43: 0 | BT43: 0 | BU43: 0 | BV43: 0 | BW43: 0 | BX43: 0 | BY43: 0 | BZ43: 0 | CA43: 0 | CB43: 0 | CC43: 0 | CD43: 0 | CE43: 0 | CF43: 0 | CG43: 0 | CH43: 0 | CI43: 0 | CJ43: 0 | CK43: 0 | CL43: 0 | CM43: 0 | CN43: 0 | CO43: 0 | CP43: 0 | CQ43: 0 | CR43: 0 | CS43: 0 | CT43: 0 | CU43: 0 | CV43: 0 | CW43: 0 | CX43: 0 | CY43: 0 | CZ43: 0 | DA43: 0 | DB43: 0 | DC43: 0 | DD43: 0 | DE43: 0 | DF43: 0 | DG43: 0 | DH43: 0 | DI43: 0 | DJ43: 0 | DK43: 0 | DL43: 0 | DM43: 0 | DN43: 0 | DO43: 0 | DP43: 0 | DQ43: 0 | DR43: 0 | DS43: 0 | DT43: 0 | DU43: 0 | DV43: 0 | DW43: 0 | DX43: 0 | DY43: 0 | DZ43: 0 | EA43: 0 | EB43: 0 | EC43: 0 | ED43: 0 | EE43: 0 | EF43: 0 | EG43: 0 | EH43: 0 | EI43: 0 | EJ43: 0 | EK43: 0 | EL43: 0 | EM43: 0 | EN43: 0 | EO43: 0 | EP43: 0 | EQ43: 0 | ER43: 0 | ES43: 0 | ET43: 0 | EU43: 0 | EV43: 0 | EW43: 0 | EX43: 0 | EY43: 0 | EZ43: 0 | FA43: 0 | FB43: 0 | FC43: 0 | FD43: 0 | FE43: 0 | FF43: 0 | FG43: 0 | FH43: 0 | FI43: 0 | FJ43: 0 | FK43: 0 | FL43: 0 | FM43: 0 | FN43: 0 | FO43: 0 | FP43: 0 | FQ43: 0 | FR43: 0 | FS43: 0 | FT43: 0 | FU43: 0 | FV43: 0 | FW43: 0 | FX43: 0 | FY43: 0 | FZ43: 0 | GA43: 0 | GB43: 0 | GC43: 0 | GD43: 0 | GE43: 0 | GF43: 0 | GG43: 0 | GH43: 0 | GI43: 0 | GJ43: 0 | GK43: 0 | GL43: 0 | GM43: 0 | GN43: 0 | GO43: 0 | GP43: 0 | GQ43: 0 | GR43: 0 | GS43: 0 | GT43: 0 | GU43: 0 | GV43: 0 | GW43: 0 | GX43: 0 | GY43: 0 | GZ43: 0 | HA43: 0 | HB43: 0 | HC43: 0 | HD43: 0 | HE43: 0 | HF43: 0 | HG43: 0 | HH43: 0 | HI43: 0 | HJ43: 0 | HK43: 0 | HL43: 0 | HM43: 0 | HN43: 0 | HO43: 0 | HP43: 0 | HQ43: 0 | HR43: 0 | HS43: 0 | HT43: 0 | HU43: 0 | HV43: 0 | HW43: 0 | HX43: 0 | HY43: 0 | HZ43: 0 | IA43: 0 | IB43: 0 | IC43: 0 | ID43: 0 | IE43: 0 | IF43: 0 | IG43: 0 | IH43: 0 | II43: 0 | IJ43: 0 | IK43: 0 | IL43: 0 | IM43: 0 | IN43: 0 | IO43: 0 | IP43: 0 | IQ43: 0 | IR43: 0 | IS43: 0 | IT43: 0 | IU43: 0 | IV43: 0 | IW43: 0 | IX43: 0 | IY43: 0 | IZ43: 0 | JA43: 0 | JB43: 0 | JC43: 0 | JD43: 0 | JE43: 0 | JF43: 0 | JG43: 0 | JH43: 0 | JI43: 0 | JJ43: 0 | JK43: 0 | JL43: 0 | JM43: 0 | JN43: 0 | JO43: 0 | JP43: 0 | JQ43: 0 | JR43: 0 | JS43: 0 | JT43: 0 | JU43: 0 | JV43: 0 | JW43: 0 | JX43: 0 | JY43: 0 | JZ43: 0 | KA43: 0 | KB43: 0 | KC43: 0 | KD43: 0 | KE43: 0 | KF43: 0 | KG43: 0 | KH43: 0 | KI43: 0 | KJ43: 0 | KK43: 0 | KL43: 0 | KM43: 0 | KN43: 0 | KO43: 0 | KP43: 0 | KQ43: 0 | KR43: 0 | KS43: 0 | KT43: 0 | KU43: 0 | KV43: 0 | KW43: 0 | KX43: 0 | KY43: 0 | KZ43: 0 | LA43: 0 | LB43: 0 | LC43: 0 | LD43: 0 | LE43: 0 | LF43: 0 | LG43: 0 | LH43: 0 | LI43: 0 | LJ43: 0 | LK43: 0 | LL43: 0 | LM43: 0 | LN43: 0 | LO43: 0 | LP43: 0 | LQ43: 0 | LR43: 0 | LS43: 0 | LT43: 0 | LU43: 0 | LV43: 0 | LW43: 0 | LX43: 0 | LY43: 0 | LZ43: 0 | MA43: 0 | MB43: 0 | MC43: 0 | MD43: 0 | ME43: 0 | MF43: 0 | MG43: 0 | MH43: 0 | MI43: 0 | MJ43: 0 | MK43: 0 | ML43: 0 | MM43: 0 | MN43: 0 | MO43: 0 | MP43: 0 | MQ43: 0 | MR43: 0 | MS43: 0 | MT43: 0 | MU43: 0 | MV43: 0 | MW43: 0 | MX43: 0 | MY43: 0 | MZ43: 0 | NA43: 0 | NB43: 0 | NC43: 0 | ND43: 0 | NE43: 0 | NF43: 0 | NG43: 0 | NH43: 0 | NI43: 0 | NJ43: 0 | NK43: 0 | NL43: 0 | NM43: 0 | NN43: 0 | NO43: 0 | NP43: 0 | NQ43: 817.155 | NR43: 711.554 | NS43: 766.132 | NT43: 753.666 | NU43: 790.016 | NV43: 777.843 | NW43: 892.527 | NX43: 923.446 | NY43: 768.517 | NZ43: 726.13 | OA43: 597.739 | OB43: 644.275 | OC43: 621.738 | OD43: 542.352 | OE43: 689.038 | OF43: 555.71 | OG43: 576.194 | OH43: 747.973 | OI43: 903.104 | OJ43: 859.797 | OK43: 775.128 | OL43: 657.037 | OM43: 605.217 | ON43: 663.714 | OO43: 325.554 | OP43: 300.371 | OQ43: 331.122 | OR43: 313.138 | OS43: 358.537 | OT43: 373.56 | OU43: 479.617 | OV43: 450.583 | OW43: 411.748 | OX43: 387.491 | OY43: 328.011 | OZ43: 348.268 | PA43: 292.239 | PB43: 454.109 | PC43: 646.36 | PD43: 896.972 | PE43: 1423.638 | PF43: 1533.382 | PG43: 1321.094 | PH43: 1104.391 | PI43: 805.417 | PJ43: 582 | PK43: 348.681 | PL43: 263.718 | PM43: 342.815 | PN43: 256.679 | PO43: 452.415 | PP43: 515.259 | PQ43: 530.768 | PR43: 592.88 | PS43: 475.07 | PT43: 367.837 | PU43: 436.781 | PV43: 401.384 | PW43: 355.369 | PX43: 352.744 | PY43: 813.029 | PZ43: 646.179 | QA43: 903.528 | QB43: 970.71 | QC43: 991.877 | QD43: 919.672 | QE43: 851.341 | QF43: 714.019 | QG43: 782.757 | QH43: 969.72 | QI43: 956.181 | QJ43: 863.984 | QK43: 570.337 | QL43: 753.269 | QM43: 1086.928 | QN43: 1500.138 | QO43: 1794.919 | QP43: 1792.832 | QQ43: 1653.656 | QR43: 1470.387 | QS43: 1190.08 | QT43: 855.338 | QU43: 461.019 | QV43: 571.097 | QW43: 463.351 | QX43: 448.729 | QY43: 769.544 | QZ43: 920.428 | RA43: 1180.389 | RB43: 1127.841 | RC43: 1196.487 | RD43: 1107.3 | RE43: 693.711 | RF43: 508.948 | RG43: 380.704 | RH43: 411.568 | RI43: 195.645 | RJ43: 319.047 | RK43: 577.467 | RL43: 784.092 | RM43: 911.433 | RN43: 1104.305 | RO43: 1140.483 | RP43: 879.798 | RQ43: 622.118 | RR43: 527.581 | RS43: 306.14 | RT43: 221.891 | RU43: 303.188 | RV43: 445.385 | RW43: 803.992 | RX43: 1100.84 | RY43: 1387.586 | RZ43: 1748.186 | SA43: 1863.535 | SB43: 1473.647 | SC43: 1110.17 | SD43: 749.248 | SE43: 614.275 | SF43: 651.948 | SG43: 274.609 | SH43: 502.726 | SI43: 715.256 | SJ43: 1122.794 | SK43: 1199.861 | SL43: 1192.98 | SM43: 1016.254 | SN43: 1061.901 | SO43: 610.854 | SP43: 486.152 | SQ43: 500.995 | SR43: 369.618 | SS43: 0 | ST43: 0 | SU43: 0 | SV43: 0 | SW43: 0 | SX43: 0 | SY43: 0 | SZ43: 0 | TA43: 0 | TB43: 0 | TC43: 0 | TD43: 0 | TE43: 0 | TF43: 0 | TG43: 0 | TH43: 0 | TI43: 0 | TJ43: 0 | TK43: 0 | TL43: 0 | TM43: 0 | TN43: 0 | TO43: 0 | TP43: 0 | TQ43: 0 | TR43: 0 | TS43: 0 | TT43: 0 | TU43: 0 | TV43: 0 | TW43: 0 | TX43: 0 | TY43: 0 | TZ43: 0 | UA43: 0 | UB43: 0 | UC43: 0 | UD43: 0 | UE43: 0 | UF43: 0 | UG43: 0 | UH43: 0 | UI43: 0 | UJ43: 0 | UK43: 0 | UL43: 0 | UM43: 0 | UN43: 0 | UO43: 0 | UP43: 0 | UQ43: 0 | UR43: 0 | US43: 0 | UT43: 0 | UU43: 0 | UV43: 0 | UW43: 0 | UX43: 0 | UY43: 0 | UZ43: 0 | VA43: 0 | VB43: 0 | VC43: 0 | VD43: 0 | VE43: 0 | VF43: 0 | VG43: 0 | VH43: 0 | VI43: 0 | VJ43: 0 | VK43: 0
A44: 132 | B44: 520860 | C44: 52160 | D44: Victory Garden Phase IV LLC | E44: WT | F44: CA | I44: 0 | J44: 0 | K44: 0 | L44: 0 | M44: 0 | N44: 0 | O44: 0 | P44: 0 | Q44: 0 | R44: 0 | S44: 0 | T44: 0 | U44: 0 | V44: 0 | W44: 0 | X44: 0 | Y44: 0 | Z44: 0 | AA44: 0 | AB44: 0 | AC44: 0 | AD44: 0 | AE44: 0 | AF44: 0 | AG44: 0 | AH44: 0 | AI44: 0 | AJ44: 0 | AK44: 0 | AL44: 0 | AM44: 0 | AN44: 0 | AO44: 0 | AP44: 0 | AQ44: 0 | AR44: 0 | AS44: 0 | AT44: 0 | AU44: 0 | AV44: 0 | AW44: 0 | AX44: 0 | AY44: 0 | AZ44: 0 | BA44: 0 | BB44: 0 | BC44: 0 | BD44: 0 | BE44: 0 | BF44: 0 | BG44: 0 | BH44: 0 | BI44: 0 | BJ44: 0 | BK44: 0 | BL44: 0 | BM44: 0 | BN44: 0 | BO44: 0 | BP44: 0 | BQ44: 0 | BR44: 0 | BS44: 0 | BT44: 0 | BU44: 0 | BV44: 0 | BW44: 0 | BX44: 0 | BY44: 0 | BZ44: 0 | CA44: 0 | CB44: 0 | CC44: 0 | CD44: 0 | CE44: 0 | CF44: 0 | CG44: 0 | CH44: 0 | CI44: 0 | CJ44: 0 | CK44: 0 | CL44: 0 | CM44: 0 | CN44: 0 | CO44: 0 | CP44: 0 | CQ44: 0 | CR44: 0 | CS44: 0 | CT44: 0 | CU44: 0 | CV44: 0 | CW44: 0 | CX44: 0 | CY44: 0 | CZ44: 0 | DA44: 0 | DB44: 0 | DC44: 0 | DD44: 0 | DE44: 0 | DF44: 0 | DG44: 0 | DH44: 0 | DI44: 0 | DJ44: 0 | DK44: 0 | DL44: 0 | DM44: 0 | DN44: 0 | DO44: 0 | DP44: 0 | DQ44: 0 | DR44: 0 | DS44: 0 | DT44: 0 | DU44: 0 | DV44: 0 | DW44: 0 | DX44: 0 | DY44: 0 | DZ44: 0 | EA44: 0 | EB44: 0 | EC44: 0 | ED44: 0 | EE44: 0 | EF44: 0 | EG44: 0 | EH44: 0 | EI44: 0 | EJ44: 0 | EK44: 0 | EL44: 0 | EM44: 0 | EN44: 0 | EO44: 0 | EP44: 0 | EQ44: 0 | ER44: 0 | ES44: 0 | ET44: 0 | EU44: 0 | EV44: 0 | EW44: 0 | EX44: 0 | EY44: 0 | EZ44: 0 | FA44: 0 | FB44: 0 | FC44: 0 | FD44: 0 | FE44: 0 | FF44: 0 | FG44: 0 | FH44: 0 | FI44: 0 | FJ44: 0 | FK44: 0 | FL44: 0 | FM44: 0 | FN44: 0 | FO44: 0 | FP44: 0 | FQ44: 0 | FR44: 0 | FS44: 0 | FT44: 0 | FU44: 0 | FV44: 0 | FW44: 0 | FX44: 0 | FY44: 0 | FZ44: 0 | GA44: 0 | GB44: 0 | GC44: 0 | GD44: 0 | GE44: 0 | GF44: 0 | GG44: 0 | GH44: 0 | GI44: 0 | GJ44: 0 | GK44: 0 | GL44: 0 | GM44: 0 | GN44: 0 | GO44: 0 | GP44: 0 | GQ44: 0 | GR44: 0 | GS44: 0 | GT44: 0 | GU44: 0 | GV44: 0 | GW44: 0 | GX44: 0 | GY44: 0 | GZ44: 0 | HA44: 0 | HB44: 0 | HC44: 0 | HD44: 0 | HE44: 0 | HF44: 0 | HG44: 0 | HH44: 0 | HI44: 0 | HJ44: 0 | HK44: 0 | HL44: 0 | HM44: 0 | HN44: 0 | HO44: 0 | HP44: 0 | HQ44: 0 | HR44: 0 | HS44: 0 | HT44: 0 | HU44: 0 | HV44: 0 | HW44: 0 | HX44: 0 | HY44: 0 | HZ44: 0 | IA44: 0 | IB44: 0 | IC44: 0 | ID44: 0 | IE44: 0 | IF44: 0 | IG44: 0 | IH44: 0 | II44: 0 | IJ44: 0 | IK44: 0 | IL44: 0 | IM44: 0 | IN44: 0 | IO44: 0 | IP44: 0 | IQ44: 0 | IR44: 0 | IS44: 0 | IT44: 0 | IU44: 0 | IV44: 0 | IW44: 0 | IX44: 0 | IY44: 0 | IZ44: 0 | JA44: 0 | JB44: 0 | JC44: 0 | JD44: 0 | JE44: 0 | JF44: 0 | JG44: 0 | JH44: 0 | JI44: 0 | JJ44: 0 | JK44: 0 | JL44: 0 | JM44: 0 | JN44: 0 | JO44: 0 | JP44: 0 | JQ44: 0 | JR44: 0 | JS44: 0 | JT44: 0 | JU44: 0 | JV44: 0 | JW44: 0 | JX44: 0 | JY44: 0 | JZ44: 0 | KA44: 0 | KB44: 0 | KC44: 0 | KD44: 0 | KE44: 0 | KF44: 0 | KG44: 0 | KH44: 0 | KI44: 0 | KJ44: 0 | KK44: 0 | KL44: 0 | KM44: 0 | KN44: 0 | KO44: 0 | KP44: 0 | KQ44: 0 | KR44: 0 | KS44: 0 | KT44: 0 | KU44: 0 | KV44: 0 | KW44: 0 | KX44: 0 | KY44: 0 | KZ44: 0 | LA44: 0 | LB44: 0 | LC44: 0 | LD44: 0 | LE44: 0 | LF44: 0 | LG44: 0 | LH44: 0 | LI44: 0 | LJ44: 0 | LK44: 0 | LL44: 0 | LM44: 0 | LN44: 0 | LO44: 0 | LP44: 0 | LQ44: 0 | LR44: 0 | LS44: 0 | LT44: 0 | LU44: 0 | LV44: 0 | LW44: 0 | LX44: 0 | LY44: 0 | LZ44: 0 | MA44: 0 | MB44: 0 | MC44: 0 | MD44: 0 | ME44: 0 | MF44: 0 | MG44: 0 | MH44: 0 | MI44: 0 | MJ44: 0 | MK44: 0 | ML44: 0 | MM44: 0 | MN44: 0 | MO44: 0 | MP44: 0 | MQ44: 0 | MR44: 0 | MS44: 0 | MT44: 0 | MU44: 0 | MV44: 0 | MW44: 0 | MX44: 0 | MY44: 0 | MZ44: 0 | NA44: 0 | NB44: 0 | NC44: 0 | ND44: 0 | NE44: 0 | NF44: 0 | NG44: 0 | NH44: 0 | NI44: 0 | NJ44: 0 | NK44: 0 | NL44: 0 | NM44: 0 | NN44: 0 | NO44: 0 | NP44: 0 | NQ44: 2754 | NR44: 2354 | NS44: 5160 | NT44: 14606 | NU44: 4970 | NV44: 6240 | NW44: 4142 | NX44: 3379 | NY44: 2320 | NZ44: 2320 | OA44: 2977 | OB44: 3666 | OC44: 2515 | OD44: 3176 | OE44: 4535 | OF44: 5426 | OG44: 6428 | OH44: 15999 | OI44: 15242 | OJ44: 13882 | OK44: 3076 | OL44: 3138 | OM44: 3082 | ON44: 3013 | OO44: 2719 | OP44: 3547 | OQ44: 4378 | OR44: 4164 | OS44: 5522 | OT44: 6023 | OU44: 6023 | OV44: 2435 | OW44: 2747 | OX44: 2600 | OY44: 3340 | OZ44: 4186 | PA44: 0 | PB44: 0 | PC44: 0 | PD44: 0 | PE44: 0 | PF44: 0 | PG44: 0 | PH44: 0 | PI44: 0 | PJ44: 0 | PK44: 0 | PL44: 0 | PM44: 3332.19 | PN44: 2494.94 | PO44: 4397.507 | PP44: 5008.36 | PQ44: 5159.102 | PR44: 5762.839 | PS44: 4617.717 | PT44: 3575.403 | PU44: 4245.543 | PV44: 3901.479 | PW44: 3454.218 | PX44: 3428.702 | PY44: 3592.425 | PZ44: 2855.186 | QA44: 3992.302 | QB44: 4289.148 | QC44: 4382.677 | QD44: 4063.636 | QE44: 3761.711 | QF44: 3154.944 | QG44: 3458.667 | QH44: 4284.776 | QI44: 4224.953 | QJ44: 3817.575 | QK44: 0 | QL44: 0 | QM44: 0 | QN44: 0 | QO44: 0 | QP44: 0 | QQ44: 0 | QR44: 0 | QS44: 0 | QT44: 0 | QU44: 0 | QV44: 0 | QW44: 0 | QX44: 0 | QY44: 0 | QZ44: 0 | RA44: 0 | RB44: 0 | RC44: 0 | RD44: 0 | RE44: 0 | RF44: 0 | RG44: 0 | RH44: 0 | RI44: 1159.455 | RJ44: 1890.784 | RK44: 3422.275 | RL44: 4646.803 | RM44: 5401.47 | RN44: 6544.501 | RO44: 6758.902 | RP44: 5213.991 | RQ44: 3686.891 | RR44: 3126.628 | RS44: 1814.293 | RT44: 1315.007 | RU44: 1111.988 | RV44: 1633.516 | RW44: 2948.757 | RX44: 4037.49 | RY44: 5089.173 | RZ44: 6411.728 | SA44: 6834.785 | SB44: 5404.817 | SC44: 4071.709 | SD44: 2747.976 | SE44: 2252.945 | SF44: 2391.116 | SG44: 1357.397 | SH44: 2484.977 | SI44: 3535.516 | SJ44: 5549.981 | SK44: 5930.924 | SL44: 5896.91 | SM44: 5023.354 | SN44: 5248.985 | SO44: 3019.455 | SP44: 2403.055 | SQ44: 2476.423 | SR44: 1827.023 | SS44: 1316.407 | ST44: 2018.524 | SU44: 2578.824 | SV44: 2670.767 | SW44: 4566.363 | SX44: 4722.983 | SY44: 3470.957 | SZ44: 3467.702 | TA44: 2414.835 | TB44: 2689.66 | TC44: 1350.897 | TD44: 2350.081 | TE44: 1630.715 | TF44: 2463.17 | TG44: 3591.36 | TH44: 5285.965 | TI44: 5927.672 | TJ44: 5556.765 | TK44: 4807.568 | TL44: 4415.777 | TM44: 3948.078 | TN44: 2545.702 | TO44: 1888.062 | TP44: 1557.166 | TQ44: 0 | TR44: 0 | TS44: 0 | TT44: 0 | TU44: 0 | TV44: 0 | TW44: 0 | TX44: 0 | TY44: 0 | TZ44: 0 | UA44: 0 | UB44: 0 | UC44: 485.231 | UD44: 1599.503 | UE44: 2140.471 | UF44: 3264.252 | UG44: 4340.857 | UH44: 4313.46 | UI44: 3737.012 | UJ44: 3938.279 | UK44: 2107.693 | UL44: 1723.322 | UM44: 1598.282 | UN44: 2364.638 | UO44: 0 | UP44: 0 | UQ44: 0 | UR44: 0 | US44: 0 | UT44: 0 | UU44: 0 | UV44: 0 | UW44: 0 | UX44: 0 | UY44: 0 | UZ44: 0 | VA44: 0 | VB44: 0 | VC44: 0 | VD44: 0 | VE44: 0 | VF44: 0 | VG44: 0 | VH44: 0 | VI44: 0 | VJ44: 0 | VK44: 0
A45: 132 | B45: 322501.001 | C45: 52161 | D45: Terra-Gen 251 Wind LLC | E45: WT | F45: CA | I45: 0 | J45: 0 | K45: 0 | L45: 0 | M45: 0 | N45: 0 | O45: 0 | P45: 0 | Q45: 0 | R45: 0 | S45: 0 | T45: 0 | U45: 0 | V45: 0 | W45: 0 | X45: 0 | Y45: 0 | Z45: 0 | AA45: 0 | AB45: 0 | AC45: 0 | AD45: 0 | AE45: 0 | AF45: 0 | AG45: 0 | AH45: 0 | AI45: 0 | AJ45: 0 | AK45: 0 | AL45: 0 | AM45: 0 | AN45: 0 | AO45: 0 | AP45: 0 | AQ45: 0 | AR45: 0 | AS45: 0 | AT45: 0 | AU45: 0 | AV45: 0 | AW45: 0 | AX45: 0 | AY45: 0 | AZ45: 0 | BA45: 0 | BB45: 0 | BC45: 0 | BD45: 0 | BE45: 0 | BF45: 0 | BG45: 0 | BH45: 0 | BI45: 0 | BJ45: 0 | BK45: 0 | BL45: 0 | BM45: 0 | BN45: 0 | BO45: 0 | BP45: 0 | BQ45: 0 | BR45: 0 | BS45: 0 | BT45: 0 | BU45: 0 | BV45: 0 | BW45: 0 | BX45: 0 | BY45: 0 | BZ45: 0 | CA45: 0 | CB45: 0 | CC45: 0 | CD45: 0 | CE45: 0 | CF45: 0 | CG45: 0 | CH45: 0 | CI45: 0 | CJ45: 0 | CK45: 0 | CL45: 0 | CM45: 0 | CN45: 0 | CO45: 0 | CP45: 0 | CQ45: 0 | CR45: 0 | CS45: 0 | CT45: 0 | CU45: 0 | CV45: 0 | CW45: 0 | CX45: 0 | CY45: 0 | CZ45: 0 | DA45: 0 | DB45: 0 | DC45: 0 | DD45: 0 | DE45: 0 | DF45: 0 | DG45: 0 | DH45: 0 | DI45: 0 | DJ45: 0 | DK45: 0 | DL45: 0 | DM45: 0 | DN45: 0 | DO45: 0 | DP45: 0 | DQ45: 0 | DR45: 0 | DS45: 0 | DT45: 0 | DU45: 0 | DV45: 0 | DW45: 0 | DX45: 0 | DY45: 0 | DZ45: 0 | EA45: 0 | EB45: 0 | EC45: 0 | ED45: 0 | EE45: 0 | EF45: 0 | EG45: 0 | EH45: 0 | EI45: 0 | EJ45: 0 | EK45: 0 | EL45: 0 | EM45: 0 | EN45: 0 | EO45: 0 | EP45: 0 | EQ45: 0 | ER45: 0 | ES45: 0 | ET45: 0 | EU45: 0 | EV45: 0 | EW45: 0 | EX45: 0 | EY45: 0 | EZ45: 0 | FA45: 0 | FB45: 0 | FC45: 0 | FD45: 0 | FE45: 0 | FF45: 0 | FG45: 0 | FH45: 0 | FI45: 0 | FJ45: 0 | FK45: 0 | FL45: 0 | FM45: 0 | FN45: 0 | FO45: 0 | FP45: 0 | FQ45: 0 | FR45: 0 | FS45: 0 | FT45: 0 | FU45: 0 | FV45: 0 | FW45: 0 | FX45: 0 | FY45: 0 | FZ45: 0 | GA45: 0 | GB45: 0 | GC45: 0 | GD45: 0 | GE45: 0 | GF45: 0 | GG45: 0 | GH45: 0 | GI45: 0 | GJ45: 0 | GK45: 0 | GL45: 0 | GM45: 0 | GN45: 0 | GO45: 0 | GP45: 0 | GQ45: 0 | GR45: 0 | GS45: 0 | GT45: 0 | GU45: 0 | GV45: 0 | GW45: 0 | GX45: 0 | GY45: 0 | GZ45: 0 | HA45: 0 | HB45: 0 | HC45: 0 | HD45: 0 | HE45: 0 | HF45: 0 | HG45: 0 | HH45: 0 | HI45: 0 | HJ45: 0 | HK45: 0 | HL45: 0 | HM45: 0 | HN45: 0 | HO45: 0 | HP45: 0 | HQ45: 0 | HR45: 0 | HS45: 0 | HT45: 0 | HU45: 0 | HV45: 0 | HW45: 0 | HX45: 0 | HY45: 0 | HZ45: 0 | IA45: 0 | IB45: 0 | IC45: 0 | ID45: 0 | IE45: 0 | IF45: 0 | IG45: 0 | IH45: 0 | II45: 0 | IJ45: 0 | IK45: 0 | IL45: 0 | IM45: 0 | IN45: 0 | IO45: 0 | IP45: 0 | IQ45: 0 | IR45: 0 | IS45: 0 | IT45: 0 | IU45: 0 | IV45: 0 | IW45: 0 | IX45: 0 | IY45: 0 | IZ45: 0 | JA45: 0 | JB45: 0 | JC45: 0 | JD45: 0 | JE45: 0 | JF45: 0 | JG45: 0 | JH45: 0 | JI45: 0 | JJ45: 0 | JK45: 0 | JL45: 0 | JM45: 0 | JN45: 0 | JO45: 0 | JP45: 0 | JQ45: 0 | JR45: 0 | JS45: 0 | JT45: 0 | JU45: 0 | JV45: 0 | JW45: 0 | JX45: 0 | JY45: 0 | JZ45: 0 | KA45: 0 | KB45: 0 | KC45: 0 | KD45: 0 | KE45: 0 | KF45: 0 | KG45: 0 | KH45: 0 | KI45: 0 | KJ45: 0 | KK45: 0 | KL45: 0 | KM45: 0 | KN45: 0 | KO45: 0 | KP45: 0 | KQ45: 0 | KR45: 0 | KS45: 0 | KT45: 0 | KU45: 0 | KV45: 0 | KW45: 0 | KX45: 0 | KY45: 0 | KZ45: 0 | LA45: 0 | LB45: 0 | LC45: 0 | LD45: 0 | LE45: 0 | LF45: 0 | LG45: 0 | LH45: 0 | LI45: 0 | LJ45: 0 | LK45: 0 | LL45: 0 | LM45: 0 | LN45: 0 | LO45: 0 | LP45: 0 | LQ45: 0 | LR45: 0 | LS45: 0 | LT45: 0 | LU45: 0 | LV45: 0 | LW45: 0 | LX45: 0 | LY45: 0 | LZ45: 0 | MA45: 0 | MB45: 0 | MC45: 0 | MD45: 0 | ME45: 0 | MF45: 0 | MG45: 0 | MH45: 0 | MI45: 0 | MJ45: 0 | MK45: 0 | ML45: 0 | MM45: 0 | MN45: 0 | MO45: 0 | MP45: 0 | MQ45: 0 | MR45: 0 | MS45: 0 | MT45: 0 | MU45: 0 | MV45: 0 | MW45: 0 | MX45: 0 | MY45: 0 | MZ45: 0 | NA45: 0 | NB45: 0 | NC45: 0 | ND45: 0 | NE45: 0 | NF45: 0 | NG45: 0 | NH45: 0 | NI45: 0 | NJ45: 0 | NK45: 0 | NL45: 0 | NM45: 0 | NN45: 0 | NO45: 0 | NP45: 0 | NQ45: 1790 | NR45: 1461 | NS45: 3928 | NT45: 4886 | NU45: 4597 | NV45: 5342 | NW45: 3765 | NX45: 3110 | NY45: 2173 | NZ45: 2763 | OA45: 2010 | OB45: 2298 | OC45: 1695 | OD45: 2762 | OE45: 3326 | OF45: 5011 | OG45: 5628 | OH45: 5420 | OI45: 3229 | OJ45: 4298 | OK45: 2955 | OL45: 2879 | OM45: 2351 | ON45: 2716 | OO45: 2207 | OP45: 1994 | OQ45: 3818 | OR45: 3638 | OS45: 4151 | OT45: 4700 | OU45: 2657 | OV45: 1474 | OW45: 1623 | OX45: 2388 | OY45: 2712 | OZ45: 2870 | PA45: 0 | PB45: 0 | PC45: 0 | PD45: 0 | PE45: 0 | PF45: 0 | PG45: 0 | PH45: 0 | PI45: 0 | PJ45: 0 | PK45: 0 | PL45: 0 | PM45: 1925.771 | PN45: 1441.899 | PO45: 2541.449 | PP45: 2894.479 | PQ45: 2981.597 | PR45: 3330.514 | PS45: 2668.715 | PT45: 2066.331 | PU45: 2453.624 | PV45: 2254.78 | PW45: 1996.294 | PX45: 1981.548 | PY45: 2195.171 | PZ45: 1744.677 | QA45: 2439.518 | QB45: 2620.907 | QC45: 2678.058 | QD45: 2483.107 | QE45: 2298.614 | QF45: 1927.846 | QG45: 2113.437 | QH45: 2618.235 | QI45: 2581.68 | QJ45: 2332.75 | QK45: 0 | QL45: 0 | QM45: 0 | QN45: 0 | QO45: 0 | QP45: 0 | QQ45: 0 | QR45: 0 | QS45: 0 | QT45: 0 | QU45: 0 | QV45: 0 | QW45: 0 | QX45: 0 | QY45: 0 | QZ45: 0 | RA45: 0 | RB45: 0 | RC45: 0 | RD45: 0 | RE45: 0 | RF45: 0 | RG45: 0 | RH45: 0 | RI45: 710.041 | RJ45: 1157.901 | RK45: 2095.773 | RL45: 2845.665 | RM45: 3307.817 | RN45: 4007.8 | RO45: 4139.097 | RP45: 3193.006 | RQ45: 2257.822 | RR45: 1914.721 | RS45: 1111.058 | RT45: 805.299 | RU45: 639.462 | RV45: 939.373 | RW45: 1695.719 | RX45: 2321.808 | RY45: 2926.592 | RZ45: 3687.143 | SA45: 3930.427 | SB45: 3108.107 | SC45: 2341.486 | SD45: 1580.258 | SE45: 1295.584 | SF45: 1375.041 | SG45: 825.951 | SH45: 1512.064 | SI45: 2151.297 | SJ45: 3377.063 | SK45: 3608.86 | SL45: 3588.163 | SM45: 3056.62 | SN45: 3193.913 | SO45: 1837.284 | SP45: 1462.216 | SQ45: 1506.859 | SR45: 1111.71 | SS45: 834.415 | ST45: 1279.455 | SU45: 1634.605 | SV45: 1692.884 | SW45: 2894.421 | SX45: 2993.695 | SY45: 2200.09 | SZ45: 2198.027 | TA45: 1530.659 | TB45: 1704.859 | TC45: 856.275 | TD45: 1489.615 | TE45: 1038.778 | TF45: 1569.058 | TG45: 2287.724 | TH45: 3367.2 | TI45: 3775.972 | TJ45: 3539.702 | TK45: 3062.457 | TL45: 2812.884 | TM45: 2514.956 | TN45: 1621.632 | TO45: 1202.71 | TP45: 991.927 | TQ45: 0 | TR45: 0 | TS45: 0 | TT45: 0 | TU45: 0 | TV45: 0 | TW45: 0 | TX45: 0 | TY45: 0 | TZ45: 0 | UA45: 0 | UB45: 0 | UC45: 331.418 | UD45: 1092.477 | UE45: 1461.963 | UF45: 2229.517 | UG45: 2964.849 | UH45: 2946.137 | UI45: 2552.417 | UJ45: 2689.885 | UK45: 1439.576 | UL45: 1177.046 | UM45: 1091.643 | UN45: 1615.072 | UO45: 0 | UP45: 0 | UQ45: 0 | UR45: 0 | US45: 0 | UT45: 0 | UU45: 0 | UV45: 0 | UW45: 0 | UX45: 0 | UY45: 0 | UZ45: 0 | VA45: 0 | VB45: 0 | VC45: 0 | VD45: 0 | VE45: 0 | VF45: 0 | VG45: 0 | VH45: 0 | VI45: 0 | VJ45: 0 | VK45: 0
